Workbook

Sheet Simple PE Formula
A2: Drivers | H2: If no net debt, ROIC and ROE are the same | M2: value = cf1/k
B3: Rate of Return | E3: 0.14 | F3: ROI | H3: If no net debt, k and WACC are the same | M3: value = cf0 * (1+g)/(k-g) | P3: =(1-E5/E3)/(E4-E5) -> 19.64285714
B4: Cost of Capital | E4: 0.07 | F4: K
B5: Growth | E5: 0.03 | F5: G | H5: Value Formula | M5: g = ROE * (1-dpo)
B6: Payout | F6: Payout | H6: Earnings Multiple (P/E or EV/NOPAT) | M6: g/roe = 1- dpo
B7: Investment Balance (Book Value) | E7: 27.24 | H7: Value to Investment (P/B or EV/Invested Capital) | M7: dpo = 1- g/roe
A9: Long-term Model
B10: Period | G10: 1 | H10: =G10+1 -> 2 | I10: =H10+1 -> 3 | J10: =I10+1 -> 4 | K10: 5 | L10: 6 | M10: 7 | N10: 8 | O10: 9 | P10: 10 | Q10: 11 | R10: 12 | S10: 13 | T10: 14 | U10: 15 | V10: 16 | W10: 17 | X10: 18 | Y10: 19 | Z10: 20 | AA10: 21 | AB10: 22 | AC10: 23 | AD10: 24 | AE10: 25 | AF10: 26 | AG10: 27 | AH10: 28 | AI10: 29 | AJ10: 30 | AK10: 31 | AL10: 32 | AM10: 33 | AN10: 34 | AO10: 35 | AP10: 36 | AQ10: 37 | AR10: 38 | AS10: 39 | AT10: 40 | AU10: 41 | AV10: 42 | AW10: 43 | AX10: 44 | AY10: 45 | AZ10: 46 | BA10: 47 | BB10: 48 | BC10: 49 | BD10: 50 | BE10: 51 | BF10: 52 | BG10: 53 | BH10: 54 | BI10: 55 | BJ10: 56 | BK10: 57 | BL10: 58 | BM10: 59 | BN10: 60 | BO10: 61 | BP10: 62 | BQ10: 63 | BR10: 64 | BS10: 65 | BT10: 66 | BU10: =BT10+1 -> 67 | BV10: 68 | BW10: 69 | BX10: 70 | BY10: 71 | BZ10: 72 | CA10: 73 | CB10: 74 | CC10: 75 | CD10: 76 | CE10: 77 | CF10: 78 | CG10: 79 | CH10: 80 | CI10: 81 | CJ10: 82 | CK10: 83 | CL10: 84 | CM10: 85 | CN10: 86 | CO10: 87 | CP10: 88 | CQ10: 89 | CR10: 90 | CS10: 91 | CT10: 92 | CU10: 93 | CV10: 94 | CW10: 95 | CX10: 96 | CY10: 97 | CZ10: 98 | DA10: 99 | DB10: 100 | DC10: 101 | DD10: 102 | DE10: 103 | DF10: 104 | DG10: 105 | DH10: 106 | DI10: 107 | DJ10: 108 | DK10: 109 | DL10: 110 | DM10: 111 | DN10: 112 | DO10: 113 | DP10: 114 | DQ10: 115 | DR10: 116 | DS10: 117 | DT10: 118 | DU10: 119 | DV10: 120 | DW10: 121 | DX10: 122 | DY10: 123 | DZ10: 124 | EA10: 125 | EB10: 126 | EC10: 127 | ED10: 128 | EE10: 129 | EF10: 130 | EG10: =EF10+1 -> 131 | EH10: 132 | EI10: 133 | EJ10: 134 | EK10: 135 | EL10: 136 | EM10: 137 | EN10: 138 | EO10: 139 | EP10: 140 | EQ10: 141 | ER10: 142 | ES10: 143 | ET10: 144 | EU10: 145 | EV10: 146 | EW10: 147 | EX10: 148 | EY10: 149 | EZ10: 150 | FA10: 151 | FB10: 152 | FC10: 153 | FD10: 154 | FE10: 155 | FF10: 156 | FG10: 157 | FH10: 158 | FI10: 159 | FJ10: 160 | FK10: 161 | FL10: 162 | FM10: 163 | FN10: 164 | FO10: 165 | FP10: 166 | FQ10: 167 | FR10: 168 | FS10: 169 | FT10: 170 | FU10: 171 | FV10: 172 | FW10: 173 | FX10: 174 | FY10: 175 | FZ10: 176 | GA10: 177 | GB10: 178 | GC10: 179 | GD10: 180 | GE10: 181 | GF10: 182 | GG10: 183 | GH10: 184 | GI10: 185 | GJ10: 186 | GK10: 187 | GL10: 188 | GM10: 189 | GN10: 190 | GO10: 191 | GP10: 192 | GQ10: 193 | GR10: 194 | GS10: =GR10+1 -> 195 | GT10: 196 | GU10: 197 | GV10: 198 | GW10: 199 | GX10: 200 | GY10: 201 | GZ10: 202 | HA10: 203 | HB10: 204 | HC10: 205 | HD10: 206 | HE10: 207 | HF10: 208 | HG10: 209 | HH10: 210 | HI10: 211 | HJ10: 212 | HK10: 213 | HL10: 214 | HM10: 215 | HN10: 216 | HO10: 217 | HP10: 218 | HQ10: 219 | HR10: 220 | HS10: 221 | HT10: 222 | HU10: 223 | HV10: 224 | HW10: 225 | HX10: 226 | HY10: 227 | HZ10: 228 | IA10: 229 | IB10: 230 | IC10: 231 | ID10: 232 | IE10: 233 | IF10: 234 | IG10: 235 | IH10: 236 | II10: 237 | IJ10: 238 | IK10: 239 | IL10: 240 | IM10: 241 | IN10: 242 | IO10: 243 | IP10: 244 | IQ10: 245 | IR10: 246 | IS10: 247 | IT10: 248 | IU10: 249 | IV10: 250 | IW10: 251 | IX10: 252 | IY10: 253 | IZ10: 254 | JA10: 255 | JB10: 256 | JC10: 257 | JD10: 258 | JE10: =JD10+1 -> 259 | JF10: 260 | JG10: 261 | JH10: 262 | JI10: 263 | JJ10: 264 | JK10: 265 | JL10: 266 | JM10: 267 | JN10: 268 | JO10: 269 | JP10: 270 | JQ10: 271 | JR10: 272 | JS10: 273 | JT10: 274 | JU10: 275 | JV10: 276 | JW10: 277 | JX10: 278 | JY10: 279 | JZ10: 280 | KA10: 281 | KB10: 282 | KC10: 283 | KD10: 284 | KE10: 285 | KF10: 286 | KG10: 287 | KH10: 288 | KI10: 289 | KJ10: 290 | KK10: 291 | KL10: 292 | KM10: 293 | KN10: 294 | KO10: 295 | KP10: 296 | KQ10: 297 | KR10: 298 | KS10: 299 | KT10: 300 | KU10: 301 | KV10: 302 | KW10: 303 | KX10: 304 | KY10: 305 | KZ10: 306 | LA10: 307 | LB10: 308 | LC10: 309 | LD10: 310 | LE10: 311 | LF10: 312 | LG10: 313
B12: Investment Balance
C13: Opening Balance
C14: Add: Income | E14: =E3 -> 0.14
C15: Less: Payouts | E15: =E6 -> 0
C16: Closing Balance
C18: NPV of Payouts
C19: Forward Earnings Multiple
C20: Value to Investment
C21: IRR Check
A23: Goal Seek to Compute Cost of Capital
B24: Input Valuation Ratio
B25: Computed Valuation Ratio
B26: Difference | F26: difference
A28: Data Table Sensitivity

Sheet PE Ratio Changing Drivers
E2: Use INDEX and LOOKUP
E3: Copy INTERPOLATE
A5: Drivers
B6: Rate of Return | F6: 2018 | G6: 2019 | H6: 2020 | I6: 2025 | J6: 2030
C7: Base | F7: 0.22 | G7: 0.24 | H7: 0.25 | I7: 0.23 | J7: 0.2
C8: High | F8: 0.15 | G8: 0.17 | H8: 0.2 | I8: 0.22 | J8: 0.27
C9: Low | F9: 0.22 | G9: 0.2 | H9: 0.15 | I9: 0.1 | J9: 0.05
C10: Flat | F10: 0.12 | G10: =F10 -> 0.12 | H10: =G10 -> 0.12 | I10: 0.12 | J10: 0.12 | L10: 12
C11: Applied | E11: 2
B13: Growth
C14: Base | F14: 0.08 | G14: 0.07 | H14: 0.06 | I14: 0.04 | J14: 0.04
C15: High | F15: 0.08 | G15: 0.09 | H15: 0.1 | I15: 0.07 | J15: 0.06
C16: Low | F16: 0.06 | G16: 0.05 | H16: 0.04 | I16: 0.03 | J16: 0.02
C17: Flat | F17: 0.06 | G17: =F17 -> 0.06 | H17: =G17 -> 0.06 | I17: 0.06 | J17: 0.06 | L17: 6
C18: Applied | E18: 1
B20: Cost of Capital
C21: Base | F21: 0.075 | G21: 0.075 | H21: 0.075 | I21: 0.075 | J21: 0.075
C22: High | F22: 0.06 | G22: 0.062 | H22: 0.07 | I22: 0.07 | J22: 0.07
C23: Low | F23: 0.08 | G23: 0.082 | H23: 0.085 | I23: 0.085 | J23: 0.085
C24: Flat | F24: 0.065 | G24: =F24 -> 0.065 | H24: =G24 -> 0.065 | I24: 0.065 | J24: 0.065
C25: Applied | E25: 1
B27: Book Value | E27: 27.54
A29: Simulation
B30: Year | F30: 2017 | G30: 2018 | H30: 2019 | I30: 2020 | J30: 2021 | K30: 2022 | L30: 2023 | M30: 2024 | N30: 2025 | O30: 2026 | P30: 2027 | Q30: 2028 | R30: 2029 | S30: 2030 | T30: 2031 | U30: 2032 | V30: 2033 | W30: 2034 | X30: 2035 | Y30: 2036 | Z30: 2037 | AA30: 2038 | AB30: 2039 | AC30: 2040 | AD30: 2041 | AE30: 2042 | AF30: 2043 | AG30: 2044 | AH30: 2045 | AI30: 2046 | AJ30: 2047 | AK30: 2048 | AL30: 2049 | AM30: 2050 | AN30: 2051 | AO30: 2052 | AP30: 2053 | AQ30: 2054 | AR30: 2055 | AS30: 2056 | AT30: 2057 | AU30: 2058 | AV30: 2059 | AW30: 2060 | AX30: 2061 | AY30: 2062 | AZ30: 2063 | BA30: 2064 | BB30: 2065 | BC30: 2066 | BD30: 2067 | BE30: 2068 | BF30: 2069 | BG30: 2070 | BH30: 2071 | BI30: 2072 | BJ30: 2073 | BK30: 2074 | BL30: 2075 | BM30: 2076 | BN30: 2077 | BO30: 2078 | BP30: 2079 | BQ30: 2080 | BR30: 2081 | BS30: 2082 | BT30: 2083 | BU30: 2084 | BV30: 2085 | BW30: 2086 | BX30: 2087 | BY30: 2088 | BZ30: 2089 | CA30: 2090 | CB30: 2091 | CC30: 2092 | CD30: 2093 | CE30: 2094 | CF30: 2095 | CG30: 2096 | CH30: 2097 | CI30: 2098 | CJ30: 2099 | CK30: 2100
B31: Return on Investment (LOOKUP, INTERPOLATE)
B32: Growth
B33: Payout Ratio
B34: Cost of Capital
B35: Compound Cost of Capital
B37: Investment Balance
C38: Opening Balance
C39: Add: Income
C40: Less: Payouts
C41: Closing Balance
C43: NPV of Payouts
C44: Forward Earnings Multiple
C45: Value to Investment

Sheet EV to EBITDA
A2: EV/EBITDA Ratio Drivers
B3: ROIC | E3: 0.18 | I3: EV/EBITDA | J3: =G37 -> 
B4: Growth | E4: 0.04 | I4: EV/EBIT | J4: =G38 -> 
B5: WACC | E5: 0.07 | I5: EV/NOPAT | J5: =G39 -> 
B6: Plant Life | E6: 15
B7: Gross Depreciation Rate | E7: =1/E6 -> 0.06666666667
B8: Net Depreciation Rate | E8: =LOOKUP(E6+1,41:41,58:58) -> 0 | G8: For same investment, need more cap exp
B9: Cap Exp to Depreciation | E9: =LOOKUP(E6+1,41:41,59:59) -> 0
B10: Working Capital to EBITDA | E10: 0.4
B11: Tax Rate | E11: 0.3
B12: Invested Capital | E12: 174
B13: EBITDA | E13: 50
A15: Investment Balance | H15: 1 | I15: 2 | J15: 3 | K15: 4 | L15: 5 | M15: 6 | N15: 7 | O15: 8 | P15: 9 | Q15: 10 | R15: 11 | S15: 12 | T15: 13 | U15: 14 | V15: 15 | W15: 16 | X15: 17 | Y15: 18 | Z15: 19 | AA15: 20 | AB15: 21 | AC15: 22 | AD15: 23 | AE15: 24 | AF15: 25 | AG15: 26 | AH15: 27 | AI15: 28 | AJ15: 29 | AK15: 30 | AL15: 31 | AM15: 32 | AN15: 33 | AO15: 34 | AP15: 35 | AQ15: 36 | AR15: 37 | AS15: 38 | AT15: 39 | AU15: 40 | AV15: 41 | AW15: 42 | AX15: 43 | AY15: 44 | AZ15: 45 | BA15: 46 | BB15: 47 | BC15: 48 | BD15: 49 | BE15: 50 | BF15: 51 | BG15: 52 | BH15: 53 | BI15: 54 | BJ15: 55 | BK15: 56 | BL15: 57 | BM15: 58 | BN15: 59 | BO15: 60 | BP15: 61 | BQ15: 62 | BR15: 63 | BS15: 64 | BT15: 65 | BU15: 66 | BV15: 67 | BW15: 68 | BX15: 69 | BY15: 70 | BZ15: 71 | CA15: 72 | CB15: 73 | CC15: 74 | CD15: 75 | CE15: 76 | CF15: 77 | CG15: 78 | CH15: 79 | CI15: 80 | CJ15: 81 | CK15: 82 | CL15: 83 | CM15: 84 | CN15: 85 | CO15: 86 | CP15: 87 | CQ15: 88 | CR15: 89 | CS15: 90 | CT15: 91 | CU15: 92 | CV15: 93 | CW15: 94 | CX15: 95 | CY15: 96 | CZ15: 97 | DA15: 98 | DB15: 99 | DC15: 100 | DD15: 101 | DE15: 102 | DF15: 103 | DG15: 104 | DH15: 105 | DI15: 106 | DJ15: 107 | DK15: 108 | DL15: 109 | DM15: 110 | DN15: 111 | DO15: 112 | DP15: 113 | DQ15: 114 | DR15: 115 | DS15: 116 | DT15: 117 | DU15: 118 | DV15: 119 | DW15: 120 | DX15: 121 | DY15: 122 | DZ15: 123 | EA15: 124 | EB15: 125 | EC15: 126 | ED15: 127 | EE15: 128 | EF15: 129 | EG15: 130 | EH15: 131 | EI15: 132 | EJ15: 133 | EK15: 134 | EL15: 135 | EM15: 136 | EN15: 137 | EO15: 138 | EP15: 139 | EQ15: 140 | ER15: 141 | ES15: 142 | ET15: 143 | EU15: 144 | EV15: 145 | EW15: 146 | EX15: 147 | EY15: 148 | EZ15: 149 | FA15: 150 | FB15: 151 | FC15: 152 | FD15: 153 | FE15: 154 | FF15: 155 | FG15: 156 | FH15: 157 | FI15: 158 | FJ15: 159 | FK15: 160 | FL15: 161 | FM15: 162 | FN15: 163 | FO15: 164 | FP15: 165 | FQ15: 166 | FR15: 167 | FS15: 168 | FT15: 169 | FU15: 170 | FV15: 171 | FW15: 172 | FX15: 173 | FY15: 174 | FZ15: 175 | GA15: 176 | GB15: 177 | GC15: 178 | GD15: 179 | GE15: 180 | GF15: 181 | GG15: 182 | GH15: 183 | GI15: 184 | GJ15: 185 | GK15: 186 | GL15: 187 | GM15: 188 | GN15: 189 | GO15: 190 | GP15: 191 | GQ15: 192 | GR15: 193 | GS15: 194 | GT15: 195 | GU15: 196 | GV15: 197 | GW15: 198 | GX15: 199 | GY15: 200
B16: Opening Balance | H16: =G19 -> 154 | I16: =H19 -> 154 | J16: 154 | K16: 154 | L16: 154 | M16: 154 | N16: 154 | O16: 154 | P16: 154 | Q16: 154 | R16: 154 | S16: 154 | T16: 154 | U16: 154 | V16: 154 | W16: 154 | X16: 154 | Y16: 154 | Z16: 154 | AA16: 154 | AB16: 154 | AC16: 154 | AD16: 154 | AE16: 154 | AF16: 154 | AG16: 154 | AH16: 154 | AI16: 154 | AJ16: 154 | AK16: 154 | AL16: 154 | AM16: 154 | AN16: 154 | AO16: 154 | AP16: 154 | AQ16: 154 | AR16: 154 | AS16: 154 | AT16: 154 | AU16: 154 | AV16: 154 | AW16: 154 | AX16: 154 | AY16: 154 | AZ16: 154 | BA16: 154 | BB16: 154 | BC16: 154 | BD16: 154 | BE16: 154 | BF16: 154 | BG16: 154 | BH16: 154 | BI16: 154 | BJ16: 154 | BK16: 154 | BL16: 154 | BM16: 154 | BN16: 154 | BO16: 154 | BP16: 154 | BQ16: 154 | BR16: 154 | BS16: 154 | BT16: 154 | BU16: =BT19 -> 154 | BV16: 154 | BW16: 154 | BX16: 154 | BY16: 154 | BZ16: 154 | CA16: 154 | CB16: 154 | CC16: 154 | CD16: 154 | CE16: 154 | CF16: 154 | CG16: 154 | CH16: 154 | CI16: 154 | CJ16: 154 | CK16: 154 | CL16: 154 | CM16: 154 | CN16: 154 | CO16: 154 | CP16: 154 | CQ16: 154 | CR16: 154 | CS16: 154 | CT16: 154 | CU16: 154 | CV16: 154 | CW16: 154 | CX16: 154 | CY16: 154 | CZ16: 154 | DA16: 154 | DB16: 154 | DC16: 154 | DD16: 154 | DE16: 154 | DF16: 154 | DG16: 154 | DH16: 154 | DI16: 154 | DJ16: 154 | DK16: 154 | DL16: 154 | DM16: 154 | DN16: 154 | DO16: 154 | DP16: 154 | DQ16: 154 | DR16: 154 | DS16: 154 | DT16: 154 | DU16: 154 | DV16: 154 | DW16: 154 | DX16: 154 | DY16: 154 | DZ16: 154 | EA16: 154 | EB16: 154 | EC16: 154 | ED16: 154 | EE16: 154 | EF16: 154 | EG16: =EF19 -> 154 | EH16: 154 | EI16: 154 | EJ16: 154 | EK16: 154 | EL16: 154 | EM16: 154 | EN16: 154 | EO16: 154 | EP16: 154 | EQ16: 154 | ER16: 154 | ES16: 154 | ET16: 154 | EU16: 154 | EV16: 154 | EW16: 154 | EX16: 154 | EY16: 154 | EZ16: 154 | FA16: 154 | FB16: 154 | FC16: 154 | FD16: 154 | FE16: 154 | FF16: 154 | FG16: 154 | FH16: 154 | FI16: 154 | FJ16: 154 | FK16: 154 | FL16: 154 | FM16: 154 | FN16: 154 | FO16: 154 | FP16: 154 | FQ16: 154 | FR16: 154 | FS16: 154 | FT16: 154 | FU16: 154 | FV16: 154 | FW16: 154 | FX16: 154 | FY16: 154 | FZ16: 154 | GA16: 154 | GB16: 154 | GC16: 154 | GD16: 154 | GE16: 154 | GF16: 154 | GG16: 154 | GH16: 154 | GI16: 154 | GJ16: 154 | GK16: 154 | GL16: 154 | GM16: 154 | GN16: 154 | GO16: 154 | GP16: 154 | GQ16: 154 | GR16: 154 | GS16: =GR19 -> 154 | GT16: 154 | GU16: 154 | GV16: 154 | GW16: 154 | GX16: 154 | GY16: 154
B17: Add: Capital Expenditures | E17: =E9 -> 0 | H17: =H18*$E$17 -> 0 | I17: =I18*$E$17 -> 0 | J17: 0 | K17: 0 | L17: 0 | M17: 0 | N17: 0 | O17: 0 | P17: 0 | Q17: 0 | R17: 0 | S17: 0 | T17: 0 | U17: 0 | V17: 0 | W17: 0 | X17: 0 | Y17: 0 | Z17: 0 | AA17: 0 | AB17: 0 | AC17: 0 | AD17: 0 | AE17: 0 | AF17: 0 | AG17: 0 | AH17: 0 | AI17: 0 | AJ17: 0 | AK17: 0 | AL17: 0 | AM17: 0 | AN17: 0 | AO17: 0 | AP17: 0 | AQ17: 0 | AR17: 0 | AS17: 0 | AT17: 0 | AU17: 0 | AV17: 0 | AW17: 0 | AX17: 0 | AY17: 0 | AZ17: 0 | BA17: 0 | BB17: 0 | BC17: 0 | BD17: 0 | BE17: 0 | BF17: 0 | BG17: 0 | BH17: 0 | BI17: 0 | BJ17: 0 | BK17: 0 | BL17: 0 | BM17: 0 | BN17: 0 | BO17: 0 | BP17: 0 | BQ17: 0 | BR17: 0 | BS17: 0 | BT17: 0 | BU17: =BU18*$E$17 -> 0 | BV17: 0 | BW17: 0 | BX17: 0 | BY17: 0 | BZ17: 0 | CA17: 0 | CB17: 0 | CC17: 0 | CD17: 0 | CE17: 0 | CF17: 0 | CG17: 0 | CH17: 0 | CI17: 0 | CJ17: 0 | CK17: 0 | CL17: 0 | CM17: 0 | CN17: 0 | CO17: 0 | CP17: 0 | CQ17: 0 | CR17: 0 | CS17: 0 | CT17: 0 | CU17: 0 | CV17: 0 | CW17: 0 | CX17: 0 | CY17: 0 | CZ17: 0 | DA17: 0 | DB17: 0 | DC17: 0 | DD17: 0 | DE17: 0 | DF17: 0 | DG17: 0 | DH17: 0 | DI17: 0 | DJ17: 0 | DK17: 0 | DL17: 0 | DM17: 0 | DN17: 0 | DO17: 0 | DP17: 0 | DQ17: 0 | DR17: 0 | DS17: 0 | DT17: 0 | DU17: 0 | DV17: 0 | DW17: 0 | DX17: 0 | DY17: 0 | DZ17: 0 | EA17: 0 | EB17: 0 | EC17: 0 | ED17: 0 | EE17: 0 | EF17: 0 | EG17: =EG18*$E$17 -> 0 | EH17: 0 | EI17: 0 | EJ17: 0 | EK17: 0 | EL17: 0 | EM17: 0 | EN17: 0 | EO17: 0 | EP17: 0 | EQ17: 0 | ER17: 0 | ES17: 0 | ET17: 0 | EU17: 0 | EV17: 0 | EW17: 0 | EX17: 0 | EY17: 0 | EZ17: 0 | FA17: 0 | FB17: 0 | FC17: 0 | FD17: 0 | FE17: 0 | FF17: 0 | FG17: 0 | FH17: 0 | FI17: 0 | FJ17: 0 | FK17: 0 | FL17: 0 | FM17: 0 | FN17: 0 | FO17: 0 | FP17: 0 | FQ17: 0 | FR17: 0 | FS17: 0 | FT17: 0 | FU17: 0 | FV17: 0 | FW17: 0 | FX17: 0 | FY17: 0 | FZ17: 0 | GA17: 0 | GB17: 0 | GC17: 0 | GD17: 0 | GE17: 0 | GF17: 0 | GG17: 0 | GH17: 0 | GI17: 0 | GJ17: 0 | GK17: 0 | GL17: 0 | GM17: 0 | GN17: 0 | GO17: 0 | GP17: 0 | GQ17: 0 | GR17: 0 | GS17: =GS18*$E$17 -> 0 | GT17: 0 | GU17: 0 | GV17: 0 | GW17: 0 | GX17: 0 | GY17: 0
B18: Less: Depreciation | E18: =E8 -> 0 | H18: =H16*$E$18 -> 0 | I18: =I16*$E$18 -> 0 | J18: 0 | K18: 0 | L18: 0 | M18: 0 | N18: 0 | O18: 0 | P18: 0 | Q18: 0 | R18: 0 | S18: 0 | T18: 0 | U18: 0 | V18: 0 | W18: 0 | X18: 0 | Y18: 0 | Z18: 0 | AA18: 0 | AB18: 0 | AC18: 0 | AD18: 0 | AE18: 0 | AF18: 0 | AG18: 0 | AH18: 0 | AI18: 0 | AJ18: 0 | AK18: 0 | AL18: 0 | AM18: 0 | AN18: 0 | AO18: 0 | AP18: 0 | AQ18: 0 | AR18: 0 | AS18: 0 | AT18: 0 | AU18: 0 | AV18: 0 | AW18: 0 | AX18: 0 | AY18: 0 | AZ18: 0 | BA18: 0 | BB18: 0 | BC18: 0 | BD18: 0 | BE18: 0 | BF18: 0 | BG18: 0 | BH18: 0 | BI18: 0 | BJ18: 0 | BK18: 0 | BL18: 0 | BM18: 0 | BN18: 0 | BO18: 0 | BP18: 0 | BQ18: 0 | BR18: 0 | BS18: 0 | BT18: 0 | BU18: =BU16*$E$18 -> 0 | BV18: 0 | BW18: 0 | BX18: 0 | BY18: 0 | BZ18: 0 | CA18: 0 | CB18: 0 | CC18: 0 | CD18: 0 | CE18: 0 | CF18: 0 | CG18: 0 | CH18: 0 | CI18: 0 | CJ18: 0 | CK18: 0 | CL18: 0 | CM18: 0 | CN18: 0 | CO18: 0 | CP18: 0 | CQ18: 0 | CR18: 0 | CS18: 0 | CT18: 0 | CU18: 0 | CV18: 0 | CW18: 0 | CX18: 0 | CY18: 0 | CZ18: 0 | DA18: 0 | DB18: 0 | DC18: 0 | DD18: 0 | DE18: 0 | DF18: 0 | DG18: 0 | DH18: 0 | DI18: 0 | DJ18: 0 | DK18: 0 | DL18: 0 | DM18: 0 | DN18: 0 | DO18: 0 | DP18: 0 | DQ18: 0 | DR18: 0 | DS18: 0 | DT18: 0 | DU18: 0 | DV18: 0 | DW18: 0 | DX18: 0 | DY18: 0 | DZ18: 0 | EA18: 0 | EB18: 0 | EC18: 0 | ED18: 0 | EE18: 0 | EF18: 0 | EG18: =EG16*$E$18 -> 0 | EH18: 0 | EI18: 0 | EJ18: 0 | EK18: 0 | EL18: 0 | EM18: 0 | EN18: 0 | EO18: 0 | EP18: 0 | EQ18: 0 | ER18: 0 | ES18: 0 | ET18: 0 | EU18: 0 | EV18: 0 | EW18: 0 | EX18: 0 | EY18: 0 | EZ18: 0 | FA18: 0 | FB18: 0 | FC18: 0 | FD18: 0 | FE18: 0 | FF18: 0 | FG18: 0 | FH18: 0 | FI18: 0 | FJ18: 0 | FK18: 0 | FL18: 0 | FM18: 0 | FN18: 0 | FO18: 0 | FP18: 0 | FQ18: 0 | FR18: 0 | FS18: 0 | FT18: 0 | FU18: 0 | FV18: 0 | FW18: 0 | FX18: 0 | FY18: 0 | FZ18: 0 | GA18: 0 | GB18: 0 | GC18: 0 | GD18: 0 | GE18: 0 | GF18: 0 | GG18: 0 | GH18: 0 | GI18: 0 | GJ18: 0 | GK18: 0 | GL18: 0 | GM18: 0 | GN18: 0 | GO18: 0 | GP18: 0 | GQ18: 0 | GR18: 0 | GS18: =GS16*$E$18 -> 0 | GT18: 0 | GU18: 0 | GV18: 0 | GW18: 0 | GX18: 0 | GY18: 0
B19: Closing Balance | G19: =G21-G20 -> 154 | H19: =H16+H17-H18 -> 154 | I19: =I16+I17-I18 -> 154 | J19: 154 | K19: 154 | L19: 154 | M19: 154 | N19: 154 | O19: 154 | P19: 154 | Q19: 154 | R19: 154 | S19: 154 | T19: 154 | U19: 154 | V19: 154 | W19: 154 | X19: 154 | Y19: 154 | Z19: 154 | AA19: 154 | AB19: 154 | AC19: 154 | AD19: 154 | AE19: 154 | AF19: 154 | AG19: 154 | AH19: 154 | AI19: 154 | AJ19: 154 | AK19: 154 | AL19: 154 | AM19: 154 | AN19: 154 | AO19: 154 | AP19: 154 | AQ19: 154 | AR19: 154 | AS19: 154 | AT19: 154 | AU19: 154 | AV19: 154 | AW19: 154 | AX19: 154 | AY19: 154 | AZ19: 154 | BA19: 154 | BB19: 154 | BC19: 154 | BD19: 154 | BE19: 154 | BF19: 154 | BG19: 154 | BH19: 154 | BI19: 154 | BJ19: 154 | BK19: 154 | BL19: 154 | BM19: 154 | BN19: 154 | BO19: 154 | BP19: 154 | BQ19: 154 | BR19: 154 | BS19: 154 | BT19: 154 | BU19: =BU16+BU17-BU18 -> 154 | BV19: 154 | BW19: 154 | BX19: 154 | BY19: 154 | BZ19: 154 | CA19: 154 | CB19: 154 | CC19: 154 | CD19: 154 | CE19: 154 | CF19: 154 | CG19: 154 | CH19: 154 | CI19: 154 | CJ19: 154 | CK19: 154 | CL19: 154 | CM19: 154 | CN19: 154 | CO19: 154 | CP19: 154 | CQ19: 154 | CR19: 154 | CS19: 154 | CT19: 154 | CU19: 154 | CV19: 154 | CW19: 154 | CX19: 154 | CY19: 154 | CZ19: 154 | DA19: 154 | DB19: 154 | DC19: 154 | DD19: 154 | DE19: 154 | DF19: 154 | DG19: 154 | DH19: 154 | DI19: 154 | DJ19: 154 | DK19: 154 | DL19: 154 | DM19: 154 | DN19: 154 | DO19: 154 | DP19: 154 | DQ19: 154 | DR19: 154 | DS19: 154 | DT19: 154 | DU19: 154 | DV19: 154 | DW19: 154 | DX19: 154 | DY19: 154 | DZ19: 154 | EA19: 154 | EB19: 154 | EC19: 154 | ED19: 154 | EE19: 154 | EF19: 154 | EG19: =EG16+EG17-EG18 -> 154 | EH19: 154 | EI19: 154 | EJ19: 154 | EK19: 154 | EL19: 154 | EM19: 154 | EN19: 154 | EO19: 154 | EP19: 154 | EQ19: 154 | ER19: 154 | ES19: 154 | ET19: 154 | EU19: 154 | EV19: 154 | EW19: 154 | EX19: 154 | EY19: 154 | EZ19: 154 | FA19: 154 | FB19: 154 | FC19: 154 | FD19: 154 | FE19: 154 | FF19: 154 | FG19: 154 | FH19: 154 | FI19: 154 | FJ19: 154 | FK19: 154 | FL19: 154 | FM19: 154 | FN19: 154 | FO19: 154 | FP19: 154 | FQ19: 154 | FR19: 154 | FS19: 154 | FT19: 154 | FU19: 154 | FV19: 154 | FW19: 154 | FX19: 154 | FY19: 154 | FZ19: 154 | GA19: 154 | GB19: 154 | GC19: 154 | GD19: 154 | GE19: 154 | GF19: 154 | GG19: 154 | GH19: 154 | GI19: 154 | GJ19: 154 | GK19: 154 | GL19: 154 | GM19: 154 | GN19: 154 | GO19: 154 | GP19: 154 | GQ19: 154 | GR19: 154 | GS19: =GS16+GS17-GS18 -> 154 | GT19: 154 | GU19: 154 | GV19: 154 | GW19: 154 | GX19: 154 | GY19: 154
B20: Working Capital | E20: =E10 -> 0.4 | G20: =E13*E10 -> 20 | H20: =$E$20*G26 -> 20 | I20: =$E$20*H26 -> 0 | J20: 0 | K20: 0 | L20: 0 | M20: 0 | N20: 0 | O20: 0 | P20: 0 | Q20: 0 | R20: 0 | S20: 0 | T20: 0 | U20: 0 | V20: 0 | W20: 0 | X20: 0 | Y20: 0 | Z20: 0 | AA20: 0 | AB20: 0 | AC20: 0 | AD20: 0 | AE20: 0 | AF20: 0 | AG20: 0 | AH20: 0 | AI20: 0 | AJ20: 0 | AK20: 0 | AL20: 0 | AM20: 0 | AN20: 0 | AO20: 0 | AP20: 0 | AQ20: 0 | AR20: 0 | AS20: 0 | AT20: 0 | AU20: 0 | AV20: 0 | AW20: 0 | AX20: 0 | AY20: 0 | AZ20: 0 | BA20: 0 | BB20: 0 | BC20: 0 | BD20: 0 | BE20: 0 | BF20: 0 | BG20: 0 | BH20: 0 | BI20: 0 | BJ20: 0 | BK20: 0 | BL20: 0 | BM20: 0 | BN20: 0 | BO20: 0 | BP20: 0 | BQ20: 0 | BR20: 0 | BS20: 0 | BT20: 0 | BU20: =$E$20*BT26 -> 0 | BV20: 0 | BW20: 0 | BX20: 0 | BY20: 0 | BZ20: 0 | CA20: 0 | CB20: 0 | CC20: 0 | CD20: 0 | CE20: 0 | CF20: 0 | CG20: 0 | CH20: 0 | CI20: 0 | CJ20: 0 | CK20: 0 | CL20: 0 | CM20: 0 | CN20: 0 | CO20: 0 | CP20: 0 | CQ20: 0 | CR20: 0 | CS20: 0 | CT20: 0 | CU20: 0 | CV20: 0 | CW20: 0 | CX20: 0 | CY20: 0 | CZ20: 0 | DA20: 0 | DB20: 0 | DC20: 0 | DD20: 0 | DE20: 0 | DF20: 0 | DG20: 0 | DH20: 0 | DI20: 0 | DJ20: 0 | DK20: 0 | DL20: 0 | DM20: 0 | DN20: 0 | DO20: 0 | DP20: 0 | DQ20: 0 | DR20: 0 | DS20: 0 | DT20: 0 | DU20: 0 | DV20: 0 | DW20: 0 | DX20: 0 | DY20: 0 | DZ20: 0 | EA20: 0 | EB20: 0 | EC20: 0 | ED20: 0 | EE20: 0 | EF20: 0 | EG20: =$E$20*EF26 -> 0 | EH20: 0 | EI20: 0 | EJ20: 0 | EK20: 0 | EL20: 0 | EM20: 0 | EN20: 0 | EO20: 0 | EP20: 0 | EQ20: 0 | ER20: 0 | ES20: 0 | ET20: 0 | EU20: 0 | EV20: 0 | EW20: 0 | EX20: 0 | EY20: 0 | EZ20: 0 | FA20: 0 | FB20: 0 | FC20: 0 | FD20: 0 | FE20: 0 | FF20: 0 | FG20: 0 | FH20: 0 | FI20: 0 | FJ20: 0 | FK20: 0 | FL20: 0 | FM20: 0 | FN20: 0 | FO20: 0 | FP20: 0 | FQ20: 0 | FR20: 0 | FS20: 0 | FT20: 0 | FU20: 0 | FV20: 0 | FW20: 0 | FX20: 0 | FY20: 0 | FZ20: 0 | GA20: 0 | GB20: 0 | GC20: 0 | GD20: 0 | GE20: 0 | GF20: 0 | GG20: 0 | GH20: 0 | GI20: 0 | GJ20: 0 | GK20: 0 | GL20: 0 | GM20: 0 | GN20: 0 | GO20: 0 | GP20: 0 | GQ20: 0 | GR20: 0 | GS20: =$E$20*GR26 -> 0 | GT20: 0 | GU20: 0 | GV20: 0 | GW20: 0 | GX20: 0 | GY20: 0
B21: Total Investment | G21: =E12 -> 174 | H21: =H19+H20 -> 174 | I21: =I19+I20 -> 154 | J21: 154 | K21: 154 | L21: 154 | M21: 154 | N21: 154 | O21: 154 | P21: 154 | Q21: 154 | R21: 154 | S21: 154 | T21: 154 | U21: 154 | V21: 154 | W21: 154 | X21: 154 | Y21: 154 | Z21: 154 | AA21: 154 | AB21: 154 | AC21: 154 | AD21: 154 | AE21: 154 | AF21: 154 | AG21: 154 | AH21: 154 | AI21: 154 | AJ21: 154 | AK21: 154 | AL21: 154 | AM21: 154 | AN21: 154 | AO21: 154 | AP21: 154 | AQ21: 154 | AR21: 154 | AS21: 154 | AT21: 154 | AU21: 154 | AV21: 154 | AW21: 154 | AX21: 154 | AY21: 154 | AZ21: 154 | BA21: 154 | BB21: 154 | BC21: 154 | BD21: 154 | BE21: 154 | BF21: 154 | BG21: 154 | BH21: 154 | BI21: 154 | BJ21: 154 | BK21: 154 | BL21: 154 | BM21: 154 | BN21: 154 | BO21: 154 | BP21: 154 | BQ21: 154 | BR21: 154 | BS21: 154 | BT21: 154 | BU21: =BU19+BU20 -> 154 | BV21: 154 | BW21: 154 | BX21: 154 | BY21: 154 | BZ21: 154 | CA21: 154 | CB21: 154 | CC21: 154 | CD21: 154 | CE21: 154 | CF21: 154 | CG21: 154 | CH21: 154 | CI21: 154 | CJ21: 154 | CK21: 154 | CL21: 154 | CM21: 154 | CN21: 154 | CO21: 154 | CP21: 154 | CQ21: 154 | CR21: 154 | CS21: 154 | CT21: 154 | CU21: 154 | CV21: 154 | CW21: 154 | CX21: 154 | CY21: 154 | CZ21: 154 | DA21: 154 | DB21: 154 | DC21: 154 | DD21: 154 | DE21: 154 | DF21: 154 | DG21: 154 | DH21: 154 | DI21: 154 | DJ21: 154 | DK21: 154 | DL21: 154 | DM21: 154 | DN21: 154 | DO21: 154 | DP21: 154 | DQ21: 154 | DR21: 154 | DS21: 154 | DT21: 154 | DU21: 154 | DV21: 154 | DW21: 154 | DX21: 154 | DY21: 154 | DZ21: 154 | EA21: 154 | EB21: 154 | EC21: 154 | ED21: 154 | EE21: 154 | EF21: 154 | EG21: =EG19+EG20 -> 154 | EH21: 154 | EI21: 154 | EJ21: 154 | EK21: 154 | EL21: 154 | EM21: 154 | EN21: 154 | EO21: 154 | EP21: 154 | EQ21: 154 | ER21: 154 | ES21: 154 | ET21: 154 | EU21: 154 | EV21: 154 | EW21: 154 | EX21: 154 | EY21: 154 | EZ21: 154 | FA21: 154 | FB21: 154 | FC21: 154 | FD21: 154 | FE21: 154 | FF21: 154 | FG21: 154 | FH21: 154 | FI21: 154 | FJ21: 154 | FK21: 154 | FL21: 154 | FM21: 154 | FN21: 154 | FO21: 154 | FP21: 154 | FQ21: 154 | FR21: 154 | FS21: 154 | FT21: 154 | FU21: 154 | FV21: 154 | FW21: 154 | FX21: 154 | FY21: 154 | FZ21: 154 | GA21: 154 | GB21: 154 | GC21: 154 | GD21: 154 | GE21: 154 | GF21: 154 | GG21: 154 | GH21: 154 | GI21: 154 | GJ21: 154 | GK21: 154 | GL21: 154 | GM21: 154 | GN21: 154 | GO21: 154 | GP21: 154 | GQ21: 154 | GR21: 154 | GS21: =GS19+GS20 -> 154 | GT21: 154 | GU21: 154 | GV21: 154 | GW21: 154 | GX21: 154 | GY21: 154
B23: ROIC | E23: =E3 -> 0.18
B24: NOPAT
B25: EBIT = NOPAT/(1-t) | E25: =E11 -> 0.3
B26: EBITDA = EBIT + Deprecation | G26: =E13 -> 50
A28: Free Cash Flow
B29: EBITDA | H29: =H26 -> 0 | I29: =I26 -> 0 | J29: 0 | K29: 0 | L29: 0 | M29: 0 | N29: 0 | O29: 0 | P29: 0 | Q29: 0 | R29: 0 | S29: 0 | T29: 0 | U29: 0 | V29: 0 | W29: 0 | X29: 0 | Y29: 0 | Z29: 0 | AA29: 0 | AB29: 0 | AC29: 0 | AD29: 0 | AE29: 0 | AF29: 0 | AG29: 0 | AH29: 0 | AI29: 0 | AJ29: 0 | AK29: 0 | AL29: 0 | AM29: 0 | AN29: 0 | AO29: 0 | AP29: 0 | AQ29: 0 | AR29: 0 | AS29: 0 | AT29: 0 | AU29: 0 | AV29: 0 | AW29: 0 | AX29: 0 | AY29: 0 | AZ29: 0 | BA29: 0 | BB29: 0 | BC29: 0 | BD29: 0 | BE29: 0 | BF29: 0 | BG29: 0 | BH29: 0 | BI29: 0 | BJ29: 0 | BK29: 0 | BL29: 0 | BM29: 0 | BN29: 0 | BO29: 0 | BP29: 0 | BQ29: 0 | BR29: 0 | BS29: 0 | BT29: 0 | BU29: =BU26 -> 0 | BV29: 0 | BW29: 0 | BX29: 0 | BY29: 0 | BZ29: 0 | CA29: 0 | CB29: 0 | CC29: 0 | CD29: 0 | CE29: 0 | CF29: 0 | CG29: 0 | CH29: 0 | CI29: 0 | CJ29: 0 | CK29: 0 | CL29: 0 | CM29: 0 | CN29: 0 | CO29: 0 | CP29: 0 | CQ29: 0 | CR29: 0 | CS29: 0 | CT29: 0 | CU29: 0 | CV29: 0 | CW29: 0 | CX29: 0 | CY29: 0 | CZ29: 0 | DA29: 0 | DB29: 0 | DC29: 0 | DD29: 0 | DE29: 0 | DF29: 0 | DG29: 0 | DH29: 0 | DI29: 0 | DJ29: 0 | DK29: 0 | DL29: 0 | DM29: 0 | DN29: 0 | DO29: 0 | DP29: 0 | DQ29: 0 | DR29: 0 | DS29: 0 | DT29: 0 | DU29: 0 | DV29: 0 | DW29: 0 | DX29: 0 | DY29: 0 | DZ29: 0 | EA29: 0 | EB29: 0 | EC29: 0 | ED29: 0 | EE29: 0 | EF29: 0 | EG29: =EG26 -> 0 | EH29: 0 | EI29: 0 | EJ29: 0 | EK29: 0 | EL29: 0 | EM29: 0 | EN29: 0 | EO29: 0 | EP29: 0 | EQ29: 0 | ER29: 0 | ES29: 0 | ET29: 0 | EU29: 0 | EV29: 0 | EW29: 0 | EX29: 0 | EY29: 0 | EZ29: 0 | FA29: 0 | FB29: 0 | FC29: 0 | FD29: 0 | FE29: 0 | FF29: 0 | FG29: 0 | FH29: 0 | FI29: 0 | FJ29: 0 | FK29: 0 | FL29: 0 | FM29: 0 | FN29: 0 | FO29: 0 | FP29: 0 | FQ29: 0 | FR29: 0 | FS29: 0 | FT29: 0 | FU29: 0 | FV29: 0 | FW29: 0 | FX29: 0 | FY29: 0 | FZ29: 0 | GA29: 0 | GB29: 0 | GC29: 0 | GD29: 0 | GE29: 0 | GF29: 0 | GG29: 0 | GH29: 0 | GI29: 0 | GJ29: 0 | GK29: 0 | GL29: 0 | GM29: 0 | GN29: 0 | GO29: 0 | GP29: 0 | GQ29: 0 | GR29: 0 | GS29: =GS26 -> 0 | GT29: 0 | GU29: 0 | GV29: 0 | GW29: 0 | GX29: 0 | GY29: 0
B30: Less: Capital Expenditures | H30: =H17 -> 0 | I30: =I17 -> 0 | J30: 0 | K30: 0 | L30: 0 | M30: 0 | N30: 0 | O30: 0 | P30: 0 | Q30: 0 | R30: 0 | S30: 0 | T30: 0 | U30: 0 | V30: 0 | W30: 0 | X30: 0 | Y30: 0 | Z30: 0 | AA30: 0 | AB30: 0 | AC30: 0 | AD30: 0 | AE30: 0 | AF30: 0 | AG30: 0 | AH30: 0 | AI30: 0 | AJ30: 0 | AK30: 0 | AL30: 0 | AM30: 0 | AN30: 0 | AO30: 0 | AP30: 0 | AQ30: 0 | AR30: 0 | AS30: 0 | AT30: 0 | AU30: 0 | AV30: 0 | AW30: 0 | AX30: 0 | AY30: 0 | AZ30: 0 | BA30: 0 | BB30: 0 | BC30: 0 | BD30: 0 | BE30: 0 | BF30: 0 | BG30: 0 | BH30: 0 | BI30: 0 | BJ30: 0 | BK30: 0 | BL30: 0 | BM30: 0 | BN30: 0 | BO30: 0 | BP30: 0 | BQ30: 0 | BR30: 0 | BS30: 0 | BT30: 0 | BU30: =BU17 -> 0 | BV30: 0 | BW30: 0 | BX30: 0 | BY30: 0 | BZ30: 0 | CA30: 0 | CB30: 0 | CC30: 0 | CD30: 0 | CE30: 0 | CF30: 0 | CG30: 0 | CH30: 0 | CI30: 0 | CJ30: 0 | CK30: 0 | CL30: 0 | CM30: 0 | CN30: 0 | CO30: 0 | CP30: 0 | CQ30: 0 | CR30: 0 | CS30: 0 | CT30: 0 | CU30: 0 | CV30: 0 | CW30: 0 | CX30: 0 | CY30: 0 | CZ30: 0 | DA30: 0 | DB30: 0 | DC30: 0 | DD30: 0 | DE30: 0 | DF30: 0 | DG30: 0 | DH30: 0 | DI30: 0 | DJ30: 0 | DK30: 0 | DL30: 0 | DM30: 0 | DN30: 0 | DO30: 0 | DP30: 0 | DQ30: 0 | DR30: 0 | DS30: 0 | DT30: 0 | DU30: 0 | DV30: 0 | DW30: 0 | DX30: 0 | DY30: 0 | DZ30: 0 | EA30: 0 | EB30: 0 | EC30: 0 | ED30: 0 | EE30: 0 | EF30: 0 | EG30: =EG17 -> 0 | EH30: 0 | EI30: 0 | EJ30: 0 | EK30: 0 | EL30: 0 | EM30: 0 | EN30: 0 | EO30: 0 | EP30: 0 | EQ30: 0 | ER30: 0 | ES30: 0 | ET30: 0 | EU30: 0 | EV30: 0 | EW30: 0 | EX30: 0 | EY30: 0 | EZ30: 0 | FA30: 0 | FB30: 0 | FC30: 0 | FD30: 0 | FE30: 0 | FF30: 0 | FG30: 0 | FH30: 0 | FI30: 0 | FJ30: 0 | FK30: 0 | FL30: 0 | FM30: 0 | FN30: 0 | FO30: 0 | FP30: 0 | FQ30: 0 | FR30: 0 | FS30: 0 | FT30: 0 | FU30: 0 | FV30: 0 | FW30: 0 | FX30: 0 | FY30: 0 | FZ30: 0 | GA30: 0 | GB30: 0 | GC30: 0 | GD30: 0 | GE30: 0 | GF30: 0 | GG30: 0 | GH30: 0 | GI30: 0 | GJ30: 0 | GK30: 0 | GL30: 0 | GM30: 0 | GN30: 0 | GO30: 0 | GP30: 0 | GQ30: 0 | GR30: 0 | GS30: =GS17 -> 0 | GT30: 0 | GU30: 0 | GV30: 0 | GW30: 0 | GX30: 0 | GY30: 0
B31: Less: Taxes | E31: =E11 -> 0.3 | H31: =H25*$E$31 -> 0 | I31: =I25*$E$31 -> 0 | J31: 0 | K31: 0 | L31: 0 | M31: 0 | N31: 0 | O31: 0 | P31: 0 | Q31: 0 | R31: 0 | S31: 0 | T31: 0 | U31: 0 | V31: 0 | W31: 0 | X31: 0 | Y31: 0 | Z31: 0 | AA31: 0 | AB31: 0 | AC31: 0 | AD31: 0 | AE31: 0 | AF31: 0 | AG31: 0 | AH31: 0 | AI31: 0 | AJ31: 0 | AK31: 0 | AL31: 0 | AM31: 0 | AN31: 0 | AO31: 0 | AP31: 0 | AQ31: 0 | AR31: 0 | AS31: 0 | AT31: 0 | AU31: 0 | AV31: 0 | AW31: 0 | AX31: 0 | AY31: 0 | AZ31: 0 | BA31: 0 | BB31: 0 | BC31: 0 | BD31: 0 | BE31: 0 | BF31: 0 | BG31: 0 | BH31: 0 | BI31: 0 | BJ31: 0 | BK31: 0 | BL31: 0 | BM31: 0 | BN31: 0 | BO31: 0 | BP31: 0 | BQ31: 0 | BR31: 0 | BS31: 0 | BT31: 0 | BU31: =BU25*$E$31 -> 0 | BV31: 0 | BW31: 0 | BX31: 0 | BY31: 0 | BZ31: 0 | CA31: 0 | CB31: 0 | CC31: 0 | CD31: 0 | CE31: 0 | CF31: 0 | CG31: 0 | CH31: 0 | CI31: 0 | CJ31: 0 | CK31: 0 | CL31: 0 | CM31: 0 | CN31: 0 | CO31: 0 | CP31: 0 | CQ31: 0 | CR31: 0 | CS31: 0 | CT31: 0 | CU31: 0 | CV31: 0 | CW31: 0 | CX31: 0 | CY31: 0 | CZ31: 0 | DA31: 0 | DB31: 0 | DC31: 0 | DD31: 0 | DE31: 0 | DF31: 0 | DG31: 0 | DH31: 0 | DI31: 0 | DJ31: 0 | DK31: 0 | DL31: 0 | DM31: 0 | DN31: 0 | DO31: 0 | DP31: 0 | DQ31: 0 | DR31: 0 | DS31: 0 | DT31: 0 | DU31: 0 | DV31: 0 | DW31: 0 | DX31: 0 | DY31: 0 | DZ31: 0 | EA31: 0 | EB31: 0 | EC31: 0 | ED31: 0 | EE31: 0 | EF31: 0 | EG31: =EG25*$E$31 -> 0 | EH31: 0 | EI31: 0 | EJ31: 0 | EK31: 0 | EL31: 0 | EM31: 0 | EN31: 0 | EO31: 0 | EP31: 0 | EQ31: 0 | ER31: 0 | ES31: 0 | ET31: 0 | EU31: 0 | EV31: 0 | EW31: 0 | EX31: 0 | EY31: 0 | EZ31: 0 | FA31: 0 | FB31: 0 | FC31: 0 | FD31: 0 | FE31: 0 | FF31: 0 | FG31: 0 | FH31: 0 | FI31: 0 | FJ31: 0 | FK31: 0 | FL31: 0 | FM31: 0 | FN31: 0 | FO31: 0 | FP31: 0 | FQ31: 0 | FR31: 0 | FS31: 0 | FT31: 0 | FU31: 0 | FV31: 0 | FW31: 0 | FX31: 0 | FY31: 0 | FZ31: 0 | GA31: 0 | GB31: 0 | GC31: 0 | GD31: 0 | GE31: 0 | GF31: 0 | GG31: 0 | GH31: 0 | GI31: 0 | GJ31: 0 | GK31: 0 | GL31: 0 | GM31: 0 | GN31: 0 | GO31: 0 | GP31: 0 | GQ31: 0 | GR31: 0 | GS31: =GS25*$E$31 -> 0 | GT31: 0 | GU31: 0 | GV31: 0 | GW31: 0 | GX31: 0 | GY31: 0
B32: Less: WC Change | H32: =H20-G20 -> 0 | I32: =I20-H20 -> -20 | J32: 0 | K32: 0 | L32: 0 | M32: 0 | N32: 0 | O32: 0 | P32: 0 | Q32: 0 | R32: 0 | S32: 0 | T32: 0 | U32: 0 | V32: 0 | W32: 0 | X32: 0 | Y32: 0 | Z32: 0 | AA32: 0 | AB32: 0 | AC32: 0 | AD32: 0 | AE32: 0 | AF32: 0 | AG32: 0 | AH32: 0 | AI32: 0 | AJ32: 0 | AK32: 0 | AL32: 0 | AM32: 0 | AN32: 0 | AO32: 0 | AP32: 0 | AQ32: 0 | AR32: 0 | AS32: 0 | AT32: 0 | AU32: 0 | AV32: 0 | AW32: 0 | AX32: 0 | AY32: 0 | AZ32: 0 | BA32: 0 | BB32: 0 | BC32: 0 | BD32: 0 | BE32: 0 | BF32: 0 | BG32: 0 | BH32: 0 | BI32: 0 | BJ32: 0 | BK32: 0 | BL32: 0 | BM32: 0 | BN32: 0 | BO32: 0 | BP32: 0 | BQ32: 0 | BR32: 0 | BS32: 0 | BT32: 0 | BU32: =BU20-BT20 -> 0 | BV32: 0 | BW32: 0 | BX32: 0 | BY32: 0 | BZ32: 0 | CA32: 0 | CB32: 0 | CC32: 0 | CD32: 0 | CE32: 0 | CF32: 0 | CG32: 0 | CH32: 0 | CI32: 0 | CJ32: 0 | CK32: 0 | CL32: 0 | CM32: 0 | CN32: 0 | CO32: 0 | CP32: 0 | CQ32: 0 | CR32: 0 | CS32: 0 | CT32: 0 | CU32: 0 | CV32: 0 | CW32: 0 | CX32: 0 | CY32: 0 | CZ32: 0 | DA32: 0 | DB32: 0 | DC32: 0 | DD32: 0 | DE32: 0 | DF32: 0 | DG32: 0 | DH32: 0 | DI32: 0 | DJ32: 0 | DK32: 0 | DL32: 0 | DM32: 0 | DN32: 0 | DO32: 0 | DP32: 0 | DQ32: 0 | DR32: 0 | DS32: 0 | DT32: 0 | DU32: 0 | DV32: 0 | DW32: 0 | DX32: 0 | DY32: 0 | DZ32: 0 | EA32: 0 | EB32: 0 | EC32: 0 | ED32: 0 | EE32: 0 | EF32: 0 | EG32: =EG20-EF20 -> 0 | EH32: 0 | EI32: 0 | EJ32: 0 | EK32: 0 | EL32: 0 | EM32: 0 | EN32: 0 | EO32: 0 | EP32: 0 | EQ32: 0 | ER32: 0 | ES32: 0 | ET32: 0 | EU32: 0 | EV32: 0 | EW32: 0 | EX32: 0 | EY32: 0 | EZ32: 0 | FA32: 0 | FB32: 0 | FC32: 0 | FD32: 0 | FE32: 0 | FF32: 0 | FG32: 0 | FH32: 0 | FI32: 0 | FJ32: 0 | FK32: 0 | FL32: 0 | FM32: 0 | FN32: 0 | FO32: 0 | FP32: 0 | FQ32: 0 | FR32: 0 | FS32: 0 | FT32: 0 | FU32: 0 | FV32: 0 | FW32: 0 | FX32: 0 | FY32: 0 | FZ32: 0 | GA32: 0 | GB32: 0 | GC32: 0 | GD32: 0 | GE32: 0 | GF32: 0 | GG32: 0 | GH32: 0 | GI32: 0 | GJ32: 0 | GK32: 0 | GL32: 0 | GM32: 0 | GN32: 0 | GO32: 0 | GP32: 0 | GQ32: 0 | GR32: 0 | GS32: =GS20-GR20 -> 0 | GT32: 0 | GU32: 0 | GV32: 0 | GW32: 0 | GX32: 0 | GY32: 0
C33: Free Cash Flow | H33: =H29-H30-H31-H32 -> 0 | I33: =I29-I30-I31-I32 -> 20 | J33: 0 | K33: 0 | L33: 0 | M33: 0 | N33: 0 | O33: 0 | P33: 0 | Q33: 0 | R33: 0 | S33: 0 | T33: 0 | U33: 0 | V33: 0 | W33: 0 | X33: 0 | Y33: 0 | Z33: 0 | AA33: 0 | AB33: 0 | AC33: 0 | AD33: 0 | AE33: 0 | AF33: 0 | AG33: 0 | AH33: 0 | AI33: 0 | AJ33: 0 | AK33: 0 | AL33: 0 | AM33: 0 | AN33: 0 | AO33: 0 | AP33: 0 | AQ33: 0 | AR33: 0 | AS33: 0 | AT33: 0 | AU33: 0 | AV33: 0 | AW33: 0 | AX33: 0 | AY33: 0 | AZ33: 0 | BA33: 0 | BB33: 0 | BC33: 0 | BD33: 0 | BE33: 0 | BF33: 0 | BG33: 0 | BH33: 0 | BI33: 0 | BJ33: 0 | BK33: 0 | BL33: 0 | BM33: 0 | BN33: 0 | BO33: 0 | BP33: 0 | BQ33: 0 | BR33: 0 | BS33: 0 | BT33: 0 | BU33: =BU29-BU30-BU31-BU32 -> 0 | BV33: 0 | BW33: 0 | BX33: 0 | BY33: 0 | BZ33: 0 | CA33: 0 | CB33: 0 | CC33: 0 | CD33: 0 | CE33: 0 | CF33: 0 | CG33: 0 | CH33: 0 | CI33: 0 | CJ33: 0 | CK33: 0 | CL33: 0 | CM33: 0 | CN33: 0 | CO33: 0 | CP33: 0 | CQ33: 0 | CR33: 0 | CS33: 0 | CT33: 0 | CU33: 0 | CV33: 0 | CW33: 0 | CX33: 0 | CY33: 0 | CZ33: 0 | DA33: 0 | DB33: 0 | DC33: 0 | DD33: 0 | DE33: 0 | DF33: 0 | DG33: 0 | DH33: 0 | DI33: 0 | DJ33: 0 | DK33: 0 | DL33: 0 | DM33: 0 | DN33: 0 | DO33: 0 | DP33: 0 | DQ33: 0 | DR33: 0 | DS33: 0 | DT33: 0 | DU33: 0 | DV33: 0 | DW33: 0 | DX33: 0 | DY33: 0 | DZ33: 0 | EA33: 0 | EB33: 0 | EC33: 0 | ED33: 0 | EE33: 0 | EF33: 0 | EG33: =EG29-EG30-EG31-EG32 -> 0 | EH33: 0 | EI33: 0 | EJ33: 0 | EK33: 0 | EL33: 0 | EM33: 0 | EN33: 0 | EO33: 0 | EP33: 0 | EQ33: 0 | ER33: 0 | ES33: 0 | ET33: 0 | EU33: 0 | EV33: 0 | EW33: 0 | EX33: 0 | EY33: 0 | EZ33: 0 | FA33: 0 | FB33: 0 | FC33: 0 | FD33: 0 | FE33: 0 | FF33: 0 | FG33: 0 | FH33: 0 | FI33: 0 | FJ33: 0 | FK33: 0 | FL33: 0 | FM33: 0 | FN33: 0 | FO33: 0 | FP33: 0 | FQ33: 0 | FR33: 0 | FS33: 0 | FT33: 0 | FU33: 0 | FV33: 0 | FW33: 0 | FX33: 0 | FY33: 0 | FZ33: 0 | GA33: 0 | GB33: 0 | GC33: 0 | GD33: 0 | GE33: 0 | GF33: 0 | GG33: 0 | GH33: 0 | GI33: 0 | GJ33: 0 | GK33: 0 | GL33: 0 | GM33: 0 | GN33: 0 | GO33: 0 | GP33: 0 | GQ33: 0 | GR33: 0 | GS33: =GS29-GS30-GS31-GS32 -> 0 | GT33: 0 | GU33: 0 | GV33: 0 | GW33: 0 | GX33: 0 | GY33: 0
B35: EV - PV of Free Cash Flow | E35: =E5 -> 0.07 | G35: =NPV(E35,33:33) -> 17.46877457
B36: EBITDA | G36: =H29 -> 0
B37: EV/EBITDA | G37: =G35/G36 -> 
B38: EV/EBIT | G38: =G35/H25 -> 
B39: EV/NOPAT | G39: =G35/H24 -> 
A41: Plant Analysis | F41: 1 | G41: 2 | H41: 3 | I41: 4 | J41: 5 | K41: 6 | L41: 7 | M41: 8 | N41: 9 | O41: 10 | P41: 11 | Q41: 12 | R41: 13 | S41: 14 | T41: 15 | U41: 16 | V41: 17 | W41: 18 | X41: 19 | Y41: 20 | Z41: 21 | AA41: 22 | AB41: 23 | AC41: 24 | AD41: 25 | AE41: 26 | AF41: 27 | AG41: 28 | AH41: 29 | AI41: 30 | AJ41: 31 | AK41: 32 | AL41: 33 | AM41: 34 | AN41: 35 | AO41: 36 | AP41: 37 | AQ41: 38 | AR41: 39 | AS41: 40 | AT41: 41 | AU41: 42 | AV41: 43 | AW41: 44 | AX41: 45 | AY41: 46 | AZ41: 47 | BA41: 48 | BB41: 49 | BC41: 50
B42: Capital Expenditure | F42: 100 | G42: =F42*(1+$E$4) -> 104 | H42: =G42*(1+$E$4) -> 108.16 | I42: 112.4864 | J42: 116.985856 | K42: 121.6652902 | L42: 126.5319018 | M42: 131.5931779 | N42: 136.856905 | O42: 142.3311812 | P42: 148.0244285 | Q42: 153.9454056 | R42: 160.1032219 | S42: 166.5073507 | T42: 173.1676448 | U42: 180.0943506 | V42: 187.2981246 | W42: 194.7900496 | X42: 202.5816515 | Y42: 210.6849176 | Z42: 219.1123143 | AA42: 227.8768069 | AB42: 236.9918792 | AC42: 246.4715543 | AD42: 256.3304165 | AE42: 266.5836331 | AF42: 277.2469785 | AG42: 288.3368576 | AH42: 299.8703319 | AI42: 311.8651452 | AJ42: 324.339751 | AK42: 337.313341 | AL42: 350.8058747 | AM42: 364.8381097 | AN42: 379.4316341 | AO42: 394.6088994 | AP42: 410.3932554 | AQ42: 426.8089856 | AR42: 443.881345 | AS42: 461.6365988 | AT42: 480.1020628 | AU42: 499.3061453 | AV42: 519.2783911 | AW42: 540.0495268 | AX42: 561.6515078 | AY42: 584.1175681 | AZ42: 607.4822709 | BA42: 631.7815617 | BB42: 657.0528242 | BC42: 683.3349371
B44: Gross Plant
C45: Opening Balance | F45: =E48 -> 0 | G45: =F48 -> 100 | H45: 204 | I45: 312.16 | J45: 424.6464 | K45: 541.632256 | L45: 663.2975462 | M45: 789.8294481 | N45: 921.422626 | O45: 1058.279531 | P45: 1200.610712 | Q45: 1348.635141 | R45: 1502.580546 | S45: 1662.683768 | T45: 1829.191119 | U45: 2002.358764 | V45: 2182.453114 | W45: 2369.751239 | X45: 2564.541288 | Y45: 2767.12294 | Z45: 2977.807858 | AA45: 3196.920172 | AB45: 3424.796979 | AC45: 3661.788858 | AD45: 3908.260412 | AE45: 4164.590829 | AF45: 4431.174462 | AG45: 4708.42144 | AH45: 4996.758298 | AI45: 5296.62863 | AJ45: 5608.493775 | AK45: 5932.833526 | AL45: 6270.146867 | AM45: 6620.952742 | AN45: 6985.790851 | AO45: 7365.222486 | AP45: 7759.831385 | AQ45: 8170.22464 | AR45: 8597.033626 | AS45: 9040.914971 | AT45: 9502.55157 | AU45: 9982.653633 | AV45: 10481.95978 | AW45: 11001.23817 | AX45: 11541.2877 | AY45: 12102.9392 | AZ45: 12687.05677 | BA45: 13294.53904 | BB45: 13926.3206 | BC45: 14583.37343
C46: Add: Capital Expendiure (EOP) | F46: =F42 -> 100 | G46: =G42 -> 104 | H46: 108.16 | I46: 112.4864 | J46: 116.985856 | K46: 121.6652902 | L46: 126.5319018 | M46: 131.5931779 | N46: 136.856905 | O46: 142.3311812 | P46: 148.0244285 | Q46: 153.9454056 | R46: 160.1032219 | S46: 166.5073507 | T46: 173.1676448 | U46: 180.0943506 | V46: 187.2981246 | W46: 194.7900496 | X46: 202.5816515 | Y46: 210.6849176 | Z46: 219.1123143 | AA46: 227.8768069 | AB46: 236.9918792 | AC46: 246.4715543 | AD46: 256.3304165 | AE46: 266.5836331 | AF46: 277.2469785 | AG46: 288.3368576 | AH46: 299.8703319 | AI46: 311.8651452 | AJ46: 324.339751 | AK46: 337.313341 | AL46: 350.8058747 | AM46: 364.8381097 | AN46: 379.4316341 | AO46: 394.6088994 | AP46: 410.3932554 | AQ46: 426.8089856 | AR46: 443.881345 | AS46: 461.6365988 | AT46: 480.1020628 | AU46: 499.3061453 | AV46: 519.2783911 | AW46: 540.0495268 | AX46: 561.6515078 | AY46: 584.1175681 | AZ46: 607.4822709 | BA46: 631.7815617 | BB46: 657.0528242 | BC46: 683.3349371
C47: Less: Retirements | E47: =E6 -> 15
C48: Closing Balance | F48: =F45+F46-F47 -> 100 | G48: =G45+G46-G47 -> 204 | H48: 312.16 | I48: 424.6464 | J48: 541.632256 | K48: 663.2975462 | L48: 789.8294481 | M48: 921.422626 | N48: 1058.279531 | O48: 1200.610712 | P48: 1348.635141 | Q48: 1502.580546 | R48: 1662.683768 | S48: 1829.191119 | T48: 2002.358764 | U48: 2182.453114 | V48: 2369.751239 | W48: 2564.541288 | X48: 2767.12294 | Y48: 2977.807858 | Z48: 3196.920172 | AA48: 3424.796979 | AB48: 3661.788858 | AC48: 3908.260412 | AD48: 4164.590829 | AE48: 4431.174462 | AF48: 4708.42144 | AG48: 4996.758298 | AH48: 5296.62863 | AI48: 5608.493775 | AJ48: 5932.833526 | AK48: 6270.146867 | AL48: 6620.952742 | AM48: 6985.790851 | AN48: 7365.222486 | AO48: 7759.831385 | AP48: 8170.22464 | AQ48: 8597.033626 | AR48: 9040.914971 | AS48: 9502.55157 | AT48: 9982.653633 | AU48: 10481.95978 | AV48: 11001.23817 | AW48: 11541.2877 | AX48: 12102.9392 | AY48: 12687.05677 | AZ48: 13294.53904 | BA48: 13926.3206 | BB48: 14583.37343 | BC48: 15266.70837
C49: Depreciation | E49: =1/E6 -> 0.06666666667 | F49: =$E$49*F45 -> 0 | G49: =$E$49*G45 -> 6.666666667 | H49: 13.6 | I49: 20.81066667 | J49: 28.30976 | K49: 36.10881707 | L49: 44.21983642 | M49: 52.65529654 | N49: 61.42817507 | O49: 70.55196874 | P49: 80.04071415 | Q49: 89.90900939 | R49: 100.1720364 | S49: 110.8455846 | T49: 121.9460746 | U49: 133.4905843 | V49: 145.4968743 | W49: 157.9834159 | X49: 170.9694192 | Y49: 184.4748627 | Z49: 198.5205238 | AA49: 213.1280115 | AB49: 228.3197986 | AC49: 244.1192572 | AD49: 260.5506941 | AE49: 277.6393886 | AF49: 295.4116308 | AG49: 313.8947627 | AH49: 333.1172199 | AI49: 353.1085753 | AJ49: 373.899585 | AK49: 395.5222351 | AL49: 418.0097911 | AM49: 441.3968495 | AN49: 465.7193901 | AO49: 491.0148324 | AP49: 517.3220923 | AQ49: 544.6816427 | AR49: 573.1355751 | AS49: 602.7276647 | AT49: 633.503438 | AU49: 665.5102422 | AV49: 698.7973185 | AW49: 733.4158779 | AX49: 769.4191797 | AY49: 806.8626136 | AZ49: 845.8037848 | BA49: 886.3026028 | BB49: 928.4213736 | BC49: 972.2248952
B51: Accumulated Depreciation
C52: Opening Balance | F52: =E55 -> 0 | G52: =F55 -> 0 | H52: 6.666666667 | I52: 20.26666667 | J52: 41.07733333 | K52: 69.38709333 | L52: 105.4959104 | M52: 149.7157468 | N52: 202.3710434 | O52: 263.7992184 | P52: 334.3511872 | Q52: 414.3919013 | R52: 504.3009107 | S52: 604.4729471 | T52: 715.3185317 | U52: 837.2646063 | V52: 970.7551905 | W52: 1116.252065 | X52: 1274.235481 | Y52: 1445.2049 | Z52: 1629.679763 | AA52: 1828.200286 | AB52: 2041.328298 | AC52: 2269.648097 | AD52: 2513.767354 | AE52: 2774.318048 | AF52: 3051.957436 | AG52: 3347.369067 | AH52: 3661.26383 | AI52: 3994.38105 | AJ52: 4347.489625 | AK52: 4721.38921 | AL52: 5116.911445 | AM52: 5534.921236 | AN52: 5976.318086 | AO52: 6442.037476 | AP52: 6933.052308 | AQ52: 7450.374401 | AR52: 7995.056043 | AS52: 8568.191618 | AT52: 9170.919283 | AU52: 9804.422721 | AV52: 10469.93296 | AW52: 11168.73028 | AX52: 11902.14616 | AY52: 12671.56534 | AZ52: 13478.42795 | BA52: 14324.23174 | BB52: 15210.53434 | BC52: 16138.95571
C53: Add: Depreciation Expense | F53: =F49 -> 0 | G53: =G49 -> 6.666666667 | H53: 13.6 | I53: 20.81066667 | J53: 28.30976 | K53: 36.10881707 | L53: 44.21983642 | M53: 52.65529654 | N53: 61.42817507 | O53: 70.55196874 | P53: 80.04071415 | Q53: 89.90900939 | R53: 100.1720364 | S53: 110.8455846 | T53: 121.9460746 | U53: 133.4905843 | V53: 145.4968743 | W53: 157.9834159 | X53: 170.9694192 | Y53: 184.4748627 | Z53: 198.5205238 | AA53: 213.1280115 | AB53: 228.3197986 | AC53: 244.1192572 | AD53: 260.5506941 | AE53: 277.6393886 | AF53: 295.4116308 | AG53: 313.8947627 | AH53: 333.1172199 | AI53: 353.1085753 | AJ53: 373.899585 | AK53: 395.5222351 | AL53: 418.0097911 | AM53: 441.3968495 | AN53: 465.7193901 | AO53: 491.0148324 | AP53: 517.3220923 | AQ53: 544.6816427 | AR53: 573.1355751 | AS53: 602.7276647 | AT53: 633.503438 | AU53: 665.5102422 | AV53: 698.7973185 | AW53: 733.4158779 | AX53: 769.4191797 | AY53: 806.8626136 | AZ53: 845.8037848 | BA53: 886.3026028 | BB53: 928.4213736 | BC53: 972.2248952
C54: Less: Retirement | F54: =F47 -> 0 | G54: =G47 -> 0 | H54: 0 | I54: 0 | J54: 0 | K54: 0 | L54: 0 | M54: 0 | N54: 0 | O54: 0 | P54: 0 | Q54: 0 | R54: 0 | S54: 0 | T54: 0 | U54: 0 | V54: 0 | W54: 0 | X54: 0 | Y54: 0 | Z54: 0 | AA54: 0 | AB54: 0 | AC54: 0 | AD54: 0 | AE54: 0 | AF54: 0 | AG54: 0 | AH54: 0 | AI54: 0 | AJ54: 0 | AK54: 0 | AL54: 0 | AM54: 0 | AN54: 0 | AO54: 0 | AP54: 0 | AQ54: 0 | AR54: 0 | AS54: 0 | AT54: 0 | AU54: 0 | AV54: 0 | AW54: 0 | AX54: 0 | AY54: 0 | AZ54: 0 | BA54: 0 | BB54: 0 | BC54: 0
C55: Closing Balance | F55: =F52+F53-F54 -> 0 | G55: =G52+G53-G54 -> 6.666666667 | H55: 20.26666667 | I55: 41.07733333 | J55: 69.38709333 | K55: 105.4959104 | L55: 149.7157468 | M55: 202.3710434 | N55: 263.7992184 | O55: 334.3511872 | P55: 414.3919013 | Q55: 504.3009107 | R55: 604.4729471 | S55: 715.3185317 | T55: 837.2646063 | U55: 970.7551905 | V55: 1116.252065 | W55: 1274.235481 | X55: 1445.2049 | Y55: 1629.679763 | Z55: 1828.200286 | AA55: 2041.328298 | AB55: 2269.648097 | AC55: 2513.767354 | AD55: 2774.318048 | AE55: 3051.957436 | AF55: 3347.369067 | AG55: 3661.26383 | AH55: 3994.38105 | AI55: 4347.489625 | AJ55: 4721.38921 | AK55: 5116.911445 | AL55: 5534.921236 | AM55: 5976.318086 | AN55: 6442.037476 | AO55: 6933.052308 | AP55: 7450.374401 | AQ55: 7995.056043 | AR55: 8568.191618 | AS55: 9170.919283 | AT55: 9804.422721 | AU55: 10469.93296 | AV55: 11168.73028 | AW55: 11902.14616 | AX55: 12671.56534 | AY55: 13478.42795 | AZ55: 14324.23174 | BA55: 15210.53434 | BB55: 16138.95571 | BC55: 17111.18061
C57: Net Plant | F57: =F45-F52 -> 0 | G57: =G45-G52 -> 100 | H57: 197.3333333 | I57: 291.8933333 | J57: 383.5690667 | K57: 472.2451627 | L57: 557.8016358 | M57: 640.1137013 | N57: 719.0515827 | O57: 794.4803126 | P57: 866.2595251 | Q57: 934.2432395 | R57: 998.2796357 | S57: 1058.210821 | T57: 1113.872587 | U57: 1165.094157 | V57: 1211.697924 | W57: 1253.499174 | X57: 1290.305808 | Y57: 1321.91804 | Z57: 1348.128095 | AA57: 1368.719885 | AB57: 1383.468681 | AC57: 1392.140761 | AD57: 1394.493059 | AE57: 1390.272781 | AF57: 1379.217025 | AG57: 1361.052373 | AH57: 1335.494468 | AI57: 1302.24758 | AJ57: 1261.00415 | AK57: 1211.444316 | AL57: 1153.235422 | AM57: 1086.031505 | AN57: 1009.472766 | AO57: 923.1850096 | AP57: 826.7790767 | AQ57: 719.8502398 | AR57: 601.9775827 | AS57: 472.7233527 | AT57: 331.6322868 | AU57: 178.2309116 | AV57: 12.02681471 | AW57: -167.4921127 | AX57: -360.8584639 | AY57: -568.6261358 | AZ57: -791.3711812 | BA57: -1029.692695 | BB57: -1284.213736 | BC57: -1555.582286
C58: Net Plant Depreciation Rate
C59: Capital Expenditure to Depreciation

Sheet Simple Structure
F2: 2012 | G2: 2013 | H2: 2014 | I2: 2015 | J2: 2016 | K2: 2017 | L2: 2018 | M2: 2019 | N2: 2020 | O2: 2021
B3: Last Historic Year | E3: 2017
A5: Balance Sheet
B6: Cash | F6: 20 | G6: 60 | H6: 40 | I6: 80 | J6: 90 | K6: 100
B7: PP&E | F7: 1000 | G7: 1100 | H7: 1300 | I7: 1320 | J7: 1370 | K7: 1400
B9: Debt | F9: =F6+F7-F10 -> 40 | G9: =G6+G7-G10 -> 110 | H9: 240 | I9: 250 | J9: 280 | K9: 300
B10: Equity | F10: 980 | G10: 1050 | H10: 1100 | I10: 1150 | J10: 1180 | K10: 1200
A12: Income Statement
B13: EBITDA | F13: 140 | G13: 150 | H13: 165 | I13: 170 | J13: 180 | K13: 200
B14: Depreciation | F14: 50 | G14: 60 | H14: 65 | I14: 75 | J14: 80 | K14: 83
B15: Net Interest | F15: 0.75 | G15: 1 | H15: 2.5 | I15: 10 | J15: 8.5 | K15: 9.5
B16: Net Income | F16: =F13-F14-F15 -> 89.25 | G16: =G13-G14-G15 -> 89 | H16: 97.5 | I16: 85 | J16: 91.5 | K16: 107.5
B18: Dividends | F18: 70 | G18: 70 | H18: 80 | I18: 75 | J18: 75 | K18: 90
A20: Assumptions
B21: EBITDA Growth | E21: 0.08
B22: Capital Expenditures | E22: 150
B23: Depreciation Rate
B24: Net Debt
B25: Interest Rate | E25: 0.045
B26: Dividemd Payout
A28: Operating and Financing Analysis
B29: EBITDA
B30: Capital Expenditure
B32: Plant Balance
C33: Opening
C34: Add: Cap Exp
C35: Less: Dep
C36: Closing Balance
B38: Net Cash - Debt
C39: Opening Balance
C40: Add: Cash Flow
C41: Closing Balance
C43: Interest Rate
C44: Interest Expense
A46: Financial Statements
B47: Income Statement
C48: EBITDA
C49: Depreciation
C50: Net Interest
C51: Net Income
B53: Cash Flow
C54: EBITDA
C55: Less CAPEX
C56: Less: Interest
C57: Dividends
C58: Net Cash Flow
B60: Balance Sheet
C61: Equity Balance
D62: Opening Balance
D63: Add Net Income
D64: Less Dividends
D65: Closing Balance
C67: Assets
D68: PP&E
C70: Liabilities and Equity Capital
D71: Net Debt
D72: Capital
D73: Total
D75: Difference
D77: ROIC
D78: ROE
C80: Free Cash Flow
D81: EBITDA
D82: Less: Capital Expenditure
D83: Free Cash

Sheet Football Field Diagram
B2: Current Stock Price | E2: 111.19
J4: Shares | L4: 1510000
E5: Low | F5: High | G5: Offer
B6: P/E Multiple - Public | E6: =L6*R6 -> 108.97 | F6: =S6*L6 -> 134.61 | G6: 137 | J6: Current EPS | L6: 6.41 | Q6: PE Range | R6: 17 | S6: 21
B7: EV/EBITDA Multiple - Public | E7: =(R7*$L$7-$N$7)/$L$4 -> 96.46682119 | F7: =(S7*$L$7-$N$7)/$L$4 -> 129.784702 | G7: 137 | J7: EBITDA | L7: 16770000 | M7: Net Debt | N7: 22035100 | Q7: EV/EBITDA | R7: 10 | S7: 13
B8: P/B Multiple - Public | E8: =L8*R8 -> 81.72 | F8: =L8*S8 -> 136.2 | G8: 137 | J8: Book Value/Share | L8: 27.24 | Q8: M/B Range | R8: 3 | S8: 5
B9: DCF - Growth | E9: 84 | F9: 140 | G9: 137
B10: DCF - EV/EBITDA Multiple | E10: 90 | F10: 135 | G10: 137
B11: DCF - Value Driver | E11: 82 | F11: 136 | G11: 137
B12: LBO Implied | E12: 94 | F12: 150 | G12: 137
B13: Accretion | E13: 91 | F13: 140 | G13: 137
B15: Space for Labels | E15: 25
A19: Increment | E19: =E5 -> Low | F19: =F5 -> High
B20: P/E Multiple - Public | E20: =E6 -> 108.97 | F20: =F6-E20 -> 25.64
B21: EV/EBITDA Multiple - Public | E21: 96.46682119 | F21: 33.31788079
B22: P/B Multiple - Public | E22: 81.72 | F22: 54.48
B23: DCF - Growth | E23: 84 | F23: 56
B24: DCF - EV/EBITDA Multiple | E24: 90 | F24: 45
B25: DCF - Value Driver | E25: 82 | F25: 54
B26: LBO Implied | E26: 94 | F26: 56
B27: Accretion | E27: 91 | F27: 49
A32: Include Space
E35: Low | F35: Increment | G35: Hig vs Low | H35: Increment
B36: =B20 -> P/E Multiple - Public | E36: =E20 -> 108.97 | F36: =$E$15 -> 25 | G36: =F6 -> 134.61 | H36: =$E$15 -> 25
B37: EV/EBITDA Multiple - Public | E37: 96.46682119 | F37: 25 | G37: 129.784702 | H37: 25
B38: P/B Multiple - Public | E38: 81.72 | F38: 25 | G38: 136.2 | H38: 25
B39: DCF - Growth | E39: 84 | F39: 25 | G39: 140 | H39: 25
B40: DCF - EV/EBITDA Multiple | E40: 90 | F40: 25 | G40: 135 | H40: 25
B41: DCF - Value Driver | E41: 82 | F41: 25 | G41: 136 | H41: 25
B42: LBO Implied | E42: 94 | F42: 25 | G42: 150 | H42: 25
B43: Accretion | E43: 91 | F43: 25 | G43: 140 | H43: 25
A45: Low versus Increment
E46: Low vs Incrment | F46: =F35 -> Increment | G46: =G35 -> Hig vs Low | H46: Increment | I46: Offer
B47: =B36 -> P/E Multiple - Public | E47: =E36-F36 -> 83.97 | F47: =F36 -> 25 | G47: =F6-E6 -> 25.64 | H47: =H36 -> 25 | I47: =G6 -> 137
B48: =B37 -> EV/EBITDA Multiple - Public | E48: =E37-F37 -> 71.46682119 | F48: =F37 -> 25 | G48: 33.31788079 | H48: 25 | I48: =G7 -> 137
B49: P/B Multiple - Public | E49: 56.72 | F49: 25 | G49: 54.48 | H49: 25 | I49: 137
B50: DCF - Growth | E50: 59 | F50: 25 | G50: 56 | H50: 25 | I50: 137
B51: DCF - EV/EBITDA Multiple | E51: 65 | F51: 25 | G51: 45 | H51: 25 | I51: 137
B52: DCF - Value Driver | E52: 57 | F52: 25 | G52: 54 | H52: 25 | I52: 137
B53: LBO Implied | E53: 69 | F53: 25 | G53: 56 | H53: 25 | I53: 137
B54: Accretion | E54: 66 | F54: 25 | G54: 49 | H54: 25 | I54: 137
D57: Remove Fill from Bottom
D75: Add Data Labels
D92: Remove Fill from Data Labels
D94: Edit one by One
D96: Put = sign in the formula bar
D112: =B6 -> P/E Multiple - Public | F112: =E6 -> 108.97 | G112: =F6 -> 134.61
D113: =B7 -> EV/EBITDA Multiple - Public | F113: =E7 -> 96.46682119 | G113: 129.784702
D114: P/B Multiple - Public | F114: 81.72 | G114: 136.2
D115: DCF - Growth | F115: 84 | G115: 140
D116: DCF - EV/EBITDA Multiple | F116: 90 | G116: 135
D117: DCF - Value Driver | F117: 82 | G117: 136
D118: LBO Implied | F118: 94 | G118: 150
D119: Accretion | F119: 91 | G119: 140

Sheet Synergy Value and Premium
B26: Operation and Maintenance | C26: 4289 | F26: Price | G26: 22
B27: Maintenance and Other | C27: 950 | F27: Shares | G27: 264
B28: General and Administrative | C28: 309 | F28: Premium | G28: 0.37
B29: Other Costs | C29: 454
B30: Total Combined | C30: =SUM(C26:C29) -> 6002 | F30: Premium Value | G30: =G26*G27*G28 -> 2148.96
B32: Low Estimate | C32: =C30*D32 -> 180.06 | D32: 0.03 | F32: Tax Rate | G32: 0.4
B33: High Estimate | C33: =D33*C30 -> 300.1 | D33: 0.05
F34: After-tax Synergies
B35: Discount Rate | C35: 0.12 | F35: PV of Synergies - Low | G35: =C38*(1-$G$32) -> 900.3
B36: Growth Rate | C36: 0 | F36: PV of Synergies - High | G36: =C39*(1-$G$32) -> 1500.5
B38: PV of Synergies - Low | C38: =C32*(1+C36)/(C35-C36) -> 1500.5
B39: PV of Synergies - High | C39: =C33*(1+C36)/(C35-C36) -> 2500.833333

Sheet Accretion and Dilution
A2: Principal buys Lincoln
E4: Lincoln | F4: Principal
B5: Price per Share | E5: 84.1 | F5: 75.04
B6: Shares | E6: 236830 | F6: 292700
B8: Premium Paid by Lincoln | E8: 0.15
B9: Exchange Ratio without Premium | F9: Target/Acquiror
B10: Exchange Ratio with Premium
F12: 1 | G12: 2 | H12: 3 | I12: 4 | J12: 5
B13: Lincoln EPS Estimate | E13: 0.1045 | F13: 7.73 | G13: 8.47 | H13: =G13*(1+$E$13) -> 9.355115 | I13: =H13*(1+$E$13) -> 10.33272452 | J13: 11.41249423
B14: Principal EPS Estimate | E14: 0.1235 | F14: 5.52 | G14: 5.89 | H14: =G14*(1+$E$14) -> 6.617415 | I14: =H14*(1+$E$14) -> 7.434665752 | J14: 8.352846973
B15: Synergies per Share
B17: Total Earnings | E17: Shares | F17: Earnings ---->
C18: Lincoln
C19: Principal
C20: Total
C22: Shares
C24: Accretion
A32: Google buys Apple
E34: Apple | F34: Google
B35: Price per Share
B36: Shares
B38: Premium Paid by Google
B39: Exchange Ratio without Premium
B40: Exchange Ratio with Premium
F42: 1 | G42: 2 | H42: 3 | I42: 4 | J42: 5
B43: Apple EPS Estimate
B44: Google EPS Estimate
B45: Synergies per Share

Sheet Terminal Value Proof
A1: Time Period - Long-term Model
B2: Period | F2: 0 | G2: 1 | H2: 2 | I2: 3 | J2: 4 | K2: 5 | L2: 6 | M2: 7 | N2: 8 | O2: 9 | P2: 10 | Q2: 11 | R2: 12 | S2: 13 | T2: 14 | U2: 15 | V2: 16 | W2: 17 | X2: 18 | Y2: 19 | Z2: 20 | AA2: 21 | AB2: 22 | AC2: 23 | AD2: 24 | AE2: 25 | AF2: 26 | AG2: 27 | AH2: 28 | AI2: 29 | AJ2: 30 | AK2: 31 | AL2: 32 | AM2: 33 | AN2: 34 | AO2: 35 | AP2: 36 | AQ2: 37 | AR2: 38 | AS2: 39 | AT2: 40 | AU2: 41 | AV2: 42 | AW2: 43 | AX2: 44 | AY2: 45 | AZ2: 46 | BA2: 47 | BB2: 48 | BC2: 49 | BD2: 50 | BE2: 51 | BF2: 52 | BG2: 53 | BH2: 54 | BI2: 55 | BJ2: 56 | BK2: 57 | BL2: 58 | BM2: 59 | BN2: 60 | BO2: 61 | BP2: 62 | BQ2: 63 | BR2: 64 | BS2: 65 | BT2: 66 | BU2: 67 | BV2: 68 | BW2: 69 | BX2: 70 | BY2: 71 | BZ2: 72 | CA2: 73 | CB2: 74 | CC2: 75 | CD2: 76 | CE2: 77 | CF2: 78 | CG2: 79 | CH2: 80 | CI2: 81 | CJ2: 82 | CK2: 83 | CL2: 84 | CM2: 85 | CN2: 86 | CO2: 87 | CP2: 88 | CQ2: 89 | CR2: 90 | CS2: 91 | CT2: 92 | CU2: 93 | CV2: 94 | CW2: 95 | CX2: 96 | CY2: 97 | CZ2: 98 | DA2: 99 | DB2: 100 | DC2: 101 | DD2: 102 | DE2: 103 | DF2: 104 | DG2: 105 | DH2: 106 | DI2: 107 | DJ2: 108 | DK2: 109 | DL2: 110 | DM2: 111 | DN2: 112 | DO2: 113 | DP2: 114 | DQ2: 115 | DR2: 116 | DS2: 117 | DT2: 118 | DU2: 119 | DV2: 120 | DW2: 121 | DX2: 122 | DY2: 123 | DZ2: 124 | EA2: 125 | EB2: 126 | EC2: 127 | ED2: 128 | EE2: 129 | EF2: 130 | EG2: 131 | EH2: 132 | EI2: 133 | EJ2: 134 | EK2: 135 | EL2: 136 | EM2: 137 | EN2: 138 | EO2: 139 | EP2: 140 | EQ2: 141 | ER2: 142 | ES2: 143 | ET2: 144 | EU2: 145 | EV2: 146 | EW2: 147 | EX2: 148 | EY2: 149 | EZ2: 150 | FA2: 151 | FB2: 152 | FC2: 153 | FD2: 154 | FE2: 155 | FF2: 156 | FG2: 157 | FH2: 158 | FI2: 159 | FJ2: 160 | FK2: 161 | FL2: 162 | FM2: 163 | FN2: 164 | FO2: 165 | FP2: 166 | FQ2: 167 | FR2: 168 | FS2: 169 | FT2: 170 | FU2: 171 | FV2: 172 | FW2: 173 | FX2: 174 | FY2: 175 | FZ2: 176 | GA2: 177 | GB2: 178 | GC2: 179 | GD2: 180 | GE2: 181 | GF2: 182 | GG2: 183 | GH2: 184 | GI2: 185 | GJ2: 186 | GK2: 187 | GL2: 188 | GM2: 189 | GN2: 190 | GO2: 191 | GP2: 192 | GQ2: 193 | GR2: 194 | GS2: 195 | GT2: 196 | GU2: 197 | GV2: 198 | GW2: 199 | GX2: 200 | GY2: 201 | GZ2: 202 | HA2: 203 | HB2: 204 | HC2: 205 | HD2: 206 | HE2: 207 | HF2: 208 | HG2: 209 | HH2: 210 | HI2: 211 | HJ2: 212 | HK2: 213 | HL2: 214 | HM2: 215 | HN2: 216 | HO2: 217 | HP2: 218 | HQ2: 219 | HR2: 220 | HS2: 221 | HT2: 222 | HU2: 223 | HV2: 224 | HW2: 225 | HX2: 226 | HY2: 227 | HZ2: 228 | IA2: 229 | IB2: 230 | IC2: 231 | ID2: 232 | IE2: 233 | IF2: 234 | IG2: 235 | IH2: 236 | II2: 237 | IJ2: 238 | IK2: 239 | IL2: 240 | IM2: 241 | IN2: 242 | IO2: 243 | IP2: 244 | IQ2: 245 | IR2: 246 | IS2: 247 | IT2: 248 | IU2: 249 | IV2: 250 | IW2: 251 | IX2: 252 | IY2: 253 | IZ2: 254 | JA2: 255 | JB2: 256 | JC2: 257 | JD2: 258 | JE2: 259 | JF2: 260 | JG2: 261 | JH2: 262 | JI2: 263 | JJ2: 264 | JK2: 265 | JL2: 266 | JM2: 267 | JN2: 268 | JO2: 269 | JP2: 270 | JQ2: 271 | JR2: 272 | JS2: 273 | JT2: 274 | JU2: 275 | JV2: 276 | JW2: 277 | JX2: 278 | JY2: 279 | JZ2: 280 | KA2: 281 | KB2: 282 | KC2: 283 | KD2: 284 | KE2: 285 | KF2: 286 | KG2: 287 | KH2: 288 | KI2: 289 | KJ2: 290 | KK2: 291 | KL2: 292 | KM2: 293 | KN2: 294 | KO2: 295 | KP2: 296 | KQ2: 297 | KR2: 298 | KS2: 299 | KT2: 300 | KU2: 301 | KV2: 302 | KW2: 303 | KX2: 304 | KY2: 305 | KZ2: 306 | LA2: 307 | LB2: 308 | LC2: 309 | LD2: 310 | LE2: 311 | LF2: 312 | LG2: 313 | LH2: 314 | LI2: 315 | LJ2: 316 | LK2: 317 | LL2: 318 | LM2: 319 | LN2: 320 | LO2: 321 | LP2: 322 | LQ2: 323 | LR2: 324 | LS2: 325 | LT2: 326 | LU2: 327 | LV2: 328 | LW2: 329 | LX2: 330 | LY2: 331 | LZ2: 332 | MA2: 333 | MB2: 334 | MC2: 335 | MD2: 336 | ME2: 337 | MF2: 338 | MG2: 339 | MH2: 340 | MI2: 341 | MJ2: 342 | MK2: 343 | ML2: 344 | MM2: 345 | MN2: 346 | MO2: 347 | MP2: 348 | MQ2: 349 | MR2: 350 | MS2: 351 | MT2: 352 | MU2: 353 | MV2: 354 | MW2: 355 | MX2: 356 | MY2: 357 | MZ2: 358 | NA2: 359 | NB2: 360 | NC2: 361 | ND2: 362 | NE2: 363 | NF2: 364 | NG2: 365 | NH2: 366 | NI2: 367 | NJ2: 368 | NK2: 369 | NL2: 370 | NM2: 371 | NN2: 372 | NO2: 373 | NP2: 374 | NQ2: 375 | NR2: 376 | NS2: 377 | NT2: 378 | NU2: 379 | NV2: 380 | NW2: 381 | NX2: 382 | NY2: 383 | NZ2: 384 | OA2: 385 | OB2: 386 | OC2: 387 | OD2: 388 | OE2: 389 | OF2: 390 | OG2: 391 | OH2: 392 | OI2: 393 | OJ2: 394 | OK2: 395 | OL2: 396 | OM2: 397 | ON2: 398 | OO2: 399 | OP2: 400 | OQ2: 401 | OR2: 402 | OS2: 403 | OT2: 404 | OU2: 405 | OV2: 406 | OW2: 407 | OX2: 408 | OY2: 409 | OZ2: 410 | PA2: 411 | PB2: 412 | PC2: 413 | PD2: 414 | PE2: 415 | PF2: 416 | PG2: 417 | PH2: 418 | PI2: 419 | PJ2: 420 | PK2: 421 | PL2: 422 | PM2: 423 | PN2: 424 | PO2: 425 | PP2: 426 | PQ2: 427 | PR2: 428 | PS2: 429 | PT2: 430 | PU2: 431 | PV2: 432 | PW2: 433 | PX2: 434 | PY2: 435 | PZ2: 436 | QA2: 437 | QB2: 438 | QC2: 439 | QD2: 440 | QE2: 441 | QF2: 442 | QG2: 443 | QH2: 444 | QI2: 445 | QJ2: 446 | QK2: 447 | QL2: 448 | QM2: 449 | QN2: 450 | QO2: 451 | QP2: 452 | QQ2: 453 | QR2: 454 | QS2: 455 | QT2: 456 | QU2: 457 | QV2: 458 | QW2: 459 | QX2: 460 | QY2: 461 | QZ2: 462 | RA2: 463 | RB2: 464 | RC2: 465 | RD2: 466 | RE2: 467 | RF2: 468 | RG2: 469 | RH2: 470 | RI2: 471 | RJ2: 472 | RK2: 473 | RL2: 474 | RM2: 475 | RN2: 476 | RO2: 477 | RP2: 478 | RQ2: 479 | RR2: 480 | RS2: 481 | RT2: 482 | RU2: 483 | RV2: 484 | RW2: 485 | RX2: 486 | RY2: 487 | RZ2: 488 | SA2: 489 | SB2: 490 | SC2: 491 | SD2: 492 | SE2: 493 | SF2: 494 | SG2: 495 | SH2: 496 | SI2: 497 | SJ2: 498 | SK2: 499 | SL2: 500 | SM2: 501 | SN2: 502 | SO2: 503 | SP2: 504 | SQ2: 505 | SR2: 506 | SS2: 507 | ST2: 508 | SU2: 509 | SV2: 510 | SW2: 511 | SX2: 512 | SY2: 513 | SZ2: 514 | TA2: 515 | TB2: 516 | TC2: 517 | TD2: 518 | TE2: 519 | TF2: 520 | TG2: 521 | TH2: 522 | TI2: 523 | TJ2: 524 | TK2: 525 | TL2: 526 | TM2: 527 | TN2: 528 | TO2: 529 | TP2: 530 | TQ2: 531 | TR2: 532 | TS2: 533 | TT2: 534 | TU2: 535 | TV2: 536 | TW2: 537 | TX2: 538 | TY2: 539 | TZ2: 540 | UA2: 541 | UB2: 542 | UC2: 543 | UD2: 544 | UE2: 545 | UF2: 546 | UG2: 547 | UH2: 548 | UI2: 549 | UJ2: 550 | UK2: 551 | UL2: 552 | UM2: 553 | UN2: 554 | UO2: 555 | UP2: 556 | UQ2: 557 | UR2: 558 | US2: 559 | UT2: 560 | UU2: 561 | UV2: 562 | UW2: 563 | UX2: 564 | UY2: 565 | UZ2: 566 | VA2: 567 | VB2: 568 | VC2: 569 | VD2: 570 | VE2: 571 | VF2: 572 | VG2: 573 | VH2: 574 | VI2: 575 | VJ2: 576 | VK2: 577 | VL2: 578 | VM2: 579 | VN2: 580 | VO2: 581 | VP2: 582 | VQ2: 583 | VR2: 584 | VS2: 585 | VT2: 586 | VU2: 587 | VV2: 588 | VW2: 589 | VX2: 590 | VY2: 591 | VZ2: 592 | WA2: 593 | WB2: 594 | WC2: 595 | WD2: 596 | WE2: 597 | WF2: 598 | WG2: 599 | WH2: 600 | WI2: 601 | WJ2: 602 | WK2: 603 | WL2: 604 | WM2: 605 | WN2: 606 | WO2: 607 | WP2: 608 | WQ2: 609 | WR2: 610 | WS2: 611 | WT2: 612 | WU2: 613 | WV2: 614 | WW2: 615 | WX2: 616 | WY2: 617 | WZ2: 618 | XA2: 619 | XB2: 620 | XC2: 621 | XD2: 622 | XE2: 623 | XF2: 624 | XG2: 625 | XH2: 626 | XI2: 627 | XJ2: 628 | XK2: 629 | XL2: 630 | XM2: 631 | XN2: 632 | XO2: 633 | XP2: 634 | XQ2: 635 | XR2: 636 | XS2: 637 | XT2: 638 | XU2: 639 | XV2: 640 | XW2: 641 | XX2: 642 | XY2: 643 | XZ2: 644 | YA2: 645 | YB2: 646 | YC2: 647 | YD2: 648 | YE2: 649 | YF2: 650 | YG2: 651 | YH2: 652 | YI2: 653 | YJ2: 654 | YK2: 655 | YL2: 656 | YM2: 657 | YN2: 658 | YO2: 659 | YP2: 660 | YQ2: 661 | YR2: 662 | YS2: 663 | YT2: 664 | YU2: 665 | YV2: 666 | YW2: 667 | YX2: 668 | YY2: 669 | YZ2: 670 | ZA2: 671 | ZB2: 672 | ZC2: 673 | ZD2: 674 | ZE2: 675 | ZF2: 676 | ZG2: 677 | ZH2: 678 | ZI2: 679 | ZJ2: 680 | ZK2: 681 | ZL2: 682 | ZM2: 683 | ZN2: 684 | ZO2: 685 | ZP2: 686 | ZQ2: 687 | ZR2: 688 | ZS2: 689 | ZT2: 690 | ZU2: 691 | ZV2: 692 | ZW2: 693 | ZX2: 694 | ZY2: 695 | ZZ2: 696 | AAA2: 697 | AAB2: 698 | AAC2: 699 | AAD2: 700 | AAE2: 701 | AAF2: 702 | AAG2: 703 | AAH2: 704 | AAI2: 705 | AAJ2: 706 | AAK2: 707 | AAL2: 708 | AAM2: 709 | AAN2: 710 | AAO2: 711 | AAP2: 712 | AAQ2: 713 | AAR2: 714 | AAS2: 715 | AAT2: 716 | AAU2: 717 | AAV2: 718 | AAW2: 719 | AAX2: 720 | AAY2: 721 | AAZ2: 722 | ABA2: 723 | ABB2: 724 | ABC2: 725 | ABD2: 726 | ABE2: 727 | ABF2: 728 | ABG2: 729 | ABH2: 730 | ABI2: 731 | ABJ2: 732 | ABK2: 733 | ABL2: 734 | ABM2: 735 | ABN2: 736 | ABO2: 737 | ABP2: 738 | ABQ2: 739 | ABR2: 740 | ABS2: 741 | ABT2: 742 | ABU2: 743 | ABV2: 744 | ABW2: 745 | ABX2: 746 | ABY2: 747 | ABZ2: 748 | ACA2: 749 | ACB2: 750 | ACC2: 751 | ACD2: 752 | ACE2: 753 | ACF2: 754 | ACG2: 755 | ACH2: 756 | ACI2: 757 | ACJ2: 758 | ACK2: 759 | ACL2: 760 | ACM2: 761 | ACN2: 762 | ACO2: 763 | ACP2: 764 | ACQ2: 765 | ACR2: 766 | ACS2: 767 | ACT2: 768 | ACU2: 769 | ACV2: 770 | ACW2: 771 | ACX2: 772 | ACY2: 773 | ACZ2: 774 | ADA2: 775 | ADB2: 776 | ADC2: 777 | ADD2: 778 | ADE2: 779 | ADF2: 780 | ADG2: 781 | ADH2: 782 | ADI2: 783 | ADJ2: 784 | ADK2: 785 | ADL2: 786 | ADM2: 787 | ADN2: 788 | ADO2: 789 | ADP2: 790 | ADQ2: 791 | ADR2: 792 | ADS2: 793 | ADT2: 794 | ADU2: 795 | ADV2: 796 | ADW2: 797 | ADX2: 798 | ADY2: 799 | ADZ2: 800 | AEA2: 801 | AEB2: 802 | AEC2: 803 | AED2: 804 | AEE2: 805 | AEF2: 806 | AEG2: 807 | AEH2: 808 | AEI2: 809 | AEJ2: 810 | AEK2: 811 | AEL2: 812 | AEM2: 813 | AEN2: 814 | AEO2: 815 | AEP2: 816 | AEQ2: 817 | AER2: 818 | AES2: 819 | AET2: 820 | AEU2: 821 | AEV2: 822 | AEW2: 823 | AEX2: 824 | AEY2: 825 | AEZ2: 826 | AFA2: 827 | AFB2: 828 | AFC2: 829 | AFD2: 830 | AFE2: 831 | AFF2: 832 | AFG2: 833 | AFH2: 834 | AFI2: 835 | AFJ2: 836 | AFK2: 837 | AFL2: 838 | AFM2: 839 | AFN2: 840 | AFO2: 841 | AFP2: 842 | AFQ2: 843 | AFR2: 844 | AFS2: 845 | AFT2: 846 | AFU2: 847 | AFV2: 848 | AFW2: 849 | AFX2: 850 | AFY2: 851 | AFZ2: 852 | AGA2: 853 | AGB2: 854 | AGC2: 855 | AGD2: 856 | AGE2: 857 | AGF2: 858 | AGG2: 859 | AGH2: 860 | AGI2: 861 | AGJ2: 862 | AGK2: 863 | AGL2: 864 | AGM2: 865 | AGN2: 866 | AGO2: 867 | AGP2: 868 | AGQ2: 869 | AGR2: 870 | AGS2: 871 | AGT2: 872 | AGU2: 873 | AGV2: 874 | AGW2: 875 | AGX2: 876 | AGY2: 877 | AGZ2: 878 | AHA2: 879 | AHB2: 880 | AHC2: 881 | AHD2: 882 | AHE2: 883 | AHF2: 884 | AHG2: 885 | AHH2: 886 | AHI2: 887 | AHJ2: 888 | AHK2: 889 | AHL2: 890 | AHM2: 891 | AHN2: 892 | AHO2: 893 | AHP2: 894 | AHQ2: 895 | AHR2: 896 | AHS2: 897 | AHT2: 898 | AHU2: 899 | AHV2: 900 | AHW2: 901 | AHX2: 902 | AHY2: 903 | AHZ2: 904 | AIA2: 905 | AIB2: 906 | AIC2: 907 | AID2: 908 | AIE2: 909 | AIF2: 910 | AIG2: 911 | AIH2: 912 | AII2: 913 | AIJ2: 914 | AIK2: 915 | AIL2: 916 | AIM2: 917 | AIN2: 918 | AIO2: 919 | AIP2: 920 | AIQ2: 921 | AIR2: 922 | AIS2: 923 | AIT2: 924 | AIU2: 925 | AIV2: 926 | AIW2: 927 | AIX2: 928 | AIY2: 929 | AIZ2: 930 | AJA2: 931 | AJB2: 932 | AJC2: 933 | AJD2: 934 | AJE2: 935 | AJF2: 936 | AJG2: 937 | AJH2: 938 | AJI2: 939 | AJJ2: 940 | AJK2: 941 | AJL2: 942 | AJM2: 943 | AJN2: 944 | AJO2: 945 | AJP2: 946 | AJQ2: 947 | AJR2: 948 | AJS2: 949 | AJT2: 950 | AJU2: 951 | AJV2: 952 | AJW2: 953 | AJX2: 954 | AJY2: 955 | AJZ2: 956 | AKA2: 957 | AKB2: 958 | AKC2: 959 | AKD2: 960 | AKE2: 961 | AKF2: 962 | AKG2: 963 | AKH2: 964 | AKI2: 965 | AKJ2: 966 | AKK2: 967 | AKL2: 968 | AKM2: 969 | AKN2: 970 | AKO2: 971 | AKP2: 972 | AKQ2: 973 | AKR2: 974 | AKS2: 975 | AKT2: 976 | AKU2: 977 | AKV2: 978 | AKW2: 979 | AKX2: 980 | AKY2: 981 | AKZ2: 982 | ALA2: 983 | ALB2: 984 | ALC2: 985 | ALD2: 986 | ALE2: 987 | ALF2: 988 | ALG2: 989 | ALH2: 990 | ALI2: 991 | ALJ2: 992 | ALK2: 993 | ALL2: 994 | ALM2: 995 | ALN2: 996 | ALO2: 997 | ALP2: 998 | ALQ2: 999 | ALR2: 1000
B3: Holding Period | E3: =E7 -> 7 | G3: =G2<=$E$3 -> TRUE | H3: =H2<=$E$3 -> TRUE | I3: TRUE | J3: TRUE | K3: TRUE | L3: TRUE | M3: TRUE | N3: FALSE | O3: FALSE | P3: FALSE | Q3: FALSE | R3: FALSE | S3: FALSE | T3: FALSE | U3: FALSE | V3: FALSE | W3: FALSE | X3: FALSE | Y3: FALSE | Z3: FALSE | AA3: FALSE | AB3: FALSE | AC3: FALSE | AD3: FALSE | AE3: FALSE | AF3: FALSE | AG3: FALSE | AH3: FALSE | AI3: FALSE | AJ3: FALSE | AK3: FALSE | AL3: FALSE | AM3: FALSE | AN3: FALSE | AO3: FALSE | AP3: FALSE | AQ3: FALSE | AR3: FALSE | AS3: FALSE | AT3: FALSE | AU3: FALSE | AV3: FALSE | AW3: FALSE | AX3: FALSE | AY3: FALSE | AZ3: FALSE | BA3: FALSE | BB3: FALSE | BC3: FALSE | BD3: FALSE | BE3: FALSE | BF3: FALSE | BG3: FALSE | BH3: FALSE | BI3: FALSE | BJ3: FALSE | BK3: FALSE | BL3: FALSE | BM3: FALSE | BN3: FALSE | BO3: FALSE | BP3: FALSE | BQ3: FALSE | BR3: FALSE | BS3: FALSE | BT3: =BT2<=$E$3 -> FALSE | BU3: FALSE | BV3: FALSE | BW3: FALSE | BX3: FALSE | BY3: FALSE | BZ3: FALSE | CA3: FALSE | CB3: FALSE | CC3: FALSE | CD3: FALSE | CE3: FALSE | CF3: FALSE | CG3: FALSE | CH3: FALSE | CI3: FALSE | CJ3: FALSE | CK3: FALSE | CL3: FALSE | CM3: FALSE | CN3: FALSE | CO3: FALSE | CP3: FALSE | CQ3: FALSE | CR3: FALSE | CS3: FALSE | CT3: FALSE | CU3: FALSE | CV3: FALSE | CW3: FALSE | CX3: FALSE | CY3: FALSE | CZ3: FALSE | DA3: FALSE | DB3: FALSE | DC3: FALSE | DD3: FALSE | DE3: FALSE | DF3: FALSE | DG3: FALSE | DH3: FALSE | DI3: FALSE | DJ3: FALSE | DK3: FALSE | DL3: FALSE | DM3: FALSE | DN3: FALSE | DO3: FALSE | DP3: FALSE | DQ3: FALSE | DR3: FALSE | DS3: FALSE | DT3: FALSE | DU3: FALSE | DV3: FALSE | DW3: FALSE | DX3: FALSE | DY3: FALSE | DZ3: FALSE | EA3: FALSE | EB3: FALSE | EC3: FALSE | ED3: FALSE | EE3: FALSE | EF3: =EF2<=$E$3 -> FALSE | EG3: FALSE | EH3: FALSE | EI3: FALSE | EJ3: FALSE | EK3: FALSE | EL3: FALSE | EM3: FALSE | EN3: FALSE | EO3: FALSE | EP3: FALSE | EQ3: FALSE | ER3: FALSE | ES3: FALSE | ET3: FALSE | EU3: FALSE | EV3: FALSE | EW3: FALSE | EX3: FALSE | EY3: FALSE | EZ3: FALSE | FA3: FALSE | FB3: FALSE | FC3: FALSE | FD3: FALSE | FE3: FALSE | FF3: FALSE | FG3: FALSE | FH3: FALSE | FI3: FALSE | FJ3: FALSE | FK3: FALSE | FL3: FALSE | FM3: FALSE | FN3: FALSE | FO3: FALSE | FP3: FALSE | FQ3: FALSE | FR3: FALSE | FS3: FALSE | FT3: FALSE | FU3: FALSE | FV3: FALSE | FW3: FALSE | FX3: FALSE | FY3: FALSE | FZ3: FALSE | GA3: FALSE | GB3: FALSE | GC3: FALSE | GD3: FALSE | GE3: FALSE | GF3: FALSE | GG3: FALSE | GH3: FALSE | GI3: FALSE | GJ3: FALSE | GK3: FALSE | GL3: FALSE | GM3: FALSE | GN3: FALSE | GO3: FALSE | GP3: FALSE | GQ3: FALSE | GR3: =GR2<=$E$3 -> FALSE | GS3: FALSE | GT3: FALSE | GU3: FALSE | GV3: FALSE | GW3: FALSE | GX3: FALSE | GY3: FALSE | GZ3: FALSE | HA3: FALSE | HB3: FALSE | HC3: FALSE | HD3: FALSE | HE3: FALSE | HF3: FALSE | HG3: FALSE | HH3: FALSE | HI3: FALSE | HJ3: FALSE | HK3: FALSE | HL3: FALSE | HM3: FALSE | HN3: FALSE | HO3: FALSE | HP3: FALSE | HQ3: FALSE | HR3: FALSE | HS3: FALSE | HT3: FALSE | HU3: FALSE | HV3: FALSE | HW3: FALSE | HX3: FALSE | HY3: FALSE | HZ3: FALSE | IA3: FALSE | IB3: FALSE | IC3: FALSE | ID3: FALSE | IE3: FALSE | IF3: FALSE | IG3: FALSE | IH3: FALSE | II3: FALSE | IJ3: FALSE | IK3: FALSE | IL3: FALSE | IM3: FALSE | IN3: FALSE | IO3: FALSE | IP3: FALSE | IQ3: FALSE | IR3: FALSE | IS3: FALSE | IT3: FALSE | IU3: FALSE | IV3: FALSE | IW3: FALSE | IX3: FALSE | IY3: FALSE | IZ3: FALSE | JA3: FALSE | JB3: FALSE | JC3: FALSE | JD3: =JD2<=$E$3 -> FALSE | JE3: FALSE | JF3: FALSE | JG3: FALSE | JH3: FALSE | JI3: FALSE | JJ3: FALSE | JK3: FALSE | JL3: FALSE | JM3: FALSE | JN3: FALSE | JO3: FALSE | JP3: FALSE | JQ3: FALSE | JR3: FALSE | JS3: FALSE | JT3: FALSE | JU3: FALSE | JV3: FALSE | JW3: FALSE | JX3: FALSE | JY3: FALSE | JZ3: FALSE | KA3: FALSE | KB3: FALSE | KC3: FALSE | KD3: FALSE | KE3: FALSE | KF3: FALSE | KG3: FALSE | KH3: FALSE | KI3: FALSE | KJ3: FALSE | KK3: FALSE | KL3: FALSE | KM3: FALSE | KN3: FALSE | KO3: FALSE | KP3: FALSE | KQ3: FALSE | KR3: FALSE | KS3: FALSE | KT3: FALSE | KU3: FALSE | KV3: FALSE | KW3: FALSE | KX3: FALSE | KY3: FALSE | KZ3: FALSE | LA3: FALSE | LB3: FALSE | LC3: FALSE | LD3: FALSE | LE3: FALSE | LF3: FALSE | LG3: FALSE | LH3: FALSE | LI3: FALSE | LJ3: FALSE | LK3: FALSE | LL3: FALSE | LM3: FALSE | LN3: FALSE | LO3: FALSE | LP3: =LP2<=$E$3 -> FALSE | LQ3: FALSE | LR3: FALSE | LS3: FALSE | LT3: FALSE | LU3: FALSE | LV3: FALSE | LW3: FALSE | LX3: FALSE | LY3: FALSE | LZ3: FALSE | MA3: FALSE | MB3: FALSE | MC3: FALSE | MD3: FALSE | ME3: FALSE | MF3: FALSE | MG3: FALSE | MH3: FALSE | MI3: FALSE | MJ3: FALSE | MK3: FALSE | ML3: FALSE | MM3: FALSE | MN3: FALSE | MO3: FALSE | MP3: FALSE | MQ3: FALSE | MR3: FALSE | MS3: FALSE | MT3: FALSE | MU3: FALSE | MV3: FALSE | MW3: FALSE | MX3: FALSE | MY3: FALSE | MZ3: FALSE | NA3: FALSE | NB3: FALSE | NC3: FALSE | ND3: FALSE | NE3: FALSE | NF3: FALSE | NG3: FALSE | NH3: FALSE | NI3: FALSE | NJ3: FALSE | NK3: FALSE | NL3: FALSE | NM3: FALSE | NN3: FALSE | NO3: FALSE | NP3: FALSE | NQ3: FALSE | NR3: FALSE | NS3: FALSE | NT3: FALSE | NU3: FALSE | NV3: FALSE | NW3: FALSE | NX3: FALSE | NY3: FALSE | NZ3: FALSE | OA3: FALSE | OB3: =OB2<=$E$3 -> FALSE | OC3: FALSE | OD3: FALSE | OE3: FALSE | OF3: FALSE | OG3: FALSE | OH3: FALSE | OI3: FALSE | OJ3: FALSE | OK3: FALSE | OL3: FALSE | OM3: FALSE | ON3: FALSE | OO3: FALSE | OP3: FALSE | OQ3: FALSE | OR3: FALSE | OS3: FALSE | OT3: FALSE | OU3: FALSE | OV3: FALSE | OW3: FALSE | OX3: FALSE | OY3: FALSE | OZ3: FALSE | PA3: FALSE | PB3: FALSE | PC3: FALSE | PD3: FALSE | PE3: FALSE | PF3: FALSE | PG3: FALSE | PH3: FALSE | PI3: FALSE | PJ3: FALSE | PK3: FALSE | PL3: FALSE | PM3: FALSE | PN3: FALSE | PO3: FALSE | PP3: FALSE | PQ3: FALSE | PR3: FALSE | PS3: FALSE | PT3: FALSE | PU3: FALSE | PV3: FALSE | PW3: FALSE | PX3: FALSE | PY3: FALSE | PZ3: FALSE | QA3: FALSE | QB3: FALSE | QC3: FALSE | QD3: FALSE | QE3: FALSE | QF3: FALSE | QG3: FALSE | QH3: FALSE | QI3: FALSE | QJ3: FALSE | QK3: FALSE | QL3: FALSE | QM3: FALSE | QN3: =QN2<=$E$3 -> FALSE | QO3: FALSE | QP3: FALSE | QQ3: FALSE | QR3: FALSE | QS3: FALSE | QT3: FALSE | QU3: FALSE | QV3: FALSE | QW3: FALSE | QX3: FALSE | QY3: FALSE | QZ3: FALSE | RA3: FALSE | RB3: FALSE | RC3: FALSE | RD3: FALSE | RE3: FALSE | RF3: FALSE | RG3: FALSE | RH3: FALSE | RI3: FALSE | RJ3: FALSE | RK3: FALSE | RL3: FALSE | RM3: FALSE | RN3: FALSE | RO3: FALSE | RP3: FALSE | RQ3: FALSE | RR3: FALSE | RS3: FALSE | RT3: FALSE | RU3: FALSE | RV3: FALSE | RW3: FALSE | RX3: FALSE | RY3: FALSE | RZ3: FALSE | SA3: FALSE | SB3: FALSE | SC3: FALSE | SD3: FALSE | SE3: FALSE | SF3: FALSE | SG3: FALSE | SH3: FALSE | SI3: FALSE | SJ3: FALSE | SK3: FALSE | SL3: FALSE | SM3: FALSE | SN3: FALSE | SO3: FALSE | SP3: FALSE | SQ3: FALSE | SR3: FALSE | SS3: FALSE | ST3: FALSE | SU3: FALSE | SV3: FALSE | SW3: FALSE | SX3: FALSE | SY3: FALSE | SZ3: =SZ2<=$E$3 -> FALSE | TA3: FALSE | TB3: FALSE | TC3: FALSE | TD3: FALSE | TE3: FALSE | TF3: FALSE | TG3: FALSE | TH3: FALSE | TI3: FALSE | TJ3: FALSE | TK3: FALSE | TL3: FALSE | TM3: FALSE | TN3: FALSE | TO3: FALSE | TP3: FALSE | TQ3: FALSE | TR3: FALSE | TS3: FALSE | TT3: FALSE | TU3: FALSE | TV3: FALSE | TW3: FALSE | TX3: FALSE | TY3: FALSE | TZ3: FALSE | UA3: FALSE | UB3: FALSE | UC3: FALSE | UD3: FALSE | UE3: FALSE | UF3: FALSE | UG3: FALSE | UH3: FALSE | UI3: FALSE | UJ3: FALSE | UK3: FALSE | UL3: FALSE | UM3: FALSE | UN3: FALSE | UO3: FALSE | UP3: FALSE | UQ3: FALSE | UR3: FALSE | US3: FALSE | UT3: FALSE | UU3: FALSE | UV3: FALSE | UW3: FALSE | UX3: FALSE | UY3: FALSE | UZ3: FALSE | VA3: FALSE | VB3: FALSE | VC3: FALSE | VD3: FALSE | VE3: FALSE | VF3: FALSE | VG3: FALSE | VH3: FALSE | VI3: FALSE | VJ3: FALSE | VK3: FALSE | VL3: =VL2<=$E$3 -> FALSE | VM3: FALSE | VN3: FALSE | VO3: FALSE | VP3: FALSE | VQ3: FALSE | VR3: FALSE | VS3: FALSE | VT3: FALSE | VU3: FALSE | VV3: FALSE | VW3: FALSE | VX3: FALSE | VY3: FALSE | VZ3: FALSE | WA3: FALSE | WB3: FALSE | WC3: FALSE | WD3: FALSE | WE3: FALSE | WF3: FALSE | WG3: FALSE | WH3: FALSE | WI3: FALSE | WJ3: FALSE | WK3: FALSE | WL3: FALSE | WM3: FALSE | WN3: FALSE | WO3: FALSE | WP3: FALSE | WQ3: FALSE | WR3: FALSE | WS3: FALSE | WT3: FALSE | WU3: FALSE | WV3: FALSE | WW3: FALSE | WX3: FALSE | WY3: FALSE | WZ3: FALSE | XA3: FALSE | XB3: FALSE | XC3: FALSE | XD3: FALSE | XE3: FALSE | XF3: FALSE | XG3: FALSE | XH3: FALSE | XI3: FALSE | XJ3: FALSE | XK3: FALSE | XL3: FALSE | XM3: FALSE | XN3: FALSE | XO3: FALSE | XP3: FALSE | XQ3: FALSE | XR3: FALSE | XS3: FALSE | XT3: FALSE | XU3: FALSE | XV3: FALSE | XW3: FALSE | XX3: =XX2<=$E$3 -> FALSE | XY3: FALSE | XZ3: FALSE | YA3: FALSE | YB3: FALSE | YC3: FALSE | YD3: FALSE | YE3: FALSE | YF3: FALSE | YG3: FALSE | YH3: FALSE | YI3: FALSE | YJ3: FALSE | YK3: FALSE | YL3: FALSE | YM3: FALSE | YN3: FALSE | YO3: FALSE | YP3: FALSE | YQ3: FALSE | YR3: FALSE | YS3: FALSE | YT3: FALSE | YU3: FALSE | YV3: FALSE | YW3: FALSE | YX3: FALSE | YY3: FALSE | YZ3: FALSE | ZA3: FALSE | ZB3: FALSE | ZC3: FALSE | ZD3: FALSE | ZE3: FALSE | ZF3: FALSE | ZG3: FALSE | ZH3: FALSE | ZI3: FALSE | ZJ3: FALSE | ZK3: FALSE | ZL3: FALSE | ZM3: FALSE | ZN3: FALSE | ZO3: FALSE | ZP3: FALSE | ZQ3: FALSE | ZR3: FALSE | ZS3: FALSE | ZT3: FALSE | ZU3: FALSE | ZV3: FALSE | ZW3: FALSE | ZX3: FALSE | ZY3: FALSE | ZZ3: FALSE | AAA3: FALSE | AAB3: FALSE | AAC3: FALSE | AAD3: FALSE | AAE3: FALSE | AAF3: FALSE | AAG3: FALSE | AAH3: FALSE | AAI3: FALSE | AAJ3: =AAJ2<=$E$3 -> FALSE | AAK3: FALSE | AAL3: FALSE | AAM3: FALSE | AAN3: FALSE | AAO3: FALSE | AAP3: FALSE | AAQ3: FALSE | AAR3: FALSE | AAS3: FALSE | AAT3: FALSE | AAU3: FALSE | AAV3: FALSE | AAW3: FALSE | AAX3: FALSE | AAY3: FALSE | AAZ3: FALSE | ABA3: FALSE | ABB3: FALSE | ABC3: FALSE | ABD3: FALSE | ABE3: FALSE | ABF3: FALSE | ABG3: FALSE | ABH3: FALSE | ABI3: FALSE | ABJ3: FALSE | ABK3: FALSE | ABL3: FALSE | ABM3: FALSE | ABN3: FALSE | ABO3: FALSE | ABP3: FALSE | ABQ3: FALSE | ABR3: FALSE | ABS3: FALSE | ABT3: FALSE | ABU3: FALSE | ABV3: FALSE | ABW3: FALSE | ABX3: FALSE | ABY3: FALSE | ABZ3: FALSE | ACA3: FALSE | ACB3: FALSE | ACC3: FALSE | ACD3: FALSE | ACE3: FALSE | ACF3: FALSE | ACG3: FALSE | ACH3: FALSE | ACI3: FALSE | ACJ3: FALSE | ACK3: FALSE | ACL3: FALSE | ACM3: FALSE | ACN3: FALSE | ACO3: FALSE | ACP3: FALSE | ACQ3: FALSE | ACR3: FALSE | ACS3: FALSE | ACT3: FALSE | ACU3: FALSE | ACV3: =ACV2<=$E$3 -> FALSE | ACW3: FALSE | ACX3: FALSE | ACY3: FALSE | ACZ3: FALSE | ADA3: FALSE | ADB3: FALSE | ADC3: FALSE | ADD3: FALSE | ADE3: FALSE | ADF3: FALSE | ADG3: FALSE | ADH3: FALSE | ADI3: FALSE | ADJ3: FALSE | ADK3: FALSE | ADL3: FALSE | ADM3: FALSE | ADN3: FALSE | ADO3: FALSE | ADP3: FALSE | ADQ3: FALSE | ADR3: FALSE | ADS3: FALSE | ADT3: FALSE | ADU3: FALSE | ADV3: FALSE | ADW3: FALSE | ADX3: FALSE | ADY3: FALSE | ADZ3: FALSE | AEA3: FALSE | AEB3: FALSE | AEC3: FALSE | AED3: FALSE | AEE3: FALSE | AEF3: FALSE | AEG3: FALSE | AEH3: FALSE | AEI3: FALSE | AEJ3: FALSE | AEK3: FALSE | AEL3: FALSE | AEM3: FALSE | AEN3: FALSE | AEO3: FALSE | AEP3: FALSE | AEQ3: FALSE | AER3: FALSE | AES3: FALSE | AET3: FALSE | AEU3: FALSE | AEV3: FALSE | AEW3: FALSE | AEX3: FALSE | AEY3: FALSE | AEZ3: FALSE | AFA3: FALSE | AFB3: FALSE | AFC3: FALSE | AFD3: FALSE | AFE3: FALSE | AFF3: FALSE | AFG3: FALSE | AFH3: =AFH2<=$E$3 -> FALSE | AFI3: FALSE | AFJ3: FALSE | AFK3: FALSE | AFL3: FALSE | AFM3: FALSE | AFN3: FALSE | AFO3: FALSE | AFP3: FALSE | AFQ3: FALSE | AFR3: FALSE | AFS3: FALSE | AFT3: FALSE | AFU3: FALSE | AFV3: FALSE | AFW3: FALSE | AFX3: FALSE | AFY3: FALSE | AFZ3: FALSE | AGA3: FALSE | AGB3: FALSE | AGC3: FALSE | AGD3: FALSE | AGE3: FALSE | AGF3: FALSE | AGG3: FALSE | AGH3: FALSE | AGI3: FALSE | AGJ3: FALSE | AGK3: FALSE | AGL3: FALSE | AGM3: FALSE | AGN3: FALSE | AGO3: FALSE | AGP3: FALSE | AGQ3: FALSE | AGR3: FALSE | AGS3: FALSE | AGT3: FALSE | AGU3: FALSE | AGV3: FALSE | AGW3: FALSE | AGX3: FALSE | AGY3: FALSE | AGZ3: FALSE | AHA3: FALSE | AHB3: FALSE | AHC3: FALSE | AHD3: FALSE | AHE3: FALSE | AHF3: FALSE | AHG3: FALSE | AHH3: FALSE | AHI3: FALSE | AHJ3: FALSE | AHK3: FALSE | AHL3: FALSE | AHM3: FALSE | AHN3: FALSE | AHO3: FALSE | AHP3: FALSE | AHQ3: FALSE | AHR3: FALSE | AHS3: FALSE | AHT3: =AHT2<=$E$3 -> FALSE | AHU3: FALSE | AHV3: FALSE | AHW3: FALSE | AHX3: FALSE | AHY3: FALSE | AHZ3: FALSE | AIA3: FALSE | AIB3: FALSE | AIC3: FALSE | AID3: FALSE | AIE3: FALSE | AIF3: FALSE | AIG3: FALSE | AIH3: FALSE | AII3: FALSE | AIJ3: FALSE | AIK3: FALSE | AIL3: FALSE | AIM3: FALSE | AIN3: FALSE | AIO3: FALSE | AIP3: FALSE | AIQ3: FALSE | AIR3: FALSE | AIS3: FALSE | AIT3: FALSE | AIU3: FALSE | AIV3: FALSE | AIW3: FALSE | AIX3: FALSE | AIY3: FALSE | AIZ3: FALSE | AJA3: FALSE | AJB3: FALSE | AJC3: FALSE | AJD3: FALSE | AJE3: FALSE | AJF3: FALSE | AJG3: FALSE | AJH3: FALSE | AJI3: FALSE | AJJ3: FALSE | AJK3: FALSE | AJL3: FALSE | AJM3: FALSE | AJN3: FALSE | AJO3: FALSE | AJP3: FALSE | AJQ3: FALSE | AJR3: FALSE | AJS3: FALSE | AJT3: FALSE | AJU3: FALSE | AJV3: FALSE | AJW3: FALSE | AJX3: FALSE | AJY3: FALSE | AJZ3: FALSE | AKA3: FALSE | AKB3: FALSE | AKC3: FALSE | AKD3: FALSE | AKE3: FALSE | AKF3: =AKF2<=$E$3 -> FALSE | AKG3: FALSE | AKH3: FALSE | AKI3: FALSE | AKJ3: FALSE | AKK3: FALSE | AKL3: FALSE | AKM3: FALSE | AKN3: FALSE | AKO3: FALSE | AKP3: FALSE | AKQ3: FALSE | AKR3: FALSE | AKS3: FALSE | AKT3: FALSE | AKU3: FALSE | AKV3: FALSE | AKW3: FALSE | AKX3: FALSE | AKY3: FALSE | AKZ3: FALSE | ALA3: FALSE | ALB3: FALSE | ALC3: FALSE | ALD3: FALSE | ALE3: FALSE | ALF3: FALSE | ALG3: FALSE | ALH3: FALSE | ALI3: FALSE | ALJ3: FALSE | ALK3: FALSE | ALL3: FALSE | ALM3: FALSE | ALN3: FALSE | ALO3: FALSE | ALP3: FALSE | ALQ3: FALSE | ALR3: FALSE
B4: Terminal Period | E4: =E3 -> 7 | G4: =G2=$E$4 -> FALSE | H4: =H2=$E$4 -> FALSE | I4: FALSE | J4: FALSE | K4: FALSE | L4: FALSE | M4: TRUE | N4: FALSE | O4: FALSE | P4: FALSE | Q4: FALSE | R4: FALSE | S4: FALSE | T4: FALSE | U4: FALSE | V4: FALSE | W4: FALSE | X4: FALSE | Y4: FALSE | Z4: FALSE | AA4: FALSE | AB4: FALSE | AC4: FALSE | AD4: FALSE | AE4: FALSE | AF4: FALSE | AG4: FALSE | AH4: FALSE | AI4: FALSE | AJ4: FALSE | AK4: FALSE | AL4: FALSE | AM4: FALSE | AN4: FALSE | AO4: FALSE | AP4: FALSE | AQ4: FALSE | AR4: FALSE | AS4: FALSE | AT4: FALSE | AU4: FALSE | AV4: FALSE | AW4: FALSE | AX4: FALSE | AY4: FALSE | AZ4: FALSE | BA4: FALSE | BB4: FALSE | BC4: FALSE | BD4: FALSE | BE4: FALSE | BF4: FALSE | BG4: FALSE | BH4: FALSE | BI4: FALSE | BJ4: FALSE | BK4: FALSE | BL4: FALSE | BM4: FALSE | BN4: FALSE | BO4: FALSE | BP4: FALSE | BQ4: FALSE | BR4: FALSE | BS4: FALSE | BT4: =BT2=$E$4 -> FALSE | BU4: FALSE | BV4: FALSE | BW4: FALSE | BX4: FALSE | BY4: FALSE | BZ4: FALSE | CA4: FALSE | CB4: FALSE | CC4: FALSE | CD4: FALSE | CE4: FALSE | CF4: FALSE | CG4: FALSE | CH4: FALSE | CI4: FALSE | CJ4: FALSE | CK4: FALSE | CL4: FALSE | CM4: FALSE | CN4: FALSE | CO4: FALSE | CP4: FALSE | CQ4: FALSE | CR4: FALSE | CS4: FALSE | CT4: FALSE | CU4: FALSE | CV4: FALSE | CW4: FALSE | CX4: FALSE | CY4: FALSE | CZ4: FALSE | DA4: FALSE | DB4: FALSE | DC4: FALSE | DD4: FALSE | DE4: FALSE | DF4: FALSE | DG4: FALSE | DH4: FALSE | DI4: FALSE | DJ4: FALSE | DK4: FALSE | DL4: FALSE | DM4: FALSE | DN4: FALSE | DO4: FALSE | DP4: FALSE | DQ4: FALSE | DR4: FALSE | DS4: FALSE | DT4: FALSE | DU4: FALSE | DV4: FALSE | DW4: FALSE | DX4: FALSE | DY4: FALSE | DZ4: FALSE | EA4: FALSE | EB4: FALSE | EC4: FALSE | ED4: FALSE | EE4: FALSE | EF4: =EF2=$E$4 -> FALSE | EG4: FALSE | EH4: FALSE | EI4: FALSE | EJ4: FALSE | EK4: FALSE | EL4: FALSE | EM4: FALSE | EN4: FALSE | EO4: FALSE | EP4: FALSE | EQ4: FALSE | ER4: FALSE | ES4: FALSE | ET4: FALSE | EU4: FALSE | EV4: FALSE | EW4: FALSE | EX4: FALSE | EY4: FALSE | EZ4: FALSE | FA4: FALSE | FB4: FALSE | FC4: FALSE | FD4: FALSE | FE4: FALSE | FF4: FALSE | FG4: FALSE | FH4: FALSE | FI4: FALSE | FJ4: FALSE | FK4: FALSE | FL4: FALSE | FM4: FALSE | FN4: FALSE | FO4: FALSE | FP4: FALSE | FQ4: FALSE | FR4: FALSE | FS4: FALSE | FT4: FALSE | FU4: FALSE | FV4: FALSE | FW4: FALSE | FX4: FALSE | FY4: FALSE | FZ4: FALSE | GA4: FALSE | GB4: FALSE | GC4: FALSE | GD4: FALSE | GE4: FALSE | GF4: FALSE | GG4: FALSE | GH4: FALSE | GI4: FALSE | GJ4: FALSE | GK4: FALSE | GL4: FALSE | GM4: FALSE | GN4: FALSE | GO4: FALSE | GP4: FALSE | GQ4: FALSE | GR4: =GR2=$E$4 -> FALSE | GS4: FALSE | GT4: FALSE | GU4: FALSE | GV4: FALSE | GW4: FALSE | GX4: FALSE | GY4: FALSE | GZ4: FALSE | HA4: FALSE | HB4: FALSE | HC4: FALSE | HD4: FALSE | HE4: FALSE | HF4: FALSE | HG4: FALSE | HH4: FALSE | HI4: FALSE | HJ4: FALSE | HK4: FALSE | HL4: FALSE | HM4: FALSE | HN4: FALSE | HO4: FALSE | HP4: FALSE | HQ4: FALSE | HR4: FALSE | HS4: FALSE | HT4: FALSE | HU4: FALSE | HV4: FALSE | HW4: FALSE | HX4: FALSE | HY4: FALSE | HZ4: FALSE | IA4: FALSE | IB4: FALSE | IC4: FALSE | ID4: FALSE | IE4: FALSE | IF4: FALSE | IG4: FALSE | IH4: FALSE | II4: FALSE | IJ4: FALSE | IK4: FALSE | IL4: FALSE | IM4: FALSE | IN4: FALSE | IO4: FALSE | IP4: FALSE | IQ4: FALSE | IR4: FALSE | IS4: FALSE | IT4: FALSE | IU4: FALSE | IV4: FALSE | IW4: FALSE | IX4: FALSE | IY4: FALSE | IZ4: FALSE | JA4: FALSE | JB4: FALSE | JC4: FALSE | JD4: =JD2=$E$4 -> FALSE | JE4: FALSE | JF4: FALSE | JG4: FALSE | JH4: FALSE | JI4: FALSE | JJ4: FALSE | JK4: FALSE | JL4: FALSE | JM4: FALSE | JN4: FALSE | JO4: FALSE | JP4: FALSE | JQ4: FALSE | JR4: FALSE | JS4: FALSE | JT4: FALSE | JU4: FALSE | JV4: FALSE | JW4: FALSE | JX4: FALSE | JY4: FALSE | JZ4: FALSE | KA4: FALSE | KB4: FALSE | KC4: FALSE | KD4: FALSE | KE4: FALSE | KF4: FALSE | KG4: FALSE | KH4: FALSE | KI4: FALSE | KJ4: FALSE | KK4: FALSE | KL4: FALSE | KM4: FALSE | KN4: FALSE | KO4: FALSE | KP4: FALSE | KQ4: FALSE | KR4: FALSE | KS4: FALSE | KT4: FALSE | KU4: FALSE | KV4: FALSE | KW4: FALSE | KX4: FALSE | KY4: FALSE | KZ4: FALSE | LA4: FALSE | LB4: FALSE | LC4: FALSE | LD4: FALSE | LE4: FALSE | LF4: FALSE | LG4: FALSE | LH4: FALSE | LI4: FALSE | LJ4: FALSE | LK4: FALSE | LL4: FALSE | LM4: FALSE | LN4: FALSE | LO4: FALSE | LP4: =LP2=$E$4 -> FALSE | LQ4: FALSE | LR4: FALSE | LS4: FALSE | LT4: FALSE | LU4: FALSE | LV4: FALSE | LW4: FALSE | LX4: FALSE | LY4: FALSE | LZ4: FALSE | MA4: FALSE | MB4: FALSE | MC4: FALSE | MD4: FALSE | ME4: FALSE | MF4: FALSE | MG4: FALSE | MH4: FALSE | MI4: FALSE | MJ4: FALSE | MK4: FALSE | ML4: FALSE | MM4: FALSE | MN4: FALSE | MO4: FALSE | MP4: FALSE | MQ4: FALSE | MR4: FALSE | MS4: FALSE | MT4: FALSE | MU4: FALSE | MV4: FALSE | MW4: FALSE | MX4: FALSE | MY4: FALSE | MZ4: FALSE | NA4: FALSE | NB4: FALSE | NC4: FALSE | ND4: FALSE | NE4: FALSE | NF4: FALSE | NG4: FALSE | NH4: FALSE | NI4: FALSE | NJ4: FALSE | NK4: FALSE | NL4: FALSE | NM4: FALSE | NN4: FALSE | NO4: FALSE | NP4: FALSE | NQ4: FALSE | NR4: FALSE | NS4: FALSE | NT4: FALSE | NU4: FALSE | NV4: FALSE | NW4: FALSE | NX4: FALSE | NY4: FALSE | NZ4: FALSE | OA4: FALSE | OB4: =OB2=$E$4 -> FALSE | OC4: FALSE | OD4: FALSE | OE4: FALSE | OF4: FALSE | OG4: FALSE | OH4: FALSE | OI4: FALSE | OJ4: FALSE | OK4: FALSE | OL4: FALSE | OM4: FALSE | ON4: FALSE | OO4: FALSE | OP4: FALSE | OQ4: FALSE | OR4: FALSE | OS4: FALSE | OT4: FALSE | OU4: FALSE | OV4: FALSE | OW4: FALSE | OX4: FALSE | OY4: FALSE | OZ4: FALSE | PA4: FALSE | PB4: FALSE | PC4: FALSE | PD4: FALSE | PE4: FALSE | PF4: FALSE | PG4: FALSE | PH4: FALSE | PI4: FALSE | PJ4: FALSE | PK4: FALSE | PL4: FALSE | PM4: FALSE | PN4: FALSE | PO4: FALSE | PP4: FALSE | PQ4: FALSE | PR4: FALSE | PS4: FALSE | PT4: FALSE | PU4: FALSE | PV4: FALSE | PW4: FALSE | PX4: FALSE | PY4: FALSE | PZ4: FALSE | QA4: FALSE | QB4: FALSE | QC4: FALSE | QD4: FALSE | QE4: FALSE | QF4: FALSE | QG4: FALSE | QH4: FALSE | QI4: FALSE | QJ4: FALSE | QK4: FALSE | QL4: FALSE | QM4: FALSE | QN4: =QN2=$E$4 -> FALSE | QO4: FALSE | QP4: FALSE | QQ4: FALSE | QR4: FALSE | QS4: FALSE | QT4: FALSE | QU4: FALSE | QV4: FALSE | QW4: FALSE | QX4: FALSE | QY4: FALSE | QZ4: FALSE | RA4: FALSE | RB4: FALSE | RC4: FALSE | RD4: FALSE | RE4: FALSE | RF4: FALSE | RG4: FALSE | RH4: FALSE | RI4: FALSE | RJ4: FALSE | RK4: FALSE | RL4: FALSE | RM4: FALSE | RN4: FALSE | RO4: FALSE | RP4: FALSE | RQ4: FALSE | RR4: FALSE | RS4: FALSE | RT4: FALSE | RU4: FALSE | RV4: FALSE | RW4: FALSE | RX4: FALSE | RY4: FALSE | RZ4: FALSE | SA4: FALSE | SB4: FALSE | SC4: FALSE | SD4: FALSE | SE4: FALSE | SF4: FALSE | SG4: FALSE | SH4: FALSE | SI4: FALSE | SJ4: FALSE | SK4: FALSE | SL4: FALSE | SM4: FALSE | SN4: FALSE | SO4: FALSE | SP4: FALSE | SQ4: FALSE | SR4: FALSE | SS4: FALSE | ST4: FALSE | SU4: FALSE | SV4: FALSE | SW4: FALSE | SX4: FALSE | SY4: FALSE | SZ4: =SZ2=$E$4 -> FALSE | TA4: FALSE | TB4: FALSE | TC4: FALSE | TD4: FALSE | TE4: FALSE | TF4: FALSE | TG4: FALSE | TH4: FALSE | TI4: FALSE | TJ4: FALSE | TK4: FALSE | TL4: FALSE | TM4: FALSE | TN4: FALSE | TO4: FALSE | TP4: FALSE | TQ4: FALSE | TR4: FALSE | TS4: FALSE | TT4: FALSE | TU4: FALSE | TV4: FALSE | TW4: FALSE | TX4: FALSE | TY4: FALSE | TZ4: FALSE | UA4: FALSE | UB4: FALSE | UC4: FALSE | UD4: FALSE | UE4: FALSE | UF4: FALSE | UG4: FALSE | UH4: FALSE | UI4: FALSE | UJ4: FALSE | UK4: FALSE | UL4: FALSE | UM4: FALSE | UN4: FALSE | UO4: FALSE | UP4: FALSE | UQ4: FALSE | UR4: FALSE | US4: FALSE | UT4: FALSE | UU4: FALSE | UV4: FALSE | UW4: FALSE | UX4: FALSE | UY4: FALSE | UZ4: FALSE | VA4: FALSE | VB4: FALSE | VC4: FALSE | VD4: FALSE | VE4: FALSE | VF4: FALSE | VG4: FALSE | VH4: FALSE | VI4: FALSE | VJ4: FALSE | VK4: FALSE | VL4: =VL2=$E$4 -> FALSE | VM4: FALSE | VN4: FALSE | VO4: FALSE | VP4: FALSE | VQ4: FALSE | VR4: FALSE | VS4: FALSE | VT4: FALSE | VU4: FALSE | VV4: FALSE | VW4: FALSE | VX4: FALSE | VY4: FALSE | VZ4: FALSE | WA4: FALSE | WB4: FALSE | WC4: FALSE | WD4: FALSE | WE4: FALSE | WF4: FALSE | WG4: FALSE | WH4: FALSE | WI4: FALSE | WJ4: FALSE | WK4: FALSE | WL4: FALSE | WM4: FALSE | WN4: FALSE | WO4: FALSE | WP4: FALSE | WQ4: FALSE | WR4: FALSE | WS4: FALSE | WT4: FALSE | WU4: FALSE | WV4: FALSE | WW4: FALSE | WX4: FALSE | WY4: FALSE | WZ4: FALSE | XA4: FALSE | XB4: FALSE | XC4: FALSE | XD4: FALSE | XE4: FALSE | XF4: FALSE | XG4: FALSE | XH4: FALSE | XI4: FALSE | XJ4: FALSE | XK4: FALSE | XL4: FALSE | XM4: FALSE | XN4: FALSE | XO4: FALSE | XP4: FALSE | XQ4: FALSE | XR4: FALSE | XS4: FALSE | XT4: FALSE | XU4: FALSE | XV4: FALSE | XW4: FALSE | XX4: =XX2=$E$4 -> FALSE | XY4: FALSE | XZ4: FALSE | YA4: FALSE | YB4: FALSE | YC4: FALSE | YD4: FALSE | YE4: FALSE | YF4: FALSE | YG4: FALSE | YH4: FALSE | YI4: FALSE | YJ4: FALSE | YK4: FALSE | YL4: FALSE | YM4: FALSE | YN4: FALSE | YO4: FALSE | YP4: FALSE | YQ4: FALSE | YR4: FALSE | YS4: FALSE | YT4: FALSE | YU4: FALSE | YV4: FALSE | YW4: FALSE | YX4: FALSE | YY4: FALSE | YZ4: FALSE | ZA4: FALSE | ZB4: FALSE | ZC4: FALSE | ZD4: FALSE | ZE4: FALSE | ZF4: FALSE | ZG4: FALSE | ZH4: FALSE | ZI4: FALSE | ZJ4: FALSE | ZK4: FALSE | ZL4: FALSE | ZM4: FALSE | ZN4: FALSE | ZO4: FALSE | ZP4: FALSE | ZQ4: FALSE | ZR4: FALSE | ZS4: FALSE | ZT4: FALSE | ZU4: FALSE | ZV4: FALSE | ZW4: FALSE | ZX4: FALSE | ZY4: FALSE | ZZ4: FALSE | AAA4: FALSE | AAB4: FALSE | AAC4: FALSE | AAD4: FALSE | AAE4: FALSE | AAF4: FALSE | AAG4: FALSE | AAH4: FALSE | AAI4: FALSE | AAJ4: =AAJ2=$E$4 -> FALSE | AAK4: FALSE | AAL4: FALSE | AAM4: FALSE | AAN4: FALSE | AAO4: FALSE | AAP4: FALSE | AAQ4: FALSE | AAR4: FALSE | AAS4: FALSE | AAT4: FALSE | AAU4: FALSE | AAV4: FALSE | AAW4: FALSE | AAX4: FALSE | AAY4: FALSE | AAZ4: FALSE | ABA4: FALSE | ABB4: FALSE | ABC4: FALSE | ABD4: FALSE | ABE4: FALSE | ABF4: FALSE | ABG4: FALSE | ABH4: FALSE | ABI4: FALSE | ABJ4: FALSE | ABK4: FALSE | ABL4: FALSE | ABM4: FALSE | ABN4: FALSE | ABO4: FALSE | ABP4: FALSE | ABQ4: FALSE | ABR4: FALSE | ABS4: FALSE | ABT4: FALSE | ABU4: FALSE | ABV4: FALSE | ABW4: FALSE | ABX4: FALSE | ABY4: FALSE | ABZ4: FALSE | ACA4: FALSE | ACB4: FALSE | ACC4: FALSE | ACD4: FALSE | ACE4: FALSE | ACF4: FALSE | ACG4: FALSE | ACH4: FALSE | ACI4: FALSE | ACJ4: FALSE | ACK4: FALSE | ACL4: FALSE | ACM4: FALSE | ACN4: FALSE | ACO4: FALSE | ACP4: FALSE | ACQ4: FALSE | ACR4: FALSE | ACS4: FALSE | ACT4: FALSE | ACU4: FALSE | ACV4: =ACV2=$E$4 -> FALSE | ACW4: FALSE | ACX4: FALSE | ACY4: FALSE | ACZ4: FALSE | ADA4: FALSE | ADB4: FALSE | ADC4: FALSE | ADD4: FALSE | ADE4: FALSE | ADF4: FALSE | ADG4: FALSE | ADH4: FALSE | ADI4: FALSE | ADJ4: FALSE | ADK4: FALSE | ADL4: FALSE | ADM4: FALSE | ADN4: FALSE | ADO4: FALSE | ADP4: FALSE | ADQ4: FALSE | ADR4: FALSE | ADS4: FALSE | ADT4: FALSE | ADU4: FALSE | ADV4: FALSE | ADW4: FALSE | ADX4: FALSE | ADY4: FALSE | ADZ4: FALSE | AEA4: FALSE | AEB4: FALSE | AEC4: FALSE | AED4: FALSE | AEE4: FALSE | AEF4: FALSE | AEG4: FALSE | AEH4: FALSE | AEI4: FALSE | AEJ4: FALSE | AEK4: FALSE | AEL4: FALSE | AEM4: FALSE | AEN4: FALSE | AEO4: FALSE | AEP4: FALSE | AEQ4: FALSE | AER4: FALSE | AES4: FALSE | AET4: FALSE | AEU4: FALSE | AEV4: FALSE | AEW4: FALSE | AEX4: FALSE | AEY4: FALSE | AEZ4: FALSE | AFA4: FALSE | AFB4: FALSE | AFC4: FALSE | AFD4: FALSE | AFE4: FALSE | AFF4: FALSE | AFG4: FALSE | AFH4: =AFH2=$E$4 -> FALSE | AFI4: FALSE | AFJ4: FALSE | AFK4: FALSE | AFL4: FALSE | AFM4: FALSE | AFN4: FALSE | AFO4: FALSE | AFP4: FALSE | AFQ4: FALSE | AFR4: FALSE | AFS4: FALSE | AFT4: FALSE | AFU4: FALSE | AFV4: FALSE | AFW4: FALSE | AFX4: FALSE | AFY4: FALSE | AFZ4: FALSE | AGA4: FALSE | AGB4: FALSE | AGC4: FALSE | AGD4: FALSE | AGE4: FALSE | AGF4: FALSE | AGG4: FALSE | AGH4: FALSE | AGI4: FALSE | AGJ4: FALSE | AGK4: FALSE | AGL4: FALSE | AGM4: FALSE | AGN4: FALSE | AGO4: FALSE | AGP4: FALSE | AGQ4: FALSE | AGR4: FALSE | AGS4: FALSE | AGT4: FALSE | AGU4: FALSE | AGV4: FALSE | AGW4: FALSE | AGX4: FALSE | AGY4: FALSE | AGZ4: FALSE | AHA4: FALSE | AHB4: FALSE | AHC4: FALSE | AHD4: FALSE | AHE4: FALSE | AHF4: FALSE | AHG4: FALSE | AHH4: FALSE | AHI4: FALSE | AHJ4: FALSE | AHK4: FALSE | AHL4: FALSE | AHM4: FALSE | AHN4: FALSE | AHO4: FALSE | AHP4: FALSE | AHQ4: FALSE | AHR4: FALSE | AHS4: FALSE | AHT4: =AHT2=$E$4 -> FALSE | AHU4: FALSE | AHV4: FALSE | AHW4: FALSE | AHX4: FALSE | AHY4: FALSE | AHZ4: FALSE | AIA4: FALSE | AIB4: FALSE | AIC4: FALSE | AID4: FALSE | AIE4: FALSE | AIF4: FALSE | AIG4: FALSE | AIH4: FALSE | AII4: FALSE | AIJ4: FALSE | AIK4: FALSE | AIL4: FALSE | AIM4: FALSE | AIN4: FALSE | AIO4: FALSE | AIP4: FALSE | AIQ4: FALSE | AIR4: FALSE | AIS4: FALSE | AIT4: FALSE | AIU4: FALSE | AIV4: FALSE | AIW4: FALSE | AIX4: FALSE | AIY4: FALSE | AIZ4: FALSE | AJA4: FALSE | AJB4: FALSE | AJC4: FALSE | AJD4: FALSE | AJE4: FALSE | AJF4: FALSE | AJG4: FALSE | AJH4: FALSE | AJI4: FALSE | AJJ4: FALSE | AJK4: FALSE | AJL4: FALSE | AJM4: FALSE | AJN4: FALSE | AJO4: FALSE | AJP4: FALSE | AJQ4: FALSE | AJR4: FALSE | AJS4: FALSE | AJT4: FALSE | AJU4: FALSE | AJV4: FALSE | AJW4: FALSE | AJX4: FALSE | AJY4: FALSE | AJZ4: FALSE | AKA4: FALSE | AKB4: FALSE | AKC4: FALSE | AKD4: FALSE | AKE4: FALSE | AKF4: =AKF2=$E$4 -> FALSE | AKG4: FALSE | AKH4: FALSE | AKI4: FALSE | AKJ4: FALSE | AKK4: FALSE | AKL4: FALSE | AKM4: FALSE | AKN4: FALSE | AKO4: FALSE | AKP4: FALSE | AKQ4: FALSE | AKR4: FALSE | AKS4: FALSE | AKT4: FALSE | AKU4: FALSE | AKV4: FALSE | AKW4: FALSE | AKX4: FALSE | AKY4: FALSE | AKZ4: FALSE | ALA4: FALSE | ALB4: FALSE | ALC4: FALSE | ALD4: FALSE | ALE4: FALSE | ALF4: FALSE | ALG4: FALSE | ALH4: FALSE | ALI4: FALSE | ALJ4: FALSE | ALK4: FALSE | ALL4: FALSE | ALM4: FALSE | ALN4: FALSE | ALO4: FALSE | ALP4: FALSE | ALQ4: FALSE | ALR4: FALSE
B5: Year After Terminal Period | E5: =E4+1 -> 8 | G5: =G2=$E$5 -> FALSE | H5: =H2=$E$5 -> FALSE | I5: FALSE | J5: FALSE | K5: FALSE | L5: FALSE | M5: FALSE | N5: TRUE | O5: FALSE | P5: FALSE | Q5: FALSE | R5: FALSE | S5: FALSE | T5: FALSE | U5: FALSE | V5: FALSE | W5: FALSE | X5: FALSE | Y5: FALSE | Z5: FALSE | AA5: FALSE | AB5: FALSE | AC5: FALSE | AD5: FALSE | AE5: FALSE | AF5: FALSE | AG5: FALSE | AH5: FALSE | AI5: FALSE | AJ5: FALSE | AK5: FALSE | AL5: FALSE | AM5: FALSE | AN5: FALSE | AO5: FALSE | AP5: FALSE | AQ5: FALSE | AR5: FALSE | AS5: FALSE | AT5: FALSE | AU5: FALSE | AV5: FALSE | AW5: FALSE | AX5: FALSE | AY5: FALSE | AZ5: FALSE | BA5: FALSE | BB5: FALSE | BC5: FALSE | BD5: FALSE | BE5: FALSE | BF5: FALSE | BG5: FALSE | BH5: FALSE | BI5: FALSE | BJ5: FALSE | BK5: FALSE | BL5: FALSE | BM5: FALSE | BN5: FALSE | BO5: FALSE | BP5: FALSE | BQ5: FALSE | BR5: FALSE | BS5: FALSE | BT5: =BT2=$E$5 -> FALSE | BU5: FALSE | BV5: FALSE | BW5: FALSE | BX5: FALSE | BY5: FALSE | BZ5: FALSE | CA5: FALSE | CB5: FALSE | CC5: FALSE | CD5: FALSE | CE5: FALSE | CF5: FALSE | CG5: FALSE | CH5: FALSE | CI5: FALSE | CJ5: FALSE | CK5: FALSE | CL5: FALSE | CM5: FALSE | CN5: FALSE | CO5: FALSE | CP5: FALSE | CQ5: FALSE | CR5: FALSE | CS5: FALSE | CT5: FALSE | CU5: FALSE | CV5: FALSE | CW5: FALSE | CX5: FALSE | CY5: FALSE | CZ5: FALSE | DA5: FALSE | DB5: FALSE | DC5: FALSE | DD5: FALSE | DE5: FALSE | DF5: FALSE | DG5: FALSE | DH5: FALSE | DI5: FALSE | DJ5: FALSE | DK5: FALSE | DL5: FALSE | DM5: FALSE | DN5: FALSE | DO5: FALSE | DP5: FALSE | DQ5: FALSE | DR5: FALSE | DS5: FALSE | DT5: FALSE | DU5: FALSE | DV5: FALSE | DW5: FALSE | DX5: FALSE | DY5: FALSE | DZ5: FALSE | EA5: FALSE | EB5: FALSE | EC5: FALSE | ED5: FALSE | EE5: FALSE | EF5: =EF2=$E$5 -> FALSE | EG5: FALSE | EH5: FALSE | EI5: FALSE | EJ5: FALSE | EK5: FALSE | EL5: FALSE | EM5: FALSE | EN5: FALSE | EO5: FALSE | EP5: FALSE | EQ5: FALSE | ER5: FALSE | ES5: FALSE | ET5: FALSE | EU5: FALSE | EV5: FALSE | EW5: FALSE | EX5: FALSE | EY5: FALSE | EZ5: FALSE | FA5: FALSE | FB5: FALSE | FC5: FALSE | FD5: FALSE | FE5: FALSE | FF5: FALSE | FG5: FALSE | FH5: FALSE | FI5: FALSE | FJ5: FALSE | FK5: FALSE | FL5: FALSE | FM5: FALSE | FN5: FALSE | FO5: FALSE | FP5: FALSE | FQ5: FALSE | FR5: FALSE | FS5: FALSE | FT5: FALSE | FU5: FALSE | FV5: FALSE | FW5: FALSE | FX5: FALSE | FY5: FALSE | FZ5: FALSE | GA5: FALSE | GB5: FALSE | GC5: FALSE | GD5: FALSE | GE5: FALSE | GF5: FALSE | GG5: FALSE | GH5: FALSE | GI5: FALSE | GJ5: FALSE | GK5: FALSE | GL5: FALSE | GM5: FALSE | GN5: FALSE | GO5: FALSE | GP5: FALSE | GQ5: FALSE | GR5: =GR2=$E$5 -> FALSE | GS5: FALSE | GT5: FALSE | GU5: FALSE | GV5: FALSE | GW5: FALSE | GX5: FALSE | GY5: FALSE | GZ5: FALSE | HA5: FALSE | HB5: FALSE | HC5: FALSE | HD5: FALSE | HE5: FALSE | HF5: FALSE | HG5: FALSE | HH5: FALSE | HI5: FALSE | HJ5: FALSE | HK5: FALSE | HL5: FALSE | HM5: FALSE | HN5: FALSE | HO5: FALSE | HP5: FALSE | HQ5: FALSE | HR5: FALSE | HS5: FALSE | HT5: FALSE | HU5: FALSE | HV5: FALSE | HW5: FALSE | HX5: FALSE | HY5: FALSE | HZ5: FALSE | IA5: FALSE | IB5: FALSE | IC5: FALSE | ID5: FALSE | IE5: FALSE | IF5: FALSE | IG5: FALSE | IH5: FALSE | II5: FALSE | IJ5: FALSE | IK5: FALSE | IL5: FALSE | IM5: FALSE | IN5: FALSE | IO5: FALSE | IP5: FALSE | IQ5: FALSE | IR5: FALSE | IS5: FALSE | IT5: FALSE | IU5: FALSE | IV5: FALSE | IW5: FALSE | IX5: FALSE | IY5: FALSE | IZ5: FALSE | JA5: FALSE | JB5: FALSE | JC5: FALSE | JD5: =JD2=$E$5 -> FALSE | JE5: FALSE | JF5: FALSE | JG5: FALSE | JH5: FALSE | JI5: FALSE | JJ5: FALSE | JK5: FALSE | JL5: FALSE | JM5: FALSE | JN5: FALSE | JO5: FALSE | JP5: FALSE | JQ5: FALSE | JR5: FALSE | JS5: FALSE | JT5: FALSE | JU5: FALSE | JV5: FALSE | JW5: FALSE | JX5: FALSE | JY5: FALSE | JZ5: FALSE | KA5: FALSE | KB5: FALSE | KC5: FALSE | KD5: FALSE | KE5: FALSE | KF5: FALSE | KG5: FALSE | KH5: FALSE | KI5: FALSE | KJ5: FALSE | KK5: FALSE | KL5: FALSE | KM5: FALSE | KN5: FALSE | KO5: FALSE | KP5: FALSE | KQ5: FALSE | KR5: FALSE | KS5: FALSE | KT5: FALSE | KU5: FALSE | KV5: FALSE | KW5: FALSE | KX5: FALSE | KY5: FALSE | KZ5: FALSE | LA5: FALSE | LB5: FALSE | LC5: FALSE | LD5: FALSE | LE5: FALSE | LF5: FALSE | LG5: FALSE | LH5: FALSE | LI5: FALSE | LJ5: FALSE | LK5: FALSE | LL5: FALSE | LM5: FALSE | LN5: FALSE | LO5: FALSE | LP5: =LP2=$E$5 -> FALSE | LQ5: FALSE | LR5: FALSE | LS5: FALSE | LT5: FALSE | LU5: FALSE | LV5: FALSE | LW5: FALSE | LX5: FALSE | LY5: FALSE | LZ5: FALSE | MA5: FALSE | MB5: FALSE | MC5: FALSE | MD5: FALSE | ME5: FALSE | MF5: FALSE | MG5: FALSE | MH5: FALSE | MI5: FALSE | MJ5: FALSE | MK5: FALSE | ML5: FALSE | MM5: FALSE | MN5: FALSE | MO5: FALSE | MP5: FALSE | MQ5: FALSE | MR5: FALSE | MS5: FALSE | MT5: FALSE | MU5: FALSE | MV5: FALSE | MW5: FALSE | MX5: FALSE | MY5: FALSE | MZ5: FALSE | NA5: FALSE | NB5: FALSE | NC5: FALSE | ND5: FALSE | NE5: FALSE | NF5: FALSE | NG5: FALSE | NH5: FALSE | NI5: FALSE | NJ5: FALSE | NK5: FALSE | NL5: FALSE | NM5: FALSE | NN5: FALSE | NO5: FALSE | NP5: FALSE | NQ5: FALSE | NR5: FALSE | NS5: FALSE | NT5: FALSE | NU5: FALSE | NV5: FALSE | NW5: FALSE | NX5: FALSE | NY5: FALSE | NZ5: FALSE | OA5: FALSE | OB5: =OB2=$E$5 -> FALSE | OC5: FALSE | OD5: FALSE | OE5: FALSE | OF5: FALSE | OG5: FALSE | OH5: FALSE | OI5: FALSE | OJ5: FALSE | OK5: FALSE | OL5: FALSE | OM5: FALSE | ON5: FALSE | OO5: FALSE | OP5: FALSE | OQ5: FALSE | OR5: FALSE | OS5: FALSE | OT5: FALSE | OU5: FALSE | OV5: FALSE | OW5: FALSE | OX5: FALSE | OY5: FALSE | OZ5: FALSE | PA5: FALSE | PB5: FALSE | PC5: FALSE | PD5: FALSE | PE5: FALSE | PF5: FALSE | PG5: FALSE | PH5: FALSE | PI5: FALSE | PJ5: FALSE | PK5: FALSE | PL5: FALSE | PM5: FALSE | PN5: FALSE | PO5: FALSE | PP5: FALSE | PQ5: FALSE | PR5: FALSE | PS5: FALSE | PT5: FALSE | PU5: FALSE | PV5: FALSE | PW5: FALSE | PX5: FALSE | PY5: FALSE | PZ5: FALSE | QA5: FALSE | QB5: FALSE | QC5: FALSE | QD5: FALSE | QE5: FALSE | QF5: FALSE | QG5: FALSE | QH5: FALSE | QI5: FALSE | QJ5: FALSE | QK5: FALSE | QL5: FALSE | QM5: FALSE | QN5: =QN2=$E$5 -> FALSE | QO5: FALSE | QP5: FALSE | QQ5: FALSE | QR5: FALSE | QS5: FALSE | QT5: FALSE | QU5: FALSE | QV5: FALSE | QW5: FALSE | QX5: FALSE | QY5: FALSE | QZ5: FALSE | RA5: FALSE | RB5: FALSE | RC5: FALSE | RD5: FALSE | RE5: FALSE | RF5: FALSE | RG5: FALSE | RH5: FALSE | RI5: FALSE | RJ5: FALSE | RK5: FALSE | RL5: FALSE | RM5: FALSE | RN5: FALSE | RO5: FALSE | RP5: FALSE | RQ5: FALSE | RR5: FALSE | RS5: FALSE | RT5: FALSE | RU5: FALSE | RV5: FALSE | RW5: FALSE | RX5: FALSE | RY5: FALSE | RZ5: FALSE | SA5: FALSE | SB5: FALSE | SC5: FALSE | SD5: FALSE | SE5: FALSE | SF5: FALSE | SG5: FALSE | SH5: FALSE | SI5: FALSE | SJ5: FALSE | SK5: FALSE | SL5: FALSE | SM5: FALSE | SN5: FALSE | SO5: FALSE | SP5: FALSE | SQ5: FALSE | SR5: FALSE | SS5: FALSE | ST5: FALSE | SU5: FALSE | SV5: FALSE | SW5: FALSE | SX5: FALSE | SY5: FALSE | SZ5: =SZ2=$E$5 -> FALSE | TA5: FALSE | TB5: FALSE | TC5: FALSE | TD5: FALSE | TE5: FALSE | TF5: FALSE | TG5: FALSE | TH5: FALSE | TI5: FALSE | TJ5: FALSE | TK5: FALSE | TL5: FALSE | TM5: FALSE | TN5: FALSE | TO5: FALSE | TP5: FALSE | TQ5: FALSE | TR5: FALSE | TS5: FALSE | TT5: FALSE | TU5: FALSE | TV5: FALSE | TW5: FALSE | TX5: FALSE | TY5: FALSE | TZ5: FALSE | UA5: FALSE | UB5: FALSE | UC5: FALSE | UD5: FALSE | UE5: FALSE | UF5: FALSE | UG5: FALSE | UH5: FALSE | UI5: FALSE | UJ5: FALSE | UK5: FALSE | UL5: FALSE | UM5: FALSE | UN5: FALSE | UO5: FALSE | UP5: FALSE | UQ5: FALSE | UR5: FALSE | US5: FALSE | UT5: FALSE | UU5: FALSE | UV5: FALSE | UW5: FALSE | UX5: FALSE | UY5: FALSE | UZ5: FALSE | VA5: FALSE | VB5: FALSE | VC5: FALSE | VD5: FALSE | VE5: FALSE | VF5: FALSE | VG5: FALSE | VH5: FALSE | VI5: FALSE | VJ5: FALSE | VK5: FALSE | VL5: =VL2=$E$5 -> FALSE | VM5: FALSE | VN5: FALSE | VO5: FALSE | VP5: FALSE | VQ5: FALSE | VR5: FALSE | VS5: FALSE | VT5: FALSE | VU5: FALSE | VV5: FALSE | VW5: FALSE | VX5: FALSE | VY5: FALSE | VZ5: FALSE | WA5: FALSE | WB5: FALSE | WC5: FALSE | WD5: FALSE | WE5: FALSE | WF5: FALSE | WG5: FALSE | WH5: FALSE | WI5: FALSE | WJ5: FALSE | WK5: FALSE | WL5: FALSE | WM5: FALSE | WN5: FALSE | WO5: FALSE | WP5: FALSE | WQ5: FALSE | WR5: FALSE | WS5: FALSE | WT5: FALSE | WU5: FALSE | WV5: FALSE | WW5: FALSE | WX5: FALSE | WY5: FALSE | WZ5: FALSE | XA5: FALSE | XB5: FALSE | XC5: FALSE | XD5: FALSE | XE5: FALSE | XF5: FALSE | XG5: FALSE | XH5: FALSE | XI5: FALSE | XJ5: FALSE | XK5: FALSE | XL5: FALSE | XM5: FALSE | XN5: FALSE | XO5: FALSE | XP5: FALSE | XQ5: FALSE | XR5: FALSE | XS5: FALSE | XT5: FALSE | XU5: FALSE | XV5: FALSE | XW5: FALSE | XX5: =XX2=$E$5 -> FALSE | XY5: FALSE | XZ5: FALSE | YA5: FALSE | YB5: FALSE | YC5: FALSE | YD5: FALSE | YE5: FALSE | YF5: FALSE | YG5: FALSE | YH5: FALSE | YI5: FALSE | YJ5: FALSE | YK5: FALSE | YL5: FALSE | YM5: FALSE | YN5: FALSE | YO5: FALSE | YP5: FALSE | YQ5: FALSE | YR5: FALSE | YS5: FALSE | YT5: FALSE | YU5: FALSE | YV5: FALSE | YW5: FALSE | YX5: FALSE | YY5: FALSE | YZ5: FALSE | ZA5: FALSE | ZB5: FALSE | ZC5: FALSE | ZD5: FALSE | ZE5: FALSE | ZF5: FALSE | ZG5: FALSE | ZH5: FALSE | ZI5: FALSE | ZJ5: FALSE | ZK5: FALSE | ZL5: FALSE | ZM5: FALSE | ZN5: FALSE | ZO5: FALSE | ZP5: FALSE | ZQ5: FALSE | ZR5: FALSE | ZS5: FALSE | ZT5: FALSE | ZU5: FALSE | ZV5: FALSE | ZW5: FALSE | ZX5: FALSE | ZY5: FALSE | ZZ5: FALSE | AAA5: FALSE | AAB5: FALSE | AAC5: FALSE | AAD5: FALSE | AAE5: FALSE | AAF5: FALSE | AAG5: FALSE | AAH5: FALSE | AAI5: FALSE | AAJ5: =AAJ2=$E$5 -> FALSE | AAK5: FALSE | AAL5: FALSE | AAM5: FALSE | AAN5: FALSE | AAO5: FALSE | AAP5: FALSE | AAQ5: FALSE | AAR5: FALSE | AAS5: FALSE | AAT5: FALSE | AAU5: FALSE | AAV5: FALSE | AAW5: FALSE | AAX5: FALSE | AAY5: FALSE | AAZ5: FALSE | ABA5: FALSE | ABB5: FALSE | ABC5: FALSE | ABD5: FALSE | ABE5: FALSE | ABF5: FALSE | ABG5: FALSE | ABH5: FALSE | ABI5: FALSE | ABJ5: FALSE | ABK5: FALSE | ABL5: FALSE | ABM5: FALSE | ABN5: FALSE | ABO5: FALSE | ABP5: FALSE | ABQ5: FALSE | ABR5: FALSE | ABS5: FALSE | ABT5: FALSE | ABU5: FALSE | ABV5: FALSE | ABW5: FALSE | ABX5: FALSE | ABY5: FALSE | ABZ5: FALSE | ACA5: FALSE | ACB5: FALSE | ACC5: FALSE | ACD5: FALSE | ACE5: FALSE | ACF5: FALSE | ACG5: FALSE | ACH5: FALSE | ACI5: FALSE | ACJ5: FALSE | ACK5: FALSE | ACL5: FALSE | ACM5: FALSE | ACN5: FALSE | ACO5: FALSE | ACP5: FALSE | ACQ5: FALSE | ACR5: FALSE | ACS5: FALSE | ACT5: FALSE | ACU5: FALSE | ACV5: =ACV2=$E$5 -> FALSE | ACW5: FALSE | ACX5: FALSE | ACY5: FALSE | ACZ5: FALSE | ADA5: FALSE | ADB5: FALSE | ADC5: FALSE | ADD5: FALSE | ADE5: FALSE | ADF5: FALSE | ADG5: FALSE | ADH5: FALSE | ADI5: FALSE | ADJ5: FALSE | ADK5: FALSE | ADL5: FALSE | ADM5: FALSE | ADN5: FALSE | ADO5: FALSE | ADP5: FALSE | ADQ5: FALSE | ADR5: FALSE | ADS5: FALSE | ADT5: FALSE | ADU5: FALSE | ADV5: FALSE | ADW5: FALSE | ADX5: FALSE | ADY5: FALSE | ADZ5: FALSE | AEA5: FALSE | AEB5: FALSE | AEC5: FALSE | AED5: FALSE | AEE5: FALSE | AEF5: FALSE | AEG5: FALSE | AEH5: FALSE | AEI5: FALSE | AEJ5: FALSE | AEK5: FALSE | AEL5: FALSE | AEM5: FALSE | AEN5: FALSE | AEO5: FALSE | AEP5: FALSE | AEQ5: FALSE | AER5: FALSE | AES5: FALSE | AET5: FALSE | AEU5: FALSE | AEV5: FALSE | AEW5: FALSE | AEX5: FALSE | AEY5: FALSE | AEZ5: FALSE | AFA5: FALSE | AFB5: FALSE | AFC5: FALSE | AFD5: FALSE | AFE5: FALSE | AFF5: FALSE | AFG5: FALSE | AFH5: =AFH2=$E$5 -> FALSE | AFI5: FALSE | AFJ5: FALSE | AFK5: FALSE | AFL5: FALSE | AFM5: FALSE | AFN5: FALSE | AFO5: FALSE | AFP5: FALSE | AFQ5: FALSE | AFR5: FALSE | AFS5: FALSE | AFT5: FALSE | AFU5: FALSE | AFV5: FALSE | AFW5: FALSE | AFX5: FALSE | AFY5: FALSE | AFZ5: FALSE | AGA5: FALSE | AGB5: FALSE | AGC5: FALSE | AGD5: FALSE | AGE5: FALSE | AGF5: FALSE | AGG5: FALSE | AGH5: FALSE | AGI5: FALSE | AGJ5: FALSE | AGK5: FALSE | AGL5: FALSE | AGM5: FALSE | AGN5: FALSE | AGO5: FALSE | AGP5: FALSE | AGQ5: FALSE | AGR5: FALSE | AGS5: FALSE | AGT5: FALSE | AGU5: FALSE | AGV5: FALSE | AGW5: FALSE | AGX5: FALSE | AGY5: FALSE | AGZ5: FALSE | AHA5: FALSE | AHB5: FALSE | AHC5: FALSE | AHD5: FALSE | AHE5: FALSE | AHF5: FALSE | AHG5: FALSE | AHH5: FALSE | AHI5: FALSE | AHJ5: FALSE | AHK5: FALSE | AHL5: FALSE | AHM5: FALSE | AHN5: FALSE | AHO5: FALSE | AHP5: FALSE | AHQ5: FALSE | AHR5: FALSE | AHS5: FALSE | AHT5: =AHT2=$E$5 -> FALSE | AHU5: FALSE | AHV5: FALSE | AHW5: FALSE | AHX5: FALSE | AHY5: FALSE | AHZ5: FALSE | AIA5: FALSE | AIB5: FALSE | AIC5: FALSE | AID5: FALSE | AIE5: FALSE | AIF5: FALSE | AIG5: FALSE | AIH5: FALSE | AII5: FALSE | AIJ5: FALSE | AIK5: FALSE | AIL5: FALSE | AIM5: FALSE | AIN5: FALSE | AIO5: FALSE | AIP5: FALSE | AIQ5: FALSE | AIR5: FALSE | AIS5: FALSE | AIT5: FALSE | AIU5: FALSE | AIV5: FALSE | AIW5: FALSE | AIX5: FALSE | AIY5: FALSE | AIZ5: FALSE | AJA5: FALSE | AJB5: FALSE | AJC5: FALSE | AJD5: FALSE | AJE5: FALSE | AJF5: FALSE | AJG5: FALSE | AJH5: FALSE | AJI5: FALSE | AJJ5: FALSE | AJK5: FALSE | AJL5: FALSE | AJM5: FALSE | AJN5: FALSE | AJO5: FALSE | AJP5: FALSE | AJQ5: FALSE | AJR5: FALSE | AJS5: FALSE | AJT5: FALSE | AJU5: FALSE | AJV5: FALSE | AJW5: FALSE | AJX5: FALSE | AJY5: FALSE | AJZ5: FALSE | AKA5: FALSE | AKB5: FALSE | AKC5: FALSE | AKD5: FALSE | AKE5: FALSE | AKF5: =AKF2=$E$5 -> FALSE | AKG5: FALSE | AKH5: FALSE | AKI5: FALSE | AKJ5: FALSE | AKK5: FALSE | AKL5: FALSE | AKM5: FALSE | AKN5: FALSE | AKO5: FALSE | AKP5: FALSE | AKQ5: FALSE | AKR5: FALSE | AKS5: FALSE | AKT5: FALSE | AKU5: FALSE | AKV5: FALSE | AKW5: FALSE | AKX5: FALSE | AKY5: FALSE | AKZ5: FALSE | ALA5: FALSE | ALB5: FALSE | ALC5: FALSE | ALD5: FALSE | ALE5: FALSE | ALF5: FALSE | ALG5: FALSE | ALH5: FALSE | ALI5: FALSE | ALJ5: FALSE | ALK5: FALSE | ALL5: FALSE | ALM5: FALSE | ALN5: FALSE | ALO5: FALSE | ALP5: FALSE | ALQ5: FALSE | ALR5: FALSE
B7: Terminal Period | E7: 7
B8: Inflation | E8: 0.02 | G8: Nominal | H8: TRUE
B9: Partial Year Factor | E9: 0
L10: =IF($H$8,"Nominal","Real") -> Nominal | M10: =IF($H$8,"Nominal","Real") -> Nominal | O10: Two Earnings Adjustments
A11: Assumptions | E11: Applied | F11: Nominal | G11: Real | L11: Simple | M11: Deflated Earn
B12: Rate of Return | E12: =IF($H$8,F12,G12) -> 0.1016 | F12: =(1+G12)*(1+$E$8)-1 -> 0.1016 | G12: 0.08 | K12: Value | L12: =E35 -> 39.2 | M12: =L12 -> 39.2 | O12: Value | Q12: =E115 -> 39.2
B13: Cost of Capital | E13: =IF($H$8,F13,G13) -> 0.0812 | F13: =(1+G13)*(1+$E$8)-1 -> 0.0812 | G13: 0.06 | K13: Earning 1 | L13: =G28 -> 2.8448 | M13: =L13/(1+E8*H8)-G27*E8/(1+E8) -> 2.24 | O13: NOPAT | Q13: =G101 -> 2.8448
B14: Growth | E14: 0.0302 | F14: 0.0302 | G14: 0.01 | K14: P/E | L14: =L12/L13 -> 13.77952756 | M14: =M12/M13 -> 17.5 | O14: V/NOPAT | Q14: =Q12/Q13 -> 13.77952756
B15: Payout | E15: =(1-E14/E12) -> 0.7027559055 | K15: Value Driver TV | M15: =E55 -> 39.2 | O15: Value Driver - NOPAT | Q15: =E132 -> 39.2
B16: Investment Balance (Book Value) | E16: 28 | K16: Value CF TV | M16: =E46 -> 39.2 | O16: Value Driver - BV | Q16: =E124 -> 39.2
K18: 1. Deflate the Earnings
K19: 2. Adjust for Earnings Related to Increase in Value of Investment
K20: Part of Return to Maintain Value - Not Economic Earnings
A22: Long-term Model
B23: Return | G23: =$E$12 -> 0.1016 | H23: =$E$12 -> 0.1016 | I23: 0.1016 | J23: 0.1016 | K23: 0.1016 | L23: 0.1016 | M23: 0.1016 | N23: 0.1016 | O23: 0.1016 | P23: 0.1016 | Q23: 0.1016 | R23: 0.1016 | S23: 0.1016 | T23: 0.1016 | U23: 0.1016 | V23: 0.1016 | W23: 0.1016 | X23: 0.1016 | Y23: 0.1016 | Z23: 0.1016 | AA23: 0.1016 | AB23: 0.1016 | AC23: 0.1016 | AD23: 0.1016 | AE23: 0.1016 | AF23: 0.1016 | AG23: 0.1016 | AH23: 0.1016 | AI23: 0.1016 | AJ23: 0.1016 | AK23: 0.1016 | AL23: 0.1016 | AM23: 0.1016 | AN23: 0.1016 | AO23: 0.1016 | AP23: 0.1016 | AQ23: 0.1016 | AR23: 0.1016 | AS23: 0.1016 | AT23: 0.1016 | AU23: 0.1016 | AV23: 0.1016 | AW23: 0.1016 | AX23: 0.1016 | AY23: 0.1016 | AZ23: 0.1016 | BA23: 0.1016 | BB23: 0.1016 | BC23: 0.1016 | BD23: 0.1016 | BE23: 0.1016 | BF23: 0.1016 | BG23: 0.1016 | BH23: 0.1016 | BI23: 0.1016 | BJ23: 0.1016 | BK23: 0.1016 | BL23: 0.1016 | BM23: 0.1016 | BN23: 0.1016 | BO23: 0.1016 | BP23: 0.1016 | BQ23: 0.1016 | BR23: 0.1016 | BS23: 0.1016 | BT23: =$E$12 -> 0.1016 | BU23: 0.1016 | BV23: 0.1016 | BW23: 0.1016 | BX23: 0.1016 | BY23: 0.1016 | BZ23: 0.1016 | CA23: 0.1016 | CB23: 0.1016 | CC23: 0.1016 | CD23: 0.1016 | CE23: 0.1016 | CF23: 0.1016 | CG23: 0.1016 | CH23: 0.1016 | CI23: 0.1016 | CJ23: 0.1016 | CK23: 0.1016 | CL23: 0.1016 | CM23: 0.1016 | CN23: 0.1016 | CO23: 0.1016 | CP23: 0.1016 | CQ23: 0.1016 | CR23: 0.1016 | CS23: 0.1016 | CT23: 0.1016 | CU23: 0.1016 | CV23: 0.1016 | CW23: 0.1016 | CX23: 0.1016 | CY23: 0.1016 | CZ23: 0.1016 | DA23: 0.1016 | DB23: 0.1016 | DC23: 0.1016 | DD23: 0.1016 | DE23: 0.1016 | DF23: 0.1016 | DG23: 0.1016 | DH23: 0.1016 | DI23: 0.1016 | DJ23: 0.1016 | DK23: 0.1016 | DL23: 0.1016 | DM23: 0.1016 | DN23: 0.1016 | DO23: 0.1016 | DP23: 0.1016 | DQ23: 0.1016 | DR23: 0.1016 | DS23: 0.1016 | DT23: 0.1016 | DU23: 0.1016 | DV23: 0.1016 | DW23: 0.1016 | DX23: 0.1016 | DY23: 0.1016 | DZ23: 0.1016 | EA23: 0.1016 | EB23: 0.1016 | EC23: 0.1016 | ED23: 0.1016 | EE23: 0.1016 | EF23: =$E$12 -> 0.1016 | EG23: 0.1016 | EH23: 0.1016 | EI23: 0.1016 | EJ23: 0.1016 | EK23: 0.1016 | EL23: 0.1016 | EM23: 0.1016 | EN23: 0.1016 | EO23: 0.1016 | EP23: 0.1016 | EQ23: 0.1016 | ER23: 0.1016 | ES23: 0.1016 | ET23: 0.1016 | EU23: 0.1016 | EV23: 0.1016 | EW23: 0.1016 | EX23: 0.1016 | EY23: 0.1016 | EZ23: 0.1016 | FA23: 0.1016 | FB23: 0.1016 | FC23: 0.1016 | FD23: 0.1016 | FE23: 0.1016 | FF23: 0.1016 | FG23: 0.1016 | FH23: 0.1016 | FI23: 0.1016 | FJ23: 0.1016 | FK23: 0.1016 | FL23: 0.1016 | FM23: 0.1016 | FN23: 0.1016 | FO23: 0.1016 | FP23: 0.1016 | FQ23: 0.1016 | FR23: 0.1016 | FS23: 0.1016 | FT23: 0.1016 | FU23: 0.1016 | FV23: 0.1016 | FW23: 0.1016 | FX23: 0.1016 | FY23: 0.1016 | FZ23: 0.1016 | GA23: 0.1016 | GB23: 0.1016 | GC23: 0.1016 | GD23: 0.1016 | GE23: 0.1016 | GF23: 0.1016 | GG23: 0.1016 | GH23: 0.1016 | GI23: 0.1016 | GJ23: 0.1016 | GK23: 0.1016 | GL23: 0.1016 | GM23: 0.1016 | GN23: 0.1016 | GO23: 0.1016 | GP23: 0.1016 | GQ23: 0.1016 | GR23: =$E$12 -> 0.1016 | GS23: 0.1016 | GT23: 0.1016 | GU23: 0.1016 | GV23: 0.1016 | GW23: 0.1016 | GX23: 0.1016 | GY23: 0.1016 | GZ23: 0.1016 | HA23: 0.1016 | HB23: 0.1016 | HC23: 0.1016 | HD23: 0.1016 | HE23: 0.1016 | HF23: 0.1016 | HG23: 0.1016 | HH23: 0.1016 | HI23: 0.1016 | HJ23: 0.1016 | HK23: 0.1016 | HL23: 0.1016 | HM23: 0.1016 | HN23: 0.1016 | HO23: 0.1016 | HP23: 0.1016 | HQ23: 0.1016 | HR23: 0.1016 | HS23: 0.1016 | HT23: 0.1016 | HU23: 0.1016 | HV23: 0.1016 | HW23: 0.1016 | HX23: 0.1016 | HY23: 0.1016 | HZ23: 0.1016 | IA23: 0.1016 | IB23: 0.1016 | IC23: 0.1016 | ID23: 0.1016 | IE23: 0.1016 | IF23: 0.1016 | IG23: 0.1016 | IH23: 0.1016 | II23: 0.1016 | IJ23: 0.1016 | IK23: 0.1016 | IL23: 0.1016 | IM23: 0.1016 | IN23: 0.1016 | IO23: 0.1016 | IP23: 0.1016 | IQ23: 0.1016 | IR23: 0.1016 | IS23: 0.1016 | IT23: 0.1016 | IU23: 0.1016 | IV23: 0.1016 | IW23: 0.1016 | IX23: 0.1016 | IY23: 0.1016 | IZ23: 0.1016 | JA23: 0.1016 | JB23: 0.1016 | JC23: 0.1016 | JD23: =$E$12 -> 0.1016 | JE23: 0.1016 | JF23: 0.1016 | JG23: 0.1016 | JH23: 0.1016 | JI23: 0.1016 | JJ23: 0.1016 | JK23: 0.1016 | JL23: 0.1016 | JM23: 0.1016 | JN23: 0.1016 | JO23: 0.1016 | JP23: 0.1016 | JQ23: 0.1016 | JR23: 0.1016 | JS23: 0.1016 | JT23: 0.1016 | JU23: 0.1016 | JV23: 0.1016 | JW23: 0.1016 | JX23: 0.1016 | JY23: 0.1016 | JZ23: 0.1016 | KA23: 0.1016 | KB23: 0.1016 | KC23: 0.1016 | KD23: 0.1016 | KE23: 0.1016 | KF23: 0.1016 | KG23: 0.1016 | KH23: 0.1016 | KI23: 0.1016 | KJ23: 0.1016 | KK23: 0.1016 | KL23: 0.1016 | KM23: 0.1016 | KN23: 0.1016 | KO23: 0.1016 | KP23: 0.1016 | KQ23: 0.1016 | KR23: 0.1016 | KS23: 0.1016 | KT23: 0.1016 | KU23: 0.1016 | KV23: 0.1016 | KW23: 0.1016 | KX23: 0.1016 | KY23: 0.1016 | KZ23: 0.1016 | LA23: 0.1016 | LB23: 0.1016 | LC23: 0.1016 | LD23: 0.1016 | LE23: 0.1016 | LF23: 0.1016 | LG23: 0.1016 | LH23: 0.1016 | LI23: 0.1016 | LJ23: 0.1016 | LK23: 0.1016 | LL23: 0.1016 | LM23: 0.1016 | LN23: 0.1016 | LO23: 0.1016 | LP23: =$E$12 -> 0.1016 | LQ23: 0.1016 | LR23: 0.1016 | LS23: 0.1016 | LT23: 0.1016 | LU23: 0.1016 | LV23: 0.1016 | LW23: 0.1016 | LX23: 0.1016 | LY23: 0.1016 | LZ23: 0.1016 | MA23: 0.1016 | MB23: 0.1016 | MC23: 0.1016 | MD23: 0.1016 | ME23: 0.1016 | MF23: 0.1016 | MG23: 0.1016 | MH23: 0.1016 | MI23: 0.1016 | MJ23: 0.1016 | MK23: 0.1016 | ML23: 0.1016 | MM23: 0.1016 | MN23: 0.1016 | MO23: 0.1016 | MP23: 0.1016 | MQ23: 0.1016 | MR23: 0.1016 | MS23: 0.1016 | MT23: 0.1016 | MU23: 0.1016 | MV23: 0.1016 | MW23: 0.1016 | MX23: 0.1016 | MY23: 0.1016 | MZ23: 0.1016 | NA23: 0.1016 | NB23: 0.1016 | NC23: 0.1016 | ND23: 0.1016 | NE23: 0.1016 | NF23: 0.1016 | NG23: 0.1016 | NH23: 0.1016 | NI23: 0.1016 | NJ23: 0.1016 | NK23: 0.1016 | NL23: 0.1016 | NM23: 0.1016 | NN23: 0.1016 | NO23: 0.1016 | NP23: 0.1016 | NQ23: 0.1016 | NR23: 0.1016 | NS23: 0.1016 | NT23: 0.1016 | NU23: 0.1016 | NV23: 0.1016 | NW23: 0.1016 | NX23: 0.1016 | NY23: 0.1016 | NZ23: 0.1016 | OA23: 0.1016 | OB23: =$E$12 -> 0.1016 | OC23: 0.1016 | OD23: 0.1016 | OE23: 0.1016 | OF23: 0.1016 | OG23: 0.1016 | OH23: 0.1016 | OI23: 0.1016 | OJ23: 0.1016 | OK23: 0.1016 | OL23: 0.1016 | OM23: 0.1016 | ON23: 0.1016 | OO23: 0.1016 | OP23: 0.1016 | OQ23: 0.1016 | OR23: 0.1016 | OS23: 0.1016 | OT23: 0.1016 | OU23: 0.1016 | OV23: 0.1016 | OW23: 0.1016 | OX23: 0.1016 | OY23: 0.1016 | OZ23: 0.1016 | PA23: 0.1016 | PB23: 0.1016 | PC23: 0.1016 | PD23: 0.1016 | PE23: 0.1016 | PF23: 0.1016 | PG23: 0.1016 | PH23: 0.1016 | PI23: 0.1016 | PJ23: 0.1016 | PK23: 0.1016 | PL23: 0.1016 | PM23: 0.1016 | PN23: 0.1016 | PO23: 0.1016 | PP23: 0.1016 | PQ23: 0.1016 | PR23: 0.1016 | PS23: 0.1016 | PT23: 0.1016 | PU23: 0.1016 | PV23: 0.1016 | PW23: 0.1016 | PX23: 0.1016 | PY23: 0.1016 | PZ23: 0.1016 | QA23: 0.1016 | QB23: 0.1016 | QC23: 0.1016 | QD23: 0.1016 | QE23: 0.1016 | QF23: 0.1016 | QG23: 0.1016 | QH23: 0.1016 | QI23: 0.1016 | QJ23: 0.1016 | QK23: 0.1016 | QL23: 0.1016 | QM23: 0.1016 | QN23: =$E$12 -> 0.1016 | QO23: 0.1016 | QP23: 0.1016 | QQ23: 0.1016 | QR23: 0.1016 | QS23: 0.1016 | QT23: 0.1016 | QU23: 0.1016 | QV23: 0.1016 | QW23: 0.1016 | QX23: 0.1016 | QY23: 0.1016 | QZ23: 0.1016 | RA23: 0.1016 | RB23: 0.1016 | RC23: 0.1016 | RD23: 0.1016 | RE23: 0.1016 | RF23: 0.1016 | RG23: 0.1016 | RH23: 0.1016 | RI23: 0.1016 | RJ23: 0.1016 | RK23: 0.1016 | RL23: 0.1016 | RM23: 0.1016 | RN23: 0.1016 | RO23: 0.1016 | RP23: 0.1016 | RQ23: 0.1016 | RR23: 0.1016 | RS23: 0.1016 | RT23: 0.1016 | RU23: 0.1016 | RV23: 0.1016 | RW23: 0.1016 | RX23: 0.1016 | RY23: 0.1016 | RZ23: 0.1016 | SA23: 0.1016 | SB23: 0.1016 | SC23: 0.1016 | SD23: 0.1016 | SE23: 0.1016 | SF23: 0.1016 | SG23: 0.1016 | SH23: 0.1016 | SI23: 0.1016 | SJ23: 0.1016 | SK23: 0.1016 | SL23: 0.1016 | SM23: 0.1016 | SN23: 0.1016 | SO23: 0.1016 | SP23: 0.1016 | SQ23: 0.1016 | SR23: 0.1016 | SS23: 0.1016 | ST23: 0.1016 | SU23: 0.1016 | SV23: 0.1016 | SW23: 0.1016 | SX23: 0.1016 | SY23: 0.1016 | SZ23: =$E$12 -> 0.1016 | TA23: 0.1016 | TB23: 0.1016 | TC23: 0.1016 | TD23: 0.1016 | TE23: 0.1016 | TF23: 0.1016 | TG23: 0.1016 | TH23: 0.1016 | TI23: 0.1016 | TJ23: 0.1016 | TK23: 0.1016 | TL23: 0.1016 | TM23: 0.1016 | TN23: 0.1016 | TO23: 0.1016 | TP23: 0.1016 | TQ23: 0.1016 | TR23: 0.1016 | TS23: 0.1016 | TT23: 0.1016 | TU23: 0.1016 | TV23: 0.1016 | TW23: 0.1016 | TX23: 0.1016 | TY23: 0.1016 | TZ23: 0.1016 | UA23: 0.1016 | UB23: 0.1016 | UC23: 0.1016 | UD23: 0.1016 | UE23: 0.1016 | UF23: 0.1016 | UG23: 0.1016 | UH23: 0.1016 | UI23: 0.1016 | UJ23: 0.1016 | UK23: 0.1016 | UL23: 0.1016 | UM23: 0.1016 | UN23: 0.1016 | UO23: 0.1016 | UP23: 0.1016 | UQ23: 0.1016 | UR23: 0.1016 | US23: 0.1016 | UT23: 0.1016 | UU23: 0.1016 | UV23: 0.1016 | UW23: 0.1016 | UX23: 0.1016 | UY23: 0.1016 | UZ23: 0.1016 | VA23: 0.1016 | VB23: 0.1016 | VC23: 0.1016 | VD23: 0.1016 | VE23: 0.1016 | VF23: 0.1016 | VG23: 0.1016 | VH23: 0.1016 | VI23: 0.1016 | VJ23: 0.1016 | VK23: 0.1016 | VL23: =$E$12 -> 0.1016 | VM23: 0.1016 | VN23: 0.1016 | VO23: 0.1016 | VP23: 0.1016 | VQ23: 0.1016 | VR23: 0.1016 | VS23: 0.1016 | VT23: 0.1016 | VU23: 0.1016 | VV23: 0.1016 | VW23: 0.1016 | VX23: 0.1016 | VY23: 0.1016 | VZ23: 0.1016 | WA23: 0.1016 | WB23: 0.1016 | WC23: 0.1016 | WD23: 0.1016 | WE23: 0.1016 | WF23: 0.1016 | WG23: 0.1016 | WH23: 0.1016 | WI23: 0.1016 | WJ23: 0.1016 | WK23: 0.1016 | WL23: 0.1016 | WM23: 0.1016 | WN23: 0.1016 | WO23: 0.1016 | WP23: 0.1016 | WQ23: 0.1016 | WR23: 0.1016 | WS23: 0.1016 | WT23: 0.1016 | WU23: 0.1016 | WV23: 0.1016 | WW23: 0.1016 | WX23: 0.1016 | WY23: 0.1016 | WZ23: 0.1016 | XA23: 0.1016 | XB23: 0.1016 | XC23: 0.1016 | XD23: 0.1016 | XE23: 0.1016 | XF23: 0.1016 | XG23: 0.1016 | XH23: 0.1016 | XI23: 0.1016 | XJ23: 0.1016 | XK23: 0.1016 | XL23: 0.1016 | XM23: 0.1016 | XN23: 0.1016 | XO23: 0.1016 | XP23: 0.1016 | XQ23: 0.1016 | XR23: 0.1016 | XS23: 0.1016 | XT23: 0.1016 | XU23: 0.1016 | XV23: 0.1016 | XW23: 0.1016 | XX23: =$E$12 -> 0.1016 | XY23: 0.1016 | XZ23: 0.1016 | YA23: 0.1016 | YB23: 0.1016 | YC23: 0.1016 | YD23: 0.1016 | YE23: 0.1016 | YF23: 0.1016 | YG23: 0.1016 | YH23: 0.1016 | YI23: 0.1016 | YJ23: 0.1016 | YK23: 0.1016 | YL23: 0.1016 | YM23: 0.1016 | YN23: 0.1016 | YO23: 0.1016 | YP23: 0.1016 | YQ23: 0.1016 | YR23: 0.1016 | YS23: 0.1016 | YT23: 0.1016 | YU23: 0.1016 | YV23: 0.1016 | YW23: 0.1016 | YX23: 0.1016 | YY23: 0.1016 | YZ23: 0.1016 | ZA23: 0.1016 | ZB23: 0.1016 | ZC23: 0.1016 | ZD23: 0.1016 | ZE23: 0.1016 | ZF23: 0.1016 | ZG23: 0.1016 | ZH23: 0.1016 | ZI23: 0.1016 | ZJ23: 0.1016 | ZK23: 0.1016 | ZL23: 0.1016 | ZM23: 0.1016 | ZN23: 0.1016 | ZO23: 0.1016 | ZP23: 0.1016 | ZQ23: 0.1016 | ZR23: 0.1016 | ZS23: 0.1016 | ZT23: 0.1016 | ZU23: 0.1016 | ZV23: 0.1016 | ZW23: 0.1016 | ZX23: 0.1016 | ZY23: 0.1016 | ZZ23: 0.1016 | AAA23: 0.1016 | AAB23: 0.1016 | AAC23: 0.1016 | AAD23: 0.1016 | AAE23: 0.1016 | AAF23: 0.1016 | AAG23: 0.1016 | AAH23: 0.1016 | AAI23: 0.1016 | AAJ23: =$E$12 -> 0.1016 | AAK23: 0.1016 | AAL23: 0.1016 | AAM23: 0.1016 | AAN23: 0.1016 | AAO23: 0.1016 | AAP23: 0.1016 | AAQ23: 0.1016 | AAR23: 0.1016 | AAS23: 0.1016 | AAT23: 0.1016 | AAU23: 0.1016 | AAV23: 0.1016 | AAW23: 0.1016 | AAX23: 0.1016 | AAY23: 0.1016 | AAZ23: 0.1016 | ABA23: 0.1016 | ABB23: 0.1016 | ABC23: 0.1016 | ABD23: 0.1016 | ABE23: 0.1016 | ABF23: 0.1016 | ABG23: 0.1016 | ABH23: 0.1016 | ABI23: 0.1016 | ABJ23: 0.1016 | ABK23: 0.1016 | ABL23: 0.1016 | ABM23: 0.1016 | ABN23: 0.1016 | ABO23: 0.1016 | ABP23: 0.1016 | ABQ23: 0.1016 | ABR23: 0.1016 | ABS23: 0.1016 | ABT23: 0.1016 | ABU23: 0.1016 | ABV23: 0.1016 | ABW23: 0.1016 | ABX23: 0.1016 | ABY23: 0.1016 | ABZ23: 0.1016 | ACA23: 0.1016 | ACB23: 0.1016 | ACC23: 0.1016 | ACD23: 0.1016 | ACE23: 0.1016 | ACF23: 0.1016 | ACG23: 0.1016 | ACH23: 0.1016 | ACI23: 0.1016 | ACJ23: 0.1016 | ACK23: 0.1016 | ACL23: 0.1016 | ACM23: 0.1016 | ACN23: 0.1016 | ACO23: 0.1016 | ACP23: 0.1016 | ACQ23: 0.1016 | ACR23: 0.1016 | ACS23: 0.1016 | ACT23: 0.1016 | ACU23: 0.1016 | ACV23: =$E$12 -> 0.1016 | ACW23: 0.1016 | ACX23: 0.1016 | ACY23: 0.1016 | ACZ23: 0.1016 | ADA23: 0.1016 | ADB23: 0.1016 | ADC23: 0.1016 | ADD23: 0.1016 | ADE23: 0.1016 | ADF23: 0.1016 | ADG23: 0.1016 | ADH23: 0.1016 | ADI23: 0.1016 | ADJ23: 0.1016 | ADK23: 0.1016 | ADL23: 0.1016 | ADM23: 0.1016 | ADN23: 0.1016 | ADO23: 0.1016 | ADP23: 0.1016 | ADQ23: 0.1016 | ADR23: 0.1016 | ADS23: 0.1016 | ADT23: 0.1016 | ADU23: 0.1016 | ADV23: 0.1016 | ADW23: 0.1016 | ADX23: 0.1016 | ADY23: 0.1016 | ADZ23: 0.1016 | AEA23: 0.1016 | AEB23: 0.1016 | AEC23: 0.1016 | AED23: 0.1016 | AEE23: 0.1016 | AEF23: 0.1016 | AEG23: 0.1016 | AEH23: 0.1016 | AEI23: 0.1016 | AEJ23: 0.1016 | AEK23: 0.1016 | AEL23: 0.1016 | AEM23: 0.1016 | AEN23: 0.1016 | AEO23: 0.1016 | AEP23: 0.1016 | AEQ23: 0.1016 | AER23: 0.1016 | AES23: 0.1016 | AET23: 0.1016 | AEU23: 0.1016 | AEV23: 0.1016 | AEW23: 0.1016 | AEX23: 0.1016 | AEY23: 0.1016 | AEZ23: 0.1016 | AFA23: 0.1016 | AFB23: 0.1016 | AFC23: 0.1016 | AFD23: 0.1016 | AFE23: 0.1016 | AFF23: 0.1016 | AFG23: 0.1016 | AFH23: =$E$12 -> 0.1016 | AFI23: 0.1016 | AFJ23: 0.1016 | AFK23: 0.1016 | AFL23: 0.1016 | AFM23: 0.1016 | AFN23: 0.1016 | AFO23: 0.1016 | AFP23: 0.1016 | AFQ23: 0.1016 | AFR23: 0.1016 | AFS23: 0.1016 | AFT23: 0.1016 | AFU23: 0.1016 | AFV23: 0.1016 | AFW23: 0.1016 | AFX23: 0.1016 | AFY23: 0.1016 | AFZ23: 0.1016 | AGA23: 0.1016 | AGB23: 0.1016 | AGC23: 0.1016 | AGD23: 0.1016 | AGE23: 0.1016 | AGF23: 0.1016 | AGG23: 0.1016 | AGH23: 0.1016 | AGI23: 0.1016 | AGJ23: 0.1016 | AGK23: 0.1016 | AGL23: 0.1016 | AGM23: 0.1016 | AGN23: 0.1016 | AGO23: 0.1016 | AGP23: 0.1016 | AGQ23: 0.1016 | AGR23: 0.1016 | AGS23: 0.1016 | AGT23: 0.1016 | AGU23: 0.1016 | AGV23: 0.1016 | AGW23: 0.1016 | AGX23: 0.1016 | AGY23: 0.1016 | AGZ23: 0.1016 | AHA23: 0.1016 | AHB23: 0.1016 | AHC23: 0.1016 | AHD23: 0.1016 | AHE23: 0.1016 | AHF23: 0.1016 | AHG23: 0.1016 | AHH23: 0.1016 | AHI23: 0.1016 | AHJ23: 0.1016 | AHK23: 0.1016 | AHL23: 0.1016 | AHM23: 0.1016 | AHN23: 0.1016 | AHO23: 0.1016 | AHP23: 0.1016 | AHQ23: 0.1016 | AHR23: 0.1016 | AHS23: 0.1016 | AHT23: =$E$12 -> 0.1016 | AHU23: 0.1016 | AHV23: 0.1016 | AHW23: 0.1016 | AHX23: 0.1016 | AHY23: 0.1016 | AHZ23: 0.1016 | AIA23: 0.1016 | AIB23: 0.1016 | AIC23: 0.1016 | AID23: 0.1016 | AIE23: 0.1016 | AIF23: 0.1016 | AIG23: 0.1016 | AIH23: 0.1016 | AII23: 0.1016 | AIJ23: 0.1016 | AIK23: 0.1016 | AIL23: 0.1016 | AIM23: 0.1016 | AIN23: 0.1016 | AIO23: 0.1016 | AIP23: 0.1016 | AIQ23: 0.1016 | AIR23: 0.1016 | AIS23: 0.1016 | AIT23: 0.1016 | AIU23: 0.1016 | AIV23: 0.1016 | AIW23: 0.1016 | AIX23: 0.1016 | AIY23: 0.1016 | AIZ23: 0.1016 | AJA23: 0.1016 | AJB23: 0.1016 | AJC23: 0.1016 | AJD23: 0.1016 | AJE23: 0.1016 | AJF23: 0.1016 | AJG23: 0.1016 | AJH23: 0.1016 | AJI23: 0.1016 | AJJ23: 0.1016 | AJK23: 0.1016 | AJL23: 0.1016 | AJM23: 0.1016 | AJN23: 0.1016 | AJO23: 0.1016 | AJP23: 0.1016 | AJQ23: 0.1016 | AJR23: 0.1016 | AJS23: 0.1016 | AJT23: 0.1016 | AJU23: 0.1016 | AJV23: 0.1016 | AJW23: 0.1016 | AJX23: 0.1016 | AJY23: 0.1016 | AJZ23: 0.1016 | AKA23: 0.1016 | AKB23: 0.1016 | AKC23: 0.1016 | AKD23: 0.1016 | AKE23: 0.1016 | AKF23: =$E$12 -> 0.1016 | AKG23: 0.1016 | AKH23: 0.1016 | AKI23: 0.1016 | AKJ23: 0.1016 | AKK23: 0.1016 | AKL23: 0.1016 | AKM23: 0.1016 | AKN23: 0.1016 | AKO23: 0.1016 | AKP23: 0.1016 | AKQ23: 0.1016 | AKR23: 0.1016 | AKS23: 0.1016 | AKT23: 0.1016 | AKU23: 0.1016 | AKV23: 0.1016 | AKW23: 0.1016 | AKX23: 0.1016 | AKY23: 0.1016 | AKZ23: 0.1016 | ALA23: 0.1016 | ALB23: 0.1016 | ALC23: 0.1016 | ALD23: 0.1016 | ALE23: 0.1016 | ALF23: 0.1016 | ALG23: 0.1016 | ALH23: 0.1016 | ALI23: 0.1016 | ALJ23: 0.1016 | ALK23: 0.1016 | ALL23: 0.1016 | ALM23: 0.1016 | ALN23: 0.1016 | ALO23: 0.1016 | ALP23: 0.1016 | ALQ23: 0.1016 | ALR23: 0.1016
B24: Payout Ratio | G24: =$E$15 -> 0.7027559055 | H24: =$E$15 -> 0.7027559055 | I24: 0.7027559055 | J24: 0.7027559055 | K24: 0.7027559055 | L24: 0.7027559055 | M24: 0.7027559055 | N24: 0.7027559055 | O24: 0.7027559055 | P24: 0.7027559055 | Q24: 0.7027559055 | R24: 0.7027559055 | S24: 0.7027559055 | T24: 0.7027559055 | U24: 0.7027559055 | V24: 0.7027559055 | W24: 0.7027559055 | X24: 0.7027559055 | Y24: 0.7027559055 | Z24: 0.7027559055 | AA24: 0.7027559055 | AB24: 0.7027559055 | AC24: 0.7027559055 | AD24: 0.7027559055 | AE24: 0.7027559055 | AF24: 0.7027559055 | AG24: 0.7027559055 | AH24: 0.7027559055 | AI24: 0.7027559055 | AJ24: 0.7027559055 | AK24: 0.7027559055 | AL24: 0.7027559055 | AM24: 0.7027559055 | AN24: 0.7027559055 | AO24: 0.7027559055 | AP24: 0.7027559055 | AQ24: 0.7027559055 | AR24: 0.7027559055 | AS24: 0.7027559055 | AT24: 0.7027559055 | AU24: 0.7027559055 | AV24: 0.7027559055 | AW24: 0.7027559055 | AX24: 0.7027559055 | AY24: 0.7027559055 | AZ24: 0.7027559055 | BA24: 0.7027559055 | BB24: 0.7027559055 | BC24: 0.7027559055 | BD24: 0.7027559055 | BE24: 0.7027559055 | BF24: 0.7027559055 | BG24: 0.7027559055 | BH24: 0.7027559055 | BI24: 0.7027559055 | BJ24: 0.7027559055 | BK24: 0.7027559055 | BL24: 0.7027559055 | BM24: 0.7027559055 | BN24: 0.7027559055 | BO24: 0.7027559055 | BP24: 0.7027559055 | BQ24: 0.7027559055 | BR24: 0.7027559055 | BS24: 0.7027559055 | BT24: =$E$15 -> 0.7027559055 | BU24: 0.7027559055 | BV24: 0.7027559055 | BW24: 0.7027559055 | BX24: 0.7027559055 | BY24: 0.7027559055 | BZ24: 0.7027559055 | CA24: 0.7027559055 | CB24: 0.7027559055 | CC24: 0.7027559055 | CD24: 0.7027559055 | CE24: 0.7027559055 | CF24: 0.7027559055 | CG24: 0.7027559055 | CH24: 0.7027559055 | CI24: 0.7027559055 | CJ24: 0.7027559055 | CK24: 0.7027559055 | CL24: 0.7027559055 | CM24: 0.7027559055 | CN24: 0.7027559055 | CO24: 0.7027559055 | CP24: 0.7027559055 | CQ24: 0.7027559055 | CR24: 0.7027559055 | CS24: 0.7027559055 | CT24: 0.7027559055 | CU24: 0.7027559055 | CV24: 0.7027559055 | CW24: 0.7027559055 | CX24: 0.7027559055 | CY24: 0.7027559055 | CZ24: 0.7027559055 | DA24: 0.7027559055 | DB24: 0.7027559055 | DC24: 0.7027559055 | DD24: 0.7027559055 | DE24: 0.7027559055 | DF24: 0.7027559055 | DG24: 0.7027559055 | DH24: 0.7027559055 | DI24: 0.7027559055 | DJ24: 0.7027559055 | DK24: 0.7027559055 | DL24: 0.7027559055 | DM24: 0.7027559055 | DN24: 0.7027559055 | DO24: 0.7027559055 | DP24: 0.7027559055 | DQ24: 0.7027559055 | DR24: 0.7027559055 | DS24: 0.7027559055 | DT24: 0.7027559055 | DU24: 0.7027559055 | DV24: 0.7027559055 | DW24: 0.7027559055 | DX24: 0.7027559055 | DY24: 0.7027559055 | DZ24: 0.7027559055 | EA24: 0.7027559055 | EB24: 0.7027559055 | EC24: 0.7027559055 | ED24: 0.7027559055 | EE24: 0.7027559055 | EF24: =$E$15 -> 0.7027559055 | EG24: 0.7027559055 | EH24: 0.7027559055 | EI24: 0.7027559055 | EJ24: 0.7027559055 | EK24: 0.7027559055 | EL24: 0.7027559055 | EM24: 0.7027559055 | EN24: 0.7027559055 | EO24: 0.7027559055 | EP24: 0.7027559055 | EQ24: 0.7027559055 | ER24: 0.7027559055 | ES24: 0.7027559055 | ET24: 0.7027559055 | EU24: 0.7027559055 | EV24: 0.7027559055 | EW24: 0.7027559055 | EX24: 0.7027559055 | EY24: 0.7027559055 | EZ24: 0.7027559055 | FA24: 0.7027559055 | FB24: 0.7027559055 | FC24: 0.7027559055 | FD24: 0.7027559055 | FE24: 0.7027559055 | FF24: 0.7027559055 | FG24: 0.7027559055 | FH24: 0.7027559055 | FI24: 0.7027559055 | FJ24: 0.7027559055 | FK24: 0.7027559055 | FL24: 0.7027559055 | FM24: 0.7027559055 | FN24: 0.7027559055 | FO24: 0.7027559055 | FP24: 0.7027559055 | FQ24: 0.7027559055 | FR24: 0.7027559055 | FS24: 0.7027559055 | FT24: 0.7027559055 | FU24: 0.7027559055 | FV24: 0.7027559055 | FW24: 0.7027559055 | FX24: 0.7027559055 | FY24: 0.7027559055 | FZ24: 0.7027559055 | GA24: 0.7027559055 | GB24: 0.7027559055 | GC24: 0.7027559055 | GD24: 0.7027559055 | GE24: 0.7027559055 | GF24: 0.7027559055 | GG24: 0.7027559055 | GH24: 0.7027559055 | GI24: 0.7027559055 | GJ24: 0.7027559055 | GK24: 0.7027559055 | GL24: 0.7027559055 | GM24: 0.7027559055 | GN24: 0.7027559055 | GO24: 0.7027559055 | GP24: 0.7027559055 | GQ24: 0.7027559055 | GR24: =$E$15 -> 0.7027559055 | GS24: 0.7027559055 | GT24: 0.7027559055 | GU24: 0.7027559055 | GV24: 0.7027559055 | GW24: 0.7027559055 | GX24: 0.7027559055 | GY24: 0.7027559055 | GZ24: 0.7027559055 | HA24: 0.7027559055 | HB24: 0.7027559055 | HC24: 0.7027559055 | HD24: 0.7027559055 | HE24: 0.7027559055 | HF24: 0.7027559055 | HG24: 0.7027559055 | HH24: 0.7027559055 | HI24: 0.7027559055 | HJ24: 0.7027559055 | HK24: 0.7027559055 | HL24: 0.7027559055 | HM24: 0.7027559055 | HN24: 0.7027559055 | HO24: 0.7027559055 | HP24: 0.7027559055 | HQ24: 0.7027559055 | HR24: 0.7027559055 | HS24: 0.7027559055 | HT24: 0.7027559055 | HU24: 0.7027559055 | HV24: 0.7027559055 | HW24: 0.7027559055 | HX24: 0.7027559055 | HY24: 0.7027559055 | HZ24: 0.7027559055 | IA24: 0.7027559055 | IB24: 0.7027559055 | IC24: 0.7027559055 | ID24: 0.7027559055 | IE24: 0.7027559055 | IF24: 0.7027559055 | IG24: 0.7027559055 | IH24: 0.7027559055 | II24: 0.7027559055 | IJ24: 0.7027559055 | IK24: 0.7027559055 | IL24: 0.7027559055 | IM24: 0.7027559055 | IN24: 0.7027559055 | IO24: 0.7027559055 | IP24: 0.7027559055 | IQ24: 0.7027559055 | IR24: 0.7027559055 | IS24: 0.7027559055 | IT24: 0.7027559055 | IU24: 0.7027559055 | IV24: 0.7027559055 | IW24: 0.7027559055 | IX24: 0.7027559055 | IY24: 0.7027559055 | IZ24: 0.7027559055 | JA24: 0.7027559055 | JB24: 0.7027559055 | JC24: 0.7027559055 | JD24: =$E$15 -> 0.7027559055 | JE24: 0.7027559055 | JF24: 0.7027559055 | JG24: 0.7027559055 | JH24: 0.7027559055 | JI24: 0.7027559055 | JJ24: 0.7027559055 | JK24: 0.7027559055 | JL24: 0.7027559055 | JM24: 0.7027559055 | JN24: 0.7027559055 | JO24: 0.7027559055 | JP24: 0.7027559055 | JQ24: 0.7027559055 | JR24: 0.7027559055 | JS24: 0.7027559055 | JT24: 0.7027559055 | JU24: 0.7027559055 | JV24: 0.7027559055 | JW24: 0.7027559055 | JX24: 0.7027559055 | JY24: 0.7027559055 | JZ24: 0.7027559055 | KA24: 0.7027559055 | KB24: 0.7027559055 | KC24: 0.7027559055 | KD24: 0.7027559055 | KE24: 0.7027559055 | KF24: 0.7027559055 | KG24: 0.7027559055 | KH24: 0.7027559055 | KI24: 0.7027559055 | KJ24: 0.7027559055 | KK24: 0.7027559055 | KL24: 0.7027559055 | KM24: 0.7027559055 | KN24: 0.7027559055 | KO24: 0.7027559055 | KP24: 0.7027559055 | KQ24: 0.7027559055 | KR24: 0.7027559055 | KS24: 0.7027559055 | KT24: 0.7027559055 | KU24: 0.7027559055 | KV24: 0.7027559055 | KW24: 0.7027559055 | KX24: 0.7027559055 | KY24: 0.7027559055 | KZ24: 0.7027559055 | LA24: 0.7027559055 | LB24: 0.7027559055 | LC24: 0.7027559055 | LD24: 0.7027559055 | LE24: 0.7027559055 | LF24: 0.7027559055 | LG24: 0.7027559055 | LH24: 0.7027559055 | LI24: 0.7027559055 | LJ24: 0.7027559055 | LK24: 0.7027559055 | LL24: 0.7027559055 | LM24: 0.7027559055 | LN24: 0.7027559055 | LO24: 0.7027559055 | LP24: =$E$15 -> 0.7027559055 | LQ24: 0.7027559055 | LR24: 0.7027559055 | LS24: 0.7027559055 | LT24: 0.7027559055 | LU24: 0.7027559055 | LV24: 0.7027559055 | LW24: 0.7027559055 | LX24: 0.7027559055 | LY24: 0.7027559055 | LZ24: 0.7027559055 | MA24: 0.7027559055 | MB24: 0.7027559055 | MC24: 0.7027559055 | MD24: 0.7027559055 | ME24: 0.7027559055 | MF24: 0.7027559055 | MG24: 0.7027559055 | MH24: 0.7027559055 | MI24: 0.7027559055 | MJ24: 0.7027559055 | MK24: 0.7027559055 | ML24: 0.7027559055 | MM24: 0.7027559055 | MN24: 0.7027559055 | MO24: 0.7027559055 | MP24: 0.7027559055 | MQ24: 0.7027559055 | MR24: 0.7027559055 | MS24: 0.7027559055 | MT24: 0.7027559055 | MU24: 0.7027559055 | MV24: 0.7027559055 | MW24: 0.7027559055 | MX24: 0.7027559055 | MY24: 0.7027559055 | MZ24: 0.7027559055 | NA24: 0.7027559055 | NB24: 0.7027559055 | NC24: 0.7027559055 | ND24: 0.7027559055 | NE24: 0.7027559055 | NF24: 0.7027559055 | NG24: 0.7027559055 | NH24: 0.7027559055 | NI24: 0.7027559055 | NJ24: 0.7027559055 | NK24: 0.7027559055 | NL24: 0.7027559055 | NM24: 0.7027559055 | NN24: 0.7027559055 | NO24: 0.7027559055 | NP24: 0.7027559055 | NQ24: 0.7027559055 | NR24: 0.7027559055 | NS24: 0.7027559055 | NT24: 0.7027559055 | NU24: 0.7027559055 | NV24: 0.7027559055 | NW24: 0.7027559055 | NX24: 0.7027559055 | NY24: 0.7027559055 | NZ24: 0.7027559055 | OA24: 0.7027559055 | OB24: =$E$15 -> 0.7027559055 | OC24: 0.7027559055 | OD24: 0.7027559055 | OE24: 0.7027559055 | OF24: 0.7027559055 | OG24: 0.7027559055 | OH24: 0.7027559055 | OI24: 0.7027559055 | OJ24: 0.7027559055 | OK24: 0.7027559055 | OL24: 0.7027559055 | OM24: 0.7027559055 | ON24: 0.7027559055 | OO24: 0.7027559055 | OP24: 0.7027559055 | OQ24: 0.7027559055 | OR24: 0.7027559055 | OS24: 0.7027559055 | OT24: 0.7027559055 | OU24: 0.7027559055 | OV24: 0.7027559055 | OW24: 0.7027559055 | OX24: 0.7027559055 | OY24: 0.7027559055 | OZ24: 0.7027559055 | PA24: 0.7027559055 | PB24: 0.7027559055 | PC24: 0.7027559055 | PD24: 0.7027559055 | PE24: 0.7027559055 | PF24: 0.7027559055 | PG24: 0.7027559055 | PH24: 0.7027559055 | PI24: 0.7027559055 | PJ24: 0.7027559055 | PK24: 0.7027559055 | PL24: 0.7027559055 | PM24: 0.7027559055 | PN24: 0.7027559055 | PO24: 0.7027559055 | PP24: 0.7027559055 | PQ24: 0.7027559055 | PR24: 0.7027559055 | PS24: 0.7027559055 | PT24: 0.7027559055 | PU24: 0.7027559055 | PV24: 0.7027559055 | PW24: 0.7027559055 | PX24: 0.7027559055 | PY24: 0.7027559055 | PZ24: 0.7027559055 | QA24: 0.7027559055 | QB24: 0.7027559055 | QC24: 0.7027559055 | QD24: 0.7027559055 | QE24: 0.7027559055 | QF24: 0.7027559055 | QG24: 0.7027559055 | QH24: 0.7027559055 | QI24: 0.7027559055 | QJ24: 0.7027559055 | QK24: 0.7027559055 | QL24: 0.7027559055 | QM24: 0.7027559055 | QN24: =$E$15 -> 0.7027559055 | QO24: 0.7027559055 | QP24: 0.7027559055 | QQ24: 0.7027559055 | QR24: 0.7027559055 | QS24: 0.7027559055 | QT24: 0.7027559055 | QU24: 0.7027559055 | QV24: 0.7027559055 | QW24: 0.7027559055 | QX24: 0.7027559055 | QY24: 0.7027559055 | QZ24: 0.7027559055 | RA24: 0.7027559055 | RB24: 0.7027559055 | RC24: 0.7027559055 | RD24: 0.7027559055 | RE24: 0.7027559055 | RF24: 0.7027559055 | RG24: 0.7027559055 | RH24: 0.7027559055 | RI24: 0.7027559055 | RJ24: 0.7027559055 | RK24: 0.7027559055 | RL24: 0.7027559055 | RM24: 0.7027559055 | RN24: 0.7027559055 | RO24: 0.7027559055 | RP24: 0.7027559055 | RQ24: 0.7027559055 | RR24: 0.7027559055 | RS24: 0.7027559055 | RT24: 0.7027559055 | RU24: 0.7027559055 | RV24: 0.7027559055 | RW24: 0.7027559055 | RX24: 0.7027559055 | RY24: 0.7027559055 | RZ24: 0.7027559055 | SA24: 0.7027559055 | SB24: 0.7027559055 | SC24: 0.7027559055 | SD24: 0.7027559055 | SE24: 0.7027559055 | SF24: 0.7027559055 | SG24: 0.7027559055 | SH24: 0.7027559055 | SI24: 0.7027559055 | SJ24: 0.7027559055 | SK24: 0.7027559055 | SL24: 0.7027559055 | SM24: 0.7027559055 | SN24: 0.7027559055 | SO24: 0.7027559055 | SP24: 0.7027559055 | SQ24: 0.7027559055 | SR24: 0.7027559055 | SS24: 0.7027559055 | ST24: 0.7027559055 | SU24: 0.7027559055 | SV24: 0.7027559055 | SW24: 0.7027559055 | SX24: 0.7027559055 | SY24: 0.7027559055 | SZ24: =$E$15 -> 0.7027559055 | TA24: 0.7027559055 | TB24: 0.7027559055 | TC24: 0.7027559055 | TD24: 0.7027559055 | TE24: 0.7027559055 | TF24: 0.7027559055 | TG24: 0.7027559055 | TH24: 0.7027559055 | TI24: 0.7027559055 | TJ24: 0.7027559055 | TK24: 0.7027559055 | TL24: 0.7027559055 | TM24: 0.7027559055 | TN24: 0.7027559055 | TO24: 0.7027559055 | TP24: 0.7027559055 | TQ24: 0.7027559055 | TR24: 0.7027559055 | TS24: 0.7027559055 | TT24: 0.7027559055 | TU24: 0.7027559055 | TV24: 0.7027559055 | TW24: 0.7027559055 | TX24: 0.7027559055 | TY24: 0.7027559055 | TZ24: 0.7027559055 | UA24: 0.7027559055 | UB24: 0.7027559055 | UC24: 0.7027559055 | UD24: 0.7027559055 | UE24: 0.7027559055 | UF24: 0.7027559055 | UG24: 0.7027559055 | UH24: 0.7027559055 | UI24: 0.7027559055 | UJ24: 0.7027559055 | UK24: 0.7027559055 | UL24: 0.7027559055 | UM24: 0.7027559055 | UN24: 0.7027559055 | UO24: 0.7027559055 | UP24: 0.7027559055 | UQ24: 0.7027559055 | UR24: 0.7027559055 | US24: 0.7027559055 | UT24: 0.7027559055 | UU24: 0.7027559055 | UV24: 0.7027559055 | UW24: 0.7027559055 | UX24: 0.7027559055 | UY24: 0.7027559055 | UZ24: 0.7027559055 | VA24: 0.7027559055 | VB24: 0.7027559055 | VC24: 0.7027559055 | VD24: 0.7027559055 | VE24: 0.7027559055 | VF24: 0.7027559055 | VG24: 0.7027559055 | VH24: 0.7027559055 | VI24: 0.7027559055 | VJ24: 0.7027559055 | VK24: 0.7027559055 | VL24: =$E$15 -> 0.7027559055 | VM24: 0.7027559055 | VN24: 0.7027559055 | VO24: 0.7027559055 | VP24: 0.7027559055 | VQ24: 0.7027559055 | VR24: 0.7027559055 | VS24: 0.7027559055 | VT24: 0.7027559055 | VU24: 0.7027559055 | VV24: 0.7027559055 | VW24: 0.7027559055 | VX24: 0.7027559055 | VY24: 0.7027559055 | VZ24: 0.7027559055 | WA24: 0.7027559055 | WB24: 0.7027559055 | WC24: 0.7027559055 | WD24: 0.7027559055 | WE24: 0.7027559055 | WF24: 0.7027559055 | WG24: 0.7027559055 | WH24: 0.7027559055 | WI24: 0.7027559055 | WJ24: 0.7027559055 | WK24: 0.7027559055 | WL24: 0.7027559055 | WM24: 0.7027559055 | WN24: 0.7027559055 | WO24: 0.7027559055 | WP24: 0.7027559055 | WQ24: 0.7027559055 | WR24: 0.7027559055 | WS24: 0.7027559055 | WT24: 0.7027559055 | WU24: 0.7027559055 | WV24: 0.7027559055 | WW24: 0.7027559055 | WX24: 0.7027559055 | WY24: 0.7027559055 | WZ24: 0.7027559055 | XA24: 0.7027559055 | XB24: 0.7027559055 | XC24: 0.7027559055 | XD24: 0.7027559055 | XE24: 0.7027559055 | XF24: 0.7027559055 | XG24: 0.7027559055 | XH24: 0.7027559055 | XI24: 0.7027559055 | XJ24: 0.7027559055 | XK24: 0.7027559055 | XL24: 0.7027559055 | XM24: 0.7027559055 | XN24: 0.7027559055 | XO24: 0.7027559055 | XP24: 0.7027559055 | XQ24: 0.7027559055 | XR24: 0.7027559055 | XS24: 0.7027559055 | XT24: 0.7027559055 | XU24: 0.7027559055 | XV24: 0.7027559055 | XW24: 0.7027559055 | XX24: =$E$15 -> 0.7027559055 | XY24: 0.7027559055 | XZ24: 0.7027559055 | YA24: 0.7027559055 | YB24: 0.7027559055 | YC24: 0.7027559055 | YD24: 0.7027559055 | YE24: 0.7027559055 | YF24: 0.7027559055 | YG24: 0.7027559055 | YH24: 0.7027559055 | YI24: 0.7027559055 | YJ24: 0.7027559055 | YK24: 0.7027559055 | YL24: 0.7027559055 | YM24: 0.7027559055 | YN24: 0.7027559055 | YO24: 0.7027559055 | YP24: 0.7027559055 | YQ24: 0.7027559055 | YR24: 0.7027559055 | YS24: 0.7027559055 | YT24: 0.7027559055 | YU24: 0.7027559055 | YV24: 0.7027559055 | YW24: 0.7027559055 | YX24: 0.7027559055 | YY24: 0.7027559055 | YZ24: 0.7027559055 | ZA24: 0.7027559055 | ZB24: 0.7027559055 | ZC24: 0.7027559055 | ZD24: 0.7027559055 | ZE24: 0.7027559055 | ZF24: 0.7027559055 | ZG24: 0.7027559055 | ZH24: 0.7027559055 | ZI24: 0.7027559055 | ZJ24: 0.7027559055 | ZK24: 0.7027559055 | ZL24: 0.7027559055 | ZM24: 0.7027559055 | ZN24: 0.7027559055 | ZO24: 0.7027559055 | ZP24: 0.7027559055 | ZQ24: 0.7027559055 | ZR24: 0.7027559055 | ZS24: 0.7027559055 | ZT24: 0.7027559055 | ZU24: 0.7027559055 | ZV24: 0.7027559055 | ZW24: 0.7027559055 | ZX24: 0.7027559055 | ZY24: 0.7027559055 | ZZ24: 0.7027559055 | AAA24: 0.7027559055 | AAB24: 0.7027559055 | AAC24: 0.7027559055 | AAD24: 0.7027559055 | AAE24: 0.7027559055 | AAF24: 0.7027559055 | AAG24: 0.7027559055 | AAH24: 0.7027559055 | AAI24: 0.7027559055 | AAJ24: =$E$15 -> 0.7027559055 | AAK24: 0.7027559055 | AAL24: 0.7027559055 | AAM24: 0.7027559055 | AAN24: 0.7027559055 | AAO24: 0.7027559055 | AAP24: 0.7027559055 | AAQ24: 0.7027559055 | AAR24: 0.7027559055 | AAS24: 0.7027559055 | AAT24: 0.7027559055 | AAU24: 0.7027559055 | AAV24: 0.7027559055 | AAW24: 0.7027559055 | AAX24: 0.7027559055 | AAY24: 0.7027559055 | AAZ24: 0.7027559055 | ABA24: 0.7027559055 | ABB24: 0.7027559055 | ABC24: 0.7027559055 | ABD24: 0.7027559055 | ABE24: 0.7027559055 | ABF24: 0.7027559055 | ABG24: 0.7027559055 | ABH24: 0.7027559055 | ABI24: 0.7027559055 | ABJ24: 0.7027559055 | ABK24: 0.7027559055 | ABL24: 0.7027559055 | ABM24: 0.7027559055 | ABN24: 0.7027559055 | ABO24: 0.7027559055 | ABP24: 0.7027559055 | ABQ24: 0.7027559055 | ABR24: 0.7027559055 | ABS24: 0.7027559055 | ABT24: 0.7027559055 | ABU24: 0.7027559055 | ABV24: 0.7027559055 | ABW24: 0.7027559055 | ABX24: 0.7027559055 | ABY24: 0.7027559055 | ABZ24: 0.7027559055 | ACA24: 0.7027559055 | ACB24: 0.7027559055 | ACC24: 0.7027559055 | ACD24: 0.7027559055 | ACE24: 0.7027559055 | ACF24: 0.7027559055 | ACG24: 0.7027559055 | ACH24: 0.7027559055 | ACI24: 0.7027559055 | ACJ24: 0.7027559055 | ACK24: 0.7027559055 | ACL24: 0.7027559055 | ACM24: 0.7027559055 | ACN24: 0.7027559055 | ACO24: 0.7027559055 | ACP24: 0.7027559055 | ACQ24: 0.7027559055 | ACR24: 0.7027559055 | ACS24: 0.7027559055 | ACT24: 0.7027559055 | ACU24: 0.7027559055 | ACV24: =$E$15 -> 0.7027559055 | ACW24: 0.7027559055 | ACX24: 0.7027559055 | ACY24: 0.7027559055 | ACZ24: 0.7027559055 | ADA24: 0.7027559055 | ADB24: 0.7027559055 | ADC24: 0.7027559055 | ADD24: 0.7027559055 | ADE24: 0.7027559055 | ADF24: 0.7027559055 | ADG24: 0.7027559055 | ADH24: 0.7027559055 | ADI24: 0.7027559055 | ADJ24: 0.7027559055 | ADK24: 0.7027559055 | ADL24: 0.7027559055 | ADM24: 0.7027559055 | ADN24: 0.7027559055 | ADO24: 0.7027559055 | ADP24: 0.7027559055 | ADQ24: 0.7027559055 | ADR24: 0.7027559055 | ADS24: 0.7027559055 | ADT24: 0.7027559055 | ADU24: 0.7027559055 | ADV24: 0.7027559055 | ADW24: 0.7027559055 | ADX24: 0.7027559055 | ADY24: 0.7027559055 | ADZ24: 0.7027559055 | AEA24: 0.7027559055 | AEB24: 0.7027559055 | AEC24: 0.7027559055 | AED24: 0.7027559055 | AEE24: 0.7027559055 | AEF24: 0.7027559055 | AEG24: 0.7027559055 | AEH24: 0.7027559055 | AEI24: 0.7027559055 | AEJ24: 0.7027559055 | AEK24: 0.7027559055 | AEL24: 0.7027559055 | AEM24: 0.7027559055 | AEN24: 0.7027559055 | AEO24: 0.7027559055 | AEP24: 0.7027559055 | AEQ24: 0.7027559055 | AER24: 0.7027559055 | AES24: 0.7027559055 | AET24: 0.7027559055 | AEU24: 0.7027559055 | AEV24: 0.7027559055 | AEW24: 0.7027559055 | AEX24: 0.7027559055 | AEY24: 0.7027559055 | AEZ24: 0.7027559055 | AFA24: 0.7027559055 | AFB24: 0.7027559055 | AFC24: 0.7027559055 | AFD24: 0.7027559055 | AFE24: 0.7027559055 | AFF24: 0.7027559055 | AFG24: 0.7027559055 | AFH24: =$E$15 -> 0.7027559055 | AFI24: 0.7027559055 | AFJ24: 0.7027559055 | AFK24: 0.7027559055 | AFL24: 0.7027559055 | AFM24: 0.7027559055 | AFN24: 0.7027559055 | AFO24: 0.7027559055 | AFP24: 0.7027559055 | AFQ24: 0.7027559055 | AFR24: 0.7027559055 | AFS24: 0.7027559055 | AFT24: 0.7027559055 | AFU24: 0.7027559055 | AFV24: 0.7027559055 | AFW24: 0.7027559055 | AFX24: 0.7027559055 | AFY24: 0.7027559055 | AFZ24: 0.7027559055 | AGA24: 0.7027559055 | AGB24: 0.7027559055 | AGC24: 0.7027559055 | AGD24: 0.7027559055 | AGE24: 0.7027559055 | AGF24: 0.7027559055 | AGG24: 0.7027559055 | AGH24: 0.7027559055 | AGI24: 0.7027559055 | AGJ24: 0.7027559055 | AGK24: 0.7027559055 | AGL24: 0.7027559055 | AGM24: 0.7027559055 | AGN24: 0.7027559055 | AGO24: 0.7027559055 | AGP24: 0.7027559055 | AGQ24: 0.7027559055 | AGR24: 0.7027559055 | AGS24: 0.7027559055 | AGT24: 0.7027559055 | AGU24: 0.7027559055 | AGV24: 0.7027559055 | AGW24: 0.7027559055 | AGX24: 0.7027559055 | AGY24: 0.7027559055 | AGZ24: 0.7027559055 | AHA24: 0.7027559055 | AHB24: 0.7027559055 | AHC24: 0.7027559055 | AHD24: 0.7027559055 | AHE24: 0.7027559055 | AHF24: 0.7027559055 | AHG24: 0.7027559055 | AHH24: 0.7027559055 | AHI24: 0.7027559055 | AHJ24: 0.7027559055 | AHK24: 0.7027559055 | AHL24: 0.7027559055 | AHM24: 0.7027559055 | AHN24: 0.7027559055 | AHO24: 0.7027559055 | AHP24: 0.7027559055 | AHQ24: 0.7027559055 | AHR24: 0.7027559055 | AHS24: 0.7027559055 | AHT24: =$E$15 -> 0.7027559055 | AHU24: 0.7027559055 | AHV24: 0.7027559055 | AHW24: 0.7027559055 | AHX24: 0.7027559055 | AHY24: 0.7027559055 | AHZ24: 0.7027559055 | AIA24: 0.7027559055 | AIB24: 0.7027559055 | AIC24: 0.7027559055 | AID24: 0.7027559055 | AIE24: 0.7027559055 | AIF24: 0.7027559055 | AIG24: 0.7027559055 | AIH24: 0.7027559055 | AII24: 0.7027559055 | AIJ24: 0.7027559055 | AIK24: 0.7027559055 | AIL24: 0.7027559055 | AIM24: 0.7027559055 | AIN24: 0.7027559055 | AIO24: 0.7027559055 | AIP24: 0.7027559055 | AIQ24: 0.7027559055 | AIR24: 0.7027559055 | AIS24: 0.7027559055 | AIT24: 0.7027559055 | AIU24: 0.7027559055 | AIV24: 0.7027559055 | AIW24: 0.7027559055 | AIX24: 0.7027559055 | AIY24: 0.7027559055 | AIZ24: 0.7027559055 | AJA24: 0.7027559055 | AJB24: 0.7027559055 | AJC24: 0.7027559055 | AJD24: 0.7027559055 | AJE24: 0.7027559055 | AJF24: 0.7027559055 | AJG24: 0.7027559055 | AJH24: 0.7027559055 | AJI24: 0.7027559055 | AJJ24: 0.7027559055 | AJK24: 0.7027559055 | AJL24: 0.7027559055 | AJM24: 0.7027559055 | AJN24: 0.7027559055 | AJO24: 0.7027559055 | AJP24: 0.7027559055 | AJQ24: 0.7027559055 | AJR24: 0.7027559055 | AJS24: 0.7027559055 | AJT24: 0.7027559055 | AJU24: 0.7027559055 | AJV24: 0.7027559055 | AJW24: 0.7027559055 | AJX24: 0.7027559055 | AJY24: 0.7027559055 | AJZ24: 0.7027559055 | AKA24: 0.7027559055 | AKB24: 0.7027559055 | AKC24: 0.7027559055 | AKD24: 0.7027559055 | AKE24: 0.7027559055 | AKF24: =$E$15 -> 0.7027559055 | AKG24: 0.7027559055 | AKH24: 0.7027559055 | AKI24: 0.7027559055 | AKJ24: 0.7027559055 | AKK24: 0.7027559055 | AKL24: 0.7027559055 | AKM24: 0.7027559055 | AKN24: 0.7027559055 | AKO24: 0.7027559055 | AKP24: 0.7027559055 | AKQ24: 0.7027559055 | AKR24: 0.7027559055 | AKS24: 0.7027559055 | AKT24: 0.7027559055 | AKU24: 0.7027559055 | AKV24: 0.7027559055 | AKW24: 0.7027559055 | AKX24: 0.7027559055 | AKY24: 0.7027559055 | AKZ24: 0.7027559055 | ALA24: 0.7027559055 | ALB24: 0.7027559055 | ALC24: 0.7027559055 | ALD24: 0.7027559055 | ALE24: 0.7027559055 | ALF24: 0.7027559055 | ALG24: 0.7027559055 | ALH24: 0.7027559055 | ALI24: 0.7027559055 | ALJ24: 0.7027559055 | ALK24: 0.7027559055 | ALL24: 0.7027559055 | ALM24: 0.7027559055 | ALN24: 0.7027559055 | ALO24: 0.7027559055 | ALP24: 0.7027559055 | ALQ24: 0.7027559055 | ALR24: 0.7027559055
B26: Investment Balance
C27: Opening Balance | G27: =F30 -> 28 | H27: =G30 -> 28.8456 | I27: 29.71673712 | J27: 30.61418258 | K27: 31.53873089 | L27: 32.49120057 | M27: 33.47243483 | N27: 34.48330236 | O27: 35.52469809 | P27: 36.59754397 | Q27: 37.7027898 | R27: 38.84141405 | S27: 40.01442475 | T27: 41.22286038 | U27: 42.46779077 | V27: 43.75031805 | W27: 45.07157765 | X27: 46.4327393 | Y27: 47.83500802 | Z27: 49.27962527 | AA27: 50.76786995 | AB27: 52.30105962 | AC27: 53.88055162 | AD27: 55.50774428 | AE27: 57.18407816 | AF27: 58.91103732 | AG27: 60.69015065 | AH27: 62.5229932 | AI27: 64.41118759 | AJ27: 66.35640545 | AK27: 68.3603689 | AL27: 70.42485204 | AM27: 72.55168257 | AN27: 74.74274339 | AO27: 76.99997424 | AP27: 79.32537346 | AQ27: 81.72099974 | AR27: 84.18897393 | AS27: 86.73148094 | AT27: 89.35077167 | AU27: 92.04916497 | AV27: 94.82904975 | AW27: 97.69288705 | AX27: 100.6432122 | AY27: 103.6826373 | AZ27: 106.8138529 | BA27: 110.0396313 | BB27: 113.3628281 | BC27: 116.7863855 | BD27: 120.3133344 | BE27: 123.9467971 | BF27: 127.6899903 | BG27: 131.546228 | BH27: 135.5189241 | BI27: 139.6115956 | BJ27: 143.8278658 | BK27: 148.1714674 | BL27: 152.6462457 | BM27: 157.2561623 | BN27: 162.0052984 | BO27: 166.8978584 | BP27: 171.9381738 | BQ27: 177.1307066 | BR27: 182.4800539 | BS27: 187.9909516 | BT27: =BS30 -> 193.6682783 | BU27: 199.5170603 | BV27: 205.5424755 | BW27: 211.7498583 | BX27: 218.144704 | BY27: 224.7326741 | BZ27: 231.5196008 | CA27: 238.5114928 | CB27: 245.7145399 | CC27: 253.135119 | CD27: 260.7797996 | CE27: 268.6553495 | CF27: 276.7687411 | CG27: 285.127157 | CH27: 293.7379972 | CI27: 302.6088847 | CJ27: 311.747673 | CK27: 321.1624527 | CL27: 330.8615588 | CM27: 340.8535779 | CN27: 351.1473559 | CO27: 361.7520061 | CP27: 372.6769167 | CQ27: 383.9317596 | CR27: 395.5264987 | CS27: 407.471399 | CT27: 419.7770352 | CU27: 432.4543017 | CV27: 445.5144216 | CW27: 458.9689571 | CX27: 472.8298196 | CY27: 487.1092802 | CZ27: 501.8199804 | DA27: 516.9749438 | DB27: 532.5875871 | DC27: 548.6717323 | DD27: 565.2416186 | DE27: 582.3119155 | DF27: 599.8977353 | DG27: 618.0146469 | DH27: 636.6786893 | DI27: 655.9063857 | DJ27: 675.7147585 | DK27: 696.1213442 | DL27: 717.1442088 | DM27: 738.8019639 | DN27: 761.1137832 | DO27: 784.0994195 | DP27: 807.779222 | DQ27: 832.1741545 | DR27: 857.3058139 | DS27: 883.1964495 | DT27: 909.8689823 | DU27: 937.3470256 | DV27: 965.6549057 | DW27: 994.8176839 | DX27: 1024.861178 | DY27: 1055.811986 | DZ27: 1087.697507 | EA27: 1120.545972 | EB27: 1154.386461 | EC27: 1189.248932 | ED27: 1225.164249 | EE27: 1262.16421 | EF27: =EE30 -> 1300.281569 | EG27: 1339.550072 | EH27: 1380.004484 | EI27: 1421.68062 | EJ27: 1464.615375 | EK27: 1508.846759 | EL27: 1554.413931 | EM27: 1601.357232 | EN27: 1649.71822 | EO27: 1699.53971 | EP27: 1750.86581 | EQ27: 1803.741957 | ER27: 1858.214964 | ES27: 1914.333056 | ET27: 1972.145914 | EU27: 2031.704721 | EV27: 2093.062204 | EW27: 2156.272682 | EX27: 2221.392117 | EY27: 2288.478159 | EZ27: 2357.590199 | FA27: 2428.789424 | FB27: 2502.138864 | FC27: 2577.703458 | FD27: 2655.550102 | FE27: 2735.747715 | FF27: 2818.367296 | FG27: 2903.481989 | FH27: 2991.167145 | FI27: 3081.500392 | FJ27: 3174.561704 | FK27: 3270.433468 | FL27: 3369.200559 | FM27: 3470.950415 | FN27: 3575.773118 | FO27: 3683.761466 | FP27: 3795.011062 | FQ27: 3909.620396 | FR27: 4027.690932 | FS27: 4149.327199 | FT27: 4274.63688 | FU27: 4403.730914 | FV27: 4536.723587 | FW27: 4673.73264 | FX27: 4814.879365 | FY27: 4960.288722 | FZ27: 5110.089442 | GA27: 5264.414143 | GB27: 5423.39945 | GC27: 5587.186113 | GD27: 5755.919134 | GE27: 5929.747892 | GF27: 6108.826278 | GG27: 6293.312832 | GH27: 6483.370879 | GI27: 6679.16868 | GJ27: 6880.879574 | GK27: 7088.682137 | GL27: 7302.760338 | GM27: 7523.3037 | GN27: 7750.507472 | GO27: 7984.572797 | GP27: 8225.706896 | GQ27: 8474.123244 | GR27: =GQ30 -> 8730.041766 | GS27: 8993.689027 | GT27: 9265.298436 | GU27: 9545.110449 | GV27: 9833.372784 | GW27: 10130.34064 | GX27: 10436.27693 | GY27: 10751.45249 | GZ27: 11076.14636 | HA27: 11410.64598 | HB27: 11755.24749 | HC27: 12110.25596 | HD27: 12475.98569 | HE27: 12852.76046 | HF27: 13240.91382 | HG27: 13640.78942 | HH27: 14052.74126 | HI27: 14477.13405 | HJ27: 14914.3435 | HK27: 15364.75667 | HL27: 15828.77232 | HM27: 16306.80125 | HN27: 16799.26664 | HO27: 17306.6045 | HP27: 17829.26395 | HQ27: 18367.70772 | HR27: 18922.4125 | HS27: 19493.86935 | HT27: 20082.58421 | HU27: 20689.07825 | HV27: 21313.88842 | HW27: 21957.56785 | HX27: 22620.68639 | HY27: 23303.83112 | HZ27: 24007.60682 | IA27: 24732.63655 | IB27: 25479.56217 | IC27: 26249.04495 | ID27: 27041.76611 | IE27: 27858.42744 | IF27: 28699.75195 | IG27: 29566.48446 | IH27: 30459.39229 | II27: 31379.26594 | IJ27: 32326.91977 | IK27: 33303.19275 | IL27: 34308.94917 | IM27: 35345.07943 | IN27: 36412.50083 | IO27: 37512.15836 | IP27: 38645.02554 | IQ27: 39812.10531 | IR27: 41014.43089 | IS27: 42253.06671 | IT27: 43529.10932 | IU27: 44843.68842 | IV27: 46197.96781 | IW27: 47593.14644 | IX27: 49030.45946 | IY27: 50511.17934 | IZ27: 52036.61695 | JA27: 53608.12279 | JB27: 55227.0881 | JC27: 56894.94616 | JD27: =JC30 -> 58613.17353 | JE27: 60383.29137 | JF27: 62206.86677 | JG27: 64085.51415 | JH27: 66020.89667 | JI27: 68014.72775 | JJ27: 70068.77253 | JK27: 72184.84946 | JL27: 74364.83191 | JM27: 76610.64984 | JN27: 78924.29146 | JO27: 81307.80507 | JP27: 83763.30078 | JQ27: 86292.95246 | JR27: 88898.99963 | JS27: 91583.74942 | JT27: 94349.57865 | JU27: 97198.93592 | JV27: 100134.3438 | JW27: 103158.401 | JX27: 106273.7847 | JY27: 109483.253 | JZ27: 112789.6472 | KA27: 116195.8946 | KB27: 119705.0106 | KC27: 123320.1019 | KD27: 127044.369 | KE27: 130881.1089 | KF27: 134833.7184 | KG27: 138905.6967 | KH27: 143100.6487 | KI27: 147422.2883 | KJ27: 151874.4414 | KK27: 156461.0496 | KL27: 161186.1733 | KM27: 166053.9957 | KN27: 171068.8264 | KO27: 176235.1049 | KP27: 181557.4051 | KQ27: 187040.4387 | KR27: 192689.06 | KS27: 198508.2696 | KT27: 204503.2193 | KU27: 210679.2166 | KV27: 217041.7289 | KW27: 223596.3891 | KX27: 230349.0001 | KY27: 237305.5399 | KZ27: 244472.1672 | LA27: 251855.2266 | LB27: 259461.2545 | LC27: 267296.9844 | LD27: 275369.3533 | LE27: 283685.5077 | LF27: 292252.8101 | LG27: 301078.8449 | LH27: 310171.4261 | LI27: 319538.6031 | LJ27: 329188.6689 | LK27: 339130.1667 | LL27: 349371.8978 | LM27: 359922.9291 | LN27: 370792.6016 | LO27: 381990.5381 | LP27: =LO30 -> 393526.6524 | LQ27: 405411.1573 | LR27: 417654.5742 | LS27: 430267.7424 | LT27: 443261.8282 | LU27: 456648.3354 | LV27: 470439.1151 | LW27: 484646.3764 | LX27: 499282.697 | LY27: 514361.0344 | LZ27: 529894.7377 | MA27: 545897.5587 | MB27: 562383.665 | MC27: 579367.6517 | MD27: 596864.5548 | ME27: 614889.8643 | MF27: 633459.5382 | MG27: 652590.0163 | MH27: 672298.2348 | MI27: 692601.6415 | MJ27: 713518.211 | MK27: 735066.461 | ML27: 757265.4681 | MM27: 780134.8853 | MN27: 803694.9588 | MO27: 827966.5466 | MP27: 852971.1363 | MQ27: 878730.8646 | MR27: 905268.5367 | MS27: 932607.6465 | MT27: 960772.3974 | MU27: 989787.7238 | MV27: 1019679.313 | MW27: 1050473.628 | MX27: 1082197.932 | MY27: 1114880.309 | MZ27: 1148549.695 | NA27: 1183235.896 | NB27: 1218969.62 | NC27: 1255782.502 | ND27: 1293707.134 | NE27: 1332777.089 | NF27: 1373026.957 | NG27: 1414492.371 | NH27: 1457210.041 | NI27: 1501217.784 | NJ27: 1546554.561 | NK27: 1593260.509 | NL27: 1641376.976 | NM27: 1690946.561 | NN27: 1742013.147 | NO27: 1794621.944 | NP27: 1848819.527 | NQ27: 1904653.877 | NR27: 1962174.424 | NS27: 2021432.091 | NT27: 2082479.341 | NU27: 2145370.217 | NV27: 2210160.397 | NW27: 2276907.241 | NX27: 2345669.84 | NY27: 2416509.069 | NZ27: 2489487.643 | OA27: 2564670.17 | OB27: =OA30 -> 2642123.209 | OC27: 2721915.33 | OD27: 2804117.173 | OE27: 2888801.511 | OF27: 2976043.317 | OG27: 3065919.825 | OH27: 3158510.604 | OI27: 3253897.624 | OJ27: 3352165.332 | OK27: 3453400.725 | OL27: 3557693.427 | OM27: 3665135.769 | ON27: 3775822.869 | OO27: 3889852.72 | OP27: 4007326.272 | OQ27: 4128347.525 | OR27: 4253023.62 | OS27: 4381464.934 | OT27: 4513785.175 | OU27: 4650101.487 | OV27: 4790534.552 | OW27: 4935208.695 | OX27: 5084251.998 | OY27: 5237796.408 | OZ27: 5395977.86 | PA27: 5558936.391 | PB27: 5726816.27 | PC27: 5899766.122 | PD27: 6077939.059 | PE27: 6261492.818 | PF27: 6450589.901 | PG27: 6645397.716 | PH27: 6846088.727 | PI27: 7052840.607 | PJ27: 7265836.393 | PK27: 7485264.652 | PL27: 7711319.645 | PM27: 7944201.498 | PN27: 8184116.383 | PO27: 8431276.698 | PP27: 8685901.254 | PQ27: 8948215.472 | PR27: 9218451.58 | PS27: 9496848.817 | PT27: 9783653.652 | PU27: 10079119.99 | PV27: 10383509.42 | PW27: 10697091.4 | PX27: 11020143.56 | PY27: 11352951.9 | PZ27: 11695811.04 | QA27: 12049024.54 | QB27: 12412905.08 | QC27: 12787774.81 | QD27: 13173965.61 | QE27: 13571819.37 | QF27: 13981688.32 | QG27: 14403935.3 | QH27: 14838934.15 | QI27: 15287069.96 | QJ27: 15748739.47 | QK27: 16224351.41 | QL27: 16714326.82 | QM27: 17219099.49 | QN27: =QM30 -> 17739116.29 | QO27: 18274837.61 | QP27: 18826737.7 | QQ27: 19395305.18 | QR27: 19981043.4 | QS27: 20584470.91 | QT27: 21206121.93 | QU27: 21846546.81 | QV27: 22506312.52 | QW27: 23186003.16 | QX27: 23886220.46 | QY27: 24607584.32 | QZ27: 25350733.36 | RA27: 26116325.51 | RB27: 26905038.54 | RC27: 27717570.7 | RD27: 28554641.34 | RE27: 29416991.51 | RF27: 30305384.65 | RG27: 31220607.27 | RH27: 32163469.61 | RI27: 33134806.39 | RJ27: 34135477.54 | RK27: 35166368.96 | RL27: 36228393.31 | RM27: 37322490.78 | RN27: 38449630.01 | RO27: 39610808.83 | RP27: 40807055.26 | RQ27: 42039428.33 | RR27: 43309019.06 | RS27: 44616951.44 | RT27: 45964383.37 | RU27: 47352507.75 | RV27: 48782553.48 | RW27: 50255786.6 | RX27: 51773511.35 | RY27: 53337071.4 | RZ27: 54947850.95 | SA27: 56607276.05 | SB27: 58316815.79 | SC27: 60077983.63 | SD27: 61892338.73 | SE27: 63761487.36 | SF27: 65687084.28 | SG27: 67670834.22 | SH27: 69714493.42 | SI27: 71819871.12 | SJ27: 73988831.23 | SK27: 76223293.93 | SL27: 78525237.41 | SM27: 80896699.58 | SN27: 83339779.9 | SO27: 85856641.26 | SP27: 88449511.82 | SQ27: 91120687.08 | SR27: 93872531.83 | SS27: 96707482.29 | ST27: 99628048.25 | SU27: 102636815.3 | SV27: 105736447.1 | SW27: 108929687.8 | SX27: 112219364.4 | SY27: 115608389.2 | SZ27: =SY30 -> 119099762.6 | TA27: 122696575.4 | TB27: 126402012 | TC27: 130219352.7 | TD27: 134151977.2 | TE27: 138203366.9 | TF27: 142377108.6 | TG27: 146676897.3 | TH27: 151106539.6 | TI27: 155669957.1 | TJ27: 160371189.8 | TK27: 165214399.7 | TL27: 170203874.6 | TM27: 175344031.6 | TN27: 180639421.3 | TO27: 186094731.8 | TP27: 191714792.7 | TQ27: 197504579.5 | TR27: 203469217.8 | TS27: 209613988.2 | TT27: 215944330.6 | TU27: 222465849.4 | TV27: 229184318 | TW27: 236105684.5 | TX27: 243236076.1 | TY27: 250581805.6 | TZ27: 258149376.2 | UA27: 265945487.3 | UB27: 273977041 | UC27: 282251147.7 | UD27: 290775132.3 | UE27: 299556541.3 | UF27: 308603148.9 | UG27: 317922964 | UH27: 327524237.5 | UI27: 337415469.5 | UJ27: 347605416.6 | UK27: 358103100.2 | UL27: 368917813.8 | UM27: 380059131.8 | UN27: 391536917.6 | UO27: 403361332.5 | UP27: 415542844.7 | UQ27: 428092238.7 | UR27: 441020624.3 | US27: 454339447.1 | UT27: 468060498.4 | UU27: 482195925.5 | UV27: 496758242.4 | UW27: 511760341.3 | UX27: 527215503.7 | UY27: 543137411.9 | UZ27: 559540161.7 | VA27: 576438274.6 | VB27: 593846710.5 | VC27: 611780881.1 | VD27: 630256663.7 | VE27: 649290415 | VF27: 668898985.5 | VG27: 689099734.9 | VH27: 709910546.9 | VI27: 731349845.4 | VJ27: 753436610.7 | VK27: 776190396.4 | VL27: =VK30 -> 799631346.3 | VM27: 823780213 | VN27: 848658375.4 | VO27: 874287858.4 | VP27: 900691351.7 | VQ27: 927892230.5 | VR27: 955914575.9 | VS27: 984783196.1 | VT27: 1014523649 | VU27: 1045162263 | VV27: 1076726163 | VW27: 1109243293 | VX27: 1142742441 | VY27: 1177253262 | VZ27: 1212806311 | WA27: 1249433062 | WB27: 1287165940 | WC27: 1326038351 | WD27: 1366084710 | WE27: 1407340468 | WF27: 1449842150 | WG27: 1493627383 | WH27: 1538734930 | WI27: 1585204725 | WJ27: 1633077907 | WK27: 1682396860 | WL27: 1733205245 | WM27: 1785548044 | WN27: 1839471595 | WO27: 1895023637 | WP27: 1952253351 | WQ27: 2011211402 | WR27: 2071949986 | WS27: 2134522876 | WT27: 2198985467 | WU27: 2265394828 | WV27: 2333809752 | WW27: 2404290806 | WX27: 2476900388 | WY27: 2551702780 | WZ27: 2628764204 | XA27: 2708152883 | XB27: 2789939100 | XC27: 2874195261 | XD27: 2960995958 | XE27: 3050418036 | XF27: 3142540660 | XG27: 3237445388 | XH27: 3335216239 | XI27: 3435939770 | XJ27: 3539705151 | XK27: 3646604246 | XL27: 3756731694 | XM27: 3870184991 | XN27: 3987064578 | XO27: 4107473928 | XP27: 4231519641 | XQ27: 4359311534 | XR27: 4490962743 | XS27: 4626589817 | XT27: 4766312830 | XU27: 4910255477 | XV27: 5058545193 | XW27: 5211313258 | XX27: =XW30 -> 5368694918 | XY27: 5530829505 | XZ27: 5697860556 | YA27: 5869935944 | YB27: 6047208010 | YC27: 6229833692 | YD27: 6417974669 | YE27: 6611797504 | YF27: 6811473789 | YG27: 7017180297 | YH27: 7229099142 | YI27: 7447417936 | YJ27: 7672329958 | YK27: 7904034323 | YL27: 8142736159 | YM27: 8388646791 | YN27: 8641983925 | YO27: 8902971839 | YP27: 9171841589 | YQ27: 9448831205 | YR27: 9734185907 | YS27: 1.002815832e+10 | YT27: 1.03310087e+10 | YU27: 1.064300517e+10 | YV27: 1.096442392e+10 | YW27: 1.129554952e+10 | YX27: 1.163667512e+10 | YY27: 1.198810271e+10 | YZ27: 1.235014341e+10 | ZA27: 1.272311774e+10 | ZB27: 1.31073559e+10 | ZC27: 1.350319804e+10 | ZD27: 1.391099463e+10 | ZE27: 1.433110666e+10 | ZF27: 1.476390608e+10 | ZG27: 1.520977605e+10 | ZH27: 1.566911129e+10 | ZI27: 1.614231845e+10 | ZJ27: 1.662981646e+10 | ZK27: 1.713203692e+10 | ZL27: 1.764942444e+10 | ZM27: 1.818243705e+10 | ZN27: 1.873154665e+10 | ZO27: 1.929723936e+10 | ZP27: 1.988001599e+10 | ZQ27: 2.048039247e+10 | ZR27: 2.109890033e+10 | ZS27: 2.173608711e+10 | ZT27: 2.239251695e+10 | ZU27: 2.306877096e+10 | ZV27: 2.376544784e+10 | ZW27: 2.448316437e+10 | ZX27: 2.522255593e+10 | ZY27: 2.598427712e+10 | ZZ27: 2.676900229e+10 | AAA27: 2.757742616e+10 | AAB27: 2.841026443e+10 | AAC27: 2.926825441e+10 | AAD27: 3.01521557e+10 | AAE27: 3.10627508e+10 | AAF27: 3.200084587e+10 | AAG27: 3.296727142e+10 | AAH27: 3.396288301e+10 | AAI27: 3.498856208e+10 | AAJ27: =AAI30 -> 3.604521665e+10 | AAK27: 3.71337822e+10 | AAL27: 3.825522242e+10 | AAM27: 3.941053014e+10 | AAN27: 4.060072815e+10 | AAO27: 4.182687014e+10 | AAP27: 4.309004162e+10 | AAQ27: 4.439136087e+10 | AAR27: 4.573197997e+10 | AAS27: 4.711308577e+10 | AAT27: 4.853590096e+10 | AAU27: 5.000168517e+10 | AAV27: 5.151173606e+10 | AAW27: 5.306739049e+10 | AAX27: 5.467002568e+10 | AAY27: 5.632106045e+10 | AAZ27: 5.802195648e+10 | ABA27: 5.977421957e+10 | ABB27: 6.1579401e+10 | ABC27: 6.343909891e+10 | ABD27: 6.535495969e+10 | ABE27: 6.732867948e+10 | ABF27: 6.93620056e+10 | ABG27: 7.145673817e+10 | ABH27: 7.361473166e+10 | ABI27: 7.583789655e+10 | ABJ27: 7.812820103e+10 | ABK27: 8.04876727e+10 | ABL27: 8.291840042e+10 | ABM27: 8.542253611e+10 | ABN27: 8.80022967e+10 | ABO27: 9.065996606e+10 | ABP27: 9.339789704e+10 | ABQ27: 9.621851353e+10 | ABR27: 9.912431263e+10 | ABS27: 1.021178669e+11 | ABT27: 1.052018265e+11 | ABU27: 1.083789216e+11 | ABV27: 1.11651965e+11 | ABW27: 1.150238544e+11 | ABX27: 1.184975748e+11 | ABY27: 1.220762016e+11 | ABZ27: 1.257629028e+11 | ACA27: 1.295609425e+11 | ACB27: 1.33473683e+11 | ACC27: 1.375045882e+11 | ACD27: 1.416572268e+11 | ACE27: 1.45935275e+11 | ACF27: 1.503425203e+11 | ACG27: 1.548828644e+11 | ACH27: 1.595603269e+11 | ACI27: 1.643790488e+11 | ACJ27: 1.693432961e+11 | ACK27: 1.744574636e+11 | ACL27: 1.79726079e+11 | ACM27: 1.851538066e+11 | ACN27: 1.907454516e+11 | ACO27: 1.965059642e+11 | ACP27: 2.024404443e+11 | ACQ27: 2.085541457e+11 | ACR27: 2.148524809e+11 | ACS27: 2.213410259e+11 | ACT27: 2.280255248e+11 | ACU27: 2.349118957e+11 | ACV27: =ACU30 -> 2.420062349e+11 | ACW27: 2.493148232e+11 | ACX27: 2.568441309e+11 | ACY27: 2.646008237e+11 | ACZ27: 2.725917685e+11 | ADA27: 2.808240399e+11 | ADB27: 2.89304926e+11 | ADC27: 2.980419347e+11 | ADD27: 3.070428011e+11 | ADE27: 3.163154937e+11 | ADF27: 3.258682216e+11 | ADG27: 3.357094419e+11 | ADH27: 3.458478671e+11 | ADI27: 3.562924727e+11 | ADJ27: 3.670525053e+11 | ADK27: 3.78137491e+11 | ADL27: 3.895572432e+11 | ADM27: 4.01321872e+11 | ADN27: 4.134417925e+11 | ADO27: 4.259277347e+11 | ADP27: 4.387907522e+11 | ADQ27: 4.52042233e+11 | ADR27: 4.656939084e+11 | ADS27: 4.797578644e+11 | ADT27: 4.942465519e+11 | ADU27: 5.091727978e+11 | ADV27: 5.245498163e+11 | ADW27: 5.403912207e+11 | ADX27: 5.567110356e+11 | ADY27: 5.735237089e+11 | ADZ27: 5.908441249e+11 | AEA27: 6.086876175e+11 | AEB27: 6.270699835e+11 | AEC27: 6.46007497e+11 | AED27: 6.655169234e+11 | AEE27: 6.856155345e+11 | AEF27: 7.063211237e+11 | AEG27: 7.276520216e+11 | AEH27: 7.496271126e+11 | AEI27: 7.722658514e+11 | AEJ27: 7.955882802e+11 | AEK27: 8.196150462e+11 | AEL27: 8.443674206e+11 | AEM27: 8.698673167e+11 | AEN27: 8.961373097e+11 | AEO27: 9.232006564e+11 | AEP27: 9.510813163e+11 | AEQ27: 9.79803972e+11 | AER27: 1.009394052e+12 | AES27: 1.039877752e+12 | AET27: 1.07128206e+12 | AEU27: 1.103634779e+12 | AEV27: 1.136964549e+12 | AEW27: 1.171300878e+12 | AEX27: 1.206674165e+12 | AEY27: 1.243115725e+12 | AEZ27: 1.28065782e+12 | AFA27: 1.319333686e+12 | AFB27: 1.359177563e+12 | AFC27: 1.400224725e+12 | AFD27: 1.442511512e+12 | AFE27: 1.48607536e+12 | AFF27: 1.530954836e+12 | AFG27: 1.577189672e+12 | AFH27: =AFG30 -> 1.6248208e+12 | AFI27: 1.673890388e+12 | AFJ27: 1.724441878e+12 | AFK27: 1.776520022e+12 | AFL27: 1.830170927e+12 | AFM27: 1.885442089e+12 | AFN27: 1.94238244e+12 | AFO27: 2.00104239e+12 | AFP27: 2.06147387e+12 | AFQ27: 2.123730381e+12 | AFR27: 2.187867038e+12 | AFS27: 2.253940623e+12 | AFT27: 2.32200963e+12 | AFU27: 2.392134321e+12 | AFV27: 2.464376777e+12 | AFW27: 2.538800956e+12 | AFX27: 2.615472745e+12 | AFY27: 2.694460021e+12 | AFZ27: 2.775832714e+12 | AGA27: 2.859662862e+12 | AGB27: 2.946024681e+12 | AGC27: 3.034994626e+12 | AGD27: 3.126651464e+12 | AGE27: 3.221076338e+12 | AGF27: 3.318352843e+12 | AGG27: 3.418567099e+12 | AGH27: 3.521807825e+12 | AGI27: 3.628166422e+12 | AGJ27: 3.737737048e+12 | AGK27: 3.850616707e+12 | AGL27: 3.966905331e+12 | AGM27: 4.086705872e+12 | AGN27: 4.210124389e+12 | AGO27: 4.337270146e+12 | AGP27: 4.468255704e+12 | AGQ27: 4.603197027e+12 | AGR27: 4.742213577e+12 | AGS27: 4.885428427e+12 | AGT27: 5.032968365e+12 | AGU27: 5.18496401e+12 | AGV27: 5.341549923e+12 | AGW27: 5.502864731e+12 | AGX27: 5.669051246e+12 | AGY27: 5.840256593e+12 | AGZ27: 6.016632342e+12 | AHA27: 6.198334639e+12 | AHB27: 6.385524345e+12 | AHC27: 6.57836718e+12 | AHD27: 6.777033869e+12 | AHE27: 6.981700292e+12 | AHF27: 7.192547641e+12 | AHG27: 7.40976258e+12 | AHH27: 7.63353741e+12 | AHI27: 7.864070239e+12 | AHJ27: 8.101565161e+12 | AHK27: 8.346232428e+12 | AHL27: 8.598288648e+12 | AHM27: 8.857956965e+12 | AHN27: 9.125467265e+12 | AHO27: 9.401056377e+12 | AHP27: 9.684968279e+12 | AHQ27: 9.977454321e+12 | AHR27: 1.027877344e+13 | AHS27: 1.05891924e+13 | AHT27: =AHS30 -> 1.090898601e+13 | AHU27: 1.123843739e+13 | AHV27: 1.15778382e+13 | AHW27: 1.192748891e+13 | AHX27: 1.228769908e+13 | AHY27: 1.265878759e+13 | AHZ27: 1.304108297e+13 | AIA27: 1.343492368e+13 | AIB27: 1.384065837e+13 | AIC27: 1.425864626e+13 | AID27: 1.468925737e+13 | AIE27: 1.513287295e+13 | AIF27: 1.558988571e+13 | AIG27: 1.606070026e+13 | AIH27: 1.654573341e+13 | AII27: 1.704541455e+13 | AIJ27: 1.756018607e+13 | AIK27: 1.809050369e+13 | AIL27: 1.86368369e+13 | AIM27: 1.919966938e+13 | AIN27: 1.977949939e+13 | AIO27: 2.037684028e+13 | AIP27: 2.099222085e+13 | AIQ27: 2.162618592e+13 | AIR27: 2.227929674e+13 | AIS27: 2.29521315e+13 | AIT27: 2.364528587e+13 | AIU27: 2.43593735e+13 | AIV27: 2.509502658e+13 | AIW27: 2.585289639e+13 | AIX27: 2.663365386e+13 | AIY27: 2.74379902e+13 | AIZ27: 2.826661751e+13 | AJA27: 2.912026936e+13 | AJB27: 2.999970149e+13 | AJC27: 3.090569248e+13 | AJD27: 3.183904439e+13 | AJE27: 3.280058353e+13 | AJF27: 3.379116115e+13 | AJG27: 3.481165422e+13 | AJH27: 3.586296618e+13 | AJI27: 3.694602775e+13 | AJJ27: 3.806179779e+13 | AJK27: 3.921126409e+13 | AJL27: 4.039544426e+13 | AJM27: 4.161538668e+13 | AJN27: 4.287217135e+13 | AJO27: 4.416691093e+13 | AJP27: 4.550075164e+13 | AJQ27: 4.687487434e+13 | AJR27: 4.829049554e+13 | AJS27: 4.974886851e+13 | AJT27: 5.125128434e+13 | AJU27: 5.279907313e+13 | AJV27: 5.439360513e+13 | AJW27: 5.603629201e+13 | AJX27: 5.772858803e+13 | AJY27: 5.947199139e+13 | AJZ27: 6.126804553e+13 | AKA27: 6.31183405e+13 | AKB27: 6.502451438e+13 | AKC27: 6.698825472e+13 | AKD27: 6.901130001e+13 | AKE27: 7.109544127e+13 | AKF27: =AKE30 -> 7.32425236e+13 | AKG27: 7.545444781e+13 | AKH27: 7.773317213e+13 | AKI27: 8.008071393e+13 | AKJ27: 8.249915149e+13 | AKK27: 8.499062587e+13 | AKL27: 8.755734277e+13 | AKM27: 9.020157452e+13 | AKN27: 9.292566207e+13 | AKO27: 9.573201707e+13 | AKP27: 9.862312398e+13 | AKQ27: 1.016015423e+14 | AKR27: 1.046699089e+14 | AKS27: 1.078309402e+14 | AKT27: 1.110874345e+14 | AKU27: 1.144422751e+14 | AKV27: 1.178984318e+14 | AKW27: 1.214589644e+14 | AKX27: 1.251270251e+14 | AKY27: 1.289058613e+14 | AKZ27: 1.327988183e+14 | ALA27: 1.368093426e+14 | ALB27: 1.409409848e+14 | ALC27: 1.451974025e+14 | ALD27: 1.495823641e+14 | ALE27: 1.540997515e+14 | ALF27: 1.58753564e+14 | ALG27: 1.635479216e+14 | ALH27: 1.684870688e+14 | ALI27: 1.735753783e+14 | ALJ27: 1.788173547e+14 | ALK27: 1.842176388e+14 | ALL27: 1.897810115e+14 | ALM27: 195512398078972 | ALN27: 2.014168725e+14 | ALO27: 2.074996621e+14 | ALP27: 2.137661518e+14 | ALQ27: 2.202218896e+14 | ALR27: 2.268725907e+14
C28: Add: Income (Could be NOPAT) | G28: =G27*G23 -> 2.8448 | H28: =H27*H23 -> 2.93071296 | I28: 3.019220491 | J28: 3.11040095 | K28: 3.204335059 | L28: 3.301105978 | M28: 3.400799378 | N28: 3.503503519 | O28: 3.609309326 | P28: 3.718310467 | Q28: 3.830603443 | R28: 3.946287667 | S28: 4.065465555 | T28: 4.188242615 | U28: 4.314727542 | V28: 4.445032314 | W28: 4.579272289 | X28: 4.717566313 | Y28: 4.860036815 | Z28: 5.006809927 | AA28: 5.158015587 | AB28: 5.313787658 | AC28: 5.474264045 | AD28: 5.639586819 | AE28: 5.809902341 | AF28: 5.985361392 | AG28: 6.166119306 | AH28: 6.352336109 | AI28: 6.544176659 | AJ28: 6.741810794 | AK28: 6.94541348 | AL28: 7.155164967 | AM28: 7.371250949 | AN28: 7.593862728 | AO28: 7.823197382 | AP28: 8.059457943 | AQ28: 8.302853573 | AR28: 8.553599751 | AS28: 8.811918464 | AT28: 9.078038401 | AU28: 9.352195161 | AV28: 9.634631455 | AW28: 9.925597325 | AX28: 10.22535036 | AY28: 10.53415594 | AZ28: 10.85228745 | BA28: 11.18002654 | BB28: 11.51766334 | BC28: 11.86549677 | BD28: 12.22383477 | BE28: 12.59299458 | BF28: 12.97330302 | BG28: 13.36509677 | BH28: 13.76872269 | BI28: 14.18453812 | BJ28: 14.61291117 | BK28: 15.05422109 | BL28: 15.50885856 | BM28: 15.97722609 | BN28: 16.45973832 | BO28: 16.95682242 | BP28: 17.46891845 | BQ28: 17.99647979 | BR28: 18.53997348 | BS28: 19.09988068 | BT28: =BT27*BT23 -> 19.67669708 | BU28: 20.27093333 | BV28: 20.88311551 | BW28: 21.5137856 | BX28: 22.16350193 | BY28: 22.83283969 | BZ28: 23.52239144 | CA28: 24.23276767 | CB28: 24.96459725 | CC28: 25.71852809 | CD28: 26.49522764 | CE28: 27.29538351 | CF28: 28.11970409 | CG28: 28.96891916 | CH28: 29.84378051 | CI28: 30.74506269 | CJ28: 31.67356358 | CK28: 32.6301052 | CL28: 33.61553438 | CM28: 34.63072351 | CN28: 35.67657136 | CO28: 36.75400382 | CP28: 37.86397473 | CQ28: 39.00746677 | CR28: 40.18549227 | CS28: 41.39909413 | CT28: 42.64934678 | CU28: 43.93735705 | CV28: 45.26426523 | CW28: 46.63124604 | CX28: 48.03950967 | CY28: 49.49030287 | CZ28: 50.98491001 | DA28: 52.52465429 | DB28: 54.11089885 | DC28: 55.745048 | DD28: 57.42854845 | DE28: 59.16289061 | DF28: 60.94960991 | DG28: 62.79028813 | DH28: 64.68655483 | DI28: 66.64008879 | DJ28: 68.65261947 | DK28: 70.72592857 | DL28: 72.86185162 | DM28: 75.06227954 | DN28: 77.32916038 | DO28: 79.66450102 | DP28: 82.07036895 | DQ28: 84.54889409 | DR28: 87.1022707 | DS28: 89.73275927 | DT28: 92.4426886 | DU28: 95.2344578 | DV28: 98.11053842 | DW28: 101.0734767 | DX28: 104.1258957 | DY28: 107.2704977 | DZ28: 110.5100668 | EA28: 113.8474708 | EB28: 117.2856644 | EC28: 120.8276915 | ED28: 124.4766877 | EE28: 128.2358837 | EF28: =EF27*EF23 -> 132.1086074 | EG28: 136.0982873 | EH28: 140.2084556 | EI28: 144.442751 | EJ28: 148.8049221 | EK28: 153.2988307 | EL28: 157.9284554 | EM28: 162.6978947 | EN28: 167.6113712 | EO28: 172.6732346 | EP28: 177.8879663 | EQ28: 183.2601828 | ER28: 188.7946404 | ES28: 194.4962385 | ET28: 200.3700249 | EU28: 206.4211997 | EV28: 212.6551199 | EW28: 219.0773045 | EX28: 225.6934391 | EY28: 232.509381 | EZ28: 239.5311643 | FA28: 246.7650054 | FB28: 254.2173086 | FC28: 261.8946713 | FD28: 269.8038904 | FE28: 277.9519679 | FF28: 286.3461173 | FG28: 294.99377 | FH28: 303.9025819 | FI28: 313.0804399 | FJ28: 322.5354692 | FK28: 332.2760403 | FL28: 342.3107767 | FM28: 352.6485622 | FN28: 363.2985488 | FO28: 374.270165 | FP28: 385.5731239 | FQ28: 397.2174323 | FR28: 409.2133987 | FS28: 421.5716434 | FT28: 434.303107 | FU28: 447.4190608 | FV28: 460.9311165 | FW28: 474.8512362 | FX28: 489.1917435 | FY28: 503.9653342 | FZ28: 519.1850873 | GA28: 534.8644769 | GB28: 551.0173841 | GC28: 567.6581091 | GD28: 584.801384 | GE28: 602.4623858 | GF28: 620.6567499 | GG28: 639.4005837 | GH28: 658.7104813 | GI28: 678.6035379 | GJ28: 699.0973647 | GK28: 720.2101051 | GL28: 741.9604503 | GM28: 764.3676559 | GN28: 787.4515591 | GO28: 811.2325962 | GP28: 835.7318206 | GQ28: 860.9709216 | GR28: =GR27*GR23 -> 886.9722434 | GS28: 913.7588052 | GT28: 941.3543211 | GU28: 969.7832216 | GV28: 999.0706749 | GW28: 1029.242609 | GX28: 1060.325736 | GY28: 1092.347573 | GZ28: 1125.33647 | HA28: 1159.321631 | HB28: 1194.333145 | HC28: 1230.402006 | HD28: 1267.560146 | HE28: 1305.840463 | HF28: 1345.276845 | HG28: 1385.904205 | HH28: 1427.758512 | HI28: 1470.876819 | HJ28: 1515.297299 | HK28: 1561.059278 | HL28: 1608.203268 | HM28: 1656.771007 | HN28: 1706.805491 | HO28: 1758.351017 | HP28: 1811.453218 | HQ28: 1866.159105 | HR28: 1922.51711 | HS28: 1980.577126 | HT28: 2040.390556 | HU28: 2102.01035 | HV28: 2165.491063 | HW28: 2230.888893 | HX28: 2298.261738 | HY28: 2367.669242 | HZ28: 2439.172853 | IA28: 2512.835873 | IB28: 2588.723517 | IC28: 2666.902967 | ID28: 2747.443437 | IE28: 2830.416228 | IF28: 2915.894798 | IG28: 3003.954821 | IH28: 3094.674257 | II28: 3188.13342 | IJ28: 3284.415049 | IK28: 3383.604383 | IL28: 3485.789236 | IM28: 3591.060071 | IN28: 3699.510085 | IO28: 3811.235289 | IP28: 3926.334595 | IQ28: 4044.9099 | IR28: 4167.066179 | IS28: 4292.911577 | IT28: 4422.557507 | IU28: 4556.118744 | IV28: 4693.71353 | IW28: 4835.463678 | IX28: 4981.494681 | IY28: 5131.935821 | IZ28: 5286.920283 | JA28: 5446.585275 | JB28: 5611.07215 | JC28: 5780.526529 | JD28: =JD27*JD23 -> 5955.098431 | JE28: 6134.942403 | JF28: 6320.217664 | JG28: 6511.088237 | JH28: 6707.723102 | JI28: 6910.29634 | JJ28: 7118.987289 | JK28: 7333.980705 | JL28: 7555.466923 | JM28: 7783.642024 | JN28: 8018.708013 | JO28: 8260.872995 | JP28: 8510.351359 | JQ28: 8767.36397 | JR28: 9032.138362 | JS28: 9304.908941 | JT28: 9585.917191 | JU28: 9875.41189 | JV28: 10173.64933 | JW28: 10480.89354 | JX28: 10797.41652 | JY28: 11123.4985 | JZ28: 11459.42816 | KA28: 11805.50289 | KB28: 12162.02907 | KC28: 12529.32235 | KD28: 12907.70789 | KE28: 13297.52067 | KF28: 13699.10579 | KG28: 14112.81879 | KH28: 14539.02591 | KI28: 14978.10449 | KJ28: 15430.44325 | KK28: 15896.44264 | KL28: 16376.5152 | KM28: 16871.08596 | KN28: 17380.59276 | KO28: 17905.48666 | KP28: 18446.23236 | KQ28: 19003.30858 | KR28: 19577.20849 | KS28: 20168.44019 | KT28: 20777.52708 | KU28: =KU27*KU23 -> 21405.0084 | KV28: =KV27*KV23 -> 22051.43966 | KW28: =KW27*KW23 -> 22717.39313 | KX28: =KX27*KX23 -> 23403.45841 | KY28: =KY27*KY23 -> 24110.24285 | KZ28: =KZ27*KZ23 -> 24838.37218 | LA28: =LA27*LA23 -> 25588.49102 | LB28: =LB27*LB23 -> 26361.26345 | LC28: =LC27*LC23 -> 27157.37361 | LD28: =LD27*LD23 -> 27977.52629 | LE28: =LE27*LE23 -> 28822.44759 | LF28: =LF27*LF23 -> 29692.8855 | LG28: =LG27*LG23 -> 30589.61065 | LH28: =LH27*LH23 -> 31513.41689 | LI28: =LI27*LI23 -> 32465.12208 | LJ28: =LJ27*LJ23 -> 33445.56876 | LK28: =LK27*LK23 -> 34455.62494 | LL28: =LL27*LL23 -> 35496.18481 | LM28: =LM27*LM23 -> 36568.1696 | LN28: =LN27*LN23 -> 37672.52832 | LO28: =LO27*LO23 -> 38810.23867 | LP28: =LP27*LP23 -> 39982.30788 | LQ28: =LQ27*LQ23 -> 41189.77358 | LR28: =LR27*LR23 -> 42433.70474 | LS28: =LS27*LS23 -> 43715.20262 | LT28: =LT27*LT23 -> 45035.40174 | LU28: =LU27*LU23 -> 46395.47088 | LV28: =LV27*LV23 -> 47796.6141 | LW28: =LW27*LW23 -> 49240.07184 | LX28: =LX27*LX23 -> 50727.12201 | LY28: =LY27*LY23 -> 52259.0811 | LZ28: =LZ27*LZ23 -> 53837.30535 | MA28: =MA27*MA23 -> 55463.19197 | MB28: =MB27*MB23 -> 57138.18036 | MC28: =MC27*MC23 -> 58863.75341 | MD28: =MD27*MD23 -> 60641.43876 | ME28: =ME27*ME23 -> 62472.81022 | MF28: =MF27*MF23 -> 64359.48908 | MG28: =MG27*MG23 -> 66303.14565 | MH28: =MH27*MH23 -> 68305.50065 | MI28: =MI27*MI23 -> 70368.32677 | MJ28: =MJ27*MJ23 -> 72493.45024 | MK28: =MK27*MK23 -> 74682.75244 | ML28: =ML27*ML23 -> 76938.17156 | MM28: =MM27*MM23 -> 79261.70434 | MN28: =MN27*MN23 -> 81655.40781 | MO28: =MO27*MO23 -> 84121.40113 | MP28: =MP27*MP23 -> 86661.86744 | MQ28: =MQ27*MQ23 -> 89279.05584 | MR28: =MR27*MR23 -> 91975.28333 | MS28: =MS27*MS23 -> 94752.93688 | MT28: =MT27*MT23 -> 97614.47558 | MU28: =MU27*MU23 -> 100562.4327 | MV28: =MV27*MV23 -> 103599.4182 | MW28: =MW27*MW23 -> 106728.1206 | MX28: =MX27*MX23 -> 109951.3099 | MY28: =MY27*MY23 -> 113271.8394 | MZ28: =MZ27*MZ23 -> 116692.649 | NA28: =NA27*NA23 -> 120216.767 | NB28: =NB27*NB23 -> 123847.3134 | NC28: =NC27*NC23 -> 127587.5022 | ND28: =ND27*ND23 -> 131440.6448 | NE28: =NE27*NE23 -> 135410.1523 | NF28: =NF27*NF23 -> 139499.5389 | NG28: =NG27*NG23 -> 143712.4249 | NH28: =NH27*NH23 -> 148052.5402 | NI28: =NI27*NI23 -> 152523.7269 | NJ28: =NJ27*NJ23 -> 157129.9434 | NK28: =NK27*NK23 -> 161875.2677 | NL28: =NL27*NL23 -> 166763.9008 | NM28: =NM27*NM23 -> 171800.1706 | NN28: =NN27*NN23 -> 176988.5358 | NO28: =NO27*NO23 -> 182333.5895 | NP28: =NP27*NP23 -> 187840.0639 | NQ28: =NQ27*NQ23 -> 193512.8339 | NR28: =NR27*NR23 -> 199356.9215 | NS28: =NS27*NS23 -> 205377.5005 | NT28: =NT27*NT23 -> 211579.901 | NU28: =NU27*NU23 -> 217969.614 | NV28: =NV27*NV23 -> 224552.2964 | NW28: =NW27*NW23 -> 231333.7757 | NX28: =NX27*NX23 -> 238320.0557 | NY28: =NY27*NY23 -> 245517.3214 | NZ28: =NZ27*NZ23 -> 252931.9445 | OA28: =OA27*OA23 -> 260570.4892 | OB28: =OB27*OB23 -> 268439.718 | OC28: =OC27*OC23 -> 276546.5975 | OD28: =OD27*OD23 -> 284898.3048 | OE28: =OE27*OE23 -> 293502.2336 | OF28: =OF27*OF23 -> 302366.001 | OG28: =OG27*OG23 -> 311497.4542 | OH28: =OH27*OH23 -> 320904.6774 | OI28: =OI27*OI23 -> 330595.9986 | OJ28: =OJ27*OJ23 -> 340579.9978 | OK28: =OK27*OK23 -> 350865.5137 | OL28: =OL27*OL23 -> 361461.6522 | OM28: =OM27*OM23 -> 372377.7941 | ON28: =ON27*ON23 -> 383623.6035 | OO28: =OO27*OO23 -> 395209.0363 | OP28: =OP27*OP23 -> 407144.3492 | OQ28: =OQ27*OQ23 -> 419440.1086 | OR28: =OR27*OR23 -> 432107.1998 | OS28: =OS27*OS23 -> 445156.8373 | OT28: =OT27*OT23 -> 458600.5738 | OU28: =OU27*OU23 -> 472450.3111 | OV28: =OV27*OV23 -> 486718.3105 | OW28: =OW27*OW23 -> 501417.2035 | OX28: =OX27*OX23 -> 516560.003 | OY28: =OY27*OY23 -> 532160.1151 | OZ28: =OZ27*OZ23 -> 548231.3506 | PA28: =PA27*PA23 -> 564787.9374 | PB28: =PB27*PB23 -> 581844.5331 | PC28: =PC27*PC23 -> 599416.238 | PD28: =PD27*PD23 -> 617518.6084 | PE28: =PE27*PE23 -> 636167.6703 | PF28: =PF27*PF23 -> 655379.934 | PG28: =PG27*PG23 -> 675172.408 | PH28: =PH27*PH23 -> 695562.6147 | PI28: =PI27*PI23 -> 716568.6057 | PJ28: =PJ27*PJ23 -> 738208.9776 | PK28: =PK27*PK23 -> 760502.8887 | PL28: =PL27*PL23 -> 783470.0759 | PM28: =PM27*PM23 -> 807130.8722 | PN28: =PN27*PN23 -> 831506.2245 | PO28: =PO27*PO23 -> 856617.7125 | PP28: =PP27*PP23 -> 882487.5674 | PQ28: =PQ27*PQ23 -> 909138.692 | PR28: =PR27*PR23 -> 936594.6805 | PS28: =PS27*PS23 -> 964879.8398 | PT28: =PT27*PT23 -> 994019.211 | PU28: =PU27*PU23 -> 1024038.591 | PV28: =PV27*PV23 -> 1054964.557 | PW28: =PW27*PW23 -> 1086824.486 | PX28: =PX27*PX23 -> 1119646.586 | PY28: =PY27*PY23 -> 1153459.913 | PZ28: =PZ27*PZ23 -> 1188294.402 | QA28: =QA27*QA23 -> 1224180.893 | QB28: =QB27*QB23 -> 1261151.156 | QC28: =QC27*QC23 -> 1299237.921 | QD28: =QD27*QD23 -> 1338474.906 | QE28: =QE27*QE23 -> 1378896.848 | QF28: =QF27*QF23 -> 1420539.533 | QG28: =QG27*QG23 -> 1463439.827 | QH28: =QH27*QH23 -> 1507635.71 | QI28: =QI27*QI23 -> 1553166.308 | QJ28: =QJ27*QJ23 -> 1600071.931 | QK28: =QK27*QK23 -> 1648394.103 | QL28: =QL27*QL23 -> 1698175.605 | QM28: =QM27*QM23 -> 1749460.508 | QN28: =QN27*QN23 -> 1802294.215 | QO28: =QO27*QO23 -> 1856723.501 | QP28: =QP27*QP23 -> 1912796.55 | QQ28: =QQ27*QQ23 -> 1970563.006 | QR28: =QR27*QR23 -> 2030074.009 | QS28: =QS27*QS23 -> 2091382.244 | QT28: =QT27*QT23 -> 2154541.988 | QU28: =QU27*QU23 -> 2219609.156 | QV28: =QV27*QV23 -> 2286641.352 | QW28: =QW27*QW23 -> 2355697.921 | QX28: =QX27*QX23 -> 2426839.998 | QY28: =QY27*QY23 -> 2500130.566 | QZ28: =QZ27*QZ23 -> 2575634.51 | RA28: =RA27*RA23 -> 2653418.672 | RB28: =RB27*RB23 -> 2733551.916 | RC28: =RC27*RC23 -> 2816105.183 | RD28: =RD27*RD23 -> 2901151.56 | RE28: =RE27*RE23 -> 2988766.337 | RF28: =RF27*RF23 -> 3079027.08 | RG28: =RG27*RG23 -> 3172013.698 | RH28: =RH27*RH23 -> 3267808.512 | RI28: =RI27*RI23 -> 3366496.329 | RJ28: =RJ27*RJ23 -> 3468164.518 | RK28: =RK27*RK23 -> 3572903.087 | RL28: =RL27*RL23 -> 3680804.76 | RM28: =RM27*RM23 -> 3791965.064 | RN28: =RN27*RN23 -> 3906482.409 | RO28: =RO27*RO23 -> 4024458.177 | RP28: =RP27*RP23 -> 4145996.814 | RQ28: =RQ27*RQ23 -> 4271205.918 | RR28: =RR27*RR23 -> 4400196.337 | RS28: =RS27*RS23 -> 4533082.266 | RT28: =RT27*RT23 -> 4669981.351 | RU28: =RU27*RU23 -> 4811014.787 | RV28: =RV27*RV23 -> 4956307.434 | RW28: =RW27*RW23 -> 5105987.918 | RX28: =RX27*RX23 -> 5260188.754 | RY28: =RY27*RY23 -> 5419046.454 | RZ28: =RZ27*RZ23 -> 5582701.657 | SA28: =SA27*SA23 -> 5751299.247 | SB28: =SB27*SB23 -> 5924988.484 | SC28: =SC27*SC23 -> 6103923.136 | SD28: =SD27*SD23 -> 6288261.615 | SE28: =SE27*SE23 -> 6478167.116 | SF28: =SF27*SF23 -> 6673807.763 | SG28: =SG27*SG23 -> 6875356.757 | SH28: =SH27*SH23 -> 7082992.531 | SI28: =SI27*SI23 -> 7296898.906 | SJ28: =SJ27*SJ23 -> 7517265.253 | SK28: =SK27*SK23 -> 7744286.663 | SL28: =SL27*SL23 -> 7978164.12 | SM28: =SM27*SM23 -> 8219104.677 | SN28: =SN27*SN23 -> 8467321.638 | SO28: =SO27*SO23 -> 8723034.752 | SP28: =SP27*SP23 -> 8986470.401 | SQ28: =SQ27*SQ23 -> 9257861.807 | SR28: =SR27*SR23 -> 9537449.234 | SS28: =SS27*SS23 -> 9825480.201 | ST28: =ST27*ST23 -> 10122209.7 | SU28: =SU27*SU23 -> 10427900.44 | SV28: =SV27*SV23 -> 10742823.03 | SW28: =SW27*SW23 -> 11067256.28 | SX28: =SX27*SX23 -> 11401487.42 | SY28: =SY27*SY23 -> 11745812.34 | SZ28: =SZ27*SZ23 -> 12100535.88 | TA28: =TA27*TA23 -> 12465972.06 | TB28: =TB27*TB23 -> 12842444.42 | TC28: =TC27*TC23 -> 13230286.24 | TD28: =TD27*TD23 -> 13629840.88 | TE28: =TE27*TE23 -> 14041462.08 | TF28: =TF27*TF23 -> 14465514.23 | TG28: =TG27*TG23 -> 14902372.76 | TH28: =TH27*TH23 -> 15352424.42 | TI28: =TI27*TI23 -> 15816067.64 | TJ28: =TJ27*TJ23 -> 16293712.88 | TK28: =TK27*TK23 -> 16785783.01 | TL28: =TL27*TL23 -> 17292713.66 | TM28: =TM27*TM23 -> 17814953.61 | TN28: =TN27*TN23 -> 18352965.21 | TO28: =TO27*TO23 -> 18907224.76 | TP28: =TP27*TP23 -> 19478222.94 | TQ28: =TQ27*TQ23 -> 20066465.28 | TR28: =TR27*TR23 -> 20672472.53 | TS28: =TS27*TS23 -> 21296781.2 | TT28: =TT27*TT23 -> 21939943.99 | TU28: =TU27*TU23 -> 22602530.3 | TV28: =TV27*TV23 -> 23285126.71 | TW28: =TW27*TW23 -> 23988337.54 | TX28: =TX27*TX23 -> 24712785.33 | TY28: =TY27*TY23 -> 25459111.45 | TZ28: =TZ27*TZ23 -> 26227976.62 | UA28: =UA27*UA23 -> 27020061.51 | UB28: =UB27*UB23 -> 27836067.37 | UC28: =UC27*UC23 -> 28676716.6 | UD28: =UD27*UD23 -> 29542753.44 | UE28: =UE27*UE23 -> 30434944.6 | UF28: =UF27*UF23 -> 31354079.93 | UG28: =UG27*UG23 -> 32300973.14 | UH28: =UH27*UH23 -> 33276462.53 | UI28: =UI27*UI23 -> 34281411.7 | UJ28: =UJ27*UJ23 -> 35316710.33 | UK28: =UK27*UK23 -> 36383274.98 | UL28: =UL27*UL23 -> 37482049.89 | UM28: =UM27*UM23 -> 38614007.79 | UN28: =UN27*UN23 -> 39780150.83 | UO28: =UO27*UO23 -> 40981511.38 | UP28: =UP27*UP23 -> 42219153.03 | UQ28: =UQ27*UQ23 -> 43494171.45 | UR28: =UR27*UR23 -> 44807695.43 | US28: =US27*US23 -> 46160887.83 | UT28: =UT27*UT23 -> 47554946.64 | UU28: =UU27*UU23 -> 48991106.03 | UV28: =UV27*UV23 -> 50470637.43 | UW28: =UW27*UW23 -> 51994850.68 | UX28: =UX27*UX23 -> 53565095.17 | UY28: =UY27*UY23 -> 55182761.05 | UZ28: =UZ27*UZ23 -> 56849280.43 | VA28: =VA27*VA23 -> 58566128.7 | VB28: =VB27*VB23 -> 60334825.78 | VC28: =VC27*VC23 -> 62156937.52 | VD28: =VD27*VD23 -> 64034077.04 | VE28: =VE27*VE23 -> 65967906.16 | VF28: =VF27*VF23 -> 67960136.93 | VG28: =VG27*VG23 -> 70012533.06 | VH28: =VH27*VH23 -> 72126911.56 | VI28: =VI27*VI23 -> 74305144.29 | VJ28: =VJ27*VJ23 -> 76549159.65 | VK28: =VK27*VK23 -> 78860944.27 | VL28: =VL27*VL23 -> 81242544.79 | VM28: =VM27*VM23 -> 83696069.64 | VN28: =VN27*VN23 -> 86223690.94 | VO28: =VO27*VO23 -> 88827646.41 | VP28: =VP27*VP23 -> 91510241.33 | VQ28: =VQ27*VQ23 -> 94273850.62 | VR28: =VR27*VR23 -> 97120920.91 | VS28: =VS27*VS23 -> 100053972.7 | VT28: =VT27*VT23 -> 103075602.7 | VU28: =VU27*VU23 -> 106188485.9 | VV28: =VV27*VV23 -> 109395378.2 | VW28: =VW27*VW23 -> 112699118.6 | VX28: =VX27*VX23 -> 116102632 | VY28: =VY27*VY23 -> 119608931.5 | VZ28: =VZ27*VZ23 -> 123221121.2 | WA28: =WA27*WA23 -> 126942399.1 | WB28: =WB27*WB23 -> 130776059.5 | WC28: =WC27*WC23 -> 134725496.5 | WD28: =WD27*WD23 -> 138794206.5 | WE28: =WE27*WE23 -> 142985791.5 | WF28: =WF27*WF23 -> 147303962.4 | WG28: =WG27*WG23 -> 151752542.1 | WH28: =WH27*WH23 -> 156335468.9 | WI28: =WI27*WI23 -> 161056800 | WJ28: =WJ27*WJ23 -> 165920715.4 | WK28: =WK27*WK23 -> 170931521 | WL28: =WL27*WL23 -> 176093652.9 | WM28: =WM27*WM23 -> 181411681.2 | WN28: =WN27*WN23 -> 186890314 | WO28: =WO27*WO23 -> 192534401.5 | WP28: =WP27*WP23 -> 198348940.4 | WQ28: =WQ27*WQ23 -> 204339078.4 | WR28: =WR27*WR23 -> 210510118.6 | WS28: =WS27*WS23 -> 216867524.2 | WT28: =WT27*WT23 -> 223416923.4 | WU28: =WU27*WU23 -> 230164114.5 | WV28: =WV27*WV23 -> 237115070.8 | WW28: =WW27*WW23 -> 244275945.9 | WX28: =WX27*WX23 -> 251653079.5 | WY28: =WY27*WY23 -> 259253002.5 | WZ28: =WZ27*WZ23 -> 267082443.1 | XA28: =XA27*XA23 -> 275148332.9 | XB28: =XB27*XB23 -> 283457812.6 | XC28: =XC27*XC23 -> 292018238.5 | XD28: =XD27*XD23 -> 300837189.3 | XE28: =XE27*XE23 -> 309922472.4 | XF28: =XF27*XF23 -> 319282131.1 | XG28: =XG27*XG23 -> 328924451.5 | XH28: =XH27*XH23 -> 338857969.9 | XI28: =XI27*XI23 -> 349091480.6 | XJ28: =XJ27*XJ23 -> 359634043.3 | XK28: =XK27*XK23 -> 370494991.4 | XL28: =XL27*XL23 -> 381683940.1 | XM28: =XM27*XM23 -> 393210795.1 | XN28: =XN27*XN23 -> 405085761.1 | XO28: =XO27*XO23 -> 417319351.1 | XP28: =XP27*XP23 -> 429922395.5 | XQ28: =XQ27*XQ23 -> 442906051.9 | XR28: =XR27*XR23 -> 456281814.7 | XS28: =XS27*XS23 -> 470061525.5 | XT28: =XT27*XT23 -> 484257383.5 | XU28: =XU27*XU23 -> 498881956.5 | XV28: =XV27*XV23 -> 513948191.6 | XW28: =XW27*XW23 -> 529469427 | XX28: =XX27*XX23 -> 545459403.7 | XY28: =XY27*XY23 -> 561932277.7 | XZ28: =XZ27*XZ23 -> 578902632.4 | YA28: =YA27*YA23 -> 596385491.9 | YB28: =YB27*YB23 -> 614396333.8 | YC28: =YC27*YC23 -> 632951103.1 | YD28: =YD27*YD23 -> 652066226.4 | YE28: =YE27*YE23 -> 671758626.4 | YF28: =YF27*YF23 -> 692045737 | YG28: =YG27*YG23 -> 712945518.2 | YH28: =YH27*YH23 -> 734476472.9 | YI28: =YI27*YI23 -> 756657662.3 | YJ28: =YJ27*YJ23 -> 779508723.7 | YK28: =YK27*YK23 -> 803049887.2 | YL28: =YL27*YL23 -> 827301993.8 | YM28: =YM27*YM23 -> 852286514 | YN28: =YN27*YN23 -> 878025566.7 | YO28: =YO27*YO23 -> 904541938.8 | YP28: =YP27*YP23 -> 931859105.4 | YQ28: =YQ27*YQ23 -> 960001250.4 | YR28: =YR27*YR23 -> 988993288.1 | YS28: =YS27*YS23 -> 1018860885 | YT28: =YT27*YT23 -> 1049630484 | YU28: =YU27*YU23 -> 1081329325 | YV28: =YV27*YV23 -> 1113985470 | YW28: =YW27*YW23 -> 1147627832 | YX28: =YX27*YX23 -> 1182286192 | YY28: =YY27*YY23 -> 1217991235 | YZ28: =YZ27*YZ23 -> 1254774570 | ZA28: =ZA27*ZA23 -> 1292668762 | ZB28: =ZB27*ZB23 -> 1331707359 | ZC28: =ZC27*ZC23 -> 1371924921 | ZD28: =ZD27*ZD23 -> 1413357054 | ZE28: =ZE27*ZE23 -> 1456040437 | ZF28: =ZF27*ZF23 -> 1500012858 | ZG28: =ZG27*ZG23 -> 1545313247 | ZH28: =ZH27*ZH23 -> 1591981707 | ZI28: =ZI27*ZI23 -> 1640059554 | ZJ28: =ZJ27*ZJ23 -> 1689589353 | ZK28: =ZK27*ZK23 -> 1740614951 | ZL28: =ZL27*ZL23 -> 1793181523 | ZM28: =ZM27*ZM23 -> 1847335605 | ZN28: =ZN27*ZN23 -> 1903125140 | ZO28: =ZO27*ZO23 -> 1960599519 | ZP28: =ZP27*ZP23 -> 2019809625 | ZQ28: =ZQ27*ZQ23 -> 2080807875 | ZR28: =ZR27*ZR23 -> 2143648273 | ZS28: =ZS27*ZS23 -> 2208386451 | ZT28: =ZT27*ZT23 -> 2275079722 | ZU28: =ZU27*ZU23 -> 2343787129 | ZV28: =ZV27*ZV23 -> 2414569501 | ZW28: =ZW27*ZW23 -> 2487489500 | ZX28: =ZX27*ZX23 -> 2562611682 | ZY28: =ZY27*ZY23 -> 2640002555 | ZZ28: =ZZ27*ZZ23 -> 2719730632 | AAA28: =AAA27*AAA23 -> 2801866497 | AAB28: =AAB27*AAB23 -> 2886482866 | AAC28: =AAC27*AAC23 -> 2973654648 | AAD28: =AAD27*AAD23 -> 3063459019 | AAE28: =AAE27*AAE23 -> 3155975481 | AAF28: =AAF27*AAF23 -> 3251285941 | AAG28: =AAG27*AAG23 -> 3349474776 | AAH28: =AAH27*AAH23 -> 3450628914 | AAI28: =AAI27*AAI23 -> 3554837907 | AAJ28: =AAJ27*AAJ23 -> 3662194012 | AAK28: =AAK27*AAK23 -> 3772792271 | AAL28: =AAL27*AAL23 -> 3886730598 | AAM28: =AAM27*AAM23 -> 4004109862 | AAN28: =AAN27*AAN23 -> 4125033980 | AAO28: =AAO27*AAO23 -> 4249610006 | AAP28: =AAP27*AAP23 -> 4377948228 | AAQ28: =AAQ27*AAQ23 -> 4510162265 | AAR28: =AAR27*AAR23 -> 4646369165 | AAS28: =AAS27*AAS23 -> 4786689514 | AAT28: =AAT27*AAT23 -> 4931247537 | AAU28: =AAU27*AAU23 -> 5080171213 | AAV28: =AAV27*AAV23 -> 5233592383 | AAW28: =AAW27*AAW23 -> 5391646873 | AAX28: =AAX27*AAX23 -> 5554474609 | AAY28: =AAY27*AAY23 -> 5722219742 | AAZ28: =AAZ27*AAZ23 -> 5895030778 | ABA28: =ABA27*ABA23 -> 6073060708 | ABB28: =ABB27*ABB23 -> 6256467141 | ABC28: =ABC27*ABC23 -> 6445412449 | ABD28: =ABD27*ABD23 -> 6640063905 | ABE28: =ABE27*ABE23 -> 6840593835 | ABF28: =ABF27*ABF23 -> 7047179769 | ABG28: =ABG27*ABG23 -> 7260004598 | ABH28: =ABH27*ABH23 -> 7479256736 | ABI28: =ABI27*ABI23 -> 7705130290 | ABJ28: =ABJ27*ABJ23 -> 7937825225 | ABK28: =ABK27*ABK23 -> 8177547546 | ABL28: =ABL27*ABL23 -> 8424509482 | ABM28: =ABM27*ABM23 -> 8678929669 | ABN28: =ABN27*ABN23 -> 8941033345 | ABO28: =ABO27*ABO23 -> 9211052552 | ABP28: =ABP27*ABP23 -> 9489226339 | ABQ28: =ABQ27*ABQ23 -> 9775800974 | ABR28: =ABR27*ABR23 -> 1.007103016e+10 | ABS28: =ABS27*ABS23 -> 1.037517527e+10 | ABT28: =ABT27*ABT23 -> 1.068850557e+10 | ABU28: =ABU27*ABU23 -> 1.101129844e+10 | ABV28: =ABV27*ABV23 -> 1.134383965e+10 | ABW28: =ABW27*ABW23 -> 1.168642361e+10 | ABX28: =ABX27*ABX23 -> 1.20393536e+10 | ABY28: =ABY27*ABY23 -> 1.240294208e+10 | ABZ28: =ABZ27*ABZ23 -> 1.277751093e+10 | ACA28: =ACA27*ACA23 -> 1.316339176e+10 | ACB28: =ACB27*ACB23 -> 1.356092619e+10 | ACC28: =ACC27*ACC23 -> 1.397046616e+10 | ACD28: =ACD27*ACD23 -> 1.439237424e+10 | ACE28: =ACE27*ACE23 -> 1.482702394e+10 | ACF28: =ACF27*ACF23 -> 1.527480006e+10 | ACG28: =ACG27*ACG23 -> 1.573609903e+10 | ACH28: =ACH27*ACH23 -> 1.621132922e+10 | ACI28: =ACI27*ACI23 -> 1.670091136e+10 | ACJ28: =ACJ27*ACJ23 -> 1.720527888e+10 | ACK28: =ACK27*ACK23 -> 1.77248783e+10 | ACL28: =ACL27*ACL23 -> 1.826016963e+10 | ACM28: =ACM27*ACM23 -> 1.881162675e+10 | ACN28: =ACN27*ACN23 -> 1.937973788e+10 | ACO28: =ACO27*ACO23 -> 1.996500596e+10 | ACP28: =ACP27*ACP23 -> 2.056794914e+10 | ACQ28: =ACQ27*ACQ23 -> 2.118910121e+10 | ACR28: =ACR27*ACR23 -> 2.182901206e+10 | ACS28: =ACS27*ACS23 -> 2.248824823e+10 | ACT28: =ACT27*ACT23 -> 2.316739332e+10 | ACU28: =ACU27*ACU23 -> 2.38670486e+10 | ACV28: =ACV27*ACV23 -> 2.458783347e+10 | ACW28: =ACW27*ACW23 -> 2.533038604e+10 | ACX28: =ACX27*ACX23 -> 2.60953637e+10 | ACY28: =ACY27*ACY23 -> 2.688344368e+10 | ACZ28: =ACZ27*ACZ23 -> 2.769532368e+10 | ADA28: =ADA27*ADA23 -> 2.853172246e+10 | ADB28: =ADB27*ADB23 -> 2.939338048e+10 | ADC28: =ADC27*ADC23 -> 3.028106057e+10 | ADD28: =ADD27*ADD23 -> 3.11955486e+10 | ADE28: =ADE27*ADE23 -> 3.213765416e+10 | ADF28: =ADF27*ADF23 -> 3.310821132e+10 | ADG28: =ADG27*ADG23 -> 3.41080793e+10 | ADH28: =ADH27*ADH23 -> 3.51381433e+10 | ADI28: =ADI27*ADI23 -> 3.619931522e+10 | ADJ28: =ADJ27*ADJ23 -> 3.729253454e+10 | ADK28: =ADK27*ADK23 -> 3.841876909e+10 | ADL28: =ADL27*ADL23 -> 3.957901591e+10 | ADM28: =ADM27*ADM23 -> 4.077430219e+10 | ADN28: =ADN27*ADN23 -> 4.200568612e+10 | ADO28: =ADO27*ADO23 -> 4.327425784e+10 | ADP28: =ADP27*ADP23 -> 4.458114043e+10 | ADQ28: =ADQ27*ADQ23 -> 4.592749087e+10 | ADR28: =ADR27*ADR23 -> 4.731450109e+10 | ADS28: =ADS27*ADS23 -> 4.874339903e+10 | ADT28: =ADT27*ADT23 -> 5.021544968e+10 | ADU28: =ADU27*ADU23 -> 5.173195626e+10 | ADV28: =ADV27*ADV23 -> 5.329426134e+10 | ADW28: =ADW27*ADW23 -> 5.490374803e+10 | ADX28: =ADX27*ADX23 -> 5.656184122e+10 | ADY28: =ADY27*ADY23 -> 5.827000882e+10 | ADZ28: =ADZ27*ADZ23 -> 6.002976309e+10 | AEA28: =AEA27*AEA23 -> 6.184266193e+10 | AEB28: =AEB27*AEB23 -> 6.371031033e+10 | AEC28: =AEC27*AEC23 -> 6.56343617e+10 | AED28: =AED27*AED23 -> 6.761651942e+10 | AEE28: =AEE27*AEE23 -> 6.965853831e+10 | AEF28: =AEF27*AEF23 -> 7.176222616e+10 | AEG28: =AEG27*AEG23 -> 7.392944539e+10 | AEH28: =AEH27*AEH23 -> 7.616211464e+10 | AEI28: =AEI27*AEI23 -> 7.846221051e+10 | AEJ28: =AEJ27*AEJ23 -> 8.083176926e+10 | AEK28: =AEK27*AEK23 -> 8.32728887e+10 | AEL28: =AEL27*AEL23 -> 8.578772993e+10 | AEM28: =AEM27*AEM23 -> 8.837851938e+10 | AEN28: =AEN27*AEN23 -> 9.104755066e+10 | AEO28: =AEO27*AEO23 -> 9.379718669e+10 | AEP28: =AEP27*AEP23 -> 9.662986173e+10 | AEQ28: =AEQ27*AEQ23 -> 9.954808356e+10 | AER28: =AER27*AER23 -> 1.025544357e+11 | AES28: =AES27*AES23 -> 1.056515796e+11 | AET28: =AET27*AET23 -> 1.088422573e+11 | AEU28: =AEU27*AEU23 -> 1.121292935e+11 | AEV28: =AEV27*AEV23 -> 1.155155982e+11 | AEW28: =AEW27*AEW23 -> 1.190041692e+11 | AEX28: =AEX27*AEX23 -> 1.225980952e+11 | AEY28: =AEY27*AEY23 -> 1.263005576e+11 | AEZ28: =AEZ27*AEZ23 -> 1.301148345e+11 | AFA28: =AFA27*AFA23 -> 1.340443025e+11 | AFB28: =AFB27*AFB23 -> 1.380924404e+11 | AFC28: =AFC27*AFC23 -> 1.422628321e+11 | AFD28: =AFD27*AFD23 -> 1.465591696e+11 | AFE28: =AFE27*AFE23 -> 1.509852566e+11 | AFF28: =AFF27*AFF23 -> 1.555450113e+11 | AFG28: =AFG27*AFG23 -> 1.602424706e+11 | AFH28: =AFH27*AFH23 -> 1.650817933e+11 | AFI28: =AFI27*AFI23 -> 1.700672634e+11 | AFJ28: =AFJ27*AFJ23 -> 1.752032948e+11 | AFK28: =AFK27*AFK23 -> 1.804944343e+11 | AFL28: =AFL27*AFL23 -> 1.859453662e+11 | AFM28: =AFM27*AFM23 -> 1.915609162e+11 | AFN28: =AFN27*AFN23 -> 1.973460559e+11 | AFO28: =AFO27*AFO23 -> 2.033059068e+11 | AFP28: =AFP27*AFP23 -> 2.094457452e+11 | AFQ28: =AFQ27*AFQ23 -> 2.157710067e+11 | AFR28: =AFR27*AFR23 -> 2.222872911e+11 | AFS28: =AFS27*AFS23 -> 2.290003673e+11 | AFT28: =AFT27*AFT23 -> 2.359161784e+11 | AFU28: =AFU27*AFU23 -> 2.43040847e+11 | AFV28: =AFV27*AFV23 -> 2.503806805e+11 | AFW28: =AFW27*AFW23 -> 2.579421771e+11 | AFX28: =AFX27*AFX23 -> 2.657320308e+11 | AFY28: =AFY27*AFY23 -> 2.737571382e+11 | AFZ28: =AFZ27*AFZ23 -> 2.820246038e+11 | AGA28: =AGA27*AGA23 -> 2.905417468e+11 | AGB28: =AGB27*AGB23 -> 2.993161075e+11 | AGC28: =AGC27*AGC23 -> 3.08355454e+11 | AGD28: =AGD27*AGD23 -> 3.176677887e+11 | AGE28: =AGE27*AGE23 -> 3.272613559e+11 | AGF28: =AGF27*AGF23 -> 3.371446489e+11 | AGG28: =AGG27*AGG23 -> 3.473264173e+11 | AGH28: =AGH27*AGH23 -> 3.578156751e+11 | AGI28: =AGI27*AGI23 -> 3.686217084e+11 | AGJ28: =AGJ27*AGJ23 -> 3.79754084e+11 | AGK28: =AGK27*AGK23 -> 3.912226574e+11 | AGL28: =AGL27*AGL23 -> 4.030375816e+11 | AGM28: =AGM27*AGM23 -> 4.152093166e+11 | AGN28: =AGN27*AGN23 -> 4.27748638e+11 | AGO28: =AGO27*AGO23 -> 4.406666468e+11 | AGP28: =AGP27*AGP23 -> 4.539747796e+11 | AGQ28: =AGQ27*AGQ23 -> 4.676848179e+11 | AGR28: =AGR27*AGR23 -> 4.818088994e+11 | AGS28: =AGS27*AGS23 -> 4.963595282e+11 | AGT28: =AGT27*AGT23 -> 5.113495859e+11 | AGU28: =AGU27*AGU23 -> 5.267923434e+11 | AGV28: =AGV27*AGV23 -> 5.427014722e+11 | AGW28: =AGW27*AGW23 -> 5.590910566e+11 | AGX28: =AGX27*AGX23 -> 5.759756066e+11 | AGY28: =AGY27*AGY23 -> 5.933700699e+11 | AGZ28: =AGZ27*AGZ23 -> 6.11289846e+11 | AHA28: =AHA27*AHA23 -> 6.297507993e+11 | AHB28: =AHB27*AHB23 -> 6.487692735e+11 | AHC28: =AHC27*AHC23 -> 6.683621055e+11 | AHD28: =AHD27*AHD23 -> 6.885466411e+11 | AHE28: =AHE27*AHE23 -> 7.093407497e+11 | AHF28: =AHF27*AHF23 -> 7.307628403e+11 | AHG28: =AHG27*AHG23 -> 7.528318781e+11 | AHH28: =AHH27*AHH23 -> 7.755674008e+11 | AHI28: =AHI27*AHI23 -> 7.989895363e+11 | AHJ28: =AHJ27*AHJ23 -> 8.231190203e+11 | AHK28: =AHK27*AHK23 -> 8.479772147e+11 | AHL28: =AHL27*AHL23 -> 8.735861266e+11 | AHM28: =AHM27*AHM23 -> 8.999684276e+11 | AHN28: =AHN27*AHN23 -> 9.271474742e+11 | AHO28: =AHO27*AHO23 -> 9.551473279e+11 | AHP28: =AHP27*AHP23 -> 9.839927772e+11 | AHQ28: =AHQ27*AHQ23 -> 1.013709359e+12 | AHR28: =AHR27*AHR23 -> 1.044323382e+12 | AHS28: =AHS27*AHS23 -> 1.075861948e+12 | AHT28: =AHT27*AHT23 -> 1.108352979e+12 | AHU28: =AHU27*AHU23 -> 1.141825239e+12 | AHV28: =AHV27*AHV23 -> 1.176308361e+12 | AHW28: =AHW27*AHW23 -> 1.211832873e+12 | AHX28: =AHX27*AHX23 -> 1.248430226e+12 | AHY28: =AHY27*AHY23 -> 1.286132819e+12 | AHZ28: =AHZ27*AHZ23 -> 1.32497403e+12 | AIA28: =AIA27*AIA23 -> 1.364988246e+12 | AIB28: =AIB27*AIB23 -> 1.406210891e+12 | AIC28: =AIC27*AIC23 -> 1.44867846e+12 | AID28: =AID27*AID23 -> 1.492428549e+12 | AIE28: =AIE27*AIE23 -> 1.537499891e+12 | AIF28: =AIF27*AIF23 -> 1.583932388e+12 | AIG28: =AIG27*AIG23 -> 1.631767146e+12 | AIH28: =AIH27*AIH23 -> 1.681046514e+12 | AII28: =AII27*AII23 -> 1.731814119e+12 | AIJ28: =AIJ27*AIJ23 -> 1.784114905e+12 | AIK28: =AIK27*AIK23 -> 1.837995175e+12 | AIL28: =AIL27*AIL23 -> 1.89350263e+12 | AIM28: =AIM27*AIM23 -> 1.950686409e+12 | AIN28: =AIN27*AIN23 -> 2.009597138e+12 | AIO28: =AIO27*AIO23 -> 2.070286972e+12 | AIP28: =AIP27*AIP23 -> 2.132809639e+12 | AIQ28: =AIQ27*AIQ23 -> 2.19722049e+12 | AIR28: =AIR27*AIR23 -> 2.263576548e+12 | AIS28: =AIS27*AIS23 -> 2.33193656e+12 | AIT28: =AIT27*AIT23 -> 2.402361044e+12 | AIU28: =AIU27*AIU23 -> 2.474912348e+12 | AIV28: =AIV27*AIV23 -> 2.549654701e+12 | AIW28: =AIW27*AIW23 -> 2.626654273e+12 | AIX28: =AIX27*AIX23 -> 2.705979232e+12 | AIY28: =AIY27*AIY23 -> 2.787699805e+12 | AIZ28: =AIZ27*AIZ23 -> 2.871888339e+12 | AJA28: =AJA27*AJA23 -> 2.958619367e+12 | AJB28: =AJB27*AJB23 -> 3.047969671e+12 | AJC28: =AJC27*AJC23 -> 3.140018355e+12 | AJD28: =AJD27*AJD23 -> 3.23484691e+12 | AJE28: =AJE27*AJE23 -> 3.332539287e+12 | AJF28: =AJF27*AJF23 -> 3.433181973e+12 | AJG28: =AJG27*AJG23 -> 3.536864069e+12 | AJH28: =AJH27*AJH23 -> 3.643677363e+12 | AJI28: =AJI27*AJI23 -> 3.75371642e+12 | AJJ28: =AJJ27*AJJ23 -> 3.867078656e+12 | AJK28: =AJK27*AJK23 -> 3.983864431e+12 | AJL28: =AJL27*AJL23 -> 4.104177137e+12 | AJM28: =AJM27*AJM23 -> 4.228123286e+12 | AJN28: =AJN27*AJN23 -> 4.35581261e+12 | AJO28: =AJO27*AJO23 -> 4.48735815e+12 | AJP28: =AJP27*AJP23 -> 4.622876367e+12 | AJQ28: =AJQ27*AJQ23 -> 4.762487233e+12 | AJR28: =AJR27*AJR23 -> 4.906314347e+12 | AJS28: =AJS27*AJS23 -> 5.054485041e+12 | AJT28: =AJT27*AJT23 -> 5.207130489e+12 | AJU28: =AJU27*AJU23 -> 5.36438583e+12 | AJV28: =AJV27*AJV23 -> 5.526390282e+12 | AJW28: =AJW27*AJW23 -> 5.693287268e+12 | AJX28: =AJX27*AJX23 -> 5.865224544e+12 | AJY28: =AJY27*AJY23 -> 6.042354325e+12 | AJZ28: =AJZ27*AJZ23 -> 6.224833425e+12 | AKA28: =AKA27*AKA23 -> 6.412823395e+12 | AKB28: =AKB27*AKB23 -> 6.606490661e+12 | AKC28: =AKC27*AKC23 -> 6.806006679e+12 | AKD28: =AKD27*AKD23 -> 7.011548081e+12 | AKE28: =AKE27*AKE23 -> 7.223296833e+12 | AKF28: =AKF27*AKF23 -> 7.441440398e+12 | AKG28: =AKG27*AKG23 -> 7.666171898e+12 | AKH28: =AKH27*AKH23 -> 7.897690289e+12 | AKI28: =AKI27*AKI23 -> 8.136200536e+12 | AKJ28: =AKJ27*AKJ23 -> 8.381913792e+12 | AKK28: =AKK27*AKK23 -> 8.635047588e+12 | AKL28: =AKL27*AKL23 -> 8.895826025e+12 | AKM28: =AKM27*AKM23 -> 9.164479971e+12 | AKN28: =AKN27*AKN23 -> 9.441247267e+12 | AKO28: =AKO27*AKO23 -> 9.726372934e+12 | AKP28: =AKP27*AKP23 -> 1.00201094e+13 | AKQ28: =AKQ27*AKQ23 -> 1.03227167e+13 | AKR28: =AKR27*AKR23 -> 1.063446274e+13 | AKS28: =AKS27*AKS23 -> 1.095562352e+13 | AKT28: =AKT27*AKT23 -> 1.128648335e+13 | AKU28: =AKU27*AKU23 -> 1.162733515e+13 | AKV28: =AKV27*AKV23 -> 1.197848067e+13 | AKW28: =AKW27*AKW23 -> 1.234023078e+13 | AKX28: =AKX27*AKX23 -> 1.271290575e+13 | AKY28: =AKY27*AKY23 -> 1.309683551e+13 | AKZ28: =AKZ27*AKZ23 -> 1.349235994e+13 | ALA28: =ALA27*ALA23 -> 1.389982921e+13 | ALB28: =ALB27*ALB23 -> 1.431960405e+13 | ALC28: =ALC27*ALC23 -> 1.47520561e+13 | ALD28: =ALD27*ALD23 -> 1.519756819e+13 | ALE28: =ALE27*ALE23 -> 1.565653475e+13 | ALF28: =ALF27*ALF23 -> 1.61293621e+13 | ALG28: =ALG27*ALG23 -> 1.661646883e+13 | ALH28: =ALH27*ALH23 -> 1.711828619e+13 | ALI28: =ALI27*ALI23 -> 1.763525844e+13 | ALJ28: =ALJ27*ALJ23 -> 1.816784324e+13 | ALK28: =ALK27*ALK23 -> 1.871651211e+13 | ALL28: =ALL27*ALL23 -> 1.928175077e+13 | ALM28: =ALM27*ALM23 -> 1.986405964e+13 | ALN28: =ALN27*ALN23 -> 2.046395425e+13 | ALO28: =ALO27*ALO23 -> 2.108196566e+13 | ALP28: =ALP27*ALP23 -> 2.171864103e+13 | ALQ28: =ALQ27*ALQ23 -> 2.237454399e+13 | ALR28: =ALR27*ALR23 -> 2.305025521e+13
C29: Less: Dividends (Could be FCF) | G29: =G28*G24 -> 1.9992 | H29: =H28*H24 -> 2.05957584 | I29: 2.12177503 | J29: 2.185852636 | K29: 2.251865386 | L29: 2.319871721 | M29: 2.389931847 | N29: 2.462107788 | O29: 2.536463443 | P29: 2.613064639 | Q29: 2.691979192 | R29: 2.773276963 | S29: 2.857029927 | T29: 2.943312231 | U29: 3.032200261 | V29: 3.123772709 | W29: 3.218110644 | X29: 3.315297586 | Y29: 3.415419573 | Z29: 3.518565244 | AA29: 3.624825914 | AB29: 3.734295657 | AC29: 3.847071386 | AD29: 3.963252942 | AE29: 4.08294318 | AF29: 4.206248065 | AG29: 4.333276756 | AH29: 4.464141714 | AI29: 4.598958794 | AJ29: 4.737847349 | AK29: 4.880930339 | AL29: 5.028334436 | AM29: 5.180190136 | AN29: 5.336631878 | AO29: 5.49779816 | AP29: 5.663831665 | AQ29: 5.834879381 | AR29: 6.011092738 | AS29: 6.192627739 | AT29: 6.379645097 | AU29: 6.572310379 | AV29: 6.770794152 | AW29: 6.975272136 | AX29: 7.185925354 | AY29: 7.4029403 | AZ29: 7.626509097 | BA29: 7.856829672 | BB29: 8.094105928 | BC29: 8.338547927 | BD29: 8.590372074 | BE29: 8.849801311 | BF29: 9.11706531 | BG29: 9.392400683 | BH29: 9.676051183 | BI29: 9.968267929 | BJ29: 10.26930962 | BK29: 10.57944277 | BL29: 10.89894194 | BM29: 11.22808999 | BN29: 11.56717831 | BO29: 11.91650709 | BP29: 12.27638561 | BQ29: 12.64713245 | BR29: 13.02907585 | BS29: 13.42255394 | BT29: =BT28*BT24 -> 13.82791507 | BU29: 14.24551811 | BV29: 14.67573275 | BW29: 15.11893988 | BX29: 15.57553187 | BY29: 16.04591293 | BZ29: 16.5304995 | CA29: 17.02972058 | CB29: 17.54401815 | CC29: 18.07384749 | CD29: 18.61967769 | CE29: 19.18199195 | CF29: 19.76128811 | CG29: 20.35807901 | CH29: 20.972893 | CI29: 21.60627437 | CJ29: 22.25878385 | CK29: 22.93099913 | CL29: 23.6235153 | CM29: 24.33694546 | CN29: 25.07192121 | CO29: 25.82909324 | CP29: 26.60913185 | CQ29: 27.41272763 | CR29: 28.24059201 | CS29: 29.09345789 | CT29: 29.97208031 | CU29: 30.87723714 | CV29: 31.8097297 | CW29: 32.77038354 | CX29: 33.76004912 | CY29: 34.7796026 | CZ29: 35.8299466 | DA29: 36.91201099 | DB29: 38.02675372 | DC29: 39.17516168 | DD29: 40.35825157 | DE29: 41.57707076 | DF29: 42.8326983 | DG29: 44.12624579 | DH29: 45.45885841 | DI29: 46.83171594 | DJ29: 48.24603376 | DK29: 49.70306398 | DL29: 51.20409651 | DM29: 52.75046023 | DN29: 54.34352412 | DO29: 55.98469855 | DP29: 57.67543645 | DQ29: 59.41723463 | DR29: 61.21163512 | DS29: 63.0602265 | DT29: 64.96464534 | DU29: 66.92657763 | DV29: 68.94776027 | DW29: 71.02998263 | DX29: 73.17508811 | DY29: 75.38497577 | DZ29: 77.66160203 | EA29: 80.00698242 | EB29: 82.42319328 | EC29: 84.91237372 | ED29: 87.47672741 | EE29: 90.11852458 | EF29: =EF28*EF24 -> 92.84010402 | EG29: 95.64387516 | EH29: 98.53232019 | EI29: 101.5079963 | EJ29: 104.5735377 | EK29: 107.7316586 | EL29: 110.9851547 | EM29: 114.3369063 | EN29: 117.7898809 | EO29: 121.3471353 | EP29: 125.0118188 | EQ29: 128.7871757 | ER29: 132.6765484 | ES29: 136.6833802 | ET29: 140.8112183 | EU29: 145.0637171 | EV29: 149.4446413 | EW29: 153.9578695 | EX29: 158.6073972 | EY29: 163.3973406 | EZ29: 168.3319402 | FA29: 173.4155648 | FB29: 178.6527149 | FC29: 184.0480269 | FD29: 189.6062773 | FE29: 195.3323869 | FF29: 201.231425 | FG29: 207.308614 | FH29: 213.5693341 | FI29: 220.019128 | FJ29: 226.6637057 | FK29: 233.5089496 | FL29: 240.5609199 | FM29: 247.8258597 | FN29: 255.3102006 | FO29: 263.0205687 | FP29: 270.9637899 | FQ29: 279.1468963 | FR29: 287.5771326 | FS29: 296.261962 | FT29: 305.2090732 | FU29: 314.4263872 | FV29: 323.9220641 | FW29: 333.7045105 | FX29: 343.7823867 | FY29: 354.1646148 | FZ29: 364.8603861 | GA29: 375.8791698 | GB29: 387.2307207 | GC29: 398.9250885 | GD29: 410.9726262 | GE29: 423.3839995 | GF29: 436.1701963 | GG29: 449.3425362 | GH29: 462.9126808 | GI29: 476.8926437 | GJ29: 491.2948016 | GK29: 506.1319046 | GL29: 521.4170881 | GM29: 537.1638842 | GN29: 553.3862335 | GO29: 570.0984977 | GP29: 587.3154723 | GQ29: 605.0523996 | GR29: =GR28*GR24 -> 623.3249821 | GS29: 642.1493965 | GT29: 661.5423083 | GU29: 681.520886 | GV29: 702.1028168 | GW29: 723.3063219 | GX29: 745.1501728 | GY29: 767.653708 | GZ29: 790.83685 | HA29: 814.7201228 | HB29: 839.3246706 | HC29: 864.6722756 | HD29: 890.7853783 | HE29: 917.6870968 | HF29: 945.4012471 | HG29: 973.9523647 | HH29: 1003.365726 | HI29: 1033.667371 | HJ29: 1064.884126 | HK29: 1097.043626 | HL29: 1130.174344 | HM29: 1164.305609 | HN29: 1199.467638 | HO29: 1235.691561 | HP29: 1273.009446 | HQ29: 1311.454331 | HR29: 1351.060252 | HS29: 1391.862272 | HT29: 1433.896513 | HU29: 1477.200187 | HV29: 1521.811633 | HW29: 1567.770344 | HX29: 1615.117009 | HY29: 1663.893542 | HZ29: 1714.143127 | IA29: 1765.91025 | IB29: 1819.240739 | IC29: 1874.181809 | ID29: 1930.7821 | IE29: 1989.09172 | IF29: 2049.162289 | IG29: 2111.046991 | IH29: 2174.80061 | II29: 2240.479588 | IJ29: 2308.142072 | IK29: 2377.847962 | IL29: 2449.658971 | IM29: 2523.638672 | IN29: 2599.85256 | IO29: 2678.368107 | IP29: 2759.254824 | IQ29: 2842.584319 | IR29: 2928.430366 | IS29: 3016.868963 | IT29: 3107.978406 | IU29: 3201.839353 | IV29: 3298.534902 | IW29: 3398.150656 | IX29: 3500.774806 | IY29: 3606.498205 | IZ29: 3715.414451 | JA29: 3827.619967 | JB29: 3943.21409 | JC29: 4062.299156 | JD29: =JD28*JD24 -> 4184.98059 | JE29: 4311.367004 | JF29: 4441.570287 | JG29: 4575.70571 | JH29: 4713.892022 | JI29: 4856.251562 | JJ29: 5002.910359 | JK29: 5153.998252 | JL29: 5309.648999 | JM29: 5470.000398 | JN29: 5635.194411 | JO29: 5805.377282 | JP29: 5980.699676 | JQ29: 6161.316806 | JR29: 6347.388573 | JS29: 6539.079708 | JT29: 6736.559915 | JU29: 6940.004025 | JV29: 7149.592146 | JW29: 7365.509829 | JX29: 7587.948226 | JY29: 7817.104263 | JZ29: 8053.180811 | KA29: 8296.386872 | KB29: 8546.937755 | KC29: 8805.055276 | KD29: 9070.967945 | KE29: 9344.911177 | KF29: 9627.127494 | KG29: 9917.866745 | KH29: 10217.38632 | KI29: 10525.95139 | KJ29: 10843.83512 | KK29: 11171.31894 | KL29: 11508.69277 | KM29: 11856.25529 | KN29: 12214.3142 | KO29: 12583.18649 | KP29: 12963.19872 | KQ29: 13354.68733 | KR29: 13757.99888 | KS29: 14173.49045 | KT29: 14601.52986 | KU29: 15042.49606 | KV29: 15496.77944 | KW29: 15964.78218 | KX29: 16446.9186 | KY29: 16943.61555 | KZ29: 17455.31274 | LA29: 17982.46318 | LB29: 18525.53357 | LC29: 19085.00468 | LD29: 19661.37182 | LE29: 20255.14525 | LF29: 20866.85064 | LG29: 21497.02953 | LH29: 22146.23982 | LI29: 22815.05626 | LJ29: 23504.07096 | LK29: 24213.89391 | LL29: 24945.1535 | LM29: 25698.49714 | LN29: 26474.59175 | LO29: 27274.12442 | LP29: 28097.80298 | LQ29: 28946.35663 | LR29: 29820.5366 | LS29: 30721.1168 | LT29: 31648.89453 | LU29: 32604.69115 | LV29: 33589.35282 | LW29: 34603.75128 | LX29: 35648.78456 | LY29: 36725.37786 | LZ29: 37834.48427 | MA29: 38977.08569 | MB29: 40154.19368 | MC29: 41366.85033 | MD29: 42616.12921 | ME29: 43903.13631 | MF29: 45229.01103 | MG29: 46594.92716 | MH29: 48002.09396 | MI29: 49451.7572 | MJ29: 50945.20027 | MK29: 52483.74532 | ML29: 54068.75442 | MM29: 55701.63081 | MN29: 57383.82006 | MO29: 59116.81142 | MP29: 60902.13913 | MQ29: 62741.38373 | MR29: 64636.17352 | MS29: 66588.18596 | MT29: 68599.14918 | MU29: 70670.84348 | MV29: 72805.10295 | MW29: 75003.81706 | MX29: 77268.93234 | MY29: 79602.4541 | MZ29: 82006.44821 | NA29: 84483.04295 | NB29: 87034.43084 | NC29: 89662.87065 | ND29: 92370.68935 | NE29: 95160.28417 | NF29: 98034.12475 | NG29: 100994.7553 | NH29: 104044.7969 | NI29: 107186.9498 | NJ29: 110423.9957 | NK29: 113758.8003 | NL29: 117194.3161 | NM29: 120733.5845 | NN29: 124379.7387 | NO29: 128136.0068 | NP29: 132005.7142 | NQ29: 135992.2868 | NR29: 140099.2539 | NS29: 144330.2513 | NT29: 148689.0249 | NU29: 153179.4335 | NV29: 157805.4524 | NW29: 162571.177 | NX29: 167480.8266 | NY29: 172538.7475 | NZ29: 177749.4177 | OA29: 183117.4501 | OB29: 188647.5971 | OC29: 194344.7545 | OD29: 200213.9661 | OE29: 206260.4279 | OF29: 212489.4928 | OG29: 218906.6755 | OH29: 225517.6571 | OI29: 232328.2904 | OJ29: 239344.6047 | OK29: 246572.8118 | OL29: 254019.3107 | OM29: 261690.6939 | ON29: 269593.7528 | OO29: 277735.4842 | OP29: 286123.0958 | OQ29: 294764.0133 | OR29: 303665.8865 | OS29: 312836.5963 | OT29: 322284.2615 | OU29: 332017.2462 | OV29: 342044.167 | OW29: 352373.9009 | OX29: 363015.5927 | OY29: 373978.6636 | OZ29: 385272.8192 | PA29: 396908.0583 | PB29: 408894.6817 | PC29: 421243.3011 | PD29: 433964.8488 | PE29: 447070.5872 | PF29: 460572.119 | PG29: 474481.3969 | PH29: 488810.7351 | PI29: 503572.8193 | PJ29: 518780.7185 | PK29: 534447.8962 | PL29: 550588.2226 | PM29: 567215.987 | PN29: 584345.9098 | PO29: 601993.1562 | PP29: 620173.3496 | PQ29: 638902.5847 | PR29: 658197.4428 | PS29: 678075.0056 | PT29: 698552.8707 | PU29: 719649.1674 | PV29: 741382.5723 | PW29: 763772.326 | PX29: 786838.2502 | PY29: 810600.7654 | PZ29: 835080.9085 | QA29: 860300.3519 | QB29: 886281.4225 | QC29: 913047.1215 | QD29: 940621.1446 | QE29: 969027.9031 | QF29: 998292.5458 | QG29: 1028440.981 | QH29: 1059499.898 | QI29: 1091496.795 | QJ29: 1124459.998 | QK29: 1158418.69 | QL29: 1193402.935 | QM29: 1229443.703 | QN29: 1266572.903 | QO29: 1304823.405 | QP29: 1344229.072 | QQ29: 1384824.79 | QR29: 1426646.498 | QS29: 1469731.223 | QT29: 1514117.106 | QU29: 1559843.442 | QV29: 1606950.714 | QW29: 1655480.626 | QX29: 1705476.141 | QY29: 1756981.52 | QZ29: 1810042.362 | RA29: 1864705.641 | RB29: 1921019.752 | RC29: 1979034.548 | RD29: 2038801.392 | RE29: 2100373.194 | RF29: 2163804.464 | RG29: 2229151.359 | RH29: 2296471.73 | RI29: 2365825.176 | RJ29: 2437273.096 | RK29: 2510878.744 | RL29: 2586707.282 | RM29: 2664825.842 | RN29: 2745303.582 | RO29: 2828211.751 | RP29: 2913623.745 | RQ29: 3001615.183 | RR29: 3092263.961 | RS29: 3185650.333 | RT29: 3281856.973 | RU29: 3380969.053 | RV29: 3483074.319 | RW29: 3588263.163 | RX29: 3696628.711 | RY29: 3808266.898 | RZ29: 3923276.558 | SA29: 4041759.51 | SB29: 4163820.647 | SC29: 4289568.031 | SD29: 4419112.985 | SE29: 4552570.198 | SF29: 4690057.817 | SG29: 4831697.564 | SH29: 4977614.83 | SI29: 5127938.798 | SJ29: 5282802.55 | SK29: 5442343.187 | SL29: 5606701.951 | SM29: 5776024.35 | SN29: 5950460.285 | SO29: 6130164.186 | SP29: 6315295.144 | SQ29: 6506017.057 | SR29: 6702498.773 | SS29: 6904914.235 | ST29: 7113442.645 | SU29: 7328268.613 | SV29: 7549582.325 | SW29: 7777579.712 | SX29: 8012462.619 | SY29: 8254438.99 | SZ29: 8503723.048 | TA29: 8760535.484 | TB29: 9025103.655 | TC29: 9297661.786 | TD29: 9578451.171 | TE29: 9867720.397 | TF29: 10165725.55 | TG29: 10472730.46 | TH29: 10789006.92 | TI29: 11114834.93 | TJ29: 11450502.95 | TK29: 11796308.14 | TL29: 12152556.64 | TM29: 12519563.85 | TN29: 12897654.68 | TO29: 13287163.85 | TP29: 13688436.2 | TQ29: 14101826.98 | TR29: 14527702.15 | TS29: 14966438.76 | TT29: 15418425.21 | TU29: 15884061.65 | TV29: 16363760.31 | TW29: 16857945.87 | TX29: 17367055.84 | TY29: 17891540.92 | TZ29: 18431865.46 | UA29: 18988507.79 | UB29: 19561960.73 | UC29: 20152731.94 | UD29: 20761344.45 | UE29: 21388337.05 | UF29: 22034264.83 | UG29: 22699699.63 | UH29: 23385230.56 | UI29: 24091464.52 | UJ29: 24819026.75 | UK29: 25568561.35 | UL29: 26340731.91 | UM29: 27136222.01 | UN29: 27955735.92 | UO29: 28799999.14 | UP29: 29669759.11 | UQ29: 30565785.84 | UR29: 31488872.57 | US29: 32439836.52 | UT29: 33419519.59 | UU29: 34428789.08 | UV29: 35468538.51 | UW29: 36539688.37 | UX29: 37643186.96 | UY29: 38780011.21 | UZ29: 39951167.55 | VA29: 41157692.81 | VB29: 42400655.13 | VC29: 43681154.91 | VD29: 45000325.79 | VE29: 46359335.63 | VF29: 47759387.57 | VG29: 49201721.07 | VH29: 50687613.05 | VI29: 52218378.96 | VJ29: 53795374.01 | VK29: 55419994.3 | VL29: 57093678.13 | VM29: 58817907.21 | VN29: 60594208.01 | VO29: 62424153.09 | VP29: 64309362.51 | VQ29: 66251505.26 | VR29: 68252300.72 | VS29: 70313520.2 | VT29: 72436988.51 | VU29: 74624585.56 | VV29: 76878248.05 | VW29: 79199971.14 | VX29: 81591810.27 | VY29: 84055882.94 | VZ29: 86594370.6 | WA29: 89209520.59 | WB29: 91903648.11 | WC29: 94679138.29 | WD29: 97538448.26 | WE29: 100484109.4 | WF29: 103518729.5 | WG29: 106644995.1 | WH29: 109865674 | WI29: 113183617.3 | WJ29: 116601762.6 | WK29: 120123135.8 | WL29: 123750854.5 | WM29: 127488130.3 | WN29: 131338271.9 | WO29: 135304687.7 | WP29: 139390889.2 | WQ29: 143600494.1 | WR29: 147937229 | WS29: 152404933.3 | WT29: 157007562.3 | WU29: 161749190.7 | WV29: 166634016.3 | WW29: 171666363.6 | WX29: 176850687.7 | WY29: 182191578.5 | WZ29: 187693764.2 | XA29: 193362115.8 | XB29: 199201651.7 | XC29: 205217541.6 | XD29: 211415111.4 | XE29: 217799847.8 | XF29: 224377403.2 | XG29: 231153600.7 | XH29: 238134439.5 | XI29: 245326099.5 | XJ29: 252734947.7 | XK29: 260367543.2 | XL29: 268230643 | XM29: 276331208.4 | XN29: 284676410.9 | XO29: 293273638.5 | XP29: 302130502.4 | XQ29: 311254843.5 | XR29: 320654739.8 | XS29: 330338513 | XT29: 340314736.1 | XU29: 350592241.1 | XV29: 361180126.8 | XW29: 372087766.6 | XX29: 383324817.1 | XY29: 394901226.6 | XZ29: 406827243.7 | YA29: 419113426.4 | YB29: 431770651.9 | YC29: 444810125.6 | YD29: 458243391.4 | YE29: 472082341.8 | YF29: 486339228.5 | YG29: 501026673.2 | YH29: 516157678.8 | YI29: 531745640.7 | YJ29: 547804359 | YK29: 564348050.7 | YL29: 581391361.8 | YM29: 598949380.9 | YN29: 617037652.2 | YO29: 635672189.3 | YP29: 654869489.4 | YQ29: 674646548 | YR29: 695020873.8 | YS29: 716010504.1 | YT29: 737634021.4 | YU29: 759910568.8 | YV29: 782859868 | YW29: 806502236 | YX29: 830858603.5 | YY29: 855950533.4 | YZ29: 881800239.5 | ZA29: 908430606.7 | ZB29: 935865211 | ZC29: 964128340.4 | ZD29: 993245016.3 | ZE29: 1023241016 | ZF29: 1054142894 | ZG29: 1085978010 | ZH29: 1118774546 | ZI29: 1152561537 | ZJ29: 1187368895 | ZK29: 1223227436 | ZL29: 1260168905 | ZM29: 1298226006 | ZN29: 1337432431 | ZO29: 1377822890 | ZP29: 1419433142 | ZQ29: 1462300023 | ZR29: 1506461483 | ZS29: 1551956620 | ZT29: 1598825710 | ZU29: 1647110246 | ZV29: 1696852976 | ZW29: 1748097936 | ZX29: 1800890493 | ZY29: 1855277386 | ZZ29: 1911306763 | AAA29: 1969028228 | AAB29: 2028492880 | AAC29: 2089753365 | AAD29: 2152863917 | AAE29: 2217880407 | AAF29: 2284860395 | AAG29: 2353863179 | AAH29: 2424949847 | AAI29: 2498183333 | AAJ29: 2573628469 | AAK29: 2651352049 | AAL29: 2731422881 | AAM29: 2813911852 | AAN29: 2898891990 | AAO29: 2986438528 | AAP29: 3076628971 | AAQ29: 3169543166 | AAR29: 3265263370 | AAS29: 3363874324 | AAT29: 3465463328 | AAU29: 3570120321 | AAV29: 3677937954 | AAW29: 3789011681 | AAX29: 3903439833 | AAY29: 4021323716 | AAZ29: 4142767693 | ABA29: 4267879277 | ABB29: 4396769231 | ABC29: 4529551662 | ABD29: 4666344122 | ABE29: 4807267715 | ABF29: 4952447200 | ABG29: 5102011105 | ABH29: 5256091840 | ABI29: 5414825814 | ABJ29: 5578353554 | ABK29: 5746819831 | ABL29: 5920373790 | ABM29: 6099169078 | ABN29: 6283363984 | ABO29: 6473121577 | ABP29: 6668609848 | ABQ29: 6870001866 | ABR29: 7077475922 | ABS29: 7291215695 | ABT29: 7511410409 | ABU29: 7738255003 | ABV29: 7971950304 | ABW29: 8212703204 | ABX29: 8460726840 | ABY29: 8716240791 | ABZ29: 8979471263 | ACA29: 9250651295 | ACB29: 9530020964 | ACC29: 9817827597 | ACD29: 1.011432599e+10 | ACE29: 1.041977864e+10 | ACF29: 1.073445595e+10 | ACG29: 1.105863652e+10 | ACH29: 1.139260734e+10 | ACI29: 1.173666408e+10 | ACJ29: 1.209111134e+10 | ACK29: 1.24562629e+10 | ACL29: 1.283244204e+10 | ACM29: 1.321998179e+10 | ACN29: 1.361922524e+10 | ACO29: 1.403052584e+10 | ACP29: 1.445424772e+10 | ACQ29: 1.489076601e+10 | ACR29: 1.534046714e+10 | ACS29: 1.580374925e+10 | ACT29: 1.628102247e+10 | ACU29: 1.677270935e+10 | ACV29: 1.727924518e+10 | ACW29: 1.780107838e+10 | ACX29: 1.833867095e+10 | ACY29: 1.889249881e+10 | ACZ29: 1.946305227e+10 | ADA29: 2.005083645e+10 | ADB29: 2.065637171e+10 | ADC29: 2.128019414e+10 | ADD29: 2.1922856e+10 | ADE29: 2.258492625e+10 | ADF29: 2.326699103e+10 | ADG29: 2.396965415e+10 | ADH29: 2.469353771e+10 | ADI29: 2.543928255e+10 | ADJ29: 2.620754888e+10 | ADK29: 2.699901686e+10 | ADL29: 2.781438717e+10 | ADM29: 2.865438166e+10 | ADN29: 2.951974399e+10 | ADO29: 3.041124025e+10 | ADP29: 3.132965971e+10 | ADQ29: 3.227581543e+10 | ADR29: 3.325054506e+10 | ADS29: 3.425471152e+10 | ADT29: 3.528920381e+10 | ADU29: 3.635493776e+10 | ADV29: 3.745285688e+10 | ADW29: 3.858393316e+10 | ADX29: 3.974916794e+10 | ADY29: 4.094959281e+10 | ADZ29: 4.218627052e+10 | AEA29: 4.346029589e+10 | AEB29: 4.477279682e+10 | AEC29: 4.612493529e+10 | AED29: 4.751790833e+10 | AEE29: 4.895294916e+10 | AEF29: 5.043132823e+10 | AEG29: 5.195435434e+10 | AEH29: 5.352337584e+10 | AEI29: 5.513978179e+10 | AEJ29: 5.68050032e+10 | AEK29: 5.85205143e+10 | AEL29: 6.028783383e+10 | AEM29: 6.210852641e+10 | AEN29: 6.398420391e+10 | AEO29: 6.591652687e+10 | AEP29: 6.790720598e+10 | AEQ29: 6.99580036e+10 | AER29: 7.207073531e+10 | AES29: 7.424727152e+10 | AET29: 7.648953912e+10 | AEU29: 7.87995232e+10 | AEV29: 8.11792688e+10 | AEW29: 8.363088272e+10 | AEX29: 8.615653537e+10 | AEY29: 8.875846274e+10 | AEZ29: 9.143896832e+10 | AFA29: 9.420042516e+10 | AFB29: 9.7045278e+10 | AFC29: 9.99760454e+10 | AFD29: 1.02995322e+11 | AFE29: 1.061057807e+11 | AFF29: 1.093101753e+11 | AFG29: 1.126113426e+11 | AFH29: 1.160122051e+11 | AFI29: 1.195157737e+11 | AFJ29: 1.231251501e+11 | AFK29: 1.268435296e+11 | AFL29: 1.306742042e+11 | AFM29: 1.346205652e+11 | AFN29: 1.386861062e+11 | AFO29: 1.428744266e+11 | AFP29: 1.471892343e+11 | AFQ29: 1.516343492e+11 | AFR29: 1.562137065e+11 | AFS29: 1.609313605e+11 | AFT29: 1.657914876e+11 | AFU29: 1.707983905e+11 | AFV29: 1.759565019e+11 | AFW29: 1.812703882e+11 | AFX29: 1.86744754e+11 | AFY29: 1.923844455e+11 | AFZ29: 1.981944558e+11 | AGA29: 2.041799284e+11 | AGB29: 2.103461622e+11 | AGC29: 2.166986163e+11 | AGD29: 2.232429145e+11 | AGE29: 2.299848505e+11 | AGF29: 2.36930393e+11 | AGG29: 2.440856909e+11 | AGH29: 2.514570787e+11 | AGI29: 2.590510825e+11 | AGJ29: 2.668744252e+11 | AGK29: 2.749340328e+11 | AGL29: 2.832370406e+11 | AGM29: 2.917907993e+11 | AGN29: 3.006028814e+11 | AGO29: 3.096810884e+11 | AGP29: 3.190334573e+11 | AGQ29: 3.286682677e+11 | AGR29: 3.385940494e+11 | AGS29: 3.488195897e+11 | AGT29: 3.593539413e+11 | AGU29: 3.702064303e+11 | AGV29: 3.813866645e+11 | AGW29: 3.929045418e+11 | AGX29: 4.047702589e+11 | AGY29: 4.169943208e+11 | AGZ29: 4.295875492e+11 | AHA29: 4.425610932e+11 | AHB29: 4.559264382e+11 | AHC29: 4.696954167e+11 | AHD29: 4.838802183e+11 | AHE29: 4.984934009e+11 | AHF29: 5.135479016e+11 | AHG29: 5.290570482e+11 | AHH29: 5.45034571e+11 | AHI29: 5.614946151e+11 | AHJ29: 5.784517525e+11 | AHK29: 5.959209954e+11 | AHL29: 6.139178095e+11 | AHM29: 6.324581273e+11 | AHN29: 6.515583627e+11 | AHO29: 6.712354253e+11 | AHP29: 6.915067351e+11 | AHQ29: 7.123902385e+11 | AHR29: 7.339044237e+11 | AHS29: 7.560683373e+11 | AHT29: 7.789016011e+11 | AHU29: 8.024244295e+11 | AHV29: 8.266576473e+11 | AHW29: 8.516227082e+11 | AHX29: 8.77341714e+11 | AHY29: 9.038374338e+11 | AHZ29: 9.311333243e+11 | AIA29: 9.592535506e+11 | AIB29: 9.882230079e+11 | AIC29: 1.018067343e+12 | AID29: 1.048812976e+12 | AIE29: 1.080487128e+12 | AIF29: 1.11311784e+12 | AIG29: 1.146733998e+12 | AIH29: 1.181365365e+12 | AII29: 1.217042599e+12 | AIJ29: 1.253797286e+12 | AIK29: 1.291661964e+12 | AIL29: 1.330670155e+12 | AIM29: 1.370856394e+12 | AIN29: 1.412256257e+12 | AIO29: 1.454906396e+12 | AIP29: 1.498844569e+12 | AIQ29: 1.544109675e+12 | AIR29: 1.590741787e+12 | AIS29: 1.638782189e+12 | AIT29: 1.688273411e+12 | AIU29: 1.739259268e+12 | AIV29: 1.791784898e+12 | AIW29: 1.845896802e+12 | AIX29: 1.901642885e+12 | AIY29: 1.9590725e+12 | AIZ29: 2.01823649e+12 | AJA29: 2.079187232e+12 | AJB29: 2.141978686e+12 | AJC29: 2.206666443e+12 | AJD29: 2.273307769e+12 | AJE29: 2.341961664e+12 | AJF29: 2.412688906e+12 | AJG29: 2.485552111e+12 | AJH29: 2.560615785e+12 | AJI29: 2.637946382e+12 | AJJ29: 2.717612362e+12 | AJK29: 2.799684256e+12 | AJL29: 2.88423472e+12 | AJM29: 2.971338609e+12 | AJN29: 3.061073035e+12 | AJO29: 3.15351744e+12 | AJP29: 3.248753667e+12 | AJQ29: 3.346866028e+12 | AJR29: 3.447941382e+12 | AJS29: 3.552069212e+12 | AJT29: 3.659341702e+12 | AJU29: 3.769853821e+12 | AJV29: 3.883703407e+12 | AJW29: 4.000991249e+12 | AJX29: 4.121821185e+12 | AJY29: 4.246300185e+12 | AJZ29: 4.374538451e+12 | AKA29: 4.506649512e+12 | AKB29: 4.642750327e+12 | AKC29: 4.782961387e+12 | AKD29: 4.927406821e+12 | AKE29: 5.076214507e+12 | AKF29: 5.229516185e+12 | AKG29: 5.387447574e+12 | AKH29: 5.55014849e+12 | AKI29: 5.717762975e+12 | AKJ29: 5.890439417e+12 | AKK29: 6.068330687e+12 | AKL29: 6.251594274e+12 | AKM29: 6.440392421e+12 | AKN29: 6.634892272e+12 | AKO29: 6.835266019e+12 | AKP29: 7.041691052e+12 | AKQ29: 7.254350122e+12 | AKR29: 7.473431496e+12 | AKS29: 7.699129127e+12 | AKT29: 7.931642827e+12 | AKU29: 8.17117844e+12 | AKV29: 8.417948029e+12 | AKW29: 8.672170059e+12 | AKX29: 8.934069595e+12 | AKY29: 9.203878497e+12 | AKZ29: 9.481835628e+12 | ALA29: 9.768187063e+12 | ALB29: 1.006318631e+13 | ALC29: 1.036709454e+13 | ALD29: 1.068018079e+13 | ALE29: 1.100272225e+13 | ALF29: 1.133500447e+13 | ALG29: 1.16773216e+13 | ALH29: 1.202997671e+13 | ALI29: 1.239328201e+13 | ALJ29: 1.276755913e+13 | ALK29: 1.315313941e+13 | ALL29: 1.355036422e+13 | ALM29: 1.395958522e+13 | ALN29: 1.43811647e+13 | ALO29: 1.481547587e+13 | ALP29: 1.526290324e+13 | ALQ29: 1.572384292e+13 | ALR29: 1.619870298e+13
C30: Closing Balance | F30: =E16 -> 28 | G30: =G27+G28-G29 -> 28.8456 | H30: =H27+H28-H29 -> 29.71673712 | I30: 30.61418258 | J30: 31.53873089 | K30: 32.49120057 | L30: 33.47243483 | M30: 34.48330236 | N30: 35.52469809 | O30: 36.59754397 | P30: 37.7027898 | Q30: 38.84141405 | R30: 40.01442475 | S30: 41.22286038 | T30: 42.46779077 | U30: 43.75031805 | V30: 45.07157765 | W30: 46.4327393 | X30: 47.83500802 | Y30: 49.27962527 | Z30: 50.76786995 | AA30: 52.30105962 | AB30: 53.88055162 | AC30: 55.50774428 | AD30: 57.18407816 | AE30: 58.91103732 | AF30: 60.69015065 | AG30: 62.5229932 | AH30: 64.41118759 | AI30: 66.35640545 | AJ30: 68.3603689 | AK30: 70.42485204 | AL30: 72.55168257 | AM30: 74.74274339 | AN30: 76.99997424 | AO30: 79.32537346 | AP30: 81.72099974 | AQ30: 84.18897393 | AR30: 86.73148094 | AS30: 89.35077167 | AT30: 92.04916497 | AU30: 94.82904975 | AV30: 97.69288705 | AW30: 100.6432122 | AX30: 103.6826373 | AY30: 106.8138529 | AZ30: 110.0396313 | BA30: 113.3628281 | BB30: 116.7863855 | BC30: 120.3133344 | BD30: 123.9467971 | BE30: 127.6899903 | BF30: 131.546228 | BG30: 135.5189241 | BH30: 139.6115956 | BI30: 143.8278658 | BJ30: 148.1714674 | BK30: 152.6462457 | BL30: 157.2561623 | BM30: 162.0052984 | BN30: 166.8978584 | BO30: 171.9381738 | BP30: 177.1307066 | BQ30: 182.4800539 | BR30: 187.9909516 | BS30: 193.6682783 | BT30: =BT27+BT28-BT29 -> 199.5170603 | BU30: 205.5424755 | BV30: 211.7498583 | BW30: 218.144704 | BX30: 224.7326741 | BY30: 231.5196008 | BZ30: 238.5114928 | CA30: 245.7145399 | CB30: 253.135119 | CC30: 260.7797996 | CD30: 268.6553495 | CE30: 276.7687411 | CF30: 285.127157 | CG30: 293.7379972 | CH30: 302.6088847 | CI30: 311.747673 | CJ30: 321.1624527 | CK30: 330.8615588 | CL30: 340.8535779 | CM30: 351.1473559 | CN30: 361.7520061 | CO30: 372.6769167 | CP30: 383.9317596 | CQ30: 395.5264987 | CR30: 407.471399 | CS30: 419.7770352 | CT30: 432.4543017 | CU30: 445.5144216 | CV30: 458.9689571 | CW30: 472.8298196 | CX30: 487.1092802 | CY30: 501.8199804 | CZ30: 516.9749438 | DA30: 532.5875871 | DB30: 548.6717323 | DC30: 565.2416186 | DD30: 582.3119155 | DE30: 599.8977353 | DF30: 618.0146469 | DG30: 636.6786893 | DH30: 655.9063857 | DI30: 675.7147585 | DJ30: 696.1213442 | DK30: 717.1442088 | DL30: 738.8019639 | DM30: 761.1137832 | DN30: 784.0994195 | DO30: 807.779222 | DP30: 832.1741545 | DQ30: 857.3058139 | DR30: 883.1964495 | DS30: 909.8689823 | DT30: 937.3470256 | DU30: 965.6549057 | DV30: 994.8176839 | DW30: 1024.861178 | DX30: 1055.811986 | DY30: 1087.697507 | DZ30: 1120.545972 | EA30: 1154.386461 | EB30: 1189.248932 | EC30: 1225.164249 | ED30: 1262.16421 | EE30: 1300.281569 | EF30: =EF27+EF28-EF29 -> 1339.550072 | EG30: 1380.004484 | EH30: 1421.68062 | EI30: 1464.615375 | EJ30: 1508.846759 | EK30: 1554.413931 | EL30: 1601.357232 | EM30: 1649.71822 | EN30: 1699.53971 | EO30: 1750.86581 | EP30: 1803.741957 | EQ30: 1858.214964 | ER30: 1914.333056 | ES30: 1972.145914 | ET30: 2031.704721 | EU30: 2093.062204 | EV30: 2156.272682 | EW30: 2221.392117 | EX30: 2288.478159 | EY30: 2357.590199 | EZ30: 2428.789424 | FA30: 2502.138864 | FB30: 2577.703458 | FC30: 2655.550102 | FD30: 2735.747715 | FE30: 2818.367296 | FF30: 2903.481989 | FG30: 2991.167145 | FH30: 3081.500392 | FI30: 3174.561704 | FJ30: 3270.433468 | FK30: 3369.200559 | FL30: 3470.950415 | FM30: 3575.773118 | FN30: 3683.761466 | FO30: 3795.011062 | FP30: 3909.620396 | FQ30: 4027.690932 | FR30: 4149.327199 | FS30: 4274.63688 | FT30: 4403.730914 | FU30: 4536.723587 | FV30: 4673.73264 | FW30: 4814.879365 | FX30: 4960.288722 | FY30: 5110.089442 | FZ30: 5264.414143 | GA30: 5423.39945 | GB30: 5587.186113 | GC30: 5755.919134 | GD30: 5929.747892 | GE30: 6108.826278 | GF30: 6293.312832 | GG30: 6483.370879 | GH30: 6679.16868 | GI30: 6880.879574 | GJ30: 7088.682137 | GK30: 7302.760338 | GL30: 7523.3037 | GM30: 7750.507472 | GN30: 7984.572797 | GO30: 8225.706896 | GP30: 8474.123244 | GQ30: 8730.041766 | GR30: =GR27+GR28-GR29 -> 8993.689027 | GS30: 9265.298436 | GT30: 9545.110449 | GU30: 9833.372784 | GV30: 10130.34064 | GW30: 10436.27693 | GX30: 10751.45249 | GY30: 11076.14636 | GZ30: 11410.64598 | HA30: 11755.24749 | HB30: 12110.25596 | HC30: 12475.98569 | HD30: 12852.76046 | HE30: 13240.91382 | HF30: 13640.78942 | HG30: 14052.74126 | HH30: 14477.13405 | HI30: 14914.3435 | HJ30: 15364.75667 | HK30: 15828.77232 | HL30: 16306.80125 | HM30: 16799.26664 | HN30: 17306.6045 | HO30: 17829.26395 | HP30: 18367.70772 | HQ30: 18922.4125 | HR30: 19493.86935 | HS30: 20082.58421 | HT30: 20689.07825 | HU30: 21313.88842 | HV30: 21957.56785 | HW30: 22620.68639 | HX30: 23303.83112 | HY30: 24007.60682 | HZ30: 24732.63655 | IA30: 25479.56217 | IB30: 26249.04495 | IC30: 27041.76611 | ID30: 27858.42744 | IE30: 28699.75195 | IF30: 29566.48446 | IG30: 30459.39229 | IH30: 31379.26594 | II30: 32326.91977 | IJ30: 33303.19275 | IK30: 34308.94917 | IL30: 35345.07943 | IM30: 36412.50083 | IN30: 37512.15836 | IO30: 38645.02554 | IP30: 39812.10531 | IQ30: 41014.43089 | IR30: 42253.06671 | IS30: 43529.10932 | IT30: 44843.68842 | IU30: 46197.96781 | IV30: 47593.14644 | IW30: 49030.45946 | IX30: 50511.17934 | IY30: 52036.61695 | IZ30: 53608.12279 | JA30: 55227.0881 | JB30: 56894.94616 | JC30: 58613.17353 | JD30: =JD27+JD28-JD29 -> 60383.29137 | JE30: 62206.86677 | JF30: 64085.51415 | JG30: 66020.89667 | JH30: 68014.72775 | JI30: 70068.77253 | JJ30: 72184.84946 | JK30: 74364.83191 | JL30: 76610.64984 | JM30: 78924.29146 | JN30: 81307.80507 | JO30: 83763.30078 | JP30: 86292.95246 | JQ30: 88898.99963 | JR30: 91583.74942 | JS30: 94349.57865 | JT30: 97198.93592 | JU30: 100134.3438 | JV30: 103158.401 | JW30: 106273.7847 | JX30: 109483.253 | JY30: 112789.6472 | JZ30: 116195.8946 | KA30: 119705.0106 | KB30: 123320.1019 | KC30: 127044.369 | KD30: 130881.1089 | KE30: 134833.7184 | KF30: 138905.6967 | KG30: 143100.6487 | KH30: 147422.2883 | KI30: 151874.4414 | KJ30: 156461.0496 | KK30: 161186.1733 | KL30: 166053.9957 | KM30: 171068.8264 | KN30: 176235.1049 | KO30: 181557.4051 | KP30: 187040.4387 | KQ30: 192689.06 | KR30: 198508.2696 | KS30: 204503.2193 | KT30: 210679.2166 | KU30: =KU27+KU28-KU29 -> 217041.7289 | KV30: =KV27+KV28-KV29 -> 223596.3891 | KW30: =KW27+KW28-KW29 -> 230349.0001 | KX30: =KX27+KX28-KX29 -> 237305.5399 | KY30: =KY27+KY28-KY29 -> 244472.1672 | KZ30: =KZ27+KZ28-KZ29 -> 251855.2266 | LA30: =LA27+LA28-LA29 -> 259461.2545 | LB30: =LB27+LB28-LB29 -> 267296.9844 | LC30: =LC27+LC28-LC29 -> 275369.3533 | LD30: =LD27+LD28-LD29 -> 283685.5077 | LE30: =LE27+LE28-LE29 -> 292252.8101 | LF30: =LF27+LF28-LF29 -> 301078.8449 | LG30: =LG27+LG28-LG29 -> 310171.4261 | LH30: =LH27+LH28-LH29 -> 319538.6031 | LI30: =LI27+LI28-LI29 -> 329188.6689 | LJ30: =LJ27+LJ28-LJ29 -> 339130.1667 | LK30: =LK27+LK28-LK29 -> 349371.8978 | LL30: =LL27+LL28-LL29 -> 359922.9291 | LM30: =LM27+LM28-LM29 -> 370792.6016 | LN30: =LN27+LN28-LN29 -> 381990.5381 | LO30: =LO27+LO28-LO29 -> 393526.6524 | LP30: =LP27+LP28-LP29 -> 405411.1573 | LQ30: =LQ27+LQ28-LQ29 -> 417654.5742 | LR30: =LR27+LR28-LR29 -> 430267.7424 | LS30: =LS27+LS28-LS29 -> 443261.8282 | LT30: =LT27+LT28-LT29 -> 456648.3354 | LU30: =LU27+LU28-LU29 -> 470439.1151 | LV30: =LV27+LV28-LV29 -> 484646.3764 | LW30: =LW27+LW28-LW29 -> 499282.697 | LX30: =LX27+LX28-LX29 -> 514361.0344 | LY30: =LY27+LY28-LY29 -> 529894.7377 | LZ30: =LZ27+LZ28-LZ29 -> 545897.5587 | MA30: =MA27+MA28-MA29 -> 562383.665 | MB30: =MB27+MB28-MB29 -> 579367.6517 | MC30: =MC27+MC28-MC29 -> 596864.5548 | MD30: =MD27+MD28-MD29 -> 614889.8643 | ME30: =ME27+ME28-ME29 -> 633459.5382 | MF30: =MF27+MF28-MF29 -> 652590.0163 | MG30: =MG27+MG28-MG29 -> 672298.2348 | MH30: =MH27+MH28-MH29 -> 692601.6415 | MI30: =MI27+MI28-MI29 -> 713518.211 | MJ30: =MJ27+MJ28-MJ29 -> 735066.461 | MK30: =MK27+MK28-MK29 -> 757265.4681 | ML30: =ML27+ML28-ML29 -> 780134.8853 | MM30: =MM27+MM28-MM29 -> 803694.9588 | MN30: =MN27+MN28-MN29 -> 827966.5466 | MO30: =MO27+MO28-MO29 -> 852971.1363 | MP30: =MP27+MP28-MP29 -> 878730.8646 | MQ30: =MQ27+MQ28-MQ29 -> 905268.5367 | MR30: =MR27+MR28-MR29 -> 932607.6465 | MS30: =MS27+MS28-MS29 -> 960772.3974 | MT30: =MT27+MT28-MT29 -> 989787.7238 | MU30: =MU27+MU28-MU29 -> 1019679.313 | MV30: =MV27+MV28-MV29 -> 1050473.628 | MW30: =MW27+MW28-MW29 -> 1082197.932 | MX30: =MX27+MX28-MX29 -> 1114880.309 | MY30: =MY27+MY28-MY29 -> 1148549.695 | MZ30: =MZ27+MZ28-MZ29 -> 1183235.896 | NA30: =NA27+NA28-NA29 -> 1218969.62 | NB30: =NB27+NB28-NB29 -> 1255782.502 | NC30: =NC27+NC28-NC29 -> 1293707.134 | ND30: =ND27+ND28-ND29 -> 1332777.089 | NE30: =NE27+NE28-NE29 -> 1373026.957 | NF30: =NF27+NF28-NF29 -> 1414492.371 | NG30: =NG27+NG28-NG29 -> 1457210.041 | NH30: =NH27+NH28-NH29 -> 1501217.784 | NI30: =NI27+NI28-NI29 -> 1546554.561 | NJ30: =NJ27+NJ28-NJ29 -> 1593260.509 | NK30: =NK27+NK28-NK29 -> 1641376.976 | NL30: =NL27+NL28-NL29 -> 1690946.561 | NM30: =NM27+NM28-NM29 -> 1742013.147 | NN30: =NN27+NN28-NN29 -> 1794621.944 | NO30: =NO27+NO28-NO29 -> 1848819.527 | NP30: =NP27+NP28-NP29 -> 1904653.877 | NQ30: =NQ27+NQ28-NQ29 -> 1962174.424 | NR30: =NR27+NR28-NR29 -> 2021432.091 | NS30: =NS27+NS28-NS29 -> 2082479.341 | NT30: =NT27+NT28-NT29 -> 2145370.217 | NU30: =NU27+NU28-NU29 -> 2210160.397 | NV30: =NV27+NV28-NV29 -> 2276907.241 | NW30: =NW27+NW28-NW29 -> 2345669.84 | NX30: =NX27+NX28-NX29 -> 2416509.069 | NY30: =NY27+NY28-NY29 -> 2489487.643 | NZ30: =NZ27+NZ28-NZ29 -> 2564670.17 | OA30: =OA27+OA28-OA29 -> 2642123.209 | OB30: =OB27+OB28-OB29 -> 2721915.33 | OC30: =OC27+OC28-OC29 -> 2804117.173 | OD30: =OD27+OD28-OD29 -> 2888801.511 | OE30: =OE27+OE28-OE29 -> 2976043.317 | OF30: =OF27+OF28-OF29 -> 3065919.825 | OG30: =OG27+OG28-OG29 -> 3158510.604 | OH30: =OH27+OH28-OH29 -> 3253897.624 | OI30: =OI27+OI28-OI29 -> 3352165.332 | OJ30: =OJ27+OJ28-OJ29 -> 3453400.725 | OK30: =OK27+OK28-OK29 -> 3557693.427 | OL30: =OL27+OL28-OL29 -> 3665135.769 | OM30: =OM27+OM28-OM29 -> 3775822.869 | ON30: =ON27+ON28-ON29 -> 3889852.72 | OO30: =OO27+OO28-OO29 -> 4007326.272 | OP30: =OP27+OP28-OP29 -> 4128347.525 | OQ30: =OQ27+OQ28-OQ29 -> 4253023.62 | OR30: =OR27+OR28-OR29 -> 4381464.934 | OS30: =OS27+OS28-OS29 -> 4513785.175 | OT30: =OT27+OT28-OT29 -> 4650101.487 | OU30: =OU27+OU28-OU29 -> 4790534.552 | OV30: =OV27+OV28-OV29 -> 4935208.695 | OW30: =OW27+OW28-OW29 -> 5084251.998 | OX30: =OX27+OX28-OX29 -> 5237796.408 | OY30: =OY27+OY28-OY29 -> 5395977.86 | OZ30: =OZ27+OZ28-OZ29 -> 5558936.391 | PA30: =PA27+PA28-PA29 -> 5726816.27 | PB30: =PB27+PB28-PB29 -> 5899766.122 | PC30: =PC27+PC28-PC29 -> 6077939.059 | PD30: =PD27+PD28-PD29 -> 6261492.818 | PE30: =PE27+PE28-PE29 -> 6450589.901 | PF30: =PF27+PF28-PF29 -> 6645397.716 | PG30: =PG27+PG28-PG29 -> 6846088.727 | PH30: =PH27+PH28-PH29 -> 7052840.607 | PI30: =PI27+PI28-PI29 -> 7265836.393 | PJ30: =PJ27+PJ28-PJ29 -> 7485264.652 | PK30: =PK27+PK28-PK29 -> 7711319.645 | PL30: =PL27+PL28-PL29 -> 7944201.498 | PM30: =PM27+PM28-PM29 -> 8184116.383 | PN30: =PN27+PN28-PN29 -> 8431276.698 | PO30: =PO27+PO28-PO29 -> 8685901.254 | PP30: =PP27+PP28-PP29 -> 8948215.472 | PQ30: =PQ27+PQ28-PQ29 -> 9218451.58 | PR30: =PR27+PR28-PR29 -> 9496848.817 | PS30: =PS27+PS28-PS29 -> 9783653.652 | PT30: =PT27+PT28-PT29 -> 10079119.99 | PU30: =PU27+PU28-PU29 -> 10383509.42 | PV30: =PV27+PV28-PV29 -> 10697091.4 | PW30: =PW27+PW28-PW29 -> 11020143.56 | PX30: =PX27+PX28-PX29 -> 11352951.9 | PY30: =PY27+PY28-PY29 -> 11695811.04 | PZ30: =PZ27+PZ28-PZ29 -> 12049024.54 | QA30: =QA27+QA28-QA29 -> 12412905.08 | QB30: =QB27+QB28-QB29 -> 12787774.81 | QC30: =QC27+QC28-QC29 -> 13173965.61 | QD30: =QD27+QD28-QD29 -> 13571819.37 | QE30: =QE27+QE28-QE29 -> 13981688.32 | QF30: =QF27+QF28-QF29 -> 14403935.3 | QG30: =QG27+QG28-QG29 -> 14838934.15 | QH30: =QH27+QH28-QH29 -> 15287069.96 | QI30: =QI27+QI28-QI29 -> 15748739.47 | QJ30: =QJ27+QJ28-QJ29 -> 16224351.41 | QK30: =QK27+QK28-QK29 -> 16714326.82 | QL30: =QL27+QL28-QL29 -> 17219099.49 | QM30: =QM27+QM28-QM29 -> 17739116.29 | QN30: =QN27+QN28-QN29 -> 18274837.61 | QO30: =QO27+QO28-QO29 -> 18826737.7 | QP30: =QP27+QP28-QP29 -> 19395305.18 | QQ30: =QQ27+QQ28-QQ29 -> 19981043.4 | QR30: =QR27+QR28-QR29 -> 20584470.91 | QS30: =QS27+QS28-QS29 -> 21206121.93 | QT30: =QT27+QT28-QT29 -> 21846546.81 | QU30: =QU27+QU28-QU29 -> 22506312.52 | QV30: =QV27+QV28-QV29 -> 23186003.16 | QW30: =QW27+QW28-QW29 -> 23886220.46 | QX30: =QX27+QX28-QX29 -> 24607584.32 | QY30: =QY27+QY28-QY29 -> 25350733.36 | QZ30: =QZ27+QZ28-QZ29 -> 26116325.51 | RA30: =RA27+RA28-RA29 -> 26905038.54 | RB30: =RB27+RB28-RB29 -> 27717570.7 | RC30: =RC27+RC28-RC29 -> 28554641.34 | RD30: =RD27+RD28-RD29 -> 29416991.51 | RE30: =RE27+RE28-RE29 -> 30305384.65 | RF30: =RF27+RF28-RF29 -> 31220607.27 | RG30: =RG27+RG28-RG29 -> 32163469.61 | RH30: =RH27+RH28-RH29 -> 33134806.39 | RI30: =RI27+RI28-RI29 -> 34135477.54 | RJ30: =RJ27+RJ28-RJ29 -> 35166368.96 | RK30: =RK27+RK28-RK29 -> 36228393.31 | RL30: =RL27+RL28-RL29 -> 37322490.78 | RM30: =RM27+RM28-RM29 -> 38449630.01 | RN30: =RN27+RN28-RN29 -> 39610808.83 | RO30: =RO27+RO28-RO29 -> 40807055.26 | RP30: =RP27+RP28-RP29 -> 42039428.33 | RQ30: =RQ27+RQ28-RQ29 -> 43309019.06 | RR30: =RR27+RR28-RR29 -> 44616951.44 | RS30: =RS27+RS28-RS29 -> 45964383.37 | RT30: =RT27+RT28-RT29 -> 47352507.75 | RU30: =RU27+RU28-RU29 -> 48782553.48 | RV30: =RV27+RV28-RV29 -> 50255786.6 | RW30: =RW27+RW28-RW29 -> 51773511.35 | RX30: =RX27+RX28-RX29 -> 53337071.4 | RY30: =RY27+RY28-RY29 -> 54947850.95 | RZ30: =RZ27+RZ28-RZ29 -> 56607276.05 | SA30: =SA27+SA28-SA29 -> 58316815.79 | SB30: =SB27+SB28-SB29 -> 60077983.63 | SC30: =SC27+SC28-SC29 -> 61892338.73 | SD30: =SD27+SD28-SD29 -> 63761487.36 | SE30: =SE27+SE28-SE29 -> 65687084.28 | SF30: =SF27+SF28-SF29 -> 67670834.22 | SG30: =SG27+SG28-SG29 -> 69714493.42 | SH30: =SH27+SH28-SH29 -> 71819871.12 | SI30: =SI27+SI28-SI29 -> 73988831.23 | SJ30: =SJ27+SJ28-SJ29 -> 76223293.93 | SK30: =SK27+SK28-SK29 -> 78525237.41 | SL30: =SL27+SL28-SL29 -> 80896699.58 | SM30: =SM27+SM28-SM29 -> 83339779.9 | SN30: =SN27+SN28-SN29 -> 85856641.26 | SO30: =SO27+SO28-SO29 -> 88449511.82 | SP30: =SP27+SP28-SP29 -> 91120687.08 | SQ30: =SQ27+SQ28-SQ29 -> 93872531.83 | SR30: =SR27+SR28-SR29 -> 96707482.29 | SS30: =SS27+SS28-SS29 -> 99628048.25 | ST30: =ST27+ST28-ST29 -> 102636815.3 | SU30: =SU27+SU28-SU29 -> 105736447.1 | SV30: =SV27+SV28-SV29 -> 108929687.8 | SW30: =SW27+SW28-SW29 -> 112219364.4 | SX30: =SX27+SX28-SX29 -> 115608389.2 | SY30: =SY27+SY28-SY29 -> 119099762.6 | SZ30: =SZ27+SZ28-SZ29 -> 122696575.4 | TA30: =TA27+TA28-TA29 -> 126402012 | TB30: =TB27+TB28-TB29 -> 130219352.7 | TC30: =TC27+TC28-TC29 -> 134151977.2 | TD30: =TD27+TD28-TD29 -> 138203366.9 | TE30: =TE27+TE28-TE29 -> 142377108.6 | TF30: =TF27+TF28-TF29 -> 146676897.3 | TG30: =TG27+TG28-TG29 -> 151106539.6 | TH30: =TH27+TH28-TH29 -> 155669957.1 | TI30: =TI27+TI28-TI29 -> 160371189.8 | TJ30: =TJ27+TJ28-TJ29 -> 165214399.7 | TK30: =TK27+TK28-TK29 -> 170203874.6 | TL30: =TL27+TL28-TL29 -> 175344031.6 | TM30: =TM27+TM28-TM29 -> 180639421.3 | TN30: =TN27+TN28-TN29 -> 186094731.8 | TO30: =TO27+TO28-TO29 -> 191714792.7 | TP30: =TP27+TP28-TP29 -> 197504579.5 | TQ30: =TQ27+TQ28-TQ29 -> 203469217.8 | TR30: =TR27+TR28-TR29 -> 209613988.2 | TS30: =TS27+TS28-TS29 -> 215944330.6 | TT30: =TT27+TT28-TT29 -> 222465849.4 | TU30: =TU27+TU28-TU29 -> 229184318 | TV30: =TV27+TV28-TV29 -> 236105684.5 | TW30: =TW27+TW28-TW29 -> 243236076.1 | TX30: =TX27+TX28-TX29 -> 250581805.6 | TY30: =TY27+TY28-TY29 -> 258149376.2 | TZ30: =TZ27+TZ28-TZ29 -> 265945487.3 | UA30: =UA27+UA28-UA29 -> 273977041 | UB30: =UB27+UB28-UB29 -> 282251147.7 | UC30: =UC27+UC28-UC29 -> 290775132.3 | UD30: =UD27+UD28-UD29 -> 299556541.3 | UE30: =UE27+UE28-UE29 -> 308603148.9 | UF30: =UF27+UF28-UF29 -> 317922964 | UG30: =UG27+UG28-UG29 -> 327524237.5 | UH30: =UH27+UH28-UH29 -> 337415469.5 | UI30: =UI27+UI28-UI29 -> 347605416.6 | UJ30: =UJ27+UJ28-UJ29 -> 358103100.2 | UK30: =UK27+UK28-UK29 -> 368917813.8 | UL30: =UL27+UL28-UL29 -> 380059131.8 | UM30: =UM27+UM28-UM29 -> 391536917.6 | UN30: =UN27+UN28-UN29 -> 403361332.5 | UO30: =UO27+UO28-UO29 -> 415542844.7 | UP30: =UP27+UP28-UP29 -> 428092238.7 | UQ30: =UQ27+UQ28-UQ29 -> 441020624.3 | UR30: =UR27+UR28-UR29 -> 454339447.1 | US30: =US27+US28-US29 -> 468060498.4 | UT30: =UT27+UT28-UT29 -> 482195925.5 | UU30: =UU27+UU28-UU29 -> 496758242.4 | UV30: =UV27+UV28-UV29 -> 511760341.3 | UW30: =UW27+UW28-UW29 -> 527215503.7 | UX30: =UX27+UX28-UX29 -> 543137411.9 | UY30: =UY27+UY28-UY29 -> 559540161.7 | UZ30: =UZ27+UZ28-UZ29 -> 576438274.6 | VA30: =VA27+VA28-VA29 -> 593846710.5 | VB30: =VB27+VB28-VB29 -> 611780881.1 | VC30: =VC27+VC28-VC29 -> 630256663.7 | VD30: =VD27+VD28-VD29 -> 649290415 | VE30: =VE27+VE28-VE29 -> 668898985.5 | VF30: =VF27+VF28-VF29 -> 689099734.9 | VG30: =VG27+VG28-VG29 -> 709910546.9 | VH30: =VH27+VH28-VH29 -> 731349845.4 | VI30: =VI27+VI28-VI29 -> 753436610.7 | VJ30: =VJ27+VJ28-VJ29 -> 776190396.4 | VK30: =VK27+VK28-VK29 -> 799631346.3 | VL30: =VL27+VL28-VL29 -> 823780213 | VM30: =VM27+VM28-VM29 -> 848658375.4 | VN30: =VN27+VN28-VN29 -> 874287858.4 | VO30: =VO27+VO28-VO29 -> 900691351.7 | VP30: =VP27+VP28-VP29 -> 927892230.5 | VQ30: =VQ27+VQ28-VQ29 -> 955914575.9 | VR30: =VR27+VR28-VR29 -> 984783196.1 | VS30: =VS27+VS28-VS29 -> 1014523649 | VT30: =VT27+VT28-VT29 -> 1045162263 | VU30: =VU27+VU28-VU29 -> 1076726163 | VV30: =VV27+VV28-VV29 -> 1109243293 | VW30: =VW27+VW28-VW29 -> 1142742441 | VX30: =VX27+VX28-VX29 -> 1177253262 | VY30: =VY27+VY28-VY29 -> 1212806311 | VZ30: =VZ27+VZ28-VZ29 -> 1249433062 | WA30: =WA27+WA28-WA29 -> 1287165940 | WB30: =WB27+WB28-WB29 -> 1326038351 | WC30: =WC27+WC28-WC29 -> 1366084710 | WD30: =WD27+WD28-WD29 -> 1407340468 | WE30: =WE27+WE28-WE29 -> 1449842150 | WF30: =WF27+WF28-WF29 -> 1493627383 | WG30: =WG27+WG28-WG29 -> 1538734930 | WH30: =WH27+WH28-WH29 -> 1585204725 | WI30: =WI27+WI28-WI29 -> 1633077907 | WJ30: =WJ27+WJ28-WJ29 -> 1682396860 | WK30: =WK27+WK28-WK29 -> 1733205245 | WL30: =WL27+WL28-WL29 -> 1785548044 | WM30: =WM27+WM28-WM29 -> 1839471595 | WN30: =WN27+WN28-WN29 -> 1895023637 | WO30: =WO27+WO28-WO29 -> 1952253351 | WP30: =WP27+WP28-WP29 -> 2011211402 | WQ30: =WQ27+WQ28-WQ29 -> 2071949986 | WR30: =WR27+WR28-WR29 -> 2134522876 | WS30: =WS27+WS28-WS29 -> 2198985467 | WT30: =WT27+WT28-WT29 -> 2265394828 | WU30: =WU27+WU28-WU29 -> 2333809752 | WV30: =WV27+WV28-WV29 -> 2404290806 | WW30: =WW27+WW28-WW29 -> 2476900388 | WX30: =WX27+WX28-WX29 -> 2551702780 | WY30: =WY27+WY28-WY29 -> 2628764204 | WZ30: =WZ27+WZ28-WZ29 -> 2708152883 | XA30: =XA27+XA28-XA29 -> 2789939100 | XB30: =XB27+XB28-XB29 -> 2874195261 | XC30: =XC27+XC28-XC29 -> 2960995958 | XD30: =XD27+XD28-XD29 -> 3050418036 | XE30: =XE27+XE28-XE29 -> 3142540660 | XF30: =XF27+XF28-XF29 -> 3237445388 | XG30: =XG27+XG28-XG29 -> 3335216239 | XH30: =XH27+XH28-XH29 -> 3435939770 | XI30: =XI27+XI28-XI29 -> 3539705151 | XJ30: =XJ27+XJ28-XJ29 -> 3646604246 | XK30: =XK27+XK28-XK29 -> 3756731694 | XL30: =XL27+XL28-XL29 -> 3870184991 | XM30: =XM27+XM28-XM29 -> 3987064578 | XN30: =XN27+XN28-XN29 -> 4107473928 | XO30: =XO27+XO28-XO29 -> 4231519641 | XP30: =XP27+XP28-XP29 -> 4359311534 | XQ30: =XQ27+XQ28-XQ29 -> 4490962743 | XR30: =XR27+XR28-XR29 -> 4626589817 | XS30: =XS27+XS28-XS29 -> 4766312830 | XT30: =XT27+XT28-XT29 -> 4910255477 | XU30: =XU27+XU28-XU29 -> 5058545193 | XV30: =XV27+XV28-XV29 -> 5211313258 | XW30: =XW27+XW28-XW29 -> 5368694918 | XX30: =XX27+XX28-XX29 -> 5530829505 | XY30: =XY27+XY28-XY29 -> 5697860556 | XZ30: =XZ27+XZ28-XZ29 -> 5869935944 | YA30: =YA27+YA28-YA29 -> 6047208010 | YB30: =YB27+YB28-YB29 -> 6229833692 | YC30: =YC27+YC28-YC29 -> 6417974669 | YD30: =YD27+YD28-YD29 -> 6611797504 | YE30: =YE27+YE28-YE29 -> 6811473789 | YF30: =YF27+YF28-YF29 -> 7017180297 | YG30: =YG27+YG28-YG29 -> 7229099142 | YH30: =YH27+YH28-YH29 -> 7447417936 | YI30: =YI27+YI28-YI29 -> 7672329958 | YJ30: =YJ27+YJ28-YJ29 -> 7904034323 | YK30: =YK27+YK28-YK29 -> 8142736159 | YL30: =YL27+YL28-YL29 -> 8388646791 | YM30: =YM27+YM28-YM29 -> 8641983925 | YN30: =YN27+YN28-YN29 -> 8902971839 | YO30: =YO27+YO28-YO29 -> 9171841589 | YP30: =YP27+YP28-YP29 -> 9448831205 | YQ30: =YQ27+YQ28-YQ29 -> 9734185907 | YR30: =YR27+YR28-YR29 -> 1.002815832e+10 | YS30: =YS27+YS28-YS29 -> 1.03310087e+10 | YT30: =YT27+YT28-YT29 -> 1.064300517e+10 | YU30: =YU27+YU28-YU29 -> 1.096442392e+10 | YV30: =YV27+YV28-YV29 -> 1.129554952e+10 | YW30: =YW27+YW28-YW29 -> 1.163667512e+10 | YX30: =YX27+YX28-YX29 -> 1.198810271e+10 | YY30: =YY27+YY28-YY29 -> 1.235014341e+10 | YZ30: =YZ27+YZ28-YZ29 -> 1.272311774e+10 | ZA30: =ZA27+ZA28-ZA29 -> 1.31073559e+10 | ZB30: =ZB27+ZB28-ZB29 -> 1.350319804e+10 | ZC30: =ZC27+ZC28-ZC29 -> 1.391099463e+10 | ZD30: =ZD27+ZD28-ZD29 -> 1.433110666e+10 | ZE30: =ZE27+ZE28-ZE29 -> 1.476390608e+10 | ZF30: =ZF27+ZF28-ZF29 -> 1.520977605e+10 | ZG30: =ZG27+ZG28-ZG29 -> 1.566911129e+10 | ZH30: =ZH27+ZH28-ZH29 -> 1.614231845e+10 | ZI30: =ZI27+ZI28-ZI29 -> 1.662981646e+10 | ZJ30: =ZJ27+ZJ28-ZJ29 -> 1.713203692e+10 | ZK30: =ZK27+ZK28-ZK29 -> 1.764942444e+10 | ZL30: =ZL27+ZL28-ZL29 -> 1.818243705e+10 | ZM30: =ZM27+ZM28-ZM29 -> 1.873154665e+10 | ZN30: =ZN27+ZN28-ZN29 -> 1.929723936e+10 | ZO30: =ZO27+ZO28-ZO29 -> 1.988001599e+10 | ZP30: =ZP27+ZP28-ZP29 -> 2.048039247e+10 | ZQ30: =ZQ27+ZQ28-ZQ29 -> 2.109890033e+10 | ZR30: =ZR27+ZR28-ZR29 -> 2.173608711e+10 | ZS30: =ZS27+ZS28-ZS29 -> 2.239251695e+10 | ZT30: =ZT27+ZT28-ZT29 -> 2.306877096e+10 | ZU30: =ZU27+ZU28-ZU29 -> 2.376544784e+10 | ZV30: =ZV27+ZV28-ZV29 -> 2.448316437e+10 | ZW30: =ZW27+ZW28-ZW29 -> 2.522255593e+10 | ZX30: =ZX27+ZX28-ZX29 -> 2.598427712e+10 | ZY30: =ZY27+ZY28-ZY29 -> 2.676900229e+10 | ZZ30: =ZZ27+ZZ28-ZZ29 -> 2.757742616e+10 | AAA30: =AAA27+AAA28-AAA29 -> 2.841026443e+10 | AAB30: =AAB27+AAB28-AAB29 -> 2.926825441e+10 | AAC30: =AAC27+AAC28-AAC29 -> 3.01521557e+10 | AAD30: =AAD27+AAD28-AAD29 -> 3.10627508e+10 | AAE30: =AAE27+AAE28-AAE29 -> 3.200084587e+10 | AAF30: =AAF27+AAF28-AAF29 -> 3.296727142e+10 | AAG30: =AAG27+AAG28-AAG29 -> 3.396288301e+10 | AAH30: =AAH27+AAH28-AAH29 -> 3.498856208e+10 | AAI30: =AAI27+AAI28-AAI29 -> 3.604521665e+10 | AAJ30: =AAJ27+AAJ28-AAJ29 -> 3.71337822e+10 | AAK30: =AAK27+AAK28-AAK29 -> 3.825522242e+10 | AAL30: =AAL27+AAL28-AAL29 -> 3.941053014e+10 | AAM30: =AAM27+AAM28-AAM29 -> 4.060072815e+10 | AAN30: =AAN27+AAN28-AAN29 -> 4.182687014e+10 | AAO30: =AAO27+AAO28-AAO29 -> 4.309004162e+10 | AAP30: =AAP27+AAP28-AAP29 -> 4.439136087e+10 | AAQ30: =AAQ27+AAQ28-AAQ29 -> 4.573197997e+10 | AAR30: =AAR27+AAR28-AAR29 -> 4.711308577e+10 | AAS30: =AAS27+AAS28-AAS29 -> 4.853590096e+10 | AAT30: =AAT27+AAT28-AAT29 -> 5.000168517e+10 | AAU30: =AAU27+AAU28-AAU29 -> 5.151173606e+10 | AAV30: =AAV27+AAV28-AAV29 -> 5.306739049e+10 | AAW30: =AAW27+AAW28-AAW29 -> 5.467002568e+10 | AAX30: =AAX27+AAX28-AAX29 -> 5.632106045e+10 | AAY30: =AAY27+AAY28-AAY29 -> 5.802195648e+10 | AAZ30: =AAZ27+AAZ28-AAZ29 -> 5.977421957e+10 | ABA30: =ABA27+ABA28-ABA29 -> 6.1579401e+10 | ABB30: =ABB27+ABB28-ABB29 -> 6.343909891e+10 | ABC30: =ABC27+ABC28-ABC29 -> 6.535495969e+10 | ABD30: =ABD27+ABD28-ABD29 -> 6.732867948e+10 | ABE30: =ABE27+ABE28-ABE29 -> 6.93620056e+10 | ABF30: =ABF27+ABF28-ABF29 -> 7.145673817e+10 | ABG30: =ABG27+ABG28-ABG29 -> 7.361473166e+10 | ABH30: =ABH27+ABH28-ABH29 -> 7.583789655e+10 | ABI30: =ABI27+ABI28-ABI29 -> 7.812820103e+10 | ABJ30: =ABJ27+ABJ28-ABJ29 -> 8.04876727e+10 | ABK30: =ABK27+ABK28-ABK29 -> 8.291840042e+10 | ABL30: =ABL27+ABL28-ABL29 -> 8.542253611e+10 | ABM30: =ABM27+ABM28-ABM29 -> 8.80022967e+10 | ABN30: =ABN27+ABN28-ABN29 -> 9.065996606e+10 | ABO30: =ABO27+ABO28-ABO29 -> 9.339789704e+10 | ABP30: =ABP27+ABP28-ABP29 -> 9.621851353e+10 | ABQ30: =ABQ27+ABQ28-ABQ29 -> 9.912431263e+10 | ABR30: =ABR27+ABR28-ABR29 -> 1.021178669e+11 | ABS30: =ABS27+ABS28-ABS29 -> 1.052018265e+11 | ABT30: =ABT27+ABT28-ABT29 -> 1.083789216e+11 | ABU30: =ABU27+ABU28-ABU29 -> 1.11651965e+11 | ABV30: =ABV27+ABV28-ABV29 -> 1.150238544e+11 | ABW30: =ABW27+ABW28-ABW29 -> 1.184975748e+11 | ABX30: =ABX27+ABX28-ABX29 -> 1.220762016e+11 | ABY30: =ABY27+ABY28-ABY29 -> 1.257629028e+11 | ABZ30: =ABZ27+ABZ28-ABZ29 -> 1.295609425e+11 | ACA30: =ACA27+ACA28-ACA29 -> 1.33473683e+11 | ACB30: =ACB27+ACB28-ACB29 -> 1.375045882e+11 | ACC30: =ACC27+ACC28-ACC29 -> 1.416572268e+11 | ACD30: =ACD27+ACD28-ACD29 -> 1.45935275e+11 | ACE30: =ACE27+ACE28-ACE29 -> 1.503425203e+11 | ACF30: =ACF27+ACF28-ACF29 -> 1.548828644e+11 | ACG30: =ACG27+ACG28-ACG29 -> 1.595603269e+11 | ACH30: =ACH27+ACH28-ACH29 -> 1.643790488e+11 | ACI30: =ACI27+ACI28-ACI29 -> 1.693432961e+11 | ACJ30: =ACJ27+ACJ28-ACJ29 -> 1.744574636e+11 | ACK30: =ACK27+ACK28-ACK29 -> 1.79726079e+11 | ACL30: =ACL27+ACL28-ACL29 -> 1.851538066e+11 | ACM30: =ACM27+ACM28-ACM29 -> 1.907454516e+11 | ACN30: =ACN27+ACN28-ACN29 -> 1.965059642e+11 | ACO30: =ACO27+ACO28-ACO29 -> 2.024404443e+11 | ACP30: =ACP27+ACP28-ACP29 -> 2.085541457e+11 | ACQ30: =ACQ27+ACQ28-ACQ29 -> 2.148524809e+11 | ACR30: =ACR27+ACR28-ACR29 -> 2.213410259e+11 | ACS30: =ACS27+ACS28-ACS29 -> 2.280255248e+11 | ACT30: =ACT27+ACT28-ACT29 -> 2.349118957e+11 | ACU30: =ACU27+ACU28-ACU29 -> 2.420062349e+11 | ACV30: =ACV27+ACV28-ACV29 -> 2.493148232e+11 | ACW30: =ACW27+ACW28-ACW29 -> 2.568441309e+11 | ACX30: =ACX27+ACX28-ACX29 -> 2.646008237e+11 | ACY30: =ACY27+ACY28-ACY29 -> 2.725917685e+11 | ACZ30: =ACZ27+ACZ28-ACZ29 -> 2.808240399e+11 | ADA30: =ADA27+ADA28-ADA29 -> 2.89304926e+11 | ADB30: =ADB27+ADB28-ADB29 -> 2.980419347e+11 | ADC30: =ADC27+ADC28-ADC29 -> 3.070428011e+11 | ADD30: =ADD27+ADD28-ADD29 -> 3.163154937e+11 | ADE30: =ADE27+ADE28-ADE29 -> 3.258682216e+11 | ADF30: =ADF27+ADF28-ADF29 -> 3.357094419e+11 | ADG30: =ADG27+ADG28-ADG29 -> 3.458478671e+11 | ADH30: =ADH27+ADH28-ADH29 -> 3.562924727e+11 | ADI30: =ADI27+ADI28-ADI29 -> 3.670525053e+11 | ADJ30: =ADJ27+ADJ28-ADJ29 -> 3.78137491e+11 | ADK30: =ADK27+ADK28-ADK29 -> 3.895572432e+11 | ADL30: =ADL27+ADL28-ADL29 -> 4.01321872e+11 | ADM30: =ADM27+ADM28-ADM29 -> 4.134417925e+11 | ADN30: =ADN27+ADN28-ADN29 -> 4.259277347e+11 | ADO30: =ADO27+ADO28-ADO29 -> 4.387907522e+11 | ADP30: =ADP27+ADP28-ADP29 -> 4.52042233e+11 | ADQ30: =ADQ27+ADQ28-ADQ29 -> 4.656939084e+11 | ADR30: =ADR27+ADR28-ADR29 -> 4.797578644e+11 | ADS30: =ADS27+ADS28-ADS29 -> 4.942465519e+11 | ADT30: =ADT27+ADT28-ADT29 -> 5.091727978e+11 | ADU30: =ADU27+ADU28-ADU29 -> 5.245498163e+11 | ADV30: =ADV27+ADV28-ADV29 -> 5.403912207e+11 | ADW30: =ADW27+ADW28-ADW29 -> 5.567110356e+11 | ADX30: =ADX27+ADX28-ADX29 -> 5.735237089e+11 | ADY30: =ADY27+ADY28-ADY29 -> 5.908441249e+11 | ADZ30: =ADZ27+ADZ28-ADZ29 -> 6.086876175e+11 | AEA30: =AEA27+AEA28-AEA29 -> 6.270699835e+11 | AEB30: =AEB27+AEB28-AEB29 -> 6.46007497e+11 | AEC30: =AEC27+AEC28-AEC29 -> 6.655169234e+11 | AED30: =AED27+AED28-AED29 -> 6.856155345e+11 | AEE30: =AEE27+AEE28-AEE29 -> 7.063211237e+11 | AEF30: =AEF27+AEF28-AEF29 -> 7.276520216e+11 | AEG30: =AEG27+AEG28-AEG29 -> 7.496271126e+11 | AEH30: =AEH27+AEH28-AEH29 -> 7.722658514e+11 | AEI30: =AEI27+AEI28-AEI29 -> 7.955882802e+11 | AEJ30: =AEJ27+AEJ28-AEJ29 -> 8.196150462e+11 | AEK30: =AEK27+AEK28-AEK29 -> 8.443674206e+11 | AEL30: =AEL27+AEL28-AEL29 -> 8.698673167e+11 | AEM30: =AEM27+AEM28-AEM29 -> 8.961373097e+11 | AEN30: =AEN27+AEN28-AEN29 -> 9.232006564e+11 | AEO30: =AEO27+AEO28-AEO29 -> 9.510813163e+11 | AEP30: =AEP27+AEP28-AEP29 -> 9.79803972e+11 | AEQ30: =AEQ27+AEQ28-AEQ29 -> 1.009394052e+12 | AER30: =AER27+AER28-AER29 -> 1.039877752e+12 | AES30: =AES27+AES28-AES29 -> 1.07128206e+12 | AET30: =AET27+AET28-AET29 -> 1.103634779e+12 | AEU30: =AEU27+AEU28-AEU29 -> 1.136964549e+12 | AEV30: =AEV27+AEV28-AEV29 -> 1.171300878e+12 | AEW30: =AEW27+AEW28-AEW29 -> 1.206674165e+12 | AEX30: =AEX27+AEX28-AEX29 -> 1.243115725e+12 | AEY30: =AEY27+AEY28-AEY29 -> 1.28065782e+12 | AEZ30: =AEZ27+AEZ28-AEZ29 -> 1.319333686e+12 | AFA30: =AFA27+AFA28-AFA29 -> 1.359177563e+12 | AFB30: =AFB27+AFB28-AFB29 -> 1.400224725e+12 | AFC30: =AFC27+AFC28-AFC29 -> 1.442511512e+12 | AFD30: =AFD27+AFD28-AFD29 -> 1.48607536e+12 | AFE30: =AFE27+AFE28-AFE29 -> 1.530954836e+12 | AFF30: =AFF27+AFF28-AFF29 -> 1.577189672e+12 | AFG30: =AFG27+AFG28-AFG29 -> 1.6248208e+12 | AFH30: =AFH27+AFH28-AFH29 -> 1.673890388e+12 | AFI30: =AFI27+AFI28-AFI29 -> 1.724441878e+12 | AFJ30: =AFJ27+AFJ28-AFJ29 -> 1.776520022e+12 | AFK30: =AFK27+AFK28-AFK29 -> 1.830170927e+12 | AFL30: =AFL27+AFL28-AFL29 -> 1.885442089e+12 | AFM30: =AFM27+AFM28-AFM29 -> 1.94238244e+12 | AFN30: =AFN27+AFN28-AFN29 -> 2.00104239e+12 | AFO30: =AFO27+AFO28-AFO29 -> 2.06147387e+12 | AFP30: =AFP27+AFP28-AFP29 -> 2.123730381e+12 | AFQ30: =AFQ27+AFQ28-AFQ29 -> 2.187867038e+12 | AFR30: =AFR27+AFR28-AFR29 -> 2.253940623e+12 | AFS30: =AFS27+AFS28-AFS29 -> 2.32200963e+12 | AFT30: =AFT27+AFT28-AFT29 -> 2.392134321e+12 | AFU30: =AFU27+AFU28-AFU29 -> 2.464376777e+12 | AFV30: =AFV27+AFV28-AFV29 -> 2.538800956e+12 | AFW30: =AFW27+AFW28-AFW29 -> 2.615472745e+12 | AFX30: =AFX27+AFX28-AFX29 -> 2.694460021e+12 | AFY30: =AFY27+AFY28-AFY29 -> 2.775832714e+12 | AFZ30: =AFZ27+AFZ28-AFZ29 -> 2.859662862e+12 | AGA30: =AGA27+AGA28-AGA29 -> 2.946024681e+12 | AGB30: =AGB27+AGB28-AGB29 -> 3.034994626e+12 | AGC30: =AGC27+AGC28-AGC29 -> 3.126651464e+12 | AGD30: =AGD27+AGD28-AGD29 -> 3.221076338e+12 | AGE30: =AGE27+AGE28-AGE29 -> 3.318352843e+12 | AGF30: =AGF27+AGF28-AGF29 -> 3.418567099e+12 | AGG30: =AGG27+AGG28-AGG29 -> 3.521807825e+12 | AGH30: =AGH27+AGH28-AGH29 -> 3.628166422e+12 | AGI30: =AGI27+AGI28-AGI29 -> 3.737737048e+12 | AGJ30: =AGJ27+AGJ28-AGJ29 -> 3.850616707e+12 | AGK30: =AGK27+AGK28-AGK29 -> 3.966905331e+12 | AGL30: =AGL27+AGL28-AGL29 -> 4.086705872e+12 | AGM30: =AGM27+AGM28-AGM29 -> 4.210124389e+12 | AGN30: =AGN27+AGN28-AGN29 -> 4.337270146e+12 | AGO30: =AGO27+AGO28-AGO29 -> 4.468255704e+12 | AGP30: =AGP27+AGP28-AGP29 -> 4.603197027e+12 | AGQ30: =AGQ27+AGQ28-AGQ29 -> 4.742213577e+12 | AGR30: =AGR27+AGR28-AGR29 -> 4.885428427e+12 | AGS30: =AGS27+AGS28-AGS29 -> 5.032968365e+12 | AGT30: =AGT27+AGT28-AGT29 -> 5.18496401e+12 | AGU30: =AGU27+AGU28-AGU29 -> 5.341549923e+12 | AGV30: =AGV27+AGV28-AGV29 -> 5.502864731e+12 | AGW30: =AGW27+AGW28-AGW29 -> 5.669051246e+12 | AGX30: =AGX27+AGX28-AGX29 -> 5.840256593e+12 | AGY30: =AGY27+AGY28-AGY29 -> 6.016632342e+12 | AGZ30: =AGZ27+AGZ28-AGZ29 -> 6.198334639e+12 | AHA30: =AHA27+AHA28-AHA29 -> 6.385524345e+12 | AHB30: =AHB27+AHB28-AHB29 -> 6.57836718e+12 | AHC30: =AHC27+AHC28-AHC29 -> 6.777033869e+12 | AHD30: =AHD27+AHD28-AHD29 -> 6.981700292e+12 | AHE30: =AHE27+AHE28-AHE29 -> 7.192547641e+12 | AHF30: =AHF27+AHF28-AHF29 -> 7.40976258e+12 | AHG30: =AHG27+AHG28-AHG29 -> 7.63353741e+12 | AHH30: =AHH27+AHH28-AHH29 -> 7.864070239e+12 | AHI30: =AHI27+AHI28-AHI29 -> 8.101565161e+12 | AHJ30: =AHJ27+AHJ28-AHJ29 -> 8.346232428e+12 | AHK30: =AHK27+AHK28-AHK29 -> 8.598288648e+12 | AHL30: =AHL27+AHL28-AHL29 -> 8.857956965e+12 | AHM30: =AHM27+AHM28-AHM29 -> 9.125467265e+12 | AHN30: =AHN27+AHN28-AHN29 -> 9.401056377e+12 | AHO30: =AHO27+AHO28-AHO29 -> 9.684968279e+12 | AHP30: =AHP27+AHP28-AHP29 -> 9.977454321e+12 | AHQ30: =AHQ27+AHQ28-AHQ29 -> 1.027877344e+13 | AHR30: =AHR27+AHR28-AHR29 -> 1.05891924e+13 | AHS30: =AHS27+AHS28-AHS29 -> 1.090898601e+13 | AHT30: =AHT27+AHT28-AHT29 -> 1.123843739e+13 | AHU30: =AHU27+AHU28-AHU29 -> 1.15778382e+13 | AHV30: =AHV27+AHV28-AHV29 -> 1.192748891e+13 | AHW30: =AHW27+AHW28-AHW29 -> 1.228769908e+13 | AHX30: =AHX27+AHX28-AHX29 -> 1.265878759e+13 | AHY30: =AHY27+AHY28-AHY29 -> 1.304108297e+13 | AHZ30: =AHZ27+AHZ28-AHZ29 -> 1.343492368e+13 | AIA30: =AIA27+AIA28-AIA29 -> 1.384065837e+13 | AIB30: =AIB27+AIB28-AIB29 -> 1.425864626e+13 | AIC30: =AIC27+AIC28-AIC29 -> 1.468925737e+13 | AID30: =AID27+AID28-AID29 -> 1.513287295e+13 | AIE30: =AIE27+AIE28-AIE29 -> 1.558988571e+13 | AIF30: =AIF27+AIF28-AIF29 -> 1.606070026e+13 | AIG30: =AIG27+AIG28-AIG29 -> 1.654573341e+13 | AIH30: =AIH27+AIH28-AIH29 -> 1.704541455e+13 | AII30: =AII27+AII28-AII29 -> 1.756018607e+13 | AIJ30: =AIJ27+AIJ28-AIJ29 -> 1.809050369e+13 | AIK30: =AIK27+AIK28-AIK29 -> 1.86368369e+13 | AIL30: =AIL27+AIL28-AIL29 -> 1.919966938e+13 | AIM30: =AIM27+AIM28-AIM29 -> 1.977949939e+13 | AIN30: =AIN27+AIN28-AIN29 -> 2.037684028e+13 | AIO30: =AIO27+AIO28-AIO29 -> 2.099222085e+13 | AIP30: =AIP27+AIP28-AIP29 -> 2.162618592e+13 | AIQ30: =AIQ27+AIQ28-AIQ29 -> 2.227929674e+13 | AIR30: =AIR27+AIR28-AIR29 -> 2.29521315e+13 | AIS30: =AIS27+AIS28-AIS29 -> 2.364528587e+13 | AIT30: =AIT27+AIT28-AIT29 -> 2.43593735e+13 | AIU30: =AIU27+AIU28-AIU29 -> 2.509502658e+13 | AIV30: =AIV27+AIV28-AIV29 -> 2.585289639e+13 | AIW30: =AIW27+AIW28-AIW29 -> 2.663365386e+13 | AIX30: =AIX27+AIX28-AIX29 -> 2.74379902e+13 | AIY30: =AIY27+AIY28-AIY29 -> 2.826661751e+13 | AIZ30: =AIZ27+AIZ28-AIZ29 -> 2.912026936e+13 | AJA30: =AJA27+AJA28-AJA29 -> 2.999970149e+13 | AJB30: =AJB27+AJB28-AJB29 -> 3.090569248e+13 | AJC30: =AJC27+AJC28-AJC29 -> 3.183904439e+13 | AJD30: =AJD27+AJD28-AJD29 -> 3.280058353e+13 | AJE30: =AJE27+AJE28-AJE29 -> 3.379116115e+13 | AJF30: =AJF27+AJF28-AJF29 -> 3.481165422e+13 | AJG30: =AJG27+AJG28-AJG29 -> 3.586296618e+13 | AJH30: =AJH27+AJH28-AJH29 -> 3.694602775e+13 | AJI30: =AJI27+AJI28-AJI29 -> 3.806179779e+13 | AJJ30: =AJJ27+AJJ28-AJJ29 -> 3.921126409e+13 | AJK30: =AJK27+AJK28-AJK29 -> 4.039544426e+13 | AJL30: =AJL27+AJL28-AJL29 -> 4.161538668e+13 | AJM30: =AJM27+AJM28-AJM29 -> 4.287217135e+13 | AJN30: =AJN27+AJN28-AJN29 -> 4.416691093e+13 | AJO30: =AJO27+AJO28-AJO29 -> 4.550075164e+13 | AJP30: =AJP27+AJP28-AJP29 -> 4.687487434e+13 | AJQ30: =AJQ27+AJQ28-AJQ29 -> 4.829049554e+13 | AJR30: =AJR27+AJR28-AJR29 -> 4.974886851e+13 | AJS30: =AJS27+AJS28-AJS29 -> 5.125128434e+13 | AJT30: =AJT27+AJT28-AJT29 -> 5.279907313e+13 | AJU30: =AJU27+AJU28-AJU29 -> 5.439360513e+13 | AJV30: =AJV27+AJV28-AJV29 -> 5.603629201e+13 | AJW30: =AJW27+AJW28-AJW29 -> 5.772858803e+13 | AJX30: =AJX27+AJX28-AJX29 -> 5.947199139e+13 | AJY30: =AJY27+AJY28-AJY29 -> 6.126804553e+13 | AJZ30: =AJZ27+AJZ28-AJZ29 -> 6.31183405e+13 | AKA30: =AKA27+AKA28-AKA29 -> 6.502451438e+13 | AKB30: =AKB27+AKB28-AKB29 -> 6.698825472e+13 | AKC30: =AKC27+AKC28-AKC29 -> 6.901130001e+13 | AKD30: =AKD27+AKD28-AKD29 -> 7.109544127e+13 | AKE30: =AKE27+AKE28-AKE29 -> 7.32425236e+13 | AKF30: =AKF27+AKF28-AKF29 -> 7.545444781e+13 | AKG30: =AKG27+AKG28-AKG29 -> 7.773317213e+13 | AKH30: =AKH27+AKH28-AKH29 -> 8.008071393e+13 | AKI30: =AKI27+AKI28-AKI29 -> 8.249915149e+13 | AKJ30: =AKJ27+AKJ28-AKJ29 -> 8.499062587e+13 | AKK30: =AKK27+AKK28-AKK29 -> 8.755734277e+13 | AKL30: =AKL27+AKL28-AKL29 -> 9.020157452e+13 | AKM30: =AKM27+AKM28-AKM29 -> 9.292566207e+13 | AKN30: =AKN27+AKN28-AKN29 -> 9.573201707e+13 | AKO30: =AKO27+AKO28-AKO29 -> 9.862312398e+13 | AKP30: =AKP27+AKP28-AKP29 -> 1.016015423e+14 | AKQ30: =AKQ27+AKQ28-AKQ29 -> 1.046699089e+14 | AKR30: =AKR27+AKR28-AKR29 -> 1.078309402e+14 | AKS30: =AKS27+AKS28-AKS29 -> 1.110874345e+14 | AKT30: =AKT27+AKT28-AKT29 -> 1.144422751e+14 | AKU30: =AKU27+AKU28-AKU29 -> 1.178984318e+14 | AKV30: =AKV27+AKV28-AKV29 -> 1.214589644e+14 | AKW30: =AKW27+AKW28-AKW29 -> 1.251270251e+14 | AKX30: =AKX27+AKX28-AKX29 -> 1.289058613e+14 | AKY30: =AKY27+AKY28-AKY29 -> 1.327988183e+14 | AKZ30: =AKZ27+AKZ28-AKZ29 -> 1.368093426e+14 | ALA30: =ALA27+ALA28-ALA29 -> 1.409409848e+14 | ALB30: =ALB27+ALB28-ALB29 -> 1.451974025e+14 | ALC30: =ALC27+ALC28-ALC29 -> 1.495823641e+14 | ALD30: =ALD27+ALD28-ALD29 -> 1.540997515e+14 | ALE30: =ALE27+ALE28-ALE29 -> 1.58753564e+14 | ALF30: =ALF27+ALF28-ALF29 -> 1.635479216e+14 | ALG30: =ALG27+ALG28-ALG29 -> 1.684870688e+14 | ALH30: =ALH27+ALH28-ALH29 -> 1.735753783e+14 | ALI30: =ALI27+ALI28-ALI29 -> 1.788173547e+14 | ALJ30: =ALJ27+ALJ28-ALJ29 -> 1.842176388e+14 | ALK30: =ALK27+ALK28-ALK29 -> 1.897810115e+14 | ALL30: =ALL27+ALL28-ALL29 -> 195512398078972 | ALM30: =ALM27+ALM28-ALM29 -> 2.014168725e+14 | ALN30: =ALN27+ALN28-ALN29 -> 2.074996621e+14 | ALO30: =ALO27+ALO28-ALO29 -> 2.137661518e+14 | ALP30: =ALP27+ALP28-ALP29 -> 2.202218896e+14 | ALQ30: =ALQ27+ALQ28-ALQ29 -> 2.268725907e+14 | ALR30: =ALR27+ALR28-ALR29 -> 2.337241429e+14
C32: PV factor growth | E32: =E13 -> 0.0812 | F32: 1 | G32: =F32*(1+$E$32) -> 1.0812 | H32: =G32*(1+$E$32) -> 1.16899344 | I32: 1.263915707 | J32: 1.366545663 | K32: 1.477509171 | L32: 1.597482915 | M32: 1.727198528 | N32: 1.867447048 | O32: 2.019083749 | P32: 2.183033349 | Q32: 2.360295657 | R32: 2.551951664 | S32: 2.75917014 | T32: 2.983214755 | U32: 3.225451793 | V32: 3.487358479 | W32: 3.770531987 | X32: 4.076699184 | Y32: 4.407727158 | Z32: 4.765634603 | AA32: 5.152604133 | AB32: 5.570995589 | AC32: 6.023360431 | AD32: 6.512457298 | AE32: 7.04126883 | AF32: 7.613019859 | AG32: 8.231197072 | AH32: 8.899570274 | AI32: 9.62221538 | AJ32: 10.40353927 | AK32: 11.24830666 | AL32: 12.16166916 | AM32: 13.14919669 | AN32: 14.21691147 | AO32: 15.37132468 | AP32: 16.61947624 | AQ32: 17.96897771 | AR32: 19.4280587 | AS32: 21.00561707 | AT32: 22.71127317 | AU32: 24.55542856 | AV32: 26.54932935 | AW32: 28.7051349 | AX32: 31.03599185 | AY32: 33.55611439 | AZ32: 36.28087088 | BA32: 39.22687759 | BB32: 42.41210005 | BC32: 45.85596258 | BD32: 49.57946674 | BE32: 53.60531944 | BF32: 57.95807138 | BG32: 62.66426677 | BH32: 67.75260524 | BI32: 73.25411678 | BJ32: 79.20235106 | BK32: 85.63358197 | BL32: 92.58702883 | BM32: 100.1050956 | BN32: 108.2336293 | BO32: 117.0222 | BP32: 126.5244027 | BQ32: 136.7981842 | BR32: 147.9061967 | BS32: 159.9161799 | BT32: =BS32*(1+$E$32) -> 172.9013737 | BU32: 186.9409652 | BV32: 202.1205716 | BW32: 218.532762 | BX32: 236.2776223 | BY32: 255.4633653 | BZ32: 276.2069905 | CA32: 298.6349981 | CB32: 322.88416 | CC32: 349.1023538 | CD32: 377.4494649 | CE32: 408.0983615 | CF32: 441.2359484 | CG32: 477.0643074 | CH32: 515.8019292 | CI32: 557.6850458 | CJ32: 602.9690716 | CK32: 651.9301602 | CL32: 704.8668892 | CM32: 762.1020806 | CN32: 823.9847695 | CO32: 890.8923328 | CP32: 963.2327902 | CQ32: 1041.447293 | CR32: 1126.012813 | CS32: 1217.445053 | CT32: 1316.301592 | CU32: 1423.185281 | CV32: 1538.747926 | CW32: 1663.694257 | CX32: 1798.786231 | CY32: 1944.847673 | CZ32: 2102.769304 | DA32: 2273.514172 | DB32: 2458.123522 | DC32: 2657.723152 | DD32: 2873.530272 | DE32: 3106.86093 | DF32: 3359.138038 | DG32: 3631.900047 | DH32: 3926.81033 | DI32: 4245.667329 | DJ32: 4590.415516 | DK32: 4963.157256 | DL32: 5366.165625 | DM32: 5801.898274 | DN32: 6273.012414 | DO32: 6782.381022 | DP32: 7333.110361 | DQ32: 7928.558922 | DR32: 8572.357907 | DS32: 9268.433369 | DT32: 10021.03016 | DU32: 10834.73781 | DV32: 11714.51852 | DW32: 12665.73742 | DX32: 13694.1953 | DY32: 14806.16396 | DZ32: 16008.42447 | EA32: 17308.30854 | EB32: 18713.74319 | EC32: 20233.29914 | ED32: 21876.24303 | EE32: 23652.59396 | EF32: =EE32*(1+$E$32) -> 25573.18459 | EG32: 27649.72718 | EH32: 29894.88503 | EI32: 32322.34969 | EJ32: 34946.92449 | EK32: 37784.61476 | EL32: 40852.72547 | EM32: 44169.96678 | EN32: 47756.56809 | EO32: 51634.40141 | EP32: 55827.11481 | EQ32: 60360.27653 | ER32: 65261.53099 | ES32: 70560.7673 | ET32: 76290.30161 | EU32: 82485.0741 | EV32: 89182.86211 | EW32: 96424.51052 | EX32: 104254.1808 | EY32: 112719.6203 | EZ32: 121872.4534 | FA32: 131768.4966 | FB32: 142468.0986 | FC32: 154036.5082 | FD32: 166544.2726 | FE32: 180067.6676 | FF32: 194689.1622 | FG32: 210497.9221 | FH32: 227590.3534 | FI32: 246070.6901 | FJ32: 266051.6301 | FK32: 287655.0225 | FL32: 311012.6103 | FM32: 336266.8343 | FN32: 363571.7012 | FO32: 393093.7234 | FP32: 425012.9337 | FQ32: 459523.9839 | FR32: 496837.3314 | FS32: 537180.5228 | FT32: 580799.5812 | FU32: 627960.5072 | FV32: 678950.9004 | FW32: 734081.7135 | FX32: 793689.1486 | FY32: 858136.7075 | FZ32: 927817.4081 | GA32: 1003156.182 | GB32: 1084612.464 | GC32: 1172682.996 | GD32: 1267904.855 | GE32: 1370858.729 | GF32: 1482172.458 | GG32: 1602524.862 | GH32: 1732649.88 | GI32: 1873341.051 | GJ32: 2025456.344 | GK32: 2189923.399 | GL32: 2367745.179 | GM32: 2560006.088 | GN32: 2767878.582 | GO32: 2992630.323 | GP32: 3235631.905 | GQ32: 3498365.216 | GR32: =GQ32*(1+$E$32) -> 3782432.471 | GS32: 4089565.988 | GT32: 4421638.746 | GU32: 4780675.812 | GV32: 5168866.688 | GW32: 5588578.663 | GX32: 6042371.251 | GY32: 6533011.796 | GZ32: 7063492.354 | HA32: 7637047.933 | HB32: 8257176.225 | HC32: 8927658.935 | HD32: 9652584.84 | HE32: 10436374.73 | HF32: 11283808.36 | HG32: 12200053.6 | HH32: 13190697.95 | HI32: 14261782.62 | HJ32: 15419839.37 | HK32: 16671930.33 | HL32: 18025691.07 | HM32: 19489377.18 | HN32: 21071914.61 | HO32: 22782954.08 | HP32: 24632929.95 | HQ32: 26633123.86 | HR32: 28795733.52 | HS32: 31133947.08 | HT32: 33662023.58 | HU32: 36395379.9 | HV32: 39350684.75 | HW32: 42545960.35 | HX32: 46000692.33 | HY32: 49735948.55 | HZ32: 53774507.57 | IA32: 58140997.58 | IB32: 62862046.59 | IC32: 67966444.77 | ID32: 73485320.08 | IE32: 79452328.07 | IF32: 85903857.11 | IG32: 92879250.31 | IH32: 100421045.4 | II32: 108575234.3 | IJ32: 117391543.4 | IK32: 126923736.7 | IL32: 137229944.1 | IM32: 148373015.6 | IN32: 160420904.4 | IO32: 173447081.9 | IP32: 187530984.9 | IQ32: 202758500.9 | IR32: 219222491.1 | IS32: 237023357.4 | IT32: 256269654 | IU32: 277078750 | IV32: 299577544.5 | IW32: 323903241.1 | IX32: 350204184.2 | IY32: 378640764 | IZ32: 409386394 | JA32: 442628569.2 | JB32: 478570009.1 | JC32: 517429893.8 | JD32: =JC32*(1+$E$32) -> 559445201.2 | JE32: 604872151.5 | JF32: 653987770.2 | JG32: 707091577.1 | JH32: 764507413.2 | JI32: 826585415.2 | JJ32: 893704150.9 | JK32: 966272927.9 | JL32: 1044734290 | JM32: 1129566714 | JN32: 1221287531 | JO32: 1320456079 | JP32: 1427677112 | JQ32: 1543604494 | JR32: 1668945179 | JS32: 1804463527 | JT32: 1950985966 | JU32: 2109406026 | JV32: 2280689795 | JW32: 2465881807 | JX32: 2666111409 | JY32: 2882599656 | JZ32: 3116666748 | KA32: 3369740088 | KB32: 3643362983 | KC32: 3939204057 | KD32: 4259067427 | KE32: 4604903702 | KF32: 4978821882 | KG32: 5383102219 | KH32: 5820210119 | KI32: 6292811181 | KJ32: 6803787449 | KK32: 7356254990 | KL32: 7953582895 | KM32: 8599413826 | KN32: 9297686229 | KO32: 1.005265835e+10 | KP32: 1.086893421e+10 | KQ32: 1.175149167e+10 | KR32: 1.270571279e+10 | KS32: 1.373741667e+10 | KT32: 1.48528949e+10 | KU32: 1.605894997e+10 | KV32: 1.73629367e+10 | KW32: 1.877280717e+10 | KX32: 2.029715911e+10 | KY32: 2.194528843e+10 | KZ32: 2.372724585e+10 | LA32: 2.565389821e+10 | LB32: 2.773699474e+10 | LC32: 2.998923872e+10 | LD32: 3.24243649e+10 | LE32: 3.505722333e+10 | LF32: 3.790386987e+10 | LG32: 4.09816641e+10 | LH32: 4.430937522e+10 | LI32: 4.790729649e+10 | LJ32: 5.179736897e+10 | LK32: 5.600331533e+10 | LL32: 6.055078453e+10 | LM32: 6.546750824e+10 | LN32: 7.07834699e+10 | LO32: 7.653108766e+10 | LP32: =LO32*(1+$E$32) -> 8.274541198e+10 | LQ32: 8.946433943e+10 | LR32: 9.672884379e+10 | LS32: 1.045832259e+11 | LT32: 1.130753839e+11 | LU32: 1.22257105e+11 | LV32: 1.321843819e+11 | LW32: 1.429177538e+11 | LX32: 1.545226754e+11 | LY32: 1.670699166e+11 | LZ32: 1.806359938e+11 | MA32: 1.953036365e+11 | MB32: 2.111622918e+11 | MC32: 2.283086699e+11 | MD32: 2.468473339e+11 | ME32: 2.668913374e+11 | MF32: 2.88562914e+11 | MG32: 3.119942226e+11 | MH32: 3.373281535e+11 | MI32: 3.647191996e+11 | MJ32: 3.943343986e+11 | MK32: 4.263543518e+11 | ML32: 4.609743251e+11 | MM32: 4.984054403e+11 | MN32: 5.388759621e+11 | MO32: 5.826326902e+11 | MP32: 6.299424647e+11 | MQ32: 681093792783 | MR32: 7.363986088e+11 | MS32: 7.961941758e+11 | MT32: 8.608451429e+11 | MU32: 9.307457685e+11 | MV32: 1.006322325e+12 | MW32: 1.088035698e+12 | MX32: 1.176384196e+12 | MY32: 1.271906593e+12 | MZ32: 1.375185408e+12 | NA32: 1.486850464e+12 | NB32: 1.607582721e+12 | NC32: 1.738118438e+12 | ND32: 1.879253655e+12 | NE32: 2.031849052e+12 | NF32: 2.196835195e+12 | NG32: 2.375218213e+12 | NH32: 2.568085932e+12 | NI32: 2.77661451e+12 | NJ32: 3.002075608e+12 | NK32: 3.245844147e+12 | NL32: 3.509406692e+12 | NM32: 3.794370515e+12 | NN32: 4.102473401e+12 | NO32: 4.435594241e+12 | NP32: 4.795764494e+12 | NQ32: 5.185180571e+12 | NR32: 5.606217233e+12 | NS32: 6.061442072e+12 | NT32: 6.553631168e+12 | NU32: 7.085786019e+12 | NV32: 7.661151844e+12 | NW32: 8.283237374e+12 | NX32: 8.955836249e+12 | NY32: 9.683050152e+12 | NZ32: 1.046931382e+13 | OA32: 1.131942211e+13 | OB32: =OA32*(1+$E$32) -> 1.223855918e+13 | OC32: 1.323233019e+13 | OD32: 1.43067954e+13 | OE32: 1.546850718e+13 | OF32: 1.672454997e+13 | OG32: 1.808258343e+13 | OH32: 1.95508892e+13 | OI32: 2.11384214e+13 | OJ32: 2.285486122e+13 | OK32: 2.471067595e+13 | OL32: 2.671718284e+13 | OM32: 2.888661809e+13 | ON32: 3.123221147e+13 | OO32: 3.376826705e+13 | OP32: 3.651025033e+13 | OQ32: 3.947488266e+13 | OR32: 4.268024313e+13 | OS32: 4.614587887e+13 | OT32: 4.989292424e+13 | OU32: 5.394422968e+13 | OV32: 5.832450113e+13 | OW32: 6.306045063e+13 | OX32: 6.818095922e+13 | OY32: 7.37172531e+13 | OZ32: 7.970309406e+13 | PA32: 8.617498529e+13 | PB32: 9.31723941e+13 | PC32: 1.007379925e+14 | PD32: 1.089179175e+14 | PE32: 1.177620524e+14 | PF32: 1.27324331e+14 | PG32: 1.376630667e+14 | PH32: 148841307746445 | PI32: 1.609272219e+14 | PJ32: 1.739945124e+14 | PK32: 1.881228668e+14 | PL32: 2.033984435e+14 | PM32: 2.199143972e+14 | PN32: 237771446205502 | PO32: 2.570784876e+14 | PP32: 2.779532608e+14 | PQ32: 3.005230656e+14 | PR32: 3.249255385e+14 | PS32: 351309492270554 | PT32: 3.79835823e+14 | PU32: 4.106784919e+14 | PV32: 4.440255854e+14 | PW32: 4.800804629e+14 | PX32: 519062996541334 | PY32: 5.612109119e+14 | PZ32: 6.067812379e+14 | QA32: 6.560518744e+14 | QB32: 7.093232866e+14 | QC32: 7.669203375e+14 | QD32: 829194268903098 | QE32: 8.965248435e+14 | QF32: 9.693226608e+14 | QG32: 1.048031661e+15 | QH32: 1133131831757494 | QI32: 1.225142136e+15 | QJ32: 1.324623678e+15 | QK32: 1432183120631646 | QL32: 1548476390026936 | QM32: 1.674212673e+15 | QN32: =QM32*(1+$E$32) -> 1.810158742e+15 | QO32: 1.957143632e+15 | QP32: 2.116063695e+15 | QQ32: 2287888066690471 | QR32: 2.473664578e+15 | QS32: 2674526141415444 | QT32: 2.891697664e+15 | QU32: 3.126503514e+15 | QV32: 3380375599794329 | QW32: 3654862098497629 | QX32: 3951636900895637 | QY32: 4.272509817e+15 | QZ32: 4619437614408931 | RA32: 4994535948698937 | RB32: 5400092267733291 | RC32: 5838579759873235 | RD32: 6312672436374943 | RE32: 6825261438208589 | RF32: 7379472666991128 | RG32: 7978685847550809 | RH32: 8626555138371936 | RI32: 9327031415607738 | RJ32: 1.008438637e+16 | RK32: 1.090323854e+16 | RL32: 1.178858151e+16 | RM32: 1.274581433e+16 | RN32: 1.378077445e+16 | RO32: 1.489977334e+16 | RP32: 1.610963493e+16 | RQ32: 1.741773729e+16 | RR32: 1.883205756e+16 | RS32: 2.036122063e+16 | RT32: 2.201455174e+16 | RU32: 2.380213335e+16 | RV32: 2.573486657e+16 | RW32: 2.782453774e+16 | RX32: 3.00838902e+16 | RY32: 3.252670209e+16 | RZ32: 3.51678703e+16 | SA32: 3.802350137e+16 | SB32: 4.111100968e+16 | SC32: 4.444922366e+16 | SD32: 4.805850062e+16 | SE32: 5.196085087e+16 | SF32: 5.618007196e+16 | SG32: 6.074189381e+16 | SH32: 6.567413559e+16 | SI32: 7.10068754e+16 | SJ32: 7.677263368e+16 | SK32: 8.300657153e+16 | SL32: 8.974670514e+16 | SM32: 9.70341376e+16 | SN32: 1.049133096e+17 | SO32: 1.134322703e+17 | SP32: 1.226429707e+17 | SQ32: 1.326015799e+17 | SR32: 1.433688282e+17 | SS32: 1.55010377e+17 | ST32: 1.675972196e+17 | SU32: 1.812061139e+17 | SV32: 1.959200503e+17 | SW32: 2.118287584e+17 | SX32: 2.290292536e+17 | SY32: 2.47626429e+17 | SZ32: =SY32*(1+$E$32) -> 2.67733695e+17 | TA32: 2.89473671e+17 | TB32: 3.129789331e+17 | TC32: 3.383928225e+17 | TD32: 3.658703197e+17 | TE32: 3.955789896e+17 | TF32: 4.277000036e+17 | TG32: 4.624292439e+17 | TH32: 4.999784985e+17 | TI32: 5.405767525e+17 | TJ32: 5.844715848e+17 | TK32: 6.319306775e+17 | TL32: 6.832434485e+17 | TM32: 7.387228166e+17 | TN32: 7.987071093e+17 | TO32: 8.635621265e+17 | TP32: 9.336833712e+17 | TQ32: 1.009498461e+18 | TR32: 1.091469736e+18 | TS32: 1.180097079e+18 | TT32: 1.275920961e+18 | TU32: 1.379525743e+18 | TV32: 1.491543234e+18 | TW32: 1.612656544e+18 | TX32: 1.743604256e+18 | TY32: 1.885184921e+18 | TZ32: 2.038261937e+18 | UA32: 2.203768806e+18 | UB32: 2.382714833e+18 | UC32: 2.576191278e+18 | UD32: 2.785378009e+18 | UE32: 3.011550704e+18 | UF32: 3.256088621e+18 | UG32: 3.520483017e+18 | UH32: 3.806346238e+18 | UI32: 4.115421552e+18 | UJ32: 4.449593783e+18 | UK32: 4.810900798e+18 | UL32: 5.201545942e+18 | UM32: 5.623911473e+18 | UN32: 6.080573085e+18 | UO32: 6.574315619e+18 | UP32: 7.108150047e+18 | UQ32: 7.685331831e+18 | UR32: 8.309380776e+18 | US32: 8.984102495e+18 | UT32: 9.713611617e+18 | UU32: 1.050235688e+19 | UV32: 1.135514826e+19 | UW32: 1.22771863e+19 | UX32: 1.327409383e+19 | UY32: 1.435195024e+19 | UZ32: 1.55173286e+19 | VA32: 1.677733569e+19 | VB32: 1.813965534e+19 | VC32: 1.961259536e+19 | VD32: 2.12051381e+19 | VE32: 2.292699532e+19 | VF32: 2.478866734e+19 | VG32: 2.680150712e+19 | VH32: 2.89777895e+19 | VI32: 3.133078601e+19 | VJ32: 3.387484583e+19 | VK32: 3.662548331e+19 | VL32: =VK32*(1+$E$32) -> 3.959947256e+19 | VM32: 4.281494973e+19 | VN32: 4.629152365e+19 | VO32: 5.005039537e+19 | VP32: 5.411448747e+19 | VQ32: 5.850858386e+19 | VR32: 6.325948087e+19 | VS32: 6.839615071e+19 | VT32: 7.394991815e+19 | VU32: 7.99546515e+19 | VV32: 8.644696921e+19 | VW32: 9.34664631e+19 | VX32: 1.010559399e+20 | VY32: 1.092616822e+20 | VZ32: 1.181337308e+20 | WA32: 1.277261898e+20 | WB32: 1.380975564e+20 | WC32: 1.49311078e+20 | WD32: 1.614351375e+20 | WE32: 1.745436707e+20 | WF32: 1.887166167e+20 | WG32: 2.04040406e+20 | WH32: 2.206084869e+20 | WI32: 2.385218961e+20 | WJ32: 2.578898741e+20 | WK32: 2.788305318e+20 | WL32: 3.01471571e+20 | WM32: 3.259510626e+20 | WN32: 3.524182889e+20 | WO32: 3.810346539e+20 | WP32: 4.119746678e+20 | WQ32: 4.454270108e+20 | WR32: 4.815956841e+20 | WS32: 5.207012537e+20 | WT32: 5.629821955e+20 | WU32: 6.086963497e+20 | WV32: 6.581224933e+20 | WW32: 7.115620398e+20 | WX32: 7.693408774e+20 | WY32: 8.318113567e+20 | WZ32: 8.993544388e+20 | XA32: 9.723820193e+20 | XB32: 1.051339439e+21 | XC32: 1.136708202e+21 | XD32: 1.229008908e+21 | XE32: 1.328804431e+21 | XF32: 1.436703351e+21 | XG32: 1.553363663e+21 | XH32: 1.679496792e+21 | XI32: 1.815871932e+21 | XJ32: 1.963320733e+21 | XK32: 2.122742376e+21 | XL32: 2.295109057e+21 | XM32: 2.481471913e+21 | XN32: 2.682967432e+21 | XO32: 2.900824387e+21 | XP32: 3.136371328e+21 | XQ32: 3.391044679e+21 | XR32: 3.666397507e+21 | XS32: 3.964108985e+21 | XT32: 4.285994635e+21 | XU32: 4.634017399e+21 | XV32: 5.010299612e+21 | XW32: 5.41713594e+21 | XX32: =XW32*(1+$E$32) -> 5.857007378e+21 | XY32: 6.332596378e+21 | XZ32: 6.846803203e+21 | YA32: 7.402763623e+21 | YB32: 8.00386803e+21 | YC32: 8.653782114e+21 | YD32: 9.356469221e+21 | YE32: 1.011621452e+22 | YF32: 1.093765114e+22 | YG32: 1.182578841e+22 | YH32: 1.278604243e+22 | YI32: 1.382426908e+22 | YJ32: 1.494679973e+22 | YK32: 1.616047987e+22 | YL32: 1.747271083e+22 | YM32: 1.889149495e+22 | YN32: 2.042548434e+22 | YO32: 2.208403367e+22 | YP32: 2.38772572e+22 | YQ32: 2.581609049e+22 | YR32: 2.791235704e+22 | YS32: 3.017884043e+22 | YT32: 3.262936227e+22 | YU32: 3.527886649e+22 | YV32: 3.814351044e+22 | YW32: 4.124076349e+22 | YX32: 4.458951349e+22 | YY32: 4.821018198e+22 | YZ32: 5.212484876e+22 | ZA32: 5.635738648e+22 | ZB32: 6.093360626e+22 | ZC32: 6.588141509e+22 | ZD32: 7.1230986e+22 | ZE32: 7.701494206e+22 | ZF32: 8.326855535e+22 | ZG32: 9.002996205e+22 | ZH32: 9.734039497e+22 | ZI32: 1.05244435e+23 | ZJ32: 1.137902832e+23 | ZK32: 1.230300542e+23 | ZL32: 1.330200946e+23 | ZM32: 1.438213262e+23 | ZN32: 1.554996179e+23 | ZO32: 1.681261869e+23 | ZP32: 1.817780333e+23 | ZQ32: 1.965384096e+23 | ZR32: 2.124973284e+23 | ZS32: 2.297521115e+23 | ZT32: 2.48407983e+23 | ZU32: 2.685787112e+23 | ZV32: 2.903873025e+23 | ZW32: 3.139667515e+23 | ZX32: 3.394608517e+23 | ZY32: 3.670250729e+23 | ZZ32: 3.968275088e+23 | AAA32: 4.290499025e+23 | AAB32: 4.638887546e+23 | AAC32: 5.015565214e+23 | AAD32: 5.42282911e+23 | AAE32: 5.863162834e+23 | AAF32: 6.339251656e+23 | AAG32: 6.85399889e+23 | AAH32: 7.4105436e+23 | AAI32: 8.01227974e+23 | AAJ32: =AAI32*(1+$E$32) -> 8.662876855e+23 | AAK32: 9.366302456e+23 | AAL32: 1.012684622e+24 | AAM32: 1.094914613e+24 | AAN32: 1.183821679e+24 | AAO32: 1.279948e+24 | AAP32: 1.383879777e+24 | AAQ32: 1.496250815e+24 | AAR32: 1.617746381e+24 | AAS32: 1.749107388e+24 | AAT32: 1.891134907e+24 | AAU32: 2.044695062e+24 | AAV32: 2.210724301e+24 | AAW32: 2.390235114e+24 | AAX32: 2.584322205e+24 | AAY32: 2.794169169e+24 | AAZ32: 3.021055705e+24 | ABA32: 3.266365428e+24 | ABB32: 3.531594301e+24 | ABC32: 3.818359758e+24 | ABD32: 4.128410571e+24 | ABE32: 4.463637509e+24 | ABF32: 4.826084875e+24 | ABG32: 5.217962967e+24 | ABH32: 5.641661559e+24 | ABI32: 6.099764478e+24 | ABJ32: 6.595065354e+24 | ABK32: 7.13058466e+24 | ABL32: 7.709588135e+24 | ABM32: 8.335606691e+24 | ABN32: 9.012457955e+24 | ABO32: 9.744269541e+24 | ABP32: 1.053550423e+25 | ABQ32: 1.139098717e+25 | ABR32: 1.231593533e+25 | ABS32: 1.331598928e+25 | ABT32: 1.439724761e+25 | ABU32: 1.556630411e+25 | ABV32: 1.683028801e+25 | ABW32: 1.819690739e+25 | ABX32: 1.967449627e+25 | ABY32: 2.127206537e+25 | ABZ32: 2.299935708e+25 | ACA32: 2.486690487e+25 | ACB32: 2.688609755e+25 | ACC32: 2.906924867e+25 | ACD32: 3.142967166e+25 | ACE32: 3.3981761e+25 | ACF32: 3.674107999e+25 | ACG32: 3.972445569e+25 | ACH32: 4.295008149e+25 | ACI32: 4.643762811e+25 | ACJ32: 5.020836351e+25 | ACK32: 5.428528263e+25 | ACL32: 5.869324758e+25 | ACM32: 6.345913928e+25 | ACN32: 6.861202139e+25 | ACO32: 7.418331753e+25 | ACP32: 8.020700291e+25 | ACQ32: 8.671981155e+25 | ACR32: 9.376146024e+25 | ACS32: 1.013748908e+26 | ACT32: 1.09606532e+26 | ACU32: 1.185065823e+26 | ACV32: =ACU32*(1+$E$32) -> 1.281293168e+26 | ACW32: 1.385334174e+26 | ACX32: 1.497823308e+26 | ACY32: 1.619446561e+26 | ACZ32: 1.750945622e+26 | ADA32: 1.893122406e+26 | ADB32: 2.046843946e+26 | ADC32: 2.213047674e+26 | ADD32: 2.392747145e+26 | ADE32: 2.587038214e+26 | ADF32: 2.797105716e+26 | ADG32: 3.024230701e+26 | ADH32: 3.269798234e+26 | ADI32: 3.53530585e+26 | ADJ32: 3.822372685e+26 | ADK32: 4.132749347e+26 | ADL32: 4.468328594e+26 | ADM32: 4.831156876e+26 | ADN32: 5.223446814e+26 | ADO32: 5.647590696e+26 | ADP32: 6.10617506e+26 | ADQ32: 6.601996475e+26 | ADR32: 7.138078589e+26 | ADS32: 7.71769057e+26 | ADT32: 8.344367044e+26 | ADU32: 9.021929648e+26 | ADV32: 9.754510336e+26 | ADW32: 1.054657658e+27 | ADX32: 1.140295859e+27 | ADY32: 1.232887883e+27 | ADZ32: 1.332998379e+27 | AEA32: 1.441237848e+27 | AEB32: 1.558266361e+27 | AEC32: 1.684797589e+27 | AED32: 1.821603154e+27 | AEE32: 1.96951733e+27 | AEF32: 2.129442137e+27 | AEG32: 2.302352838e+27 | AEH32: 2.489303889e+27 | AEI32: 2.691435365e+27 | AEJ32: 2.909979916e+27 | AEK32: 3.146270285e+27 | AEL32: 3.401747432e+27 | AEM32: 3.677969324e+27 | AEN32: 3.976620433e+27 | AEO32: 4.299522012e+27 | AEP32: 4.6486432e+27 | AEQ32: 5.026113027e+27 | AER32: 5.434233405e+27 | AES32: 5.875493158e+27 | AET32: 6.352583202e+27 | AEU32: 6.868412958e+27 | AEV32: 7.42612809e+27 | AEW32: 8.029129691e+27 | AEX32: 8.681095022e+27 | AEY32: 9.385999938e+27 | AEZ32: 1.014814313e+28 | AFA32: 1.097217236e+28 | AFB32: 1.186311275e+28 | AFC32: 1.282639751e+28 | AFD32: 1.386790098e+28 | AFE32: 1.499397454e+28 | AFF32: 1.621148528e+28 | AFG32: 1.752785788e+28 | AFH32: =AFG32*(1+$E$32) -> 1.895111994e+28 | AFI32: 2.048995088e+28 | AFJ32: 2.215373489e+28 | AFK32: 2.395261816e+28 | AFL32: 2.589757076e+28 | AFM32: 2.800045351e+28 | AFN32: 3.027409033e+28 | AFO32: 3.273234647e+28 | AFP32: 3.5390213e+28 | AFQ32: 3.826389829e+28 | AFR32: 4.137092683e+28 | AFS32: 4.473024609e+28 | AFT32: 4.836234208e+28 | AFU32: 5.228936425e+28 | AFV32: 5.653526063e+28 | AFW32: 6.112592379e+28 | AFX32: 6.608934881e+28 | AFY32: 7.145580393e+28 | AFZ32: 7.725801521e+28 | AGA32: 8.353136604e+28 | AGB32: 9.031411297e+28 | AGC32: 9.764761894e+28 | AGD32: 1.055766056e+29 | AGE32: 1.14149426e+29 | AGF32: 1.234183594e+29 | AGG32: 1.334399301e+29 | AGH32: 1.442752525e+29 | AGI32: 1.55990403e+29 | AGJ32: 1.686568237e+29 | AGK32: 1.823517578e+29 | AGL32: 1.971587205e+29 | AGM32: 2.131680086e+29 | AGN32: 2.304772509e+29 | AGO32: 2.491920037e+29 | AGP32: 2.694263944e+29 | AGQ32: 2.913038176e+29 | AGR32: 3.149576876e+29 | AGS32: 3.405322518e+29 | AGT32: 3.681834707e+29 | AGU32: 3.980799685e+29 | AGV32: 4.304040619e+29 | AGW32: 4.653528718e+29 | AGX32: 5.031395249e+29 | AGY32: 5.439944544e+29 | AGZ32: 5.881668041e+29 | AHA32: 6.359259486e+29 | AHB32: 6.875631356e+29 | AHC32: 7.433932622e+29 | AHD32: 8.037567951e+29 | AHE32: 8.690218468e+29 | AHF32: 9.395864208e+29 | AHG32: 1.015880838e+30 | AHH32: 1.098370362e+30 | AHI32: 1.187558036e+30 | AHJ32: 1.283987748e+30 | AHK32: 1.388247553e+30 | AHL32: 1.500973255e+30 | AHM32: 1.622852283e+30 | AHN32: 1.754627888e+30 | AHO32: 1.897103673e+30 | AHP32: 2.051148491e+30 | AHQ32: 2.217701748e+30 | AHR32: 2.39777913e+30 | AHS32: 2.592478796e+30 | AHT32: =AHS32*(1+$E$32) -> 2.802988074e+30 | AHU32: 3.030590706e+30 | AHV32: 3.276674671e+30 | AHW32: 3.542740654e+30 | AHX32: 3.830411195e+30 | AHY32: 4.141440584e+30 | AHZ32: 4.47772556e+30 | AIA32: 4.841316875e+30 | AIB32: 5.234431806e+30 | AIC32: 5.659467668e+30 | AID32: 6.119016443e+30 | AIE32: 6.615880578e+30 | AIF32: 7.153090081e+30 | AIG32: 7.733920996e+30 | AIH32: 8.361915381e+30 | AII32: 9.040902909e+30 | AIJ32: 9.775024226e+30 | AIK32: 1.056875619e+31 | AIL32: 1.14269392e+31 | AIM32: 1.235480666e+31 | AIN32: 1.335801696e+31 | AIO32: 1.444268794e+31 | AIP32: 1.56154342e+31 | AIQ32: 1.688340745e+31 | AIR32: 1.825434014e+31 | AIS32: 1.973659256e+31 | AIT32: 2.133920387e+31 | AIU32: 2.307194723e+31 | AIV32: 2.494538934e+31 | AIW32: 2.697095496e+31 | AIX32: 2.91609965e+31 | AIY32: 3.152886942e+31 | AIZ32: 3.408901361e+31 | AJA32: 3.685704152e+31 | AJB32: 3.984983329e+31 | AJC32: 4.308563975e+31 | AJD32: 4.65841937e+31 | AJE32: 5.036683023e+31 | AJF32: 5.445661684e+31 | AJG32: 5.887849413e+31 | AJH32: 6.365942785e+31 | AJI32: 6.88285734e+31 | AJJ32: 7.441745356e+31 | AJK32: 8.046015078e+31 | AJL32: 8.699351503e+31 | AJM32: 9.405738845e+31 | AJN32: 1.016948484e+32 | AJO32: 1.099524701e+32 | AJP32: 1.188806106e+32 | AJQ32: 1.285337162e+32 | AJR32: 1.38970654e+32 | AJS32: 1.502550711e+32 | AJT32: 1.624557829e+32 | AJU32: 1.756471924e+32 | AJV32: 1.899097445e+32 | AJW32: 2.053304157e+32 | AJX32: 2.220032455e+32 | AJY32: 2.40029909e+32 | AJZ32: 2.595203376e+32 | AKA32: 2.80593389e+32 | AKB32: 3.033775722e+32 | AKC32: 3.280118311e+32 | AKD32: 3.546463918e+32 | AKE32: 3.834436788e+32 | AKF32: =AKE32*(1+$E$32) -> 4.145793055e+32 | AKG32: 4.482431451e+32 | AKH32: 4.846404885e+32 | AKI32: 5.239932961e+32 | AKJ32: 5.665415518e+32 | AKK32: 6.125447258e+32 | AKL32: 6.622833575e+32 | AKM32: 7.160607662e+32 | AKN32: 7.742049004e+32 | AKO32: 8.370703383e+32 | AKP32: 9.050404498e+32 | AKQ32: 9.785297343e+32 | AKR32: 1.057986349e+33 | AKS32: 1.14389484e+33 | AKT32: 1.236779101e+33 | AKU32: 1.337205564e+33 | AKV32: 1.445786656e+33 | AKW32: 1.563184533e+33 | AKX32: 1.690115117e+33 | AKY32: 1.827352464e+33 | AKZ32: 1.975733484e+33 | ALA32: 2.136163043e+33 | ALB32: 2.309619482e+33 | ALC32: 2.497160584e+33 | ALD32: 2.699930024e+33 | ALE32: 2.919164341e+33 | ALF32: 3.156200486e+33 | ALG32: 3.412483965e+33 | ALH32: 3.689577663e+33 | ALI32: 3.98917137e+33 | ALJ32: 4.313092085e+33 | ALK32: 4.663315162e+33 | ALL32: 5.041976353e+33 | ALM32: 5.451384833e+33 | ALN32: 5.894037282e+33 | ALO32: 6.372633109e+33 | ALP32: 6.890090918e+33 | ALQ32: 7.4495663e+33 | ALR32: 8.054471084e+33
C34: Value with EOY | E34: =NPV(E13,29:29) -> 39.2
C35: Value with HY | E35: =E34*(1+E13)^pyfac -> 39.2
B37: Terminal Value - Simple Gordon
C38: Explicit Cash Flow Value | E38: =NPV(E13,G29:KT29*G3:KT3) -> 11.24917529
C39: Explicit Cash Flow Value (HY) | E39: =E38*(1+E13)^pyfac -> 11.24917529
C41: Terminal Cash Flow - x (1+g) | E41: =SUMIF(4:4,TRUE,29:29) -> 2.389931847
C42: Stable cash with 1+g | E42: =E41*(1+E14*TRUE)/(E13-E14) -> 48.2766233
C43: PV of Terminal Value | E43: =E42/SUMIF(4:4,TRUE,32:32) -> 27.95082471
C44: Value with HY | E44: =E43*(1+E13)^pyfac -> 27.95082471
C46: Total Value including Explicit | E46: =E44+E39 -> 39.2
B48: Terminal Value - Value Driver | H48: Value/NOPAT =(1-g/ROI)/(WACC-g)
C49: Closing BV Balance | E49: =SUMIF(4:4,TRUE,30:30) -> 34.48330236 | H49: Value =NOPAT x (1-g/ROI)/(WACC-g)
C50: Income in Terminal Year | H50: Value =BV x ROI x (1-g/ROI)/(WACC-g)
C51: Value Driver Multiplier | E51: =E49*E12*(1-E14/E12)/(E13-E14) -> 48.2766233
C52: Terminal Value with PV | E52: =E51/SUMIF(4:4,TRUE,32:32) -> 27.95082471
C53: Terminal Value with HY | E53: =E52*(1+E13)^pyfac -> 27.95082471
C55: Total Value with HY | E55: =E53+E39 -> 39.2
B57: Terminal Value - Value Driver NOPAT
C58: NOPAT in Terminal Period | E58: =LOOKUP(E3,2:2,28:28) -> 3.400799378
C59: NOPAT in Terminal Period x (1+g) | E59: =E58*(1+E14) -> 3.503503519
C60: Value Driver Formula | E60: =E59*(1-E14/E12)/(E13-E14) -> 48.2766233
C61: PV Factor | E61: =LOOKUP(E4,2:2,32:32) -> 1.727198528
C62: PV of Terminal Value | E62: =E60/E61 -> 27.95082471
C63: Explicit Cash Flow | E63: =E38 -> 11.24917529
C64: Total Value with HY | E64: =SUM(E62:E63)*(1+E13)^pyfac -> 39.2
A67: NOPAT Perspective
B68: Tax Rate | E68: 0 | I68: =E14 -> 0.0302 | J68: =I68 -> 0.0302
B69: Depreciation Life | E69: 15 | H69: =E71 -> 1.258317071 | I69: 1.258317071 | J69: 1.258317071
B70: Growth | E70: =E14 -> 0.0302
B71: Stable Cap Exp/Depreciation | E71: =LOOKUP(E69+1,75:75,82:82) -> 1.258317071
B72: Depreciation to Net Plant | E72: =LOOKUP(E69+1,75:75,90:90) -> 0.1169105853
A74: Investment Balance and Depreciation
G75: =G2 -> 1 | H75: 2 | I75: 3 | J75: 4 | K75: 5 | L75: 6 | M75: 7 | N75: 8 | O75: 9 | P75: 10 | Q75: 11 | R75: 12 | S75: 13 | T75: 14 | U75: 15 | V75: 16 | W75: 17 | X75: 18 | Y75: 19 | Z75: 20 | AA75: 21 | AB75: 22 | AC75: 23 | AD75: 24 | AE75: 25 | AF75: 26 | AG75: 27 | AH75: 28 | AI75: 29 | AJ75: 30 | AK75: 31 | AL75: 32 | AM75: 33 | AN75: 34 | AO75: 35 | AP75: 36 | AQ75: 37 | AR75: 38 | AS75: 39 | AT75: 40 | AU75: 41 | AV75: 42 | AW75: 43 | AX75: 44 | AY75: 45 | AZ75: 46 | BA75: 47 | BB75: 48 | BC75: 49 | BD75: 50 | BE75: 51 | BF75: 52 | BG75: 53 | BH75: 54 | BI75: 55 | BJ75: 56 | BK75: 57 | BL75: 58 | BM75: 59 | BN75: 60 | BO75: 61 | BP75: 62 | BQ75: 63 | BR75: 64 | BS75: =BS2 -> 65 | BT75: 66 | BU75: 67 | BV75: 68 | BW75: 69 | BX75: 70 | BY75: 71 | BZ75: 72 | CA75: 73 | CB75: 74 | CC75: 75 | CD75: 76 | CE75: 77 | CF75: 78 | CG75: 79 | CH75: 80 | CI75: 81 | CJ75: 82 | CK75: 83 | CL75: 84 | CM75: 85 | CN75: 86 | CO75: 87 | CP75: 88 | CQ75: 89 | CR75: 90 | CS75: 91 | CT75: 92 | CU75: 93 | CV75: 94 | CW75: 95 | CX75: 96 | CY75: 97 | CZ75: 98 | DA75: 99 | DB75: 100 | DC75: 101 | DD75: 102 | DE75: 103 | DF75: 104 | DG75: 105 | DH75: 106 | DI75: 107 | DJ75: 108 | DK75: 109 | DL75: 110 | DM75: 111 | DN75: 112 | DO75: 113 | DP75: 114 | DQ75: 115 | DR75: 116 | DS75: 117 | DT75: 118 | DU75: 119 | DV75: 120 | DW75: 121 | DX75: 122 | DY75: 123 | DZ75: 124 | EA75: 125 | EB75: 126 | EC75: 127 | ED75: 128 | EE75: =EE2 -> 129 | EF75: 130 | EG75: 131 | EH75: 132 | EI75: 133 | EJ75: 134 | EK75: 135 | EL75: 136 | EM75: 137 | EN75: 138 | EO75: 139 | EP75: 140 | EQ75: 141 | ER75: 142 | ES75: 143 | ET75: 144 | EU75: 145 | EV75: 146 | EW75: 147 | EX75: 148 | EY75: 149 | EZ75: 150 | FA75: 151 | FB75: 152 | FC75: 153 | FD75: 154 | FE75: 155 | FF75: 156 | FG75: 157 | FH75: 158 | FI75: 159 | FJ75: 160 | FK75: 161 | FL75: 162 | FM75: 163 | FN75: 164 | FO75: 165 | FP75: 166 | FQ75: 167 | FR75: 168 | FS75: 169 | FT75: 170 | FU75: 171 | FV75: 172 | FW75: 173 | FX75: 174 | FY75: 175 | FZ75: 176 | GA75: 177 | GB75: 178 | GC75: 179 | GD75: 180 | GE75: 181 | GF75: 182 | GG75: 183 | GH75: 184 | GI75: 185 | GJ75: 186 | GK75: 187 | GL75: 188 | GM75: 189 | GN75: 190 | GO75: 191 | GP75: 192 | GQ75: =GQ2 -> 193 | GR75: 194 | GS75: 195 | GT75: 196 | GU75: 197 | GV75: 198 | GW75: 199 | GX75: 200 | GY75: 201 | GZ75: 202 | HA75: 203 | HB75: 204 | HC75: 205 | HD75: 206 | HE75: 207 | HF75: 208 | HG75: 209 | HH75: 210 | HI75: 211 | HJ75: 212 | HK75: 213 | HL75: 214 | HM75: 215 | HN75: 216 | HO75: 217 | HP75: 218 | HQ75: 219 | HR75: 220 | HS75: 221 | HT75: 222 | HU75: 223 | HV75: 224 | HW75: 225 | HX75: 226 | HY75: 227 | HZ75: 228 | IA75: 229 | IB75: 230 | IC75: 231 | ID75: 232 | IE75: 233 | IF75: 234 | IG75: 235 | IH75: 236 | II75: 237 | IJ75: 238 | IK75: 239 | IL75: 240 | IM75: 241 | IN75: 242 | IO75: 243 | IP75: 244 | IQ75: 245 | IR75: 246 | IS75: 247 | IT75: 248 | IU75: 249 | IV75: 250 | IW75: 251 | IX75: 252 | IY75: 253 | IZ75: 254 | JA75: 255 | JB75: 256 | JC75: =JC2 -> 257 | JD75: 258 | JE75: 259 | JF75: 260 | JG75: 261 | JH75: 262 | JI75: 263 | JJ75: 264 | JK75: 265 | JL75: 266 | JM75: 267 | JN75: 268 | JO75: 269 | JP75: 270 | JQ75: 271 | JR75: 272 | JS75: 273 | JT75: 274 | JU75: 275 | JV75: 276 | JW75: 277 | JX75: 278 | JY75: 279 | JZ75: 280 | KA75: 281 | KB75: 282 | KC75: 283 | KD75: 284 | KE75: 285 | KF75: 286 | KG75: 287 | KH75: 288 | KI75: 289 | KJ75: 290 | KK75: 291 | KL75: 292 | KM75: 293 | KN75: 294 | KO75: 295 | KP75: 296 | KQ75: 297 | KR75: 298 | KS75: 299 | KT75: 300 | KU75: =KU2 -> 301 | KV75: 302 | KW75: 303 | KX75: 304 | KY75: 305 | KZ75: 306 | LA75: 307 | LB75: 308 | LC75: 309 | LD75: 310 | LE75: 311 | LF75: 312 | LG75: 313 | LH75: 314 | LI75: 315 | LJ75: 316 | LK75: 317 | LL75: 318 | LM75: 319 | LN75: 320 | LO75: 321 | LP75: 322 | LQ75: 323 | LR75: 324 | LS75: 325 | LT75: 326 | LU75: 327 | LV75: 328 | LW75: 329 | LX75: 330 | LY75: 331 | LZ75: 332 | MA75: 333 | MB75: 334 | MC75: 335 | MD75: 336 | ME75: 337 | MF75: 338 | MG75: 339 | MH75: 340 | MI75: 341 | MJ75: 342 | MK75: 343 | ML75: 344 | MM75: 345 | MN75: 346 | MO75: 347 | MP75: 348 | MQ75: 349 | MR75: 350 | MS75: 351 | MT75: 352 | MU75: 353 | MV75: 354 | MW75: 355 | MX75: 356 | MY75: 357 | MZ75: 358 | NA75: 359 | NB75: 360 | NC75: 361 | ND75: 362 | NE75: 363 | NF75: 364 | NG75: =NG2 -> 365 | NH75: 366 | NI75: 367 | NJ75: 368 | NK75: 369 | NL75: 370 | NM75: 371 | NN75: 372 | NO75: 373 | NP75: 374 | NQ75: 375 | NR75: 376 | NS75: 377 | NT75: 378 | NU75: 379 | NV75: 380 | NW75: 381 | NX75: 382 | NY75: 383 | NZ75: 384 | OA75: 385 | OB75: 386 | OC75: 387 | OD75: 388 | OE75: 389 | OF75: 390 | OG75: 391 | OH75: 392 | OI75: 393 | OJ75: 394 | OK75: 395 | OL75: 396 | OM75: 397 | ON75: 398 | OO75: 399 | OP75: 400 | OQ75: 401 | OR75: 402 | OS75: 403 | OT75: 404 | OU75: 405 | OV75: 406 | OW75: 407 | OX75: 408 | OY75: 409 | OZ75: 410 | PA75: 411 | PB75: 412 | PC75: 413 | PD75: 414 | PE75: 415 | PF75: 416 | PG75: 417 | PH75: 418 | PI75: 419 | PJ75: 420 | PK75: 421 | PL75: 422 | PM75: 423 | PN75: 424 | PO75: 425 | PP75: 426 | PQ75: 427 | PR75: 428 | PS75: =PS2 -> 429 | PT75: 430 | PU75: 431 | PV75: 432 | PW75: 433 | PX75: 434 | PY75: 435 | PZ75: 436 | QA75: 437 | QB75: 438 | QC75: 439 | QD75: 440 | QE75: 441 | QF75: 442 | QG75: 443 | QH75: 444 | QI75: 445 | QJ75: 446 | QK75: 447 | QL75: 448 | QM75: 449 | QN75: 450 | QO75: 451 | QP75: 452 | QQ75: 453 | QR75: 454 | QS75: 455 | QT75: 456 | QU75: 457 | QV75: 458 | QW75: 459 | QX75: 460 | QY75: 461 | QZ75: 462 | RA75: 463 | RB75: 464 | RC75: 465 | RD75: 466 | RE75: 467 | RF75: 468 | RG75: 469 | RH75: 470 | RI75: 471 | RJ75: 472 | RK75: 473 | RL75: 474 | RM75: 475 | RN75: 476 | RO75: 477 | RP75: 478 | RQ75: 479 | RR75: 480 | RS75: 481 | RT75: 482 | RU75: 483 | RV75: 484 | RW75: 485 | RX75: 486 | RY75: 487 | RZ75: 488 | SA75: 489 | SB75: 490 | SC75: 491 | SD75: 492 | SE75: =SE2 -> 493 | SF75: 494 | SG75: 495 | SH75: 496 | SI75: 497 | SJ75: 498 | SK75: 499 | SL75: 500 | SM75: 501 | SN75: 502 | SO75: 503 | SP75: 504 | SQ75: 505 | SR75: 506 | SS75: 507 | ST75: 508 | SU75: 509 | SV75: 510 | SW75: 511 | SX75: 512 | SY75: 513 | SZ75: 514 | TA75: 515 | TB75: 516 | TC75: 517 | TD75: 518 | TE75: 519 | TF75: 520 | TG75: 521 | TH75: 522 | TI75: 523 | TJ75: 524 | TK75: 525 | TL75: 526 | TM75: 527 | TN75: 528 | TO75: 529 | TP75: 530 | TQ75: 531 | TR75: 532 | TS75: 533 | TT75: 534 | TU75: 535 | TV75: 536 | TW75: 537 | TX75: 538 | TY75: 539 | TZ75: 540 | UA75: 541 | UB75: 542 | UC75: 543 | UD75: 544 | UE75: 545 | UF75: 546 | UG75: 547 | UH75: 548 | UI75: 549 | UJ75: 550 | UK75: 551 | UL75: 552 | UM75: 553 | UN75: 554 | UO75: 555 | UP75: 556 | UQ75: =UQ2 -> 557 | UR75: 558 | US75: 559 | UT75: 560 | UU75: 561 | UV75: 562 | UW75: 563 | UX75: 564 | UY75: 565 | UZ75: 566 | VA75: 567 | VB75: 568 | VC75: 569 | VD75: 570 | VE75: 571 | VF75: 572 | VG75: 573 | VH75: 574 | VI75: 575 | VJ75: 576 | VK75: 577 | VL75: 578 | VM75: 579 | VN75: 580 | VO75: 581 | VP75: 582 | VQ75: 583 | VR75: 584 | VS75: 585 | VT75: 586 | VU75: 587 | VV75: 588 | VW75: 589 | VX75: 590 | VY75: 591 | VZ75: 592 | WA75: 593 | WB75: 594 | WC75: 595 | WD75: 596 | WE75: 597 | WF75: 598 | WG75: 599 | WH75: 600 | WI75: 601 | WJ75: 602 | WK75: 603 | WL75: 604 | WM75: 605 | WN75: 606 | WO75: 607 | WP75: 608 | WQ75: 609 | WR75: 610 | WS75: 611 | WT75: 612 | WU75: 613 | WV75: 614 | WW75: 615 | WX75: 616 | WY75: 617 | WZ75: 618 | XA75: 619 | XB75: 620 | XC75: =XC2 -> 621 | XD75: 622 | XE75: 623 | XF75: 624 | XG75: 625 | XH75: 626 | XI75: 627 | XJ75: 628 | XK75: 629 | XL75: 630 | XM75: 631 | XN75: 632 | XO75: 633 | XP75: 634 | XQ75: 635 | XR75: 636 | XS75: 637 | XT75: 638 | XU75: 639 | XV75: 640 | XW75: 641 | XX75: 642 | XY75: 643 | XZ75: 644 | YA75: 645 | YB75: 646 | YC75: 647 | YD75: 648 | YE75: 649 | YF75: 650 | YG75: 651 | YH75: 652 | YI75: 653 | YJ75: 654 | YK75: 655 | YL75: 656 | YM75: 657 | YN75: 658 | YO75: 659 | YP75: 660 | YQ75: 661 | YR75: 662 | YS75: 663 | YT75: 664 | YU75: 665 | YV75: 666 | YW75: 667 | YX75: 668 | YY75: 669 | YZ75: 670 | ZA75: 671 | ZB75: 672 | ZC75: 673 | ZD75: 674 | ZE75: 675 | ZF75: 676 | ZG75: 677 | ZH75: 678 | ZI75: 679 | ZJ75: 680 | ZK75: 681 | ZL75: 682 | ZM75: 683 | ZN75: 684 | ZO75: =ZO2 -> 685 | ZP75: 686 | ZQ75: 687 | ZR75: 688 | ZS75: 689 | ZT75: 690 | ZU75: 691 | ZV75: 692 | ZW75: 693 | ZX75: 694 | ZY75: 695 | ZZ75: 696 | AAA75: 697 | AAB75: 698 | AAC75: 699 | AAD75: 700 | AAE75: 701 | AAF75: 702 | AAG75: 703 | AAH75: 704 | AAI75: 705 | AAJ75: 706 | AAK75: 707 | AAL75: 708 | AAM75: 709 | AAN75: 710 | AAO75: 711 | AAP75: 712 | AAQ75: 713 | AAR75: 714 | AAS75: 715 | AAT75: 716 | AAU75: 717 | AAV75: 718 | AAW75: 719 | AAX75: 720 | AAY75: 721 | AAZ75: 722 | ABA75: 723 | ABB75: 724 | ABC75: 725 | ABD75: 726 | ABE75: 727 | ABF75: 728 | ABG75: 729 | ABH75: 730 | ABI75: 731 | ABJ75: 732 | ABK75: 733 | ABL75: 734 | ABM75: 735 | ABN75: 736 | ABO75: 737 | ABP75: 738 | ABQ75: 739 | ABR75: 740 | ABS75: 741 | ABT75: 742 | ABU75: 743 | ABV75: 744 | ABW75: 745 | ABX75: 746 | ABY75: 747 | ABZ75: 748 | ACA75: =ACA2 -> 749 | ACB75: 750 | ACC75: 751 | ACD75: 752 | ACE75: 753 | ACF75: 754 | ACG75: 755 | ACH75: 756 | ACI75: 757 | ACJ75: 758 | ACK75: 759 | ACL75: 760 | ACM75: 761 | ACN75: 762 | ACO75: 763 | ACP75: 764 | ACQ75: 765 | ACR75: 766 | ACS75: 767 | ACT75: 768 | ACU75: 769 | ACV75: 770 | ACW75: 771 | ACX75: 772 | ACY75: 773 | ACZ75: 774 | ADA75: 775 | ADB75: 776 | ADC75: 777 | ADD75: 778 | ADE75: 779 | ADF75: 780 | ADG75: 781 | ADH75: 782 | ADI75: 783 | ADJ75: 784 | ADK75: 785 | ADL75: 786 | ADM75: 787 | ADN75: 788 | ADO75: 789 | ADP75: 790 | ADQ75: 791 | ADR75: 792 | ADS75: 793 | ADT75: 794 | ADU75: 795 | ADV75: 796 | ADW75: 797 | ADX75: 798 | ADY75: 799 | ADZ75: 800 | AEA75: 801 | AEB75: 802 | AEC75: 803 | AED75: 804 | AEE75: 805 | AEF75: 806 | AEG75: 807 | AEH75: 808 | AEI75: 809 | AEJ75: 810 | AEK75: 811 | AEL75: 812 | AEM75: =AEM2 -> 813 | AEN75: 814 | AEO75: 815 | AEP75: 816 | AEQ75: 817 | AER75: 818 | AES75: 819 | AET75: 820 | AEU75: 821 | AEV75: 822 | AEW75: 823 | AEX75: 824 | AEY75: 825 | AEZ75: 826 | AFA75: 827 | AFB75: 828 | AFC75: 829 | AFD75: 830 | AFE75: 831 | AFF75: 832 | AFG75: 833 | AFH75: 834 | AFI75: 835 | AFJ75: 836 | AFK75: 837 | AFL75: 838 | AFM75: 839 | AFN75: 840 | AFO75: 841 | AFP75: 842 | AFQ75: 843 | AFR75: 844 | AFS75: 845 | AFT75: 846 | AFU75: 847 | AFV75: 848 | AFW75: 849 | AFX75: 850 | AFY75: 851 | AFZ75: 852 | AGA75: 853 | AGB75: 854 | AGC75: 855 | AGD75: 856 | AGE75: 857 | AGF75: 858 | AGG75: 859 | AGH75: 860 | AGI75: 861 | AGJ75: 862 | AGK75: 863 | AGL75: 864 | AGM75: 865 | AGN75: 866 | AGO75: 867 | AGP75: 868 | AGQ75: 869 | AGR75: 870 | AGS75: 871 | AGT75: 872 | AGU75: 873 | AGV75: 874 | AGW75: 875 | AGX75: 876 | AGY75: =AGY2 -> 877 | AGZ75: 878 | AHA75: 879 | AHB75: 880 | AHC75: 881 | AHD75: 882 | AHE75: 883 | AHF75: 884 | AHG75: 885 | AHH75: 886 | AHI75: 887 | AHJ75: 888 | AHK75: 889 | AHL75: 890 | AHM75: 891 | AHN75: 892 | AHO75: 893 | AHP75: 894 | AHQ75: 895 | AHR75: 896 | AHS75: 897 | AHT75: 898 | AHU75: 899 | AHV75: 900 | AHW75: 901 | AHX75: 902 | AHY75: 903 | AHZ75: 904 | AIA75: 905 | AIB75: 906 | AIC75: 907 | AID75: 908 | AIE75: 909 | AIF75: 910 | AIG75: 911 | AIH75: 912 | AII75: 913 | AIJ75: 914 | AIK75: 915 | AIL75: 916 | AIM75: 917 | AIN75: 918 | AIO75: 919 | AIP75: 920 | AIQ75: 921 | AIR75: 922 | AIS75: 923 | AIT75: 924 | AIU75: 925 | AIV75: 926 | AIW75: 927 | AIX75: 928 | AIY75: 929 | AIZ75: 930 | AJA75: 931 | AJB75: 932 | AJC75: 933 | AJD75: 934 | AJE75: 935 | AJF75: 936 | AJG75: 937 | AJH75: 938 | AJI75: 939 | AJJ75: 940 | AJK75: =AJK2 -> 941 | AJL75: 942 | AJM75: 943 | AJN75: 944 | AJO75: 945 | AJP75: 946 | AJQ75: 947 | AJR75: 948 | AJS75: 949 | AJT75: 950 | AJU75: 951 | AJV75: 952 | AJW75: 953 | AJX75: 954 | AJY75: 955 | AJZ75: 956 | AKA75: 957 | AKB75: 958 | AKC75: 959 | AKD75: 960 | AKE75: 961 | AKF75: 962 | AKG75: 963 | AKH75: 964 | AKI75: 965 | AKJ75: 966 | AKK75: 967 | AKL75: 968 | AKM75: 969 | AKN75: 970 | AKO75: 971 | AKP75: 972 | AKQ75: 973 | AKR75: 974 | AKS75: 975 | AKT75: 976 | AKU75: 977 | AKV75: 978 | AKW75: 979 | AKX75: 980 | AKY75: 981 | AKZ75: 982 | ALA75: 983 | ALB75: 984 | ALC75: 985 | ALD75: 986 | ALE75: 987 | ALF75: 988 | ALG75: 989 | ALH75: 990 | ALI75: 991 | ALJ75: 992 | ALK75: 993 | ALL75: 994 | ALM75: 995 | ALN75: 996 | ALO75: 997 | ALP75: 998 | ALQ75: 999 | ALR75: 1000
B76: Gross Investment Balance
